Workbook

Sheet Welcome
A1: English | E1: COVID-19 Stress Test | F1: Helps users build scenarios to assess the impact of COVID-19 on the economy and the budget. The analysis helps policymakers understand the macro-fiscal implications of the pandemic and different policy response measures. | G1: Get Started | H1: User guide | I1: IMF Fiscal risk management portal
A2: Français | E2: COVID-19 Stress Test | F2: Helps users build scenarios to assess the impact of COVID-19 on the economy and the budget. The analysis helps policymakers understand the macro-fiscal implications of the pandemic and different policy response measures. | G2: Comenzar | H2: User guide | I2: IMF Fiscal risk management portal
A3: Español | E3: COVID-19 Stress Test | F3: Helps users build scenarios to assess the impact of COVID-19 on the economy and the budget. The analysis helps policymakers understand the macro-fiscal implications of the pandemic and different policy response measures. | G3: Get Started | H3: User guide | I3: IMF Fiscal risk management portal
A4: Português | E4: COVID-19 Stress Test | F4: Helps users build scenarios to assess the impact of COVID-19 on the economy and the budget. The analysis helps policymakers understand the macro-fiscal implications of the pandemic and different policy response measures. | G4: Get Started | H4: User guide | I4: IMF Fiscal risk management portal
A5: Русский | E5: COVID-19 Stress Test | F5: Helps users build scenarios to assess the impact of COVID-19 on the economy and the budget. The analysis helps policymakers understand the macro-fiscal implications of the pandemic and different policy response measures. | G5: Get Started | H5: User guide | I5: IMF Fiscal risk management portal

Sheet INFO
A1: Made and tested by: Bryn Battersby, Natalia Salazar, Vince Tang, Sybi Hida, David Bartolini, Camilo Gomez Osorio, Matt Quillinan, Jyoti Rahman, Bryn Welham
A2: Under the guidance of: Richard Hughes and Jason Harris
A4: Language selection | C4: English
A10: Primary contact: Bryn Battersby, bbattersby@imf.org
A12: Last updated
A13: 2021-11-03
A14: by Bryn
A16: Changes
A17: Fixed Labels on parameter modelling page
A18: Adjusted disaster parameters
A19: White text for Resuts by Sector constrained by supply side
A20: Fixed disaster names to allow different languages
A21: First year of data drop down all years now there, and this should fix first years in other sheets
A22: Fixed bolding on GDP(E)
A23: GDP(E) Sheet first column was being displayed, should now be fixed
A24: Labelling on the Model Adjustment By Sector Fixed
A25: Changed non-pandemic to be out of 10 in the sliders
A28: =Labels!F273 -> Colour codes
A29: =Labels!F268 -> Red = links
A30: =Labels!F269 -> Black = calculations
A31: =Labels!F270 -> Blue = hard-coded numbers
A32: =Labels!F271 -> Model values
A33: =Labels!F272 -> User entry values
A35: =Labels!F274 -> PLEASE ENABLE MACROS

Sheet Setup File and Task Panel
C1: =Labels!F2 -> Setup the Framework…
C3: =Labels!F3 -> 1. Country | F3: =Labels!F6 -> 5. Production Function Variables
C4: Macrofiscalia | F4: =Labels!F7 -> Long-run GDP growth | H4: 7.8
F5: =Labels!F8 -> Long-run employment growth rate | H5: 3.47 | I5: PWT
C6: =Labels!F4 -> 2. First year of data | F6: =Labels!F9 -> Investment to GDP ratio | H6: 14.24 | I6: WDI | L6: 2013 | M6: =Labels!F298 -> Pandemic
C7: 2013 | F7: =Labels!F10 -> Capital share in output | H7: 44.9 | I7: PWT | L7: 2014 | M7: =Labels!F299 -> Earthquake
F8: =Labels!F11 -> Capital-output ratio | H8: 4.03 | I8: PWT | L8: 2015 | M8: =Labels!F300 -> Flood
C9: 3. Type of Shock | L9: 2016 | M9: =Labels!F301 -> Storm
C10: Pandemic | L10: 2017 | M10: =Labels!F302 -> Drought
L11: 2018
C12: =Labels!F5 -> 4. National Accounts Sectors | L12: 2019
C13: Agriculture, forestry, and fishing | L13: 2020
C14: Mining & quarrying | L14: 2021
C15: Manufacturing | F15: =Labels!F12 -> 6. Data Entry and Verification Tasks | I15: =SUM(H16:H32) -> 882
C16: Electricity | G16: =Labels!F13 -> Mapping of GDP (P) parameters | H16: =COUNTBLANK('Check Parameter Mapping'!G30:I49) -> 3
C17: Water & waste management
C18: Construction | G18: =Labels!F14 -> GDP (P) Data | H18: =COUNTBLANK('GDP (P)'!F9:N28) + COUNTBLANK('GDP (P)'!F33:N52) -> 360
C19: Maintenance and repair of motor vehicles
C20: Wholesale & retail trade | G20: =Labels!F15 -> GDP (E) Data | H20: =COUNTBLANK('GDP (E)'!F4:N5) + COUNTBLANK('GDP (E)'!F7:N10) + COUNTBLANK('GDP (E)'!F12:N13) + COUNTBLANK('GDP (E)'!F27:N28) + COUNTBLANK('GDP (E)'!F30:N33) -> 126
C21: Transport services
C22: Hotels & restaurants | G22: =Labels!F16 -> GDP (E) Mapping | H22: =IF(OR('GDP (E)'!C80<>1,'GDP (E)'!D80<>1,'GDP (E)'!E80<>1),1,0) -> 1
C23: Information & communication
C24: Financial services | G24: =Labels!F17 -> Other Macro | H24: =COUNTBLANK('Other Macro'!F4:O7) + COUNTBLANK('Other Macro'!P5:R7) -> 49
C25: Real estate activities
C26: Professional, scientific and technical activities | G26: =Labels!F18 -> Revenue data | H26: =COUNTBLANK(REVENUE!O12:R14)+COUNTBLANK(REVENUE!F23:N27)+COUNTBLANK(REVENUE!F29:N30)+COUNTBLANK(REVENUE!F32:N34)+COUNTBLANK(REVENUE!F36:N39)+COUNTBLANK(REVENUE!O39:R39) -> 142
C27: Administrative and support service activities
C28: Public administration and defence; compulsory social security | G28: =Labels!F19 -> Grants forecast | H28: =COUNTBLANK(REVENUE!O39:R39) -> 4
C29: Education
C30: Human health and social work activities | G30: =Labels!F20 -> Expenditure data | H30: =COUNTBLANK(EXPENDITURE!F31:R42)+COUNTBLANK(EXPENDITURE!F44:R44) -> 169
C31: Cultural, domestic & other services
C32: Taxes less subsidies on products | G32: =Labels!F21 -> Debt data | H32: =COUNTBLANK(DEBT!F7:N8) + COUNTBLANK(DEBT!O14:R15) + COUNTBLANK(DEBT!O21:O22) -> 28

Sheet Memory (hidden)
A1: index_containmenthealth!_FilterDatabase
A2: PF - monthly estimates'!_GoBack
A3: _xlfn.IFERROR
A4: BaseRevGDP
A5: BaseRevNonTax
A6: BaseRevNonTaxGDP
A7: BaseRevTax
A8: BaseRevTaxGDP
A9: BaseRevTot
A10: CON
A11: CONS
A12: CONSZ
A13: CONZ
A14: Debt
A15: DebtGDP
A16: domestic
A17: domesticExp
A18: EXP
A19: Expenditure
A20: ExpenditureGDP
A21: Expense
A22: ExpenseGDP
A23: foreign
A24: foreignExp
A25: GDE
A26: GDEZ
A27: GDP | L27: 28281.62393 | M27: 28196.47668 | N27: 30307.80767
A28: GDPCHART | L28: 132169.7564 | M28: 135463.6071 | N28: 140609.9804
A29: GDPD | L29: 119739.819 | M29: 121686.857 | N29: 143628.8822
A30: GDPZ | L30: 113331.0979 | M30: 116011.4376 | N30: 136849.9379
A31: GDPZD | L31: 10781.7743 | M31: 25196.06167 | N31: 28376.47818
A32: IMP | L32: 102549.3236 | M32: 90815.37592 | N32: 108473.4597
A33: IntRev | L33: 6408.721132 | M33: 5675.419381 | N33: 6778.944309
A34: INV | L34: 280191.1994 | M34: 285346.9408 | N34: 314546.6704
A35: INVZ | L35: 92023.30127 | M35: 111283.8965 | N35: 142796.9258
A36: NANA | L36: 96230.88457 | M36: 111005.7718 | N36: 152453.6053
A37: NANAGDP | L37: 275983.6161 | M37: 285625.0654 | N37: 304889.9909
A38: NewParam
A39: NLB
A40: NLBGDP
A41: Param0
A42: Param1
A43: Param10
A44: Param11
A45: Param12
A46: Param13
A47: Param14
A48: Param15
A49: Param16
A50: Param17
A51: Param2
A52: Param3
A53: Param4
A54: Param5
A55: Param6
A56: Param7
A57: Param8
A58: Param9
A59: ParamOrig
A60: PFGDP
A61: RevNonTax
A62: RevNonTaxGDP
A63: RevTax
A64: RevTaxGDP
A65: RevTotal
A66: RevTotGDP
A67: RNU
A68: RParam0
A69: RParam1
A70: RParam10
A71: RParam11
A72: RParam12
A73: Rparam13
A74: RParam14
A75: RParam15
A76: RParam16
A77: RParam17
A78: RParam2
A79: RParam3
A80: RParam4
A81: RParam5
A82: RParam6
A83: RParam7
A84: RParam8
A85: RParam9
A86: TRENDGDP
A87: ZCONS
A88: ZINV
A89: BaseDebt
A90: BaseDebtGDP
A91: BaseExpenditure
A92: BaseExpenditureGDP
A93: BaseNANA
A94: BaseInterest
A95: BaseNLB
A96: BaseNLBGDP
A97: BaseExpense
A98: BaseExpenseGDP
A99: BaseIntRev
A100: BaseNANAGDP
A101: TRENDGDPZ
A102: Param18
A103: RParam18

Sheet Check Parameter Mapping
G3: 2021 | H3: 2022 | I3: 2023
B4: =Labels!F22 -> Parameters from the original model | G4: ='Calculating parameters'!D307 -> Year 0 | H4: ='Calculating parameters'!E307 -> Year 1 | I4: ='Calculating parameters'!F307 -> Year 2
B5: =Labels!F23 -> None
B6: =Labels!F24 -> Agriculture and forestry | G6: ='Calculating parameters'!D309 -> 1 | H6: ='Calculating parameters'!E309 -> 1 | I6: ='Calculating parameters'!F309 -> 1 | K6: ="Param"&ROW()-6 -> Param0
B7: =Labels!F25 -> Fishing and fish processing on board | G7: ='Calculating parameters'!D310 -> 0.937 | H7: ='Calculating parameters'!E310 -> 1 | I7: ='Calculating parameters'!F310 -> 1 | K7: ="Param"&ROW()-6 -> Param1
B8: =Labels!F26 -> Mining and quarrying | G8: ='Calculating parameters'!D311 -> 0.94 | H8: ='Calculating parameters'!E311 -> 1 | I8: ='Calculating parameters'!F311 -> 1 | K8: Param2
B9: =Labels!F27 -> Manufacturing | G9: ='Calculating parameters'!D312 -> 0.81 | H9: ='Calculating parameters'!E312 -> 1 | I9: ='Calculating parameters'!F312 -> 1 | K9: Param3
B10: =Labels!F28 -> Electricity and water | G10: ='Calculating parameters'!D313 -> 0.955 | H10: ='Calculating parameters'!E313 -> 1 | I10: ='Calculating parameters'!F313 -> 1 | K10: Param4
B11: =Labels!F29 -> Construction | G11: ='Calculating parameters'!D314 -> 0.85 | H11: ='Calculating parameters'!E314 -> 0.9 | I11: ='Calculating parameters'!F314 -> 1 | K11: Param5
B12: =Labels!F30 -> Wholesale and retail trade, repairs | G12: ='Calculating parameters'!D315 -> 0.9727009019 | H12: ='Calculating parameters'!E315 -> 0.986350451 | I12: ='Calculating parameters'!F315 -> 1 | K12: Param6
B13: =Labels!F31 -> Hotels and restaurants | G13: ='Calculating parameters'!D316 -> 0.85 | H13: ='Calculating parameters'!E316 -> 0.95 | I13: ='Calculating parameters'!F316 -> 1 | K13: Param7
B14: =Labels!F32 -> Transport | G14: ='Calculating parameters'!D317 -> 0.85 | H14: ='Calculating parameters'!E317 -> 0.95 | I14: ='Calculating parameters'!F317 -> 1 | K14: Param8
B15: =Labels!F33 -> Communication | G15: ='Calculating parameters'!D318 -> 0.85 | H15: ='Calculating parameters'!E318 -> 0.95 | I15: ='Calculating parameters'!F318 -> 1 | K15: Param9
B16: =Labels!F34 -> Financial intermediation | G16: ='Calculating parameters'!D319 -> 0.85 | H16: ='Calculating parameters'!E319 -> 0.95 | I16: ='Calculating parameters'!F319 -> 1 | K16: Param10
B17: =Labels!F35 -> Real estate and business services | G17: ='Calculating parameters'!D320 -> 0.98 | H17: ='Calculating parameters'!E320 -> 1 | I17: ='Calculating parameters'!F320 -> 1 | K17: Param11
B18: =Labels!F36 -> Community, social and personal service activities | G18: ='Calculating parameters'!D321 -> 0.9 | H18: ='Calculating parameters'!E321 -> 1 | I18: ='Calculating parameters'!F321 -> 1 | K18: Param12
B19: =Labels!F37 -> Public administration and defence | G19: ='Calculating parameters'!D322 -> 0.9375 | H19: ='Calculating parameters'!E322 -> 1 | I19: ='Calculating parameters'!F322 -> 1 | K19: Param13
B20: =Labels!F38 -> Education | G20: ='Calculating parameters'!D323 -> 1 | H20: ='Calculating parameters'!E323 -> 1 | I20: ='Calculating parameters'!F323 -> 1 | K20: Param14
B21: =Labels!F39 -> Health | G21: ='Calculating parameters'!D324 -> 1.3 | H21: ='Calculating parameters'!E324 -> 1.1 | I21: ='Calculating parameters'!F324 -> 1 | K21: Param15
B22: =Labels!F40 -> Private household with employed persons | G22: ='Calculating parameters'!D325 -> 0.9 | H22: ='Calculating parameters'!E325 -> 1 | I22: ='Calculating parameters'!F325 -> 1 | K22: Param16
B23: =Labels!F41 -> Financial intermediation services indirectly measured | G23: ='Calculating parameters'!D326 -> 1 | H23: ='Calculating parameters'!E326 -> 1 | I23: ='Calculating parameters'!F326 -> 1 | K23: Param17
B24: =Labels!F42 -> Less subsidies on products | G24: ='Calculating parameters'!D327 -> 1 | H24: ='Calculating parameters'!E327 -> 1 | I24: ='Calculating parameters'!F327 -> 1 | K24: Param18
B29: =Labels!F43&'Setup File and Task Panel'!C4&Labels!F44 -> Parameters Mapped to: Macrofiscalia- Ensure these are checked before running
B30: Agriculture, forestry, and fishing | G30: =G6 -> 1 | H30: =H6 -> 1 | I30: 1 | L30: STRINGENCY
B31: Mining & quarrying | G31: =G8 -> 0.94 | H31: =H8 -> 1 | I31: 1 | L31: =Labels!F47 -> Index=15 | O31: =Labels!F48 -> Index=100
B32: Manufacturing | G32: =G9 -> 0.81 | H32: =H9 -> 1 | I32: 1
B33: Electricity | G33: =G10 -> 0.955 | H33: =H10 -> 1 | I33: 1
B34: Water & waste management | G34: =G10 -> 0.955 | H34: =H10 -> 1 | I34: 1 | O34: =' -- RESULTS -- '!N7 -> 15
B35: Construction | G35: =G11 -> 0.85 | H35: =H11 -> 0.9 | I35: 1 | L35: LENGTH
B36: Maintenance and repair of motor vehicles | L36: =Labels!F47 -> Index=15 | O36: =Labels!F48 -> Index=100
B37: Wholesale & retail trade | G37: =G12 -> 0.9727009019 | H37: =H12 -> 0.986350451 | I37: 1
B38: Transport services | G38: =G14 -> 0.85 | H38: =H14 -> 0.95 | I38: 1
B39: Hotels & restaurants | G39: =G13 -> 0.85 | H39: =H13 -> 0.95 | I39: 1 | O39: =' -- RESULTS -- '!N12 -> 3
B40: Information & communication | G40: =G15 -> 0.85 | H40: =H15 -> 0.95 | I40: 1
B41: Financial services | G41: =G16 -> 0.85 | H41: =H16 -> 0.95 | I41: 1
B42: Real estate activities | G42: =G17 -> 0.98 | H42: =H17 -> 1 | I42: 1
B43: Professional, scientific and technical activities | G43: =G18 -> 0.9 | H43: =H18 -> 1 | I43: 1
B44: Administrative and support service activities | G44: =G18 -> 0.9 | H44: =H18 -> 1 | I44: 1
B45: Public administration and defence; compulsory social security | G45: =G19 -> 0.9375 | H45: =H19 -> 1 | I45: 1
B46: Education | G46: =G20 -> 1 | H46: =H20 -> 1 | I46: 1
B47: Human health and social work activities | G47: =G21 -> 1.3 | H47: =H21 -> 1.1 | I47: 1
B48: Cultural, domestic & other services | G48: =G17 -> 0.98 | H48: =H17 -> 1 | I48: 1
B49: Taxes less subsidies on products | G49: =G24 -> 1 | H49: =H24 -> 1 | I49: 1

Sheet Calculating parameters (hidden)
A1: These values can be adjusted in the "Reviewing Parameters" Sheet. This sheet will be hidden when used in-country | J1: Severity->
A2: light | B2: 3 month | C2: 0 | D2: 1 | E2: 2 | H2: 6 month | I2: 0 | J2: 1 | K2: 2 | N2: 12 month | O2: 0 | P2: 1 | Q2: 2 | S2: Preparedness | T2: Severity
A3: 0 | B3: =Labels!F24 -> Agriculture and forestry | C3: 1 | D3: 1 | E3: 1 | H3: =Labels!F24 -> Agriculture and forestry | I3: 0.97 | J3: 1 | K3: 1 | N3: =Labels!F24 -> Agriculture and forestry | O3: 0.91 | P3: 0.9464 | Q3: 0.984256 | S3: Stringency | T3: Length
A4: 1 | B4: =Labels!F25 -> Fishing and fish processing on board | C4: 0.937 | D4: 1 | E4: 1 | H4: =Labels!F25 -> Fishing and fish processing on board | I4: 0.874 | J4: 0.90896 | K4: 0.97 | N4: =Labels!F25 -> Fishing and fish processing on board | O4: 0.811 | P4: 0.84344 | Q4: 0.8771776 | S4: 0 | T4: 0
A5: 2 | B5: =Labels!F26 -> Mining and quarrying | C5: 0.94 | D5: 1 | E5: 1 | H5: =Labels!F26 -> Mining and quarrying | I5: 0.8 | J5: 0.97 | K5: 1 | N5: =Labels!F26 -> Mining and quarrying | O5: 0.7 | P5: 0.8 | Q5: 0.94
A6: 3 | B6: =Labels!F27 -> Manufacturing | C6: 0.81 | D6: 1 | E6: 1 | H6: =Labels!F27 -> Manufacturing | I6: 0.69 | J6: 0.95 | K6: 1 | N6: =Labels!F27 -> Manufacturing | O6: 0.56 | P6: 0.67 | Q6: 0.95
A7: 4 | B7: =Labels!F28 -> Electricity and water | C7: 0.955 | D7: 1 | E7: 1 | H7: =Labels!F28 -> Electricity and water | I7: 0.91 | J7: 0.9464 | K7: 0.97 | N7: =Labels!F28 -> Electricity and water | O7: 0.82 | P7: 0.8528 | Q7: 0.886912
A8: 5 | B8: =Labels!F29 -> Construction | C8: 0.85 | D8: 0.9 | E8: 1 | H8: =Labels!F29 -> Construction | I8: 0.8 | J8: 0.87 | K8: 0.96 | N8: =Labels!F29 -> Construction | O8: 0.75 | P8: 0.85 | Q8: 0.95
A9: 6 | B9: =Labels!F30 -> Wholesale and retail trade, repairs | C9: 0.9727009019 | D9: 0.986350451 | E9: 1 | H9: =Labels!F30 -> Wholesale and retail trade, repairs | I9: 0.9454018038 | J9: 0.9727009019 | K9: 1 | N9: =Labels!F30 -> Wholesale and retail trade, repairs | O9: 0.8908036076 | P9: 0.9454018038 | Q9: 1
A10: 7 | B10: =Labels!F31 -> Hotels and restaurants | C10: 0.85 | D10: 0.95 | E10: 1 | H10: =Labels!F31 -> Hotels and restaurants | I10: 0.65 | J10: 0.9 | K10: 1 | N10: =Labels!F31 -> Hotels and restaurants | O10: 0.5 | P10: 0.85 | Q10: 0.99
A11: 8 | B11: =Labels!F32 -> Transport | C11: 0.85 | D11: 0.95 | E11: 1 | H11: =Labels!F32 -> Transport | I11: 0.75 | J11: 0.8 | K11: 0.97 | N11: =Labels!F32 -> Transport | O11: 0.6 | P11: 0.7 | Q11: 0.95
A12: 9 | B12: =Labels!F33 -> Communication | C12: 0.85 | D12: 0.95 | E12: 1 | H12: =Labels!F33 -> Communication | I12: 0.75 | J12: 0.8 | K12: 0.97 | N12: =Labels!F33 -> Communication | O12: 0.65 | P12: 0.7 | Q12: 0.95
A13: 10 | B13: =Labels!F34 -> Financial intermediation | C13: 0.85 | D13: 0.95 | E13: 1 | H13: =Labels!F34 -> Financial intermediation | I13: 0.8 | J13: 0.9 | K13: 1 | N13: =Labels!F34 -> Financial intermediation | O13: 0.7 | P13: 0.85 | Q13: 1
A14: 11 | B14: =Labels!F35 -> Real estate and business services | C14: 0.98 | D14: 1 | E14: 1 | H14: =Labels!F35 -> Real estate and business services | I14: 0.95 | J14: 1 | K14: 1 | N14: =Labels!F35 -> Real estate and business services | O14: 0.9 | P14: 0.97 | Q14: 1
A15: 12 | B15: =Labels!F36 -> Community, social and personal service activities | C15: 0.9 | D15: 1 | E15: 1 | H15: =Labels!F36 -> Community, social and personal service activities | I15: 0.85 | J15: 0.9 | K15: 1 | N15: =Labels!F36 -> Community, social and personal service activities | O15: 0.75 | P15: 0.85 | Q15: 1
A16: 13 | B16: =Labels!F37 -> Public administration and defence | C16: 0.9375 | D16: 1 | E16: 1 | H16: =Labels!F37 -> Public administration and defence | I16: 0.9134615385 | J16: 0.9865384615 | K16: 1 | N16: =Labels!F37 -> Public administration and defence | O16: 0.9134615385 | P16: 0.9865384615 | Q16: 1
A17: 14 | B17: =Labels!F38 -> Education | C17: 1 | D17: 1 | E17: 1 | H17: Wholesale and retail trade, repairs | I17: 1 | J17: 1 | K17: 1 | N17: =Labels!F38 -> Education | O17: 1 | P17: 1 | Q17: 1
A18: 15 | B18: =Labels!F39 -> Health | C18: 1.3 | D18: 1.1 | E18: 1 | H18: Hotels and restaurants | I18: 1.5 | J18: 1.3 | K18: 1.1 | N18: =Labels!F39 -> Health | O18: 1.4 | P18: 1.2 | Q18: 1.1
A19: 16 | B19: =Labels!F40 -> Private household with employed persons | C19: 0.9 | D19: 1 | E19: 1 | H19: Transport | I19: 0.7 | J19: 0.95 | K19: 1 | N19: =Labels!F40 -> Private household with employed persons | O19: 0.6 | P19: 0.9 | Q19: 1
A20: 17 | B20: =Labels!F41 -> Financial intermediation services indirectly measured | C20: 1 | D20: 1 | E20: 1 | H20: =Labels!F41 -> Financial intermediation services indirectly measured | I20: 1 | J20: 1 | K20: 1 | N20: =Labels!F41 -> Financial intermediation services indirectly measured | O20: 1 | P20: 1 | Q20: 1
A21: 18 | B21: =Labels!F42 -> Less subsidies on products | C21: 1 | D21: 1 | E21: 1 | H21: =Labels!F42 -> Less subsidies on products | I21: 1 | J21: 1 | K21: 1 | N21: =Labels!F42 -> Less subsidies on products | O21: 1 | P21: 1 | Q21: 1
A25: Medium | I25: 0 | J25: 1 | K25: 2
A26: 0 | B26: =Labels!F24 -> Agriculture and forestry | C26: 0.97 | D26: 1 | E26: 1 | H26: =Labels!F24 -> Agriculture and forestry | I26: 0.94 | J26: 0.9776 | K26: 1 | N26: =Labels!F24 -> Agriculture and forestry | O26: 0.82 | P26: 0.8692 | Q26: 0.921352
A27: 1 | B27: =Labels!F25 -> Fishing and fish processing on board | C27: 0.9055 | D27: 0.94172 | E27: 1 | H27: =Labels!F25 -> Fishing and fish processing on board | I27: 0.811 | J27: 0.84344 | K27: 0.8771776 | N27: =Labels!F25 -> Fishing and fish processing on board | O27: 0.7165 | P27: 0.75949 | Q27: 0.8050594
A28: 2 | B28: =Labels!F26 -> Mining and quarrying | C28: 0.81 | D28: 1 | E28: 1 | H28: =Labels!F26 -> Mining and quarrying | I28: 0.7 | J28: 0.9 | K28: 1 | N28: =Labels!F26 -> Mining and quarrying | O28: 0.5 | P28: 0.75 | Q28: 0.9
A29: 3 | B29: =Labels!F27 -> Manufacturing | C29: 0.69 | D29: 1 | E29: 1 | H29: =Labels!F27 -> Manufacturing | I29: 0.46 | J29: 0.91 | K29: 1 | N29: =Labels!F27 -> Manufacturing | O29: 0.36 | P29: 0.57 | Q29: 0.94
A30: 4 | B30: =Labels!F28 -> Electricity and water | C30: 0.9375 | D30: 1 | E30: 1 | H30: =Labels!F28 -> Electricity and water | I30: 0.875 | J30: 0.91 | K30: 0.97 | N30: =Labels!F28 -> Electricity and water | O30: 0.75 | P30: 0.78 | Q30: 0.8112
A31: 5 | B31: =Labels!F29 -> Construction | C31: 0.8 | D31: 0.85 | E31: 0.96 | H31: =Labels!F29 -> Construction | I31: 0.7 | J31: 0.8 | K31: 0.95 | N31: =Labels!F29 -> Construction | O31: 0.6 | P31: 0.75 | Q31: 0.9
A32: 6 | B32: =Labels!F30 -> Wholesale and retail trade, repairs | C32: 0.8856836069 | D32: 0.9428418034 | E32: 1 | H32: =Labels!F30 -> Wholesale and retail trade, repairs | I32: 0.7713672137 | J32: 0.8856836069 | K32: 1 | N32: =Labels!F30 -> Wholesale and retail trade, repairs | O32: 0.5427344275 | P32: 0.7713672137 | Q32: 1
A33: 7 | B33: =Labels!F31 -> Hotels and restaurants | C33: 0.75 | D33: 0.93 | E33: 1 | H33: =Labels!F31 -> Hotels and restaurants | I33: 0.5 | J33: 0.85 | K33: 0.95 | N33: =Labels!F31 -> Hotels and restaurants | O33: 0.2 | P33: 0.6 | Q33: 0.8
A34: 8 | B34: =Labels!F32 -> Transport | C34: 0.75 | D34: 0.8 | E34: 0.97 | H34: =Labels!F32 -> Transport | I34: 0.65 | J34: 0.75 | K34: 0.95 | N34: =Labels!F32 -> Transport | O34: 0.55 | P34: 0.7 | Q34: 0.935
A35: 9 | B35: =Labels!F33 -> Communication | C35: 0.75 | D35: 0.8 | E35: 0.97 | H35: =Labels!F33 -> Communication | I35: 0.65 | J35: 0.75 | K35: 0.95 | N35: =Labels!F33 -> Communication | O35: 0.55 | P35: 0.7 | Q35: 0.935
A36: 10 | B36: =Labels!F34 -> Financial intermediation | C36: 0.7 | D36: 0.85 | E36: 1 | H36: =Labels!F34 -> Financial intermediation | I36: 0.65 | J36: 0.8 | K36: 1 | N36: =Labels!F34 -> Financial intermediation | O36: 0.55 | P36: 0.7 | Q36: 1
A37: 11 | B37: =Labels!F35 -> Real estate and business services | C37: 0.95 | D37: 1 | E37: 1 | H37: =Labels!F35 -> Real estate and business services | I37: 0.9 | J37: 0.98 | K37: 1 | N37: =Labels!F35 -> Real estate and business services | O37: 0.85 | P37: 0.95 | Q37: 1
A38: 12 | B38: =Labels!F36 -> Community, social and personal service activities | C38: 0.85 | D38: 1 | E38: 1 | H38: =Labels!F36 -> Community, social and personal service activities | I38: 0.7 | J38: 0.95 | K38: 1 | N38: =Labels!F36 -> Community, social and personal service activities | O38: 0.5 | P38: 0.8 | Q38: 1
A39: 13 | B39: =Labels!F37 -> Public administration and defence | C39: 0.9375 | D39: 1 | E39: 1 | H39: =Labels!F37 -> Public administration and defence | I39: 0.9134615385 | J39: 0.9865384615 | K39: 1 | N39: =Labels!F37 -> Public administration and defence | O39: 0.9125 | P39: 0.9671052632 | Q39: 0.9953947368
A40: 14 | B40: =Labels!F38 -> Education | C40: 1 | D40: 1 | E40: 1 | H40: =Labels!F38 -> Education | I40: 1 | J40: 1 | K40: 1 | N40: =Labels!F38 -> Education | O40: 1 | P40: 1 | Q40: 1
A41: 15 | B41: =Labels!F39 -> Health | C41: 1.27 | D41: 1.1 | E41: 1.1 | H41: =Labels!F39 -> Health | I41: 1.4 | J41: 1.2 | K41: 1 | N41: =Labels!F39 -> Health | O41: 1.3 | P41: 1.2 | Q41: 1.1
A42: 16 | B42: =Labels!F40 -> Private household with employed persons | C42: 0.85 | D42: 1 | E42: 1 | H42: =Labels!F40 -> Private household with employed persons | I42: 0.6 | J42: 0.92 | K42: 1 | N42: =Labels!F40 -> Private household with employed persons | O42: 0.5 | P42: 0.85 | Q42: 1
A43: 17 | B43: =Labels!F41 -> Financial intermediation services indirectly measured | C43: 1 | D43: 1 | E43: 1 | H43: =Labels!F41 -> Financial intermediation services indirectly measured | I43: 1 | J43: 1 | K43: 1 | N43: =Labels!F41 -> Financial intermediation services indirectly measured | O43: 1 | P43: 1 | Q43: 1
A44: 18 | B44: =Labels!F42 -> Less subsidies on products | C44: 1 | D44: 1 | E44: 1 | H44: =Labels!F42 -> Less subsidies on products | I44: 1 | J44: 1 | K44: 1 | N44: =Labels!F42 -> Less subsidies on products | O44: 1 | P44: 1 | Q44: 1
A49: High | I49: 0 | J49: 1 | K49: 2
A50: 0 | B50: =Labels!F24 -> Agriculture and forestry | C50: 0.94 | D50: 0.9776 | E50: 1 | H50: =Labels!F24 -> Agriculture and forestry | I50: 0.91 | J50: 0.9464 | K50: 0.984256 | N50: =Labels!F24 -> Agriculture and forestry | O50: 0.77 | P50: 0.8 | Q50: 0.88
A51: 1 | B51: =Labels!F25 -> Fishing and fish processing on board | C51: 0.55 | D51: 0.75 | E51: 0.95 | H51: =Labels!F25 -> Fishing and fish processing on board | I51: 0.5 | J51: 0.7 | K51: 0.84 | N51: =Labels!F25 -> Fishing and fish processing on board | O51: 0.45 | P51: 0.65 | Q51: 0.71
A52: 2 | B52: =Labels!F26 -> Mining and quarrying | C52: 0.55 | D52: 0.8 | E52: 0.95 | H52: =Labels!F26 -> Mining and quarrying | I52: 0.35 | J52: 0.75 | K52: 0.93 | N52: =Labels!F26 -> Mining and quarrying | O52: 0.2 | P52: 0.65 | Q52: 0.85
A53: 3 | B53: =Labels!F27 -> Manufacturing | C53: 0.63 | D53: 1 | E53: 1 | H53: =Labels!F27 -> Manufacturing | I53: 0.44 | J53: 0.91 | K53: 1 | N53: =Labels!F27 -> Manufacturing | O53: 0.31 | P53: 0.54 | Q53: 0.94
A54: 4 | B54: =Labels!F28 -> Electricity and water | C54: 0.9375 | D54: 1 | E54: 1 | H54: =Labels!F28 -> Electricity and water | I54: 0.875 | J54: 0.91 | K54: 0.97 | N54: =Labels!F28 -> Electricity and water | O54: 0.73 | P54: 0.74 | Q54: 0.78
A55: 5 | B55: =Labels!F29 -> Construction | C55: 0.7 | D55: 0.85 | E55: 0.96 | H55: =Labels!F29 -> Construction | I55: 0.6 | J55: 0.8 | K55: 0.95 | N55: =Labels!F29 -> Construction | O55: 0.5 | P55: 0.7 | Q55: 0.88
A56: 6 | B56: =Labels!F30 -> Wholesale and retail trade, repairs | C56: 0.8450731977 | D56: 0.9225365988 | E56: 1 | H56: =Labels!F30 -> Wholesale and retail trade, repairs | I56: 0.6901463953 | J56: 0.8450731977 | K56: 1 | N56: =Labels!F30 -> Wholesale and retail trade, repairs | O56: 0.3802927907 | P56: 0.6901463953 | Q56: 1
A57: 7 | B57: =Labels!F31 -> Hotels and restaurants | C57: 0.5 | D57: 0.75 | E57: 0.95 | H57: =Labels!F31 -> Hotels and restaurants | I57: 0.15 | J57: 0.65 | K57: 0.85 | N57: =Labels!F31 -> Hotels and restaurants | O57: 0.05 | P57: 0.5 | Q57: 0.75
A58: 8 | B58: =Labels!F32 -> Transport | C58: 0.65 | D58: 0.75 | E58: 0.95 | H58: =Labels!F32 -> Transport | I58: 0.55 | J58: 0.65 | K58: 0.935 | N58: =Labels!F32 -> Transport | O58: 0.45 | P58: 0.55 | Q58: 0.91
A59: 9 | B59: =Labels!F33 -> Communication | C59: 0.65 | D59: 0.75 | E59: 0.95 | H59: =Labels!F33 -> Communication | I59: 0.55 | J59: 0.65 | K59: 0.935 | N59: =Labels!F33 -> Communication | O59: 0.45 | P59: 0.55 | Q59: 0.91
A60: 10 | B60: =Labels!F34 -> Financial intermediation | C60: 0.55 | D60: 0.7 | E60: 1 | H60: =Labels!F34 -> Financial intermediation | I60: 0.5 | J60: 0.65 | K60: 1 | N60: =Labels!F34 -> Financial intermediation | O60: 0.4 | P60: 0.55 | Q60: 0.95
A61: 11 | B61: =Labels!F35 -> Real estate and business services | C61: 0.925 | D61: 0.975 | E61: 1 | H61: =Labels!F35 -> Real estate and business services | I61: 0.85 | J61: 0.95 | K61: 1 | N61: =Labels!F35 -> Real estate and business services | O61: 0.8 | P61: 0.9 | Q61: 1
A62: 12 | B62: =Labels!F36 -> Community, social and personal service activities | C62: 0.75 | D62: 1 | E62: 1 | H62: =Labels!F36 -> Community, social and personal service activities | I62: 0.65 | J62: 0.95 | K62: 1 | N62: =Labels!F36 -> Community, social and personal service activities | O62: 0.5 | P62: 0.85 | Q62: 1
A63: 13 | B63: =Labels!F37 -> Public administration and defence | C63: 0.875 | D63: 1 | E63: 1 | H63: =Labels!F37 -> Public administration and defence | I63: 0.8269230769 | J63: 0.9730769231 | K63: 1 | N63: =Labels!F37 -> Public administration and defence | O63: 0.8125 | P63: 0.9013157895 | Q63: 0.9861842105
A64: 14 | B64: =Labels!F38 -> Education | C64: 0.98 | D64: 0.99 | E64: 1 | H64: =Labels!F38 -> Education | I64: 0.95 | J64: 0.97 | K64: 1 | N64: =Labels!F38 -> Education | O64: 0.9 | P64: 0.95 | Q64: 1
A65: 15 | B65: =Labels!F39 -> Health | C65: 1.27 | D65: 1.1 | E65: 1.1 | H65: =Labels!F39 -> Health | I65: 1.35 | J65: 1.15 | K65: 1 | N65: =Labels!F39 -> Health | O65: 1.25 | P65: 1.15 | Q65: 1
A66: 16 | B66: =Labels!F40 -> Private household with employed persons | C66: 0.775 | D66: 1 | E66: 1 | H66: =Labels!F40 -> Private household with employed persons | I66: 0.55 | J66: 0.9 | K66: 1 | N66: =Labels!F40 -> Private household with employed persons | O66: 0.35 | P66: 0.8 | Q66: 1
A67: 17 | B67: =Labels!F41 -> Financial intermediation services indirectly measured | C67: 1 | D67: 1 | E67: 1 | H67: =Labels!F41 -> Financial intermediation services indirectly measured | I67: 1 | J67: 1 | K67: 1 | N67: =Labels!F41 -> Financial intermediation services indirectly measured | O67: 1 | P67: 1 | Q67: 1
A68: 18 | B68: =Labels!F42 -> Less subsidies on products | C68: 1 | D68: 1 | E68: 1 | H68: =Labels!F42 -> Less subsidies on products | I68: 1 | J68: 1 | K68: 1 | N68: =Labels!F42 -> Less subsidies on products | O68: 1 | P68: 1 | Q68: 1
A73: 0 | B73: =B50 -> Agriculture and forestry | D73: 1 | E73: 5 | F73: 10 | Q73: 1 | R73: 2 | S73: 3
C74: 1 | D74: =C$3 -> 1 | E74: =OFFSET(C$3,0,6) -> 0.97 | F74: =OFFSET(C$3,0,12) -> 0.91 | G74: ="" ->  | H74: =D$3 -> 1 | I74: =OFFSET(D$3,0,6) -> 1 | J74: =OFFSET(D$3,0,12) -> 0.9464 | K74: ="" ->  | L74: =E$3 -> 1 | M74: =OFFSET(E$3,0,6) -> 1 | N74: =OFFSET(E$3,0,12) -> 0.984256 | Q74: =BiTerp($S$4,$T$4,D74:F76) -> 1 | R74: =BiTerp($S$4,$T$4,H74:J76) -> 1 | S74: =BiTerp($S$4,$T$4,L74:N76) -> 1
C75: 5 | D75: =OFFSET(C$3,23,0) -> 0.97 | E75: =OFFSET(C$3,23,6) -> 0.94 | F75: =OFFSET(C$3,23,12) -> 0.82 | G75: ="" ->  | H75: =OFFSET(D$3,23,0) -> 1 | I75: =OFFSET(D$3,23,6) -> 0.9776 | J75: =OFFSET(D$3,23,12) -> 0.8692 | K75: ="" ->  | L75: =OFFSET(E$3,23,0) -> 1 | M75: =OFFSET(E$3,23,6) -> 1 | N75: =OFFSET(E$3,23,12) -> 0.921352
C76: 10 | D76: =OFFSET(C$3,47,0) -> 0.94 | E76: =OFFSET(C$3,47,6) -> 0.91 | F76: =OFFSET(C$3,47,12) -> 0.77 | G76: ="" ->  | H76: =OFFSET(D$3,47,0) -> 0.9776 | I76: =OFFSET(D$3,47,6) -> 0.9464 | J76: =OFFSET(D$3,47,12) -> 0.8 | K76: ="" ->  | L76: =OFFSET(E$3,47,0) -> 1 | M76: =OFFSET(E$3,47,6) -> 0.984256 | N76: =OFFSET(E$3,47,12) -> 0.88
G77: ="" ->  | K77: ="" -> 
G78: ="" ->  | K78: ="" -> 
A79: 1 | B79: =B51 -> Fishing and fish processing on board | D79: 1 | E79: 5 | F79: 10 | G79: ="" ->  | K79: ="" ->  | Q79: 1 | R79: 2 | S79: 3
C80: 1 | D80: =OFFSET($C$3,$A79,0) -> 0.937 | E80: =OFFSET(OFFSET($C$3,$A79,0),0,6) -> 0.874 | F80: =OFFSET(OFFSET($C$3,$A79,0),0,12) -> 0.811 | G80: ="" ->  | H80: =OFFSET($C$3,$A79,1) -> 1 | I80: =OFFSET(OFFSET($C$3,$A79,1),0,6) -> 0.90896 | J80: =OFFSET(OFFSET($C$3,$A79,1),0,12) -> 0.84344 | K80: ="" ->  | L80: =OFFSET($C$3,$A79,2) -> 1 | M80: =OFFSET(OFFSET($C$3,$A79,2),0,6) -> 0.97 | N80: =OFFSET(OFFSET($C$3,$A79,2),0,12) -> 0.8771776 | Q80: =BiTerp($S$4,$T$4,D80:F82) -> 0.937 | R80: =BiTerp($S$4,$T$4,H80:J82) -> 1 | S80: =BiTerp($S$4,$T$4,L80:N82) -> 1
C81: 5 | D81: =OFFSET(OFFSET($C$3,$A79,0),23,0) -> 0.9055 | E81: =OFFSET(OFFSET($C$3,$A79,0),23,6) -> 0.811 | F81: =OFFSET(OFFSET($C$3,$A79,0),23,12) -> 0.7165 | G81: ="" ->  | H81: =OFFSET(OFFSET($C$3,$A79,1),23,0) -> 0.94172 | I81: =OFFSET(OFFSET($C$3,$A79,1),23,6) -> 0.84344 | J81: =OFFSET(OFFSET($C$3,$A79,1),23,12) -> 0.75949 | K81: ="" ->  | L81: =OFFSET(OFFSET($C$3,$A79,2),23,0) -> 1 | M81: =OFFSET(OFFSET($C$3,$A79,2),23,6) -> 0.8771776 | N81: =OFFSET(OFFSET($C$3,$A79,2),23,12) -> 0.8050594
C82: 10 | D82: =OFFSET(OFFSET($C$3,$A79,0),47,0) -> 0.55 | E82: =OFFSET(OFFSET($C$3,$A79,0),47,6) -> 0.5 | F82: =OFFSET(OFFSET($C$3,$A79,0),47,12) -> 0.45 | G82: ="" ->  | H82: =OFFSET(OFFSET($C$3,$A79,1),47,0) -> 0.75 | I82: =OFFSET(OFFSET($C$3,$A79,1),47,6) -> 0.7 | J82: =OFFSET(OFFSET($C$3,$A79,1),47,12) -> 0.65 | K82: ="" ->  | L82: =OFFSET(OFFSET($C$3,$A79,2),47,0) -> 0.95 | M82: =OFFSET(OFFSET($C$3,$A79,2),47,6) -> 0.84 | N82: =OFFSET(OFFSET($C$3,$A79,2),47,12) -> 0.71
G83: ="" ->  | K83: ="" -> 
G84: ="" ->  | K84: ="" -> 
A85: 2 | B85: =B52 -> Mining and quarrying | D85: 1 | E85: 5 | F85: 10 | G85: ="" ->  | K85: ="" ->  | Q85: 1 | R85: 2 | S85: 3
C86: 1 | D86: =OFFSET($C$3,$A85,0) -> 0.94 | E86: =OFFSET(OFFSET($C$3,$A85,0),0,6) -> 0.8 | F86: =OFFSET(OFFSET($C$3,$A85,0),0,12) -> 0.7 | H86: =OFFSET($C$3,$A85,1) -> 1 | I86: =OFFSET(OFFSET($C$3,$A85,1),0,6) -> 0.97 | J86: =OFFSET(OFFSET($C$3,$A85,1),0,12) -> 0.8 | L86: =OFFSET($C$3,$A85,2) -> 1 | M86: =OFFSET(OFFSET($C$3,$A85,2),0,6) -> 1 | N86: =OFFSET(OFFSET($C$3,$A85,2),0,12) -> 0.94 | Q86: =BiTerp($S$4,$T$4,D86:F88) -> 0.94 | R86: =BiTerp($S$4,$T$4,H86:J88) -> 1 | S86: =BiTerp($S$4,$T$4,L86:N88) -> 1
C87: 5 | D87: =OFFSET(OFFSET($C$3,$A85,0),23,0) -> 0.81 | E87: =OFFSET(OFFSET($C$3,$A85,0),23,6) -> 0.7 | F87: =OFFSET(OFFSET($C$3,$A85,0),23,12) -> 0.5 | H87: =OFFSET(OFFSET($C$3,$A85,1),23,0) -> 1 | I87: =OFFSET(OFFSET($C$3,$A85,1),23,6) -> 0.9 | J87: =OFFSET(OFFSET($C$3,$A85,1),23,12) -> 0.75 | L87: =OFFSET(OFFSET($C$3,$A85,2),23,0) -> 1 | M87: =OFFSET(OFFSET($C$3,$A85,2),23,6) -> 1 | N87: =OFFSET(OFFSET($C$3,$A85,2),23,12) -> 0.9
C88: 10 | D88: =OFFSET(OFFSET($C$3,$A85,0),47,0) -> 0.55 | E88: =OFFSET(OFFSET($C$3,$A85,0),47,6) -> 0.35 | F88: =OFFSET(OFFSET($C$3,$A85,0),47,12) -> 0.2 | H88: =OFFSET(OFFSET($C$3,$A85,1),47,0) -> 0.8 | I88: =OFFSET(OFFSET($C$3,$A85,1),47,6) -> 0.75 | J88: =OFFSET(OFFSET($C$3,$A85,1),47,12) -> 0.65 | L88: =OFFSET(OFFSET($C$3,$A85,2),47,0) -> 0.95 | M88: =OFFSET(OFFSET($C$3,$A85,2),47,6) -> 0.93 | N88: =OFFSET(OFFSET($C$3,$A85,2),47,12) -> 0.85
G89: ="" ->  | K89: ="" -> 
G90: ="" ->  | K90: ="" -> 
A91: 3 | B91: =B53 -> Manufacturing | D91: 1 | E91: 5 | F91: 10 | G91: ="" ->  | K91: ="" ->  | Q91: 1 | R91: 2 | S91: 3
C92: 1 | D92: =OFFSET($C$3,$A91,0) -> 0.81 | E92: =OFFSET(OFFSET($C$3,$A91,0),0,6) -> 0.69 | F92: =OFFSET(OFFSET($C$3,$A91,0),0,12) -> 0.56 | G92: ="" ->  | H92: =OFFSET($C$3,$A91,1) -> 1 | I92: =OFFSET(OFFSET($C$3,$A91,1),0,6) -> 0.95 | J92: =OFFSET(OFFSET($C$3,$A91,1),0,12) -> 0.67 | K92: ="" ->  | L92: =OFFSET($C$3,$A91,2) -> 1 | M92: =OFFSET(OFFSET($C$3,$A91,2),0,6) -> 1 | N92: =OFFSET(OFFSET($C$3,$A91,2),0,12) -> 0.95 | Q92: =BiTerp($S$4,$T$4,D92:F94) -> 0.81 | R92: =BiTerp($S$4,$T$4,H92:J94) -> 1 | S92: =BiTerp($S$4,$T$4,L92:N94) -> 1
C93: 5 | D93: =OFFSET(OFFSET($C$3,$A91,0),23,0) -> 0.69 | E93: =OFFSET(OFFSET($C$3,$A91,0),23,6) -> 0.46 | F93: =OFFSET(OFFSET($C$3,$A91,0),23,12) -> 0.36 | G93: ="" ->  | H93: =OFFSET(OFFSET($C$3,$A91,1),23,0) -> 1 | I93: =OFFSET(OFFSET($C$3,$A91,1),23,6) -> 0.91 | J93: =OFFSET(OFFSET($C$3,$A91,1),23,12) -> 0.57 | K93: ="" ->  | L93: =OFFSET(OFFSET($C$3,$A91,2),23,0) -> 1 | M93: =OFFSET(OFFSET($C$3,$A91,2),23,6) -> 1 | N93: =OFFSET(OFFSET($C$3,$A91,2),23,12) -> 0.94
C94: 10 | D94: =OFFSET(OFFSET($C$3,$A91,0),47,0) -> 0.63 | E94: =OFFSET(OFFSET($C$3,$A91,0),47,6) -> 0.44 | F94: =OFFSET(OFFSET($C$3,$A91,0),47,12) -> 0.31 | G94: ="" ->  | H94: =OFFSET(OFFSET($C$3,$A91,1),47,0) -> 1 | I94: =OFFSET(OFFSET($C$3,$A91,1),47,6) -> 0.91 | J94: =OFFSET(OFFSET($C$3,$A91,1),47,12) -> 0.54 | K94: ="" ->  | L94: =OFFSET(OFFSET($C$3,$A91,2),47,0) -> 1 | M94: =OFFSET(OFFSET($C$3,$A91,2),47,6) -> 1 | N94: =OFFSET(OFFSET($C$3,$A91,2),47,12) -> 0.94
G95: ="" ->  | K95: ="" -> 
G96: ="" ->  | K96: ="" -> 
A97: 4 | B97: =B54 -> Electricity and water | C97: 0 | D97: 1 | E97: 5 | F97: 10 | G97: ="" ->  | K97: ="" ->  | Q97: 1 | R97: 2 | S97: 3
C98: 1 | D98: =OFFSET($C$3,$A97,0) -> 0.955 | E98: =OFFSET(OFFSET($C$3,$A97,0),0,6) -> 0.91 | F98: =OFFSET(OFFSET($C$3,$A97,0),0,12) -> 0.82 | G98: ="" ->  | H98: =OFFSET($C$3,$A97,1) -> 1 | I98: =OFFSET(OFFSET($C$3,$A97,1),0,6) -> 0.9464 | J98: =OFFSET(OFFSET($C$3,$A97,1),0,12) -> 0.8528 | K98: ="" ->  | L98: =OFFSET($C$3,$A97,2) -> 1 | M98: =OFFSET(OFFSET($C$3,$A97,2),0,6) -> 0.97 | N98: =OFFSET(OFFSET($C$3,$A97,2),0,12) -> 0.886912 | Q98: =BiTerp($S$4,$T$4,D98:F100) -> 0.955 | R98: =BiTerp($S$4,$T$4,H98:J100) -> 1 | S98: =BiTerp($S$4,$T$4,L98:N100) -> 1
C99: 5 | D99: =OFFSET(OFFSET($C$3,$A97,0),23,0) -> 0.9375 | E99: =OFFSET(OFFSET($C$3,$A97,0),23,6) -> 0.875 | F99: =OFFSET(OFFSET($C$3,$A97,0),23,12) -> 0.75 | G99: ="" ->  | H99: =OFFSET(OFFSET($C$3,$A97,1),23,0) -> 1 | I99: =OFFSET(OFFSET($C$3,$A97,1),23,6) -> 0.91 | J99: =OFFSET(OFFSET($C$3,$A97,1),23,12) -> 0.78 | K99: ="" ->  | L99: =OFFSET(OFFSET($C$3,$A97,2),23,0) -> 1 | M99: =OFFSET(OFFSET($C$3,$A97,2),23,6) -> 0.97 | N99: =OFFSET(OFFSET($C$3,$A97,2),23,12) -> 0.8112
C100: 10 | D100: =OFFSET(OFFSET($C$3,$A97,0),47,0) -> 0.9375 | E100: =OFFSET(OFFSET($C$3,$A97,0),47,6) -> 0.875 | F100: =OFFSET(OFFSET($C$3,$A97,0),47,12) -> 0.73 | G100: ="" ->  | H100: =OFFSET(OFFSET($C$3,$A97,1),47,0) -> 1 | I100: =OFFSET(OFFSET($C$3,$A97,1),47,6) -> 0.91 | J100: =OFFSET(OFFSET($C$3,$A97,1),47,12) -> 0.74 | K100: ="" ->  | L100: =OFFSET(OFFSET($C$3,$A97,2),47,0) -> 1 | M100: =OFFSET(OFFSET($C$3,$A97,2),47,6) -> 0.97 | N100: =OFFSET(OFFSET($C$3,$A97,2),47,12) -> 0.78
G101: ="" ->  | K101: ="" -> 
G102: ="" ->  | K102: ="" -> 
A103: 5 | B103: =B55 -> Construction | D103: 1 | E103: 5 | F103: 10 | G103: ="" ->  | K103: ="" ->  | Q103: 1 | R103: 2 | S103: 3
C104: 1 | D104: =OFFSET($C$3,$A103,0) -> 0.85 | E104: =OFFSET(OFFSET($C$3,$A103,0),0,6) -> 0.8 | F104: =OFFSET(OFFSET($C$3,$A103,0),0,12) -> 0.75 | G104: ="" ->  | H104: =OFFSET($C$3,$A103,1) -> 0.9 | I104: =OFFSET(OFFSET($C$3,$A103,1),0,6) -> 0.87 | J104: =OFFSET(OFFSET($C$3,$A103,1),0,12) -> 0.85 | K104: ="" ->  | L104: =OFFSET($C$3,$A103,2) -> 1 | M104: =OFFSET(OFFSET($C$3,$A103,2),0,6) -> 0.96 | N104: =OFFSET(OFFSET($C$3,$A103,2),0,12) -> 0.95 | Q104: =BiTerp($S$4,$T$4,D104:F106) -> 0.85 | R104: =BiTerp($S$4,$T$4,H104:J106) -> 0.9 | S104: =BiTerp($S$4,$T$4,L104:N106) -> 1
C105: 5 | D105: =OFFSET(OFFSET($C$3,$A103,0),23,0) -> 0.8 | E105: =OFFSET(OFFSET($C$3,$A103,0),23,6) -> 0.7 | F105: =OFFSET(OFFSET($C$3,$A103,0),23,12) -> 0.6 | G105: ="" ->  | H105: =OFFSET(OFFSET($C$3,$A103,1),23,0) -> 0.85 | I105: =OFFSET(OFFSET($C$3,$A103,1),23,6) -> 0.8 | J105: =OFFSET(OFFSET($C$3,$A103,1),23,12) -> 0.75 | K105: ="" ->  | L105: =OFFSET(OFFSET($C$3,$A103,2),23,0) -> 0.96 | M105: =OFFSET(OFFSET($C$3,$A103,2),23,6) -> 0.95 | N105: =OFFSET(OFFSET($C$3,$A103,2),23,12) -> 0.9
C106: 10 | D106: =OFFSET(OFFSET($C$3,$A103,0),47,0) -> 0.7 | E106: =OFFSET(OFFSET($C$3,$A103,0),47,6) -> 0.6 | F106: =OFFSET(OFFSET($C$3,$A103,0),47,12) -> 0.5 | G106: ="" ->  | H106: =OFFSET(OFFSET($C$3,$A103,1),47,0) -> 0.85 | I106: =OFFSET(OFFSET($C$3,$A103,1),47,6) -> 0.8 | J106: =OFFSET(OFFSET($C$3,$A103,1),47,12) -> 0.7 | K106: ="" ->  | L106: =OFFSET(OFFSET($C$3,$A103,2),47,0) -> 0.96 | M106: =OFFSET(OFFSET($C$3,$A103,2),47,6) -> 0.95 | N106: =OFFSET(OFFSET($C$3,$A103,2),47,12) -> 0.88
G107: ="" ->  | K107: ="" -> 
G108: ="" ->  | K108: ="" -> 
A109: 6 | B109: =B56 -> Wholesale and retail trade, repairs | D109: 1 | E109: 5 | F109: 10 | G109: ="" ->  | K109: ="" ->  | Q109: 1 | R109: 2 | S109: 3
C110: 1 | D110: =OFFSET($C$3,$A109,0) -> 0.9727009019 | E110: =OFFSET(OFFSET($C$3,$A109,0),0,6) -> 0.9454018038 | F110: =OFFSET(OFFSET($C$3,$A109,0),0,12) -> 0.8908036076 | G110: ="" ->  | H110: =OFFSET($C$3,$A109,1) -> 0.986350451 | I110: =OFFSET(OFFSET($C$3,$A109,1),0,6) -> 0.9727009019 | J110: =OFFSET(OFFSET($C$3,$A109,1),0,12) -> 0.9454018038 | K110: ="" ->  | L110: =OFFSET($C$3,$A109,2) -> 1 | M110: =OFFSET(OFFSET($C$3,$A109,2),0,6) -> 1 | N110: =OFFSET(OFFSET($C$3,$A109,2),0,12) -> 1 | Q110: =BiTerp($S$4,$T$4,D110:F112) -> 0.9727009019 | R110: =BiTerp($S$4,$T$4,H110:J112) -> 0.986350451 | S110: =BiTerp($S$4,$T$4,L110:N112) -> 1
C111: 5 | D111: =OFFSET(OFFSET($C$3,$A109,0),23,0) -> 0.8856836069 | E111: =OFFSET(OFFSET($C$3,$A109,0),23,6) -> 0.7713672137 | F111: =OFFSET(OFFSET($C$3,$A109,0),23,12) -> 0.5427344275 | G111: ="" ->  | H111: =OFFSET(OFFSET($C$3,$A109,1),23,0) -> 0.9428418034 | I111: =OFFSET(OFFSET($C$3,$A109,1),23,6) -> 0.8856836069 | J111: =OFFSET(OFFSET($C$3,$A109,1),23,12) -> 0.7713672137 | K111: ="" ->  | L111: =OFFSET(OFFSET($C$3,$A109,2),23,0) -> 1 | M111: =OFFSET(OFFSET($C$3,$A109,2),23,6) -> 1 | N111: =OFFSET(OFFSET($C$3,$A109,2),23,12) -> 1
C112: 10 | D112: =OFFSET(OFFSET($C$3,$A109,0),47,0) -> 0.8450731977 | E112: =OFFSET(OFFSET($C$3,$A109,0),47,6) -> 0.6901463953 | F112: =OFFSET(OFFSET($C$3,$A109,0),47,12) -> 0.3802927907 | G112: ="" ->  | H112: =OFFSET(OFFSET($C$3,$A109,1),47,0) -> 0.9225365988 | I112: =OFFSET(OFFSET($C$3,$A109,1),47,6) -> 0.8450731977 | J112: =OFFSET(OFFSET($C$3,$A109,1),47,12) -> 0.6901463953 | K112: ="" ->  | L112: =OFFSET(OFFSET($C$3,$A109,2),47,0) -> 1 | M112: =OFFSET(OFFSET($C$3,$A109,2),47,6) -> 1 | N112: =OFFSET(OFFSET($C$3,$A109,2),47,12) -> 1
G113: ="" ->  | K113: ="" -> 
G114: ="" ->  | K114: ="" -> 
A115: 7 | B115: =B57 -> Hotels and restaurants | D115: 1 | E115: 5 | F115: 10 | G115: ="" ->  | K115: ="" ->  | Q115: 1 | R115: 2 | S115: 3
C116: 1 | D116: =OFFSET($C$3,$A115,0) -> 0.85 | E116: =OFFSET(OFFSET($C$3,$A115,0),0,6) -> 0.65 | F116: =OFFSET(OFFSET($C$3,$A115,0),0,12) -> 0.5 | G116: ="" ->  | H116: =OFFSET($C$3,$A115,1) -> 0.95 | I116: =OFFSET(OFFSET($C$3,$A115,1),0,6) -> 0.9 | J116: =OFFSET(OFFSET($C$3,$A115,1),0,12) -> 0.85 | K116: ="" ->  | L116: =OFFSET($C$3,$A115,2) -> 1 | M116: =OFFSET(OFFSET($C$3,$A115,2),0,6) -> 1 | N116: =OFFSET(OFFSET($C$3,$A115,2),0,12) -> 0.99 | Q116: =BiTerp($S$4,$T$4,D116:F118) -> 0.85 | R116: =BiTerp($S$4,$T$4,H116:J118) -> 0.95 | S116: =BiTerp($S$4,$T$4,L116:N118) -> 1
C117: 5 | D117: =OFFSET(OFFSET($C$3,$A115,0),23,0) -> 0.75 | E117: =OFFSET(OFFSET($C$3,$A115,0),23,6) -> 0.5 | F117: =OFFSET(OFFSET($C$3,$A115,0),23,12) -> 0.2 | G117: ="" ->  | H117: =OFFSET(OFFSET($C$3,$A115,1),23,0) -> 0.93 | I117: =OFFSET(OFFSET($C$3,$A115,1),23,6) -> 0.85 | J117: =OFFSET(OFFSET($C$3,$A115,1),23,12) -> 0.6 | K117: ="" ->  | L117: =OFFSET(OFFSET($C$3,$A115,2),23,0) -> 1 | M117: =OFFSET(OFFSET($C$3,$A115,2),23,6) -> 0.95 | N117: =OFFSET(OFFSET($C$3,$A115,2),23,12) -> 0.8
C118: 10 | D118: =OFFSET(OFFSET($C$3,$A115,0),47,0) -> 0.5 | E118: =OFFSET(OFFSET($C$3,$A115,0),47,6) -> 0.15 | F118: =OFFSET(OFFSET($C$3,$A115,0),47,12) -> 0.05 | G118: ="" ->  | H118: =OFFSET(OFFSET($C$3,$A115,1),47,0) -> 0.75 | I118: =OFFSET(OFFSET($C$3,$A115,1),47,6) -> 0.65 | J118: =OFFSET(OFFSET($C$3,$A115,1),47,12) -> 0.5 | K118: ="" ->  | L118: =OFFSET(OFFSET($C$3,$A115,2),47,0) -> 0.95 | M118: =OFFSET(OFFSET($C$3,$A115,2),47,6) -> 0.85 | N118: =OFFSET(OFFSET($C$3,$A115,2),47,12) -> 0.75
G120: ="" ->  | K120: ="" -> 
A121: 8 | B121: =B58 -> Transport | D121: 1 | E121: 5 | F121: 10 | G121: ="" ->  | K121: ="" ->  | Q121: 1 | R121: 2 | S121: 3
C122: 1 | D122: =OFFSET($C$3,$A121,0) -> 0.85 | E122: =OFFSET(OFFSET($C$3,$A121,0),0,6) -> 0.75 | F122: =OFFSET(OFFSET($C$3,$A121,0),0,12) -> 0.6 | G122: ="" ->  | H122: =OFFSET($C$3,$A121,1) -> 0.95 | I122: =OFFSET(OFFSET($C$3,$A121,1),0,6) -> 0.8 | J122: =OFFSET(OFFSET($C$3,$A121,1),0,12) -> 0.7 | K122: ="" ->  | L122: =OFFSET($C$3,$A121,2) -> 1 | M122: =OFFSET(OFFSET($C$3,$A121,2),0,6) -> 0.97 | N122: =OFFSET(OFFSET($C$3,$A121,2),0,12) -> 0.95 | Q122: =BiTerp($S$4,$T$4,D122:F124) -> 0.85 | R122: =BiTerp($S$4,$T$4,H122:J124) -> 0.95 | S122: =BiTerp($S$4,$T$4,L122:N124) -> 1
C123: 5 | D123: =OFFSET(OFFSET($C$3,$A121,0),23,0) -> 0.75 | E123: =OFFSET(OFFSET($C$3,$A121,0),23,6) -> 0.65 | F123: =OFFSET(OFFSET($C$3,$A121,0),23,12) -> 0.55 | G123: ="" ->  | H123: =OFFSET(OFFSET($C$3,$A121,1),23,0) -> 0.8 | I123: =OFFSET(OFFSET($C$3,$A121,1),23,6) -> 0.75 | J123: =OFFSET(OFFSET($C$3,$A121,1),23,12) -> 0.7 | K123: ="" ->  | L123: =OFFSET(OFFSET($C$3,$A121,2),23,0) -> 0.97 | M123: =OFFSET(OFFSET($C$3,$A121,2),23,6) -> 0.95 | N123: =OFFSET(OFFSET($C$3,$A121,2),23,12) -> 0.935
C124: 10 | D124: =OFFSET(OFFSET($C$3,$A121,0),47,0) -> 0.65 | E124: =OFFSET(OFFSET($C$3,$A121,0),47,6) -> 0.55 | F124: =OFFSET(OFFSET($C$3,$A121,0),47,12) -> 0.45 | G124: ="" ->  | H124: =OFFSET(OFFSET($C$3,$A121,1),47,0) -> 0.75 | I124: =OFFSET(OFFSET($C$3,$A121,1),47,6) -> 0.65 | J124: =OFFSET(OFFSET($C$3,$A121,1),47,12) -> 0.55 | K124: ="" ->  | L124: =OFFSET(OFFSET($C$3,$A121,2),47,0) -> 0.95 | M124: =OFFSET(OFFSET($C$3,$A121,2),47,6) -> 0.935 | N124: =OFFSET(OFFSET($C$3,$A121,2),47,12) -> 0.91
A127: 9 | B127: =B59 -> Communication | D127: 1 | E127: 5 | F127: 10 | G127: ="" ->  | K127: ="" ->  | Q127: 1 | R127: 2 | S127: 3
C128: 1 | D128: =OFFSET($C$3,$A127,0) -> 0.85 | E128: =OFFSET(OFFSET($C$3,$A127,0),0,6) -> 0.75 | F128: =OFFSET(OFFSET($C$3,$A127,0),0,12) -> 0.65 | G128: ="" ->  | H128: =OFFSET($C$3,$A127,1) -> 0.95 | I128: =OFFSET(OFFSET($C$3,$A127,1),0,6) -> 0.8 | J128: =OFFSET(OFFSET($C$3,$A127,1),0,12) -> 0.7 | K128: ="" ->  | L128: =OFFSET($C$3,$A127,2) -> 1 | M128: =OFFSET(OFFSET($C$3,$A127,2),0,6) -> 0.97 | N128: =OFFSET(OFFSET($C$3,$A127,2),0,12) -> 0.95 | Q128: =BiTerp($S$4,$T$4,D128:F130) -> 0.85 | R128: =BiTerp($S$4,$T$4,H128:J130) -> 0.95 | S128: =BiTerp($S$4,$T$4,L128:N130) -> 1
C129: 5 | D129: =OFFSET(OFFSET($C$3,$A127,0),23,0) -> 0.75 | E129: =OFFSET(OFFSET($C$3,$A127,0),23,6) -> 0.65 | F129: =OFFSET(OFFSET($C$3,$A127,0),23,12) -> 0.55 | G129: ="" ->  | H129: =OFFSET(OFFSET($C$3,$A127,1),23,0) -> 0.8 | I129: =OFFSET(OFFSET($C$3,$A127,1),23,6) -> 0.75 | J129: =OFFSET(OFFSET($C$3,$A127,1),23,12) -> 0.7 | K129: ="" ->  | L129: =OFFSET(OFFSET($C$3,$A127,2),23,0) -> 0.97 | M129: =OFFSET(OFFSET($C$3,$A127,2),23,6) -> 0.95 | N129: =OFFSET(OFFSET($C$3,$A127,2),23,12) -> 0.935
C130: 10 | D130: =OFFSET(OFFSET($C$3,$A127,0),47,0) -> 0.65 | E130: =OFFSET(OFFSET($C$3,$A127,0),47,6) -> 0.55 | F130: =OFFSET(OFFSET($C$3,$A127,0),47,12) -> 0.45 | G130: ="" ->  | H130: =OFFSET(OFFSET($C$3,$A127,1),47,0) -> 0.75 | I130: =OFFSET(OFFSET($C$3,$A127,1),47,6) -> 0.65 | J130: =OFFSET(OFFSET($C$3,$A127,1),47,12) -> 0.55 | K130: ="" ->  | L130: =OFFSET(OFFSET($C$3,$A127,2),47,0) -> 0.95 | M130: =OFFSET(OFFSET($C$3,$A127,2),47,6) -> 0.935 | N130: =OFFSET(OFFSET($C$3,$A127,2),47,12) -> 0.91
G131: ="" ->  | K131: ="" -> 
G132: ="" ->  | K132: ="" -> 
A133: 10 | B133: =B60 -> Financial intermediation | D133: 1 | E133: 5 | F133: 10 | G133: ="" ->  | K133: ="" ->  | Q133: 1 | R133: 2 | S133: 3
C134: 1 | D134: =OFFSET($C$3,$A133,0) -> 0.85 | E134: =OFFSET(OFFSET($C$3,$A133,0),0,6) -> 0.8 | F134: =OFFSET(OFFSET($C$3,$A133,0),0,12) -> 0.7 | G134: ="" ->  | H134: =OFFSET($C$3,$A133,1) -> 0.95 | I134: =OFFSET(OFFSET($C$3,$A133,1),0,6) -> 0.9 | J134: =OFFSET(OFFSET($C$3,$A133,1),0,12) -> 0.85 | K134: ="" ->  | L134: =OFFSET($C$3,$A133,2) -> 1 | M134: =OFFSET(OFFSET($C$3,$A133,2),0,6) -> 1 | N134: =OFFSET(OFFSET($C$3,$A133,2),0,12) -> 1 | Q134: =BiTerp($S$4,$T$4,D134:F136) -> 0.85 | R134: =BiTerp($S$4,$T$4,H134:J136) -> 0.95 | S134: =BiTerp($S$4,$T$4,L134:N136) -> 1
C135: 5 | D135: =OFFSET(OFFSET($C$3,$A133,0),23,0) -> 0.7 | E135: =OFFSET(OFFSET($C$3,$A133,0),23,6) -> 0.65 | F135: =OFFSET(OFFSET($C$3,$A133,0),23,12) -> 0.55 | G135: ="" ->  | H135: =OFFSET(OFFSET($C$3,$A133,1),23,0) -> 0.85 | I135: =OFFSET(OFFSET($C$3,$A133,1),23,6) -> 0.8 | J135: =OFFSET(OFFSET($C$3,$A133,1),23,12) -> 0.7 | K135: ="" ->  | L135: =OFFSET(OFFSET($C$3,$A133,2),23,0) -> 1 | M135: =OFFSET(OFFSET($C$3,$A133,2),23,6) -> 1 | N135: =OFFSET(OFFSET($C$3,$A133,2),23,12) -> 1
C136: 10 | D136: =OFFSET(OFFSET($C$3,$A133,0),47,0) -> 0.55 | E136: =OFFSET(OFFSET($C$3,$A133,0),47,6) -> 0.5 | F136: =OFFSET(OFFSET($C$3,$A133,0),47,12) -> 0.4 | G136: ="" ->  | H136: =OFFSET(OFFSET($C$3,$A133,1),47,0) -> 0.7 | I136: =OFFSET(OFFSET($C$3,$A133,1),47,6) -> 0.65 | J136: =OFFSET(OFFSET($C$3,$A133,1),47,12) -> 0.55 | K136: ="" ->  | L136: =OFFSET(OFFSET($C$3,$A133,2),47,0) -> 1 | M136: =OFFSET(OFFSET($C$3,$A133,2),47,6) -> 1 | N136: =OFFSET(OFFSET($C$3,$A133,2),47,12) -> 0.95
G137: ="" ->  | K137: ="" -> 
G138: ="" ->  | K138: ="" -> 
A139: 11 | B139: =B61 -> Real estate and business services | D139: 1 | E139: 5 | F139: 10 | G139: ="" ->  | K139: ="" ->  | Q139: 1 | R139: 2 | S139: 3
C140: 1 | D140: =OFFSET($C$3,$A139,0) -> 0.98 | E140: =OFFSET(OFFSET($C$3,$A139,0),0,6) -> 0.95 | F140: =OFFSET(OFFSET($C$3,$A139,0),0,12) -> 0.9 | G140: ="" ->  | H140: =OFFSET($C$3,$A139,1) -> 1 | I140: =OFFSET(OFFSET($C$3,$A139,1),0,6) -> 1 | J140: =OFFSET(OFFSET($C$3,$A139,1),0,12) -> 0.97 | K140: ="" ->  | L140: =OFFSET($C$3,$A139,2) -> 1 | M140: =OFFSET(OFFSET($C$3,$A139,2),0,6) -> 1 | N140: =OFFSET(OFFSET($C$3,$A139,2),0,12) -> 1 | Q140: =BiTerp($S$4,$T$4,D140:F142) -> 0.98 | R140: =BiTerp($S$4,$T$4,H140:J142) -> 1 | S140: =BiTerp($S$4,$T$4,L140:N142) -> 1
C141: 5 | D141: =OFFSET(OFFSET($C$3,$A139,0),23,0) -> 0.95 | E141: =OFFSET(OFFSET($C$3,$A139,0),23,6) -> 0.9 | F141: =OFFSET(OFFSET($C$3,$A139,0),23,12) -> 0.85 | G141: ="" ->  | H141: =OFFSET(OFFSET($C$3,$A139,1),23,0) -> 1 | I141: =OFFSET(OFFSET($C$3,$A139,1),23,6) -> 0.98 | J141: =OFFSET(OFFSET($C$3,$A139,1),23,12) -> 0.95 | K141: ="" ->  | L141: =OFFSET(OFFSET($C$3,$A139,2),23,0) -> 1 | M141: =OFFSET(OFFSET($C$3,$A139,2),23,6) -> 1 | N141: =OFFSET(OFFSET($C$3,$A139,2),23,12) -> 1
C142: 10 | D142: =OFFSET(OFFSET($C$3,$A139,0),47,0) -> 0.925 | E142: =OFFSET(OFFSET($C$3,$A139,0),47,6) -> 0.85 | F142: =OFFSET(OFFSET($C$3,$A139,0),47,12) -> 0.8 | G142: ="" ->  | H142: =OFFSET(OFFSET($C$3,$A139,1),47,0) -> 0.975 | I142: =OFFSET(OFFSET($C$3,$A139,1),47,6) -> 0.95 | J142: =OFFSET(OFFSET($C$3,$A139,1),47,12) -> 0.9 | K142: ="" ->  | L142: =OFFSET(OFFSET($C$3,$A139,2),47,0) -> 1 | M142: =OFFSET(OFFSET($C$3,$A139,2),47,6) -> 1 | N142: =OFFSET(OFFSET($C$3,$A139,2),47,12) -> 1
G143: ="" ->  | K143: ="" -> 
G144: ="" ->  | K144: ="" -> 
A145: 12 | B145: =B62 -> Community, social and personal service activities | D145: 1 | E145: 5 | F145: 10 | G145: ="" ->  | K145: ="" ->  | Q145: 1 | R145: 2 | S145: 3
C146: 1 | D146: =OFFSET($C$3,$A145,0) -> 0.9 | E146: =OFFSET(OFFSET($C$3,$A145,0),0,6) -> 0.85 | F146: =OFFSET(OFFSET($C$3,$A145,0),0,12) -> 0.75 | G146: ="" ->  | H146: =OFFSET($C$3,$A145,1) -> 1 | I146: =OFFSET(OFFSET($C$3,$A145,1),0,6) -> 0.9 | J146: =OFFSET(OFFSET($C$3,$A145,1),0,12) -> 0.85 | K146: ="" ->  | L146: =OFFSET($C$3,$A145,2) -> 1 | M146: =OFFSET(OFFSET($C$3,$A145,2),0,6) -> 1 | N146: =OFFSET(OFFSET($C$3,$A145,2),0,12) -> 1 | Q146: =BiTerp($S$4,$T$4,D146:F148) -> 0.9 | R146: =BiTerp($S$4,$T$4,H146:J148) -> 1 | S146: =BiTerp($S$4,$T$4,L146:N148) -> 1
C147: 5 | D147: =OFFSET(OFFSET($C$3,$A145,0),23,0) -> 0.85 | E147: =OFFSET(OFFSET($C$3,$A145,0),23,6) -> 0.7 | F147: =OFFSET(OFFSET($C$3,$A145,0),23,12) -> 0.5 | G147: ="" ->  | H147: =OFFSET(OFFSET($C$3,$A145,1),23,0) -> 1 | I147: =OFFSET(OFFSET($C$3,$A145,1),23,6) -> 0.95 | J147: =OFFSET(OFFSET($C$3,$A145,1),23,12) -> 0.8 | K147: ="" ->  | L147: =OFFSET(OFFSET($C$3,$A145,2),23,0) -> 1 | M147: =OFFSET(OFFSET($C$3,$A145,2),23,6) -> 1 | N147: =OFFSET(OFFSET($C$3,$A145,2),23,12) -> 1
C148: 10 | D148: =OFFSET(OFFSET($C$3,$A145,0),47,0) -> 0.75 | E148: =OFFSET(OFFSET($C$3,$A145,0),47,6) -> 0.65 | F148: =OFFSET(OFFSET($C$3,$A145,0),47,12) -> 0.5 | G148: ="" ->  | H148: =OFFSET(OFFSET($C$3,$A145,1),47,0) -> 1 | I148: =OFFSET(OFFSET($C$3,$A145,1),47,6) -> 0.95 | J148: =OFFSET(OFFSET($C$3,$A145,1),47,12) -> 0.85 | K148: ="" ->  | L148: =OFFSET(OFFSET($C$3,$A145,2),47,0) -> 1 | M148: =OFFSET(OFFSET($C$3,$A145,2),47,6) -> 1 | N148: =OFFSET(OFFSET($C$3,$A145,2),47,12) -> 1
G149: ="" ->  | K149: ="" -> 
G150: ="" ->  | K150: ="" -> 
A151: 13 | B151: =B63 -> Public administration and defence | D151: 1 | E151: 5 | F151: 10 | G151: ="" ->  | K151: ="" ->  | Q151: 1 | R151: 2 | S151: 3
C152: 1 | D152: =OFFSET($C$3,$A151,0) -> 0.9375 | E152: =OFFSET(OFFSET($C$3,$A151,0),0,6) -> 0.9134615385 | F152: =OFFSET(OFFSET($C$3,$A151,0),0,12) -> 0.9134615385 | G152: ="" ->  | H152: =OFFSET($C$3,$A151,1) -> 1 | I152: =OFFSET(OFFSET($C$3,$A151,1),0,6) -> 0.9865384615 | J152: =OFFSET(OFFSET($C$3,$A151,1),0,12) -> 0.9865384615 | K152: ="" ->  | L152: =OFFSET($C$3,$A151,2) -> 1 | M152: =OFFSET(OFFSET($C$3,$A151,2),0,6) -> 1 | N152: =OFFSET(OFFSET($C$3,$A151,2),0,12) -> 1 | Q152: =BiTerp($S$4,$T$4,D152:F154) -> 0.9375 | R152: =BiTerp($S$4,$T$4,H152:J154) -> 1 | S152: =BiTerp($S$4,$T$4,L152:N154) -> 1
C153: 5 | D153: =OFFSET(OFFSET($C$3,$A151,0),23,0) -> 0.9375 | E153: =OFFSET(OFFSET($C$3,$A151,0),23,6) -> 0.9134615385 | F153: =OFFSET(OFFSET($C$3,$A151,0),23,12) -> 0.9125 | G153: ="" ->  | H153: =OFFSET(OFFSET($C$3,$A151,1),23,0) -> 1 | I153: =OFFSET(OFFSET($C$3,$A151,1),23,6) -> 0.9865384615 | J153: =OFFSET(OFFSET($C$3,$A151,1),23,12) -> 0.9671052632 | K153: ="" ->  | L153: =OFFSET(OFFSET($C$3,$A151,2),23,0) -> 1 | M153: =OFFSET(OFFSET($C$3,$A151,2),23,6) -> 1 | N153: =OFFSET(OFFSET($C$3,$A151,2),23,12) -> 0.9953947368
C154: 10 | D154: =OFFSET(OFFSET($C$3,$A151,0),47,0) -> 0.875 | E154: =OFFSET(OFFSET($C$3,$A151,0),47,6) -> 0.8269230769 | F154: =OFFSET(OFFSET($C$3,$A151,0),47,12) -> 0.8125 | G154: ="" ->  | H154: =OFFSET(OFFSET($C$3,$A151,1),47,0) -> 1 | I154: =OFFSET(OFFSET($C$3,$A151,1),47,6) -> 0.9730769231 | J154: =OFFSET(OFFSET($C$3,$A151,1),47,12) -> 0.9013157895 | K154: ="" ->  | L154: =OFFSET(OFFSET($C$3,$A151,2),47,0) -> 1 | M154: =OFFSET(OFFSET($C$3,$A151,2),47,6) -> 1 | N154: =OFFSET(OFFSET($C$3,$A151,2),47,12) -> 0.9861842105
G155: ="" ->  | K155: ="" -> 
G156: ="" ->  | K156: ="" -> 
A157: 14 | B157: =B64 -> Education | D157: 1 | E157: 5 | F157: 10 | G157: ="" ->  | K157: ="" ->  | Q157: 1 | R157: 2 | S157: 3
C158: 1 | D158: =OFFSET($C$3,$A157,0) -> 1 | E158: =OFFSET(OFFSET($C$3,$A157,0),0,6) -> 1 | F158: =OFFSET(OFFSET($C$3,$A157,0),0,12) -> 1 | G158: ="" ->  | H158: =OFFSET($C$3,$A157,1) -> 1 | I158: =OFFSET(OFFSET($C$3,$A157,1),0,6) -> 1 | J158: =OFFSET(OFFSET($C$3,$A157,1),0,12) -> 1 | K158: ="" ->  | L158: =OFFSET($C$3,$A157,2) -> 1 | M158: =OFFSET(OFFSET($C$3,$A157,2),0,6) -> 1 | N158: =OFFSET(OFFSET($C$3,$A157,2),0,12) -> 1 | Q158: =BiTerp($S$4,$T$4,D158:F160) -> 1 | R158: =BiTerp($S$4,$T$4,H158:J160) -> 1 | S158: =BiTerp($S$4,$T$4,L158:N160) -> 1
C159: 5 | D159: =OFFSET(OFFSET($C$3,$A157,0),23,0) -> 1 | E159: =OFFSET(OFFSET($C$3,$A157,0),23,6) -> 1 | F159: =OFFSET(OFFSET($C$3,$A157,0),23,12) -> 1 | G159: ="" ->  | H159: =OFFSET(OFFSET($C$3,$A157,1),23,0) -> 1 | I159: =OFFSET(OFFSET($C$3,$A157,1),23,6) -> 1 | J159: =OFFSET(OFFSET($C$3,$A157,1),23,12) -> 1 | K159: ="" ->  | L159: =OFFSET(OFFSET($C$3,$A157,2),23,0) -> 1 | M159: =OFFSET(OFFSET($C$3,$A157,2),23,6) -> 1 | N159: =OFFSET(OFFSET($C$3,$A157,2),23,12) -> 1
C160: 10 | D160: =OFFSET(OFFSET($C$3,$A157,0),47,0) -> 0.98 | E160: =OFFSET(OFFSET($C$3,$A157,0),47,6) -> 0.95 | F160: =OFFSET(OFFSET($C$3,$A157,0),47,12) -> 0.9 | G160: ="" ->  | H160: =OFFSET(OFFSET($C$3,$A157,1),47,0) -> 0.99 | I160: =OFFSET(OFFSET($C$3,$A157,1),47,6) -> 0.97 | J160: =OFFSET(OFFSET($C$3,$A157,1),47,12) -> 0.95 | K160: ="" ->  | L160: =OFFSET(OFFSET($C$3,$A157,2),47,0) -> 1 | M160: =OFFSET(OFFSET($C$3,$A157,2),47,6) -> 1 | N160: =OFFSET(OFFSET($C$3,$A157,2),47,12) -> 1
G161: ="" ->  | K161: ="" -> 
G162: ="" ->  | K162: ="" -> 
A163: 15 | B163: =B65 -> Health | D163: 1 | E163: 5 | F163: 10 | G163: ="" ->  | K163: ="" ->  | Q163: 1 | R163: 2 | S163: 3
C164: 1 | D164: =OFFSET($C$3,$A163,0) -> 1.3 | E164: =OFFSET(OFFSET($C$3,$A163,0),0,6) -> 1.5 | F164: =OFFSET(OFFSET($C$3,$A163,0),0,12) -> 1.4 | G164: ="" ->  | H164: =OFFSET($C$3,$A163,1) -> 1.1 | I164: =OFFSET(OFFSET($C$3,$A163,1),0,6) -> 1.3 | J164: =OFFSET(OFFSET($C$3,$A163,1),0,12) -> 1.2 | K164: ="" ->  | L164: =OFFSET($C$3,$A163,2) -> 1 | M164: =OFFSET(OFFSET($C$3,$A163,2),0,6) -> 1.1 | N164: =OFFSET(OFFSET($C$3,$A163,2),0,12) -> 1.1 | Q164: =BiTerp($S$4,$T$4,D164:F166) -> 1.3 | R164: =BiTerp($S$4,$T$4,H164:J166) -> 1.1 | S164: =BiTerp($S$4,$T$4,L164:N166) -> 1
C165: 5 | D165: =OFFSET(OFFSET($C$3,$A163,0),23,0) -> 1.27 | E165: =OFFSET(OFFSET($C$3,$A163,0),23,6) -> 1.4 | F165: =OFFSET(OFFSET($C$3,$A163,0),23,12) -> 1.3 | G165: ="" ->  | H165: =OFFSET(OFFSET($C$3,$A163,1),23,0) -> 1.1 | I165: =OFFSET(OFFSET($C$3,$A163,1),23,6) -> 1.2 | J165: =OFFSET(OFFSET($C$3,$A163,1),23,12) -> 1.2 | K165: ="" ->  | L165: =OFFSET(OFFSET($C$3,$A163,2),23,0) -> 1.1 | M165: =OFFSET(OFFSET($C$3,$A163,2),23,6) -> 1 | N165: =OFFSET(OFFSET($C$3,$A163,2),23,12) -> 1.1
C166: 10 | D166: =OFFSET(OFFSET($C$3,$A163,0),47,0) -> 1.27 | E166: =OFFSET(OFFSET($C$3,$A163,0),47,6) -> 1.35 | F166: =OFFSET(OFFSET($C$3,$A163,0),47,12) -> 1.25 | G166: ="" ->  | H166: =OFFSET(OFFSET($C$3,$A163,1),47,0) -> 1.1 | I166: =OFFSET(OFFSET($C$3,$A163,1),47,6) -> 1.15 | J166: =OFFSET(OFFSET($C$3,$A163,1),47,12) -> 1.15 | K166: ="" ->  | L166: =OFFSET(OFFSET($C$3,$A163,2),47,0) -> 1.1 | M166: =OFFSET(OFFSET($C$3,$A163,2),47,6) -> 1 | N166: =OFFSET(OFFSET($C$3,$A163,2),47,12) -> 1
G167: ="" ->  | K167: ="" -> 
G168: ="" ->  | K168: ="" -> 
A169: 16 | B169: =B66 -> Private household with employed persons | D169: 1 | E169: 5 | F169: 10 | G169: ="" ->  | K169: ="" ->  | Q169: 1 | R169: 2 | S169: 3
C170: 1 | D170: =OFFSET($C$3,$A169,0) -> 0.9 | E170: =OFFSET(OFFSET($C$3,$A169,0),0,6) -> 0.7 | F170: =OFFSET(OFFSET($C$3,$A169,0),0,12) -> 0.6 | G170: ="" ->  | H170: =OFFSET($C$3,$A169,1) -> 1 | I170: =OFFSET(OFFSET($C$3,$A169,1),0,6) -> 0.95 | J170: =OFFSET(OFFSET($C$3,$A169,1),0,12) -> 0.9 | K170: ="" ->  | L170: =OFFSET($C$3,$A169,2) -> 1 | M170: =OFFSET(OFFSET($C$3,$A169,2),0,6) -> 1 | N170: =OFFSET(OFFSET($C$3,$A169,2),0,12) -> 1 | Q170: =BiTerp($S$4,$T$4,D170:F172) -> 0.9 | R170: =BiTerp($S$4,$T$4,H170:J172) -> 1 | S170: =BiTerp($S$4,$T$4,L170:N172) -> 1
C171: 5 | D171: =OFFSET(OFFSET($C$3,$A169,0),23,0) -> 0.85 | E171: =OFFSET(OFFSET($C$3,$A169,0),23,6) -> 0.6 | F171: =OFFSET(OFFSET($C$3,$A169,0),23,12) -> 0.5 | G171: ="" ->  | H171: =OFFSET(OFFSET($C$3,$A169,1),23,0) -> 1 | I171: =OFFSET(OFFSET($C$3,$A169,1),23,6) -> 0.92 | J171: =OFFSET(OFFSET($C$3,$A169,1),23,12) -> 0.85 | K171: ="" ->  | L171: =OFFSET(OFFSET($C$3,$A169,2),23,0) -> 1 | M171: =OFFSET(OFFSET($C$3,$A169,2),23,6) -> 1 | N171: =OFFSET(OFFSET($C$3,$A169,2),23,12) -> 1
C172: 10 | D172: =OFFSET(OFFSET($C$3,$A169,0),47,0) -> 0.775 | E172: =OFFSET(OFFSET($C$3,$A169,0),47,6) -> 0.55 | F172: =OFFSET(OFFSET($C$3,$A169,0),47,12) -> 0.35 | G172: ="" ->  | H172: =OFFSET(OFFSET($C$3,$A169,1),47,0) -> 1 | I172: =OFFSET(OFFSET($C$3,$A169,1),47,6) -> 0.9 | J172: =OFFSET(OFFSET($C$3,$A169,1),47,12) -> 0.8 | K172: ="" ->  | L172: =OFFSET(OFFSET($C$3,$A169,2),47,0) -> 1 | M172: =OFFSET(OFFSET($C$3,$A169,2),47,6) -> 1 | N172: =OFFSET(OFFSET($C$3,$A169,2),47,12) -> 1
G173: ="" ->  | K173: ="" -> 
G174: ="" ->  | K174: ="" -> 
A175: 17 | B175: =B67 -> Financial intermediation services indirectly measured | D175: 1 | E175: 5 | F175: 10 | G175: ="" ->  | K175: ="" ->  | Q175: 1 | R175: 2 | S175: 3
C176: 1 | D176: =OFFSET($C$3,$A175,0) -> 1 | E176: =OFFSET(OFFSET($C$3,$A175,0),0,6) -> 1 | F176: =OFFSET(OFFSET($C$3,$A175,0),0,12) -> 1 | G176: ="" ->  | H176: =OFFSET($C$3,$A175,1) -> 1 | I176: =OFFSET(OFFSET($C$3,$A175,1),0,6) -> 1 | J176: =OFFSET(OFFSET($C$3,$A175,1),0,12) -> 1 | K176: ="" ->  | L176: =OFFSET($C$3,$A175,2) -> 1 | M176: =OFFSET(OFFSET($C$3,$A175,2),0,6) -> 1 | N176: =OFFSET(OFFSET($C$3,$A175,2),0,12) -> 1 | Q176: =BiTerp($S$4,$T$4,D176:F178) -> 1 | R176: =BiTerp($S$4,$T$4,H176:J178) -> 1 | S176: =BiTerp($S$4,$T$4,L176:N178) -> 1
C177: 5 | D177: =OFFSET(OFFSET($C$3,$A175,0),23,0) -> 1 | E177: =OFFSET(OFFSET($C$3,$A175,0),23,6) -> 1 | F177: =OFFSET(OFFSET($C$3,$A175,0),23,12) -> 1 | G177: ="" ->  | H177: =OFFSET(OFFSET($C$3,$A175,1),23,0) -> 1 | I177: =OFFSET(OFFSET($C$3,$A175,1),23,6) -> 1 | J177: =OFFSET(OFFSET($C$3,$A175,1),23,12) -> 1 | K177: ="" ->  | L177: =OFFSET(OFFSET($C$3,$A175,2),23,0) -> 1 | M177: =OFFSET(OFFSET($C$3,$A175,2),23,6) -> 1 | N177: =OFFSET(OFFSET($C$3,$A175,2),23,12) -> 1
C178: 10 | D178: =OFFSET(OFFSET($C$3,$A175,0),47,0) -> 1 | E178: =OFFSET(OFFSET($C$3,$A175,0),47,6) -> 1 | F178: =OFFSET(OFFSET($C$3,$A175,0),47,12) -> 1 | G178: ="" ->  | H178: =OFFSET(OFFSET($C$3,$A175,1),47,0) -> 1 | I178: =OFFSET(OFFSET($C$3,$A175,1),47,6) -> 1 | J178: =OFFSET(OFFSET($C$3,$A175,1),47,12) -> 1 | K178: ="" ->  | L178: =OFFSET(OFFSET($C$3,$A175,2),47,0) -> 1 | M178: =OFFSET(OFFSET($C$3,$A175,2),47,6) -> 1 | N178: =OFFSET(OFFSET($C$3,$A175,2),47,12) -> 1
G179: ="" ->  | K179: ="" -> 
G180: ="" ->  | K180: ="" -> 
A181: 18 | B181: =B68 -> Less subsidies on products | D181: 1 | E181: 5 | F181: 10 | G181: ="" ->  | K181: ="" ->  | Q181: 1 | R181: 2 | S181: 3
C182: 1 | D182: =OFFSET($C$3,$A181,0) -> 1 | E182: =OFFSET(OFFSET($C$3,$A181,0),0,6) -> 1 | F182: =OFFSET(OFFSET($C$3,$A181,0),0,12) -> 1 | G182: ="" ->  | H182: =OFFSET($C$3,$A181,1) -> 1 | I182: =OFFSET(OFFSET($C$3,$A181,1),0,6) -> 1 | J182: =OFFSET(OFFSET($C$3,$A181,1),0,12) -> 1 | K182: ="" ->  | L182: =OFFSET($C$3,$A181,2) -> 1 | M182: =OFFSET(OFFSET($C$3,$A181,2),0,6) -> 1 | N182: =OFFSET(OFFSET($C$3,$A181,2),0,12) -> 1 | Q182: =BiTerp($S$4,$T$4,D182:F184) -> 1 | R182: =BiTerp($S$4,$T$4,H182:J184) -> 1 | S182: =BiTerp($S$4,$T$4,L182:N184) -> 1
C183: 5 | D183: =OFFSET(OFFSET($C$3,$A181,0),23,0) -> 1 | E183: =OFFSET(OFFSET($C$3,$A181,0),23,6) -> 1 | F183: =OFFSET(OFFSET($C$3,$A181,0),23,12) -> 1 | G183: ="" ->  | H183: =OFFSET(OFFSET($C$3,$A181,1),23,0) -> 1 | I183: =OFFSET(OFFSET($C$3,$A181,1),23,6) -> 1 | J183: =OFFSET(OFFSET($C$3,$A181,1),23,12) -> 1 | K183: ="" ->  | L183: =OFFSET(OFFSET($C$3,$A181,2),23,0) -> 1 | M183: =OFFSET(OFFSET($C$3,$A181,2),23,6) -> 1 | N183: =OFFSET(OFFSET($C$3,$A181,2),23,12) -> 1
C184: 10 | D184: =OFFSET(OFFSET($C$3,$A181,0),47,0) -> 1 | E184: =OFFSET(OFFSET($C$3,$A181,0),47,6) -> 1 | F184: =OFFSET(OFFSET($C$3,$A181,0),47,12) -> 1 | G184: ="" ->  | H184: =OFFSET(OFFSET($C$3,$A181,1),47,0) -> 1 | I184: =OFFSET(OFFSET($C$3,$A181,1),47,6) -> 1 | J184: =OFFSET(OFFSET($C$3,$A181,1),47,12) -> 1 | K184: ="" ->  | L184: =OFFSET(OFFSET($C$3,$A181,2),47,0) -> 1 | M184: =OFFSET(OFFSET($C$3,$A181,2),47,6) -> 1 | N184: =OFFSET(OFFSET($C$3,$A181,2),47,12) -> 1
A190: 0 | B190: =B73 -> Agriculture and forestry | D190: 1 | E190: 5 | F190: 10 | Q190: 1 | R190: 2 | S190: 3
C191: 1 | D191: 1 | E191: 0.97 | F191: 0.91 | H191: 1 | I191: 1 | J191: 0.9464 | L191: 1 | M191: 1 | N191: 0.984256 | Q191: =BiTerp($S$4,$T$4,D191:F193) -> 1 | R191: =BiTerp($S$4,$T$4,H191:J193) -> 1 | S191: =BiTerp($S$4,$T$4,L191:N193) -> 1
C192: 5 | D192: 0.97 | E192: 0.94 | F192: 0.82 | H192: 1 | I192: 0.9776 | J192: 0.8692 | L192: 1 | M192: 1 | N192: 0.921352
C193: 10 | D193: 0.94 | E193: 0.91 | F193: 0.77 | H193: 0.9776 | I193: 0.9464 | J193: 0.8 | L193: 1 | M193: 0.984256 | N193: 0.88
A196: 1 | B196: =B79 -> Fishing and fish processing on board | D196: 1 | E196: 5 | F196: 10 | Q196: 1 | R196: 2 | S196: 3
C197: 1 | D197: 0.937 | E197: 0.874 | F197: 0.811 | H197: 1 | I197: 0.90896 | J197: 0.84344 | L197: 1 | M197: 0.97 | N197: 0.8771776 | Q197: =BiTerp($S$4,$T$4,D197:F199) -> 0.937 | R197: =BiTerp($S$4,$T$4,H197:J199) -> 1 | S197: =BiTerp($S$4,$T$4,L197:N199) -> 1
C198: 5 | D198: 0.9055 | E198: 0.811 | F198: 0.7165 | H198: 0.94172 | I198: 0.84344 | J198: 0.75949 | L198: 1 | M198: 0.8771776 | N198: 0.8050594
C199: 10 | D199: 0.55 | E199: 0.5 | F199: 0.45 | H199: 0.75 | I199: 0.7 | J199: 0.65 | L199: 0.95 | M199: 0.84 | N199: 0.71
A202: 2 | B202: =B85 -> Mining and quarrying | D202: 1 | E202: 5 | F202: 10 | Q202: 1 | R202: 2 | S202: 3
C203: 1 | D203: 0.94 | E203: 0.8 | F203: 0.7 | H203: 1 | I203: 0.97 | J203: 0.8 | L203: 1 | M203: 1 | N203: 0.94 | Q203: =BiTerp($S$4,$T$4,D203:F205) -> 0.94 | R203: =BiTerp($S$4,$T$4,H203:J205) -> 1 | S203: =BiTerp($S$4,$T$4,L203:N205) -> 1
C204: 5 | D204: 0.81 | E204: 0.7 | F204: 0.5 | H204: 1 | I204: 0.9 | J204: 0.75 | L204: 1 | M204: 1 | N204: 0.9
C205: 10 | D205: 0.55 | E205: 0.35 | F205: 0.2 | H205: 0.8 | I205: 0.75 | J205: 0.65 | L205: 0.95 | M205: 0.93 | N205: 0.85
A208: 3 | B208: =B91 -> Manufacturing | D208: 1 | E208: 5 | F208: 10 | Q208: 1 | R208: 2 | S208: 3
C209: 1 | D209: 0.81 | E209: 0.69 | F209: 0.56 | H209: 1 | I209: 0.95 | J209: 0.67 | L209: 1 | M209: 1 | N209: 0.95 | Q209: =BiTerp($S$4,$T$4,D209:F211) -> 0.81 | R209: =BiTerp($S$4,$T$4,H209:J211) -> 1 | S209: =BiTerp($S$4,$T$4,L209:N211) -> 1
C210: 5 | D210: 0.69 | E210: 0.46 | F210: 0.36 | H210: 1 | I210: 0.91 | J210: 0.57 | L210: 1 | M210: 1 | N210: 0.94
C211: 10 | D211: 0.63 | E211: 0.44 | F211: 0.31 | H211: 1 | I211: 0.91 | J211: 0.54 | L211: 1 | M211: 1 | N211: 0.94
A214: 4 | B214: =B97 -> Electricity and water | D214: 1 | E214: 5 | F214: 10 | Q214: 1 | R214: 2 | S214: 3
C215: 1 | D215: 0.955 | E215: 0.91 | F215: 0.82 | H215: 1 | I215: 0.9464 | J215: 0.8528 | L215: 1 | M215: 0.97 | N215: 0.886912 | Q215: =BiTerp($S$4,$T$4,D215:F217) -> 0.955 | R215: =BiTerp($S$4,$T$4,H215:J217) -> 1 | S215: =BiTerp($S$4,$T$4,L215:N217) -> 1
C216: 5 | D216: 0.9375 | E216: 0.875 | F216: 0.75 | H216: 1 | I216: 0.91 | J216: 0.78 | L216: 1 | M216: 0.97 | N216: 0.8112
C217: 10 | D217: 0.9375 | E217: 0.875 | F217: 0.73 | H217: 1 | I217: 0.91 | J217: 0.74 | L217: 1 | M217: 0.97 | N217: 0.78
A220: 5 | B220: =B103 -> Construction | D220: 1 | E220: 5 | F220: 10 | Q220: 1 | R220: 2 | S220: 3
C221: 1 | D221: 0.85 | E221: 0.8 | F221: 0.75 | H221: 0.9 | I221: 0.87 | J221: 0.85 | L221: 1 | M221: 0.96 | N221: 0.95 | Q221: =BiTerp($S$4,$T$4,D221:F223) -> 0.85 | R221: =BiTerp($S$4,$T$4,H221:J223) -> 0.9 | S221: =BiTerp($S$4,$T$4,L221:N223) -> 1
C222: 5 | D222: 0.8 | E222: 0.7 | F222: 0.6 | H222: 0.85 | I222: 0.8 | J222: 0.75 | L222: 0.96 | M222: 0.95 | N222: 0.9
C223: 10 | D223: 0.7 | E223: 0.6 | F223: 0.5 | H223: 0.85 | I223: 0.8 | J223: 0.7 | L223: 0.96 | M223: 0.95 | N223: 0.88
A226: 6 | B226: =B109 -> Wholesale and retail trade, repairs | D226: 1 | E226: 5 | F226: 10 | Q226: 1 | R226: 2 | S226: 3
C227: 1 | D227: 0.9727009019 | E227: 0.9454018038 | F227: 0.8908036076 | H227: 0.986350451 | I227: 0.9727009019 | J227: 0.9454018038 | L227: 1 | M227: 1 | N227: 1 | Q227: =BiTerp($S$4,$T$4,D227:F229) -> 0.9727009019 | R227: =BiTerp($S$4,$T$4,H227:J229) -> 0.986350451 | S227: =BiTerp($S$4,$T$4,L227:N229) -> 1
C228: 5 | D228: 0.8856836069 | E228: 0.7713672137 | F228: 0.5427344275 | H228: 0.9428418034 | I228: 0.8856836069 | J228: 0.7713672137 | L228: 1 | M228: 1 | N228: 1
C229: 10 | D229: 0.8450731977 | E229: 0.6901463953 | F229: 0.3802927907 | H229: 0.9225365988 | I229: 0.8450731977 | J229: 0.6901463953 | L229: 1 | M229: 1 | N229: 1
A232: 7 | B232: =B115 -> Hotels and restaurants | D232: 1 | E232: 5 | F232: 10 | Q232: 1 | R232: 2 | S232: 3
C233: 1 | D233: 0.85 | E233: 0.65 | F233: 0.5 | H233: 0.95 | I233: 0.9 | J233: 0.85 | L233: 1 | M233: 1 | N233: 0.99 | Q233: =BiTerp($S$4,$T$4,D233:F235) -> 0.85 | R233: =BiTerp($S$4,$T$4,H233:J235) -> 0.95 | S233: =BiTerp($S$4,$T$4,L233:N235) -> 1
... 70 more rows

Sheet Pandemic (hidden)
B2: 3 month | C2: 0 | D2: 1 | E2: 2 | H2: 6 month | I2: 0 | J2: 1 | K2: 2 | N2: 12 month | O2: 0 | P2: 1 | Q2: 2
B3: =Labels!E23 -> 0 | C3: 1 | D3: 1 | E3: 1 | H3: =Labels!E23 -> 0 | I3: 0.97 | J3: 1 | K3: 1 | N3: =Labels!E23 -> 0 | O3: 0.91 | P3: 0.9464 | Q3: 0.984256
B4: =Labels!E24 -> 0 | C4: 0.937 | D4: 1 | E4: 1 | H4: =Labels!E24 -> 0 | I4: 0.874 | J4: 0.90896 | K4: 0.97 | N4: =Labels!E24 -> 0 | O4: 0.811 | P4: 0.84344 | Q4: 0.8771776
B5: =Labels!E25 -> 0 | C5: 0.94 | D5: 1 | E5: 1 | H5: =Labels!E25 -> 0 | I5: 0.8 | J5: 0.97 | K5: 1 | N5: =Labels!E25 -> 0 | O5: 0.7 | P5: 0.8 | Q5: 0.94
B6: =Labels!E26 -> 0 | C6: 0.81 | D6: 1 | E6: 1 | H6: =Labels!E26 -> 0 | I6: 0.69 | J6: 0.95 | K6: 1 | N6: =Labels!E26 -> 0 | O6: 0.56 | P6: 0.67 | Q6: 0.95
B7: =Labels!E27 -> 0 | C7: 0.955 | D7: 1 | E7: 1 | H7: =Labels!E27 -> 0 | I7: 0.91 | J7: 0.9464 | K7: 0.97 | N7: =Labels!E27 -> 0 | O7: 0.82 | P7: 0.8528 | Q7: 0.886912
B8: =Labels!E28 -> 0 | C8: 0.85 | D8: 0.9 | E8: 1 | H8: =Labels!E28 -> 0 | I8: 0.8 | J8: 0.87 | K8: 0.96 | N8: =Labels!E28 -> 0 | O8: 0.75 | P8: 0.85 | Q8: 0.95
B9: =Labels!E29 -> 0 | C9: 0.9727009019 | D9: 0.986350451 | E9: 1 | H9: =Labels!E29 -> 0 | I9: 0.9454018038 | J9: 0.9727009019 | K9: 1 | N9: =Labels!E29 -> 0 | O9: 0.8908036076 | P9: 0.9454018038 | Q9: 1
B10: =Labels!E30 -> 0 | C10: 0.85 | D10: 0.95 | E10: 1 | H10: =Labels!E30 -> 0 | I10: 0.65 | J10: 0.9 | K10: 1 | N10: =Labels!E30 -> 0 | O10: 0.5 | P10: 0.85 | Q10: 0.99
B11: =Labels!E31 -> 0 | C11: 0.85 | D11: 0.95 | E11: 1 | H11: =Labels!E31 -> 0 | I11: 0.75 | J11: 0.8 | K11: 0.97 | N11: =Labels!E31 -> 0 | O11: 0.6 | P11: 0.7 | Q11: 0.95
B12: =Labels!E32 -> 0 | C12: 0.85 | D12: 0.95 | E12: 1 | H12: =Labels!E32 -> 0 | I12: 0.75 | J12: 0.8 | K12: 0.97 | N12: =Labels!E32 -> 0 | O12: 0.65 | P12: 0.7 | Q12: 0.95
B13: =Labels!E33 -> 0 | C13: 0.85 | D13: 0.95 | E13: 1 | H13: =Labels!E33 -> 0 | I13: 0.8 | J13: 0.9 | K13: 1 | N13: =Labels!E33 -> 0 | O13: 0.7 | P13: 0.85 | Q13: 1
B14: =Labels!E34 -> 0 | C14: 0.98 | D14: 1 | E14: 1 | H14: =Labels!E34 -> 0 | I14: 0.95 | J14: 1 | K14: 1 | N14: =Labels!E34 -> 0 | O14: 0.9 | P14: 0.97 | Q14: 1
B15: =Labels!E35 -> 0 | C15: 0.9 | D15: 1 | E15: 1 | H15: =Labels!E35 -> 0 | I15: 0.85 | J15: 0.9 | K15: 1 | N15: =Labels!E35 -> 0 | O15: 0.75 | P15: 0.85 | Q15: 1
B16: =Labels!E36 -> 0 | C16: 0.9375 | D16: 1 | E16: 1 | H16: =Labels!E36 -> 0 | I16: 0.9134615385 | J16: 0.9865384615 | K16: 1 | N16: =Labels!E36 -> 0 | O16: 0.9134615385 | P16: 0.9865384615 | Q16: 1
B17: =Labels!E37 -> 0 | C17: 1 | D17: 1 | E17: 1 | H17: =Labels!E37 -> 0 | I17: 1 | J17: 1 | K17: 1 | N17: =Labels!E37 -> 0 | O17: 1 | P17: 1 | Q17: 1
B18: =Labels!E38 -> 0 | C18: 1.3 | D18: 1.1 | E18: 1 | H18: =Labels!E38 -> 0 | I18: 1.5 | J18: 1.3 | K18: 1.1 | N18: =Labels!E38 -> 0 | O18: 1.4 | P18: 1.2 | Q18: 1.1
B19: =Labels!E39 -> 0 | C19: 0.9 | D19: 1 | E19: 1 | H19: =Labels!E39 -> 0 | I19: 0.7 | J19: 0.95 | K19: 1 | N19: =Labels!E39 -> 0 | O19: 0.6 | P19: 0.9 | Q19: 1
B20: =Labels!E40 -> 0 | C20: 1 | D20: 1 | E20: 1 | H20: =Labels!E40 -> 0 | I20: 1 | J20: 1 | K20: 1 | N20: =Labels!E40 -> 0 | O20: 1 | P20: 1 | Q20: 1
B21: =Labels!E41 -> 0 | C21: 1 | D21: 1 | E21: 1 | H21: =Labels!E41 -> 0 | I21: 1 | J21: 1 | K21: 1 | N21: =Labels!E41 -> 0 | O21: 1 | P21: 1 | Q21: 1
I25: 0 | J25: 1 | K25: 2 | O25: 0 | P25: 1 | Q25: 2
B26: =Labels!E23 -> 0 | C26: 0.97 | D26: 1 | E26: 1 | H26: =Labels!E23 -> 0 | I26: 0.94 | J26: 0.9776 | K26: 1 | N26: =Labels!E23 -> 0 | O26: 0.82 | P26: 0.8692 | Q26: 0.921352
B27: =Labels!E24 -> 0 | C27: 0.9055 | D27: 0.94172 | E27: 1 | H27: =Labels!E24 -> 0 | I27: 0.811 | J27: 0.84344 | K27: 0.8771776 | N27: =Labels!E24 -> 0 | O27: 0.7165 | P27: 0.75949 | Q27: 0.8050594
B28: =Labels!E25 -> 0 | C28: 0.81 | D28: 1 | E28: 1 | H28: =Labels!E25 -> 0 | I28: 0.7 | J28: 0.9 | K28: 1 | N28: =Labels!E25 -> 0 | O28: 0.5 | P28: 0.75 | Q28: 0.9
B29: =Labels!E26 -> 0 | C29: 0.69 | D29: 1 | E29: 1 | H29: =Labels!E26 -> 0 | I29: 0.46 | J29: 0.91 | K29: 1 | N29: =Labels!E26 -> 0 | O29: 0.36 | P29: 0.57 | Q29: 0.94
B30: =Labels!E27 -> 0 | C30: 0.9375 | D30: 1 | E30: 1 | H30: =Labels!E27 -> 0 | I30: 0.875 | J30: 0.91 | K30: 0.97 | N30: =Labels!E27 -> 0 | O30: 0.75 | P30: 0.78 | Q30: 0.8112
B31: =Labels!E28 -> 0 | C31: 0.8 | D31: 0.85 | E31: 0.96 | H31: =Labels!E28 -> 0 | I31: 0.7 | J31: 0.8 | K31: 0.95 | N31: =Labels!E28 -> 0 | O31: 0.6 | P31: 0.75 | Q31: 0.9
B32: =Labels!E29 -> 0 | C32: 0.8856836069 | D32: 0.9428418034 | E32: 1 | H32: =Labels!E29 -> 0 | I32: 0.7713672137 | J32: 0.8856836069 | K32: 1 | N32: =Labels!E29 -> 0 | O32: 0.5427344275 | P32: 0.7713672137 | Q32: 1
B33: =Labels!E30 -> 0 | C33: 0.75 | D33: 0.93 | E33: 1 | H33: =Labels!E30 -> 0 | I33: 0.5 | J33: 0.85 | K33: 0.95 | N33: =Labels!E30 -> 0 | O33: 0.2 | P33: 0.6 | Q33: 0.8
B34: =Labels!E31 -> 0 | C34: 0.75 | D34: 0.8 | E34: 0.97 | H34: =Labels!E31 -> 0 | I34: 0.65 | J34: 0.75 | K34: 0.95 | N34: =Labels!E31 -> 0 | O34: 0.55 | P34: 0.7 | Q34: 0.935
B35: =Labels!E32 -> 0 | C35: 0.75 | D35: 0.8 | E35: 0.97 | H35: =Labels!E32 -> 0 | I35: 0.65 | J35: 0.75 | K35: 0.95 | N35: =Labels!E32 -> 0 | O35: 0.55 | P35: 0.7 | Q35: 0.935
B36: =Labels!E33 -> 0 | C36: 0.7 | D36: 0.85 | E36: 1 | H36: =Labels!E33 -> 0 | I36: 0.65 | J36: 0.8 | K36: 1 | N36: =Labels!E33 -> 0 | O36: 0.55 | P36: 0.7 | Q36: 1
B37: =Labels!E34 -> 0 | C37: 0.95 | D37: 1 | E37: 1 | H37: =Labels!E34 -> 0 | I37: 0.9 | J37: 0.98 | K37: 1 | N37: =Labels!E34 -> 0 | O37: 0.85 | P37: 0.95 | Q37: 1
B38: =Labels!E35 -> 0 | C38: 0.85 | D38: 1 | E38: 1 | H38: =Labels!E35 -> 0 | I38: 0.7 | J38: 0.95 | K38: 1 | N38: =Labels!E35 -> 0 | O38: 0.5 | P38: 0.8 | Q38: 1
B39: =Labels!E36 -> 0 | C39: 0.9375 | D39: 1 | E39: 1 | H39: =Labels!E36 -> 0 | I39: 0.9134615385 | J39: 0.9865384615 | K39: 1 | N39: =Labels!E36 -> 0 | O39: 0.9125 | P39: 0.9671052632 | Q39: 0.9953947368
B40: =Labels!E37 -> 0 | C40: 1 | D40: 1 | E40: 1 | H40: =Labels!E37 -> 0 | I40: 1 | J40: 1 | K40: 1 | N40: =Labels!E37 -> 0 | O40: 1 | P40: 1 | Q40: 1
B41: =Labels!E38 -> 0 | C41: 1.27 | D41: 1.1 | E41: 1.1 | H41: =Labels!E38 -> 0 | I41: 1.4 | J41: 1.2 | K41: 1 | N41: =Labels!E38 -> 0 | O41: 1.3 | P41: 1.2 | Q41: 1.1
B42: =Labels!E39 -> 0 | C42: 0.85 | D42: 1 | E42: 1 | H42: =Labels!E39 -> 0 | I42: 0.6 | J42: 0.92 | K42: 1 | N42: =Labels!E39 -> 0 | O42: 0.5 | P42: 0.85 | Q42: 1
B43: =Labels!E40 -> 0 | C43: 1 | D43: 1 | E43: 1 | H43: =Labels!E40 -> 0 | I43: 1 | J43: 1 | K43: 1 | N43: =Labels!E40 -> 0 | O43: 1 | P43: 1 | Q43: 1
B44: =Labels!E41 -> 0 | C44: 1 | D44: 1 | E44: 1 | H44: =Labels!E41 -> 0 | I44: 1 | J44: 1 | K44: 1 | N44: =Labels!E41 -> 0 | O44: 1 | P44: 1 | Q44: 1
I49: 0 | J49: 1 | K49: 2 | O49: 0 | P49: 1 | Q49: 2
B50: =Labels!E23 -> 0 | C50: 0.94 | D50: 0.9776 | E50: 1 | H50: =Labels!E23 -> 0 | I50: 0.91 | J50: 0.9464 | K50: 0.984256 | N50: =Labels!E23 -> 0 | O50: 0.77 | P50: 0.8 | Q50: 0.88
B51: =Labels!E24 -> 0 | C51: 0.55 | D51: 0.75 | E51: 0.95 | H51: =Labels!E24 -> 0 | I51: 0.5 | J51: 0.7 | K51: 0.84 | N51: =Labels!E24 -> 0 | O51: 0.45 | P51: 0.65 | Q51: 0.71
B52: =Labels!E25 -> 0 | C52: 0.55 | D52: 0.8 | E52: 0.95 | H52: =Labels!E25 -> 0 | I52: 0.35 | J52: 0.75 | K52: 0.93 | N52: =Labels!E25 -> 0 | O52: 0.2 | P52: 0.65 | Q52: 0.85
B53: =Labels!E26 -> 0 | C53: 0.63 | D53: 1 | E53: 1 | H53: =Labels!E26 -> 0 | I53: 0.44 | J53: 0.91 | K53: 1 | N53: =Labels!E26 -> 0 | O53: 0.31 | P53: 0.54 | Q53: 0.94
B54: =Labels!E27 -> 0 | C54: 0.9375 | D54: 1 | E54: 1 | H54: =Labels!E27 -> 0 | I54: 0.875 | J54: 0.91 | K54: 0.97 | N54: =Labels!E27 -> 0 | O54: 0.73 | P54: 0.74 | Q54: 0.78
B55: =Labels!E28 -> 0 | C55: 0.7 | D55: 0.85 | E55: 0.96 | H55: =Labels!E28 -> 0 | I55: 0.6 | J55: 0.8 | K55: 0.95 | N55: =Labels!E28 -> 0 | O55: 0.5 | P55: 0.7 | Q55: 0.88
B56: =Labels!E29 -> 0 | C56: 0.8450731977 | D56: 0.9225365988 | E56: 1 | H56: =Labels!E29 -> 0 | I56: 0.6901463953 | J56: 0.8450731977 | K56: 1 | N56: =Labels!E29 -> 0 | O56: 0.3802927907 | P56: 0.6901463953 | Q56: 1
B57: =Labels!E30 -> 0 | C57: 0.5 | D57: 0.75 | E57: 0.95 | H57: =Labels!E30 -> 0 | I57: 0.15 | J57: 0.65 | K57: 0.85 | N57: =Labels!E30 -> 0 | O57: 0.05 | P57: 0.5 | Q57: 0.75
B58: =Labels!E31 -> 0 | C58: 0.65 | D58: 0.75 | E58: 0.95 | H58: =Labels!E31 -> 0 | I58: 0.55 | J58: 0.65 | K58: 0.935 | N58: =Labels!E31 -> 0 | O58: 0.45 | P58: 0.55 | Q58: 0.91
B59: =Labels!E32 -> 0 | C59: 0.65 | D59: 0.75 | E59: 0.95 | H59: =Labels!E32 -> 0 | I59: 0.55 | J59: 0.65 | K59: 0.935 | N59: =Labels!E32 -> 0 | O59: 0.45 | P59: 0.55 | Q59: 0.91
B60: =Labels!E33 -> 0 | C60: 0.55 | D60: 0.7 | E60: 1 | H60: =Labels!E33 -> 0 | I60: 0.5 | J60: 0.65 | K60: 1 | N60: =Labels!E33 -> 0 | O60: 0.4 | P60: 0.55 | Q60: 0.95
B61: =Labels!E34 -> 0 | C61: 0.925 | D61: 0.975 | E61: 1 | H61: =Labels!E34 -> 0 | I61: 0.85 | J61: 0.95 | K61: 1 | N61: =Labels!E34 -> 0 | O61: 0.8 | P61: 0.9 | Q61: 1
B62: =Labels!E35 -> 0 | C62: 0.75 | D62: 1 | E62: 1 | H62: =Labels!E35 -> 0 | I62: 0.65 | J62: 0.95 | K62: 1 | N62: =Labels!E35 -> 0 | O62: 0.5 | P62: 0.85 | Q62: 1
B63: =Labels!E36 -> 0 | C63: 0.875 | D63: 1 | E63: 1 | H63: =Labels!E36 -> 0 | I63: 0.8269230769 | J63: 0.9730769231 | K63: 1 | N63: =Labels!E36 -> 0 | O63: 0.8125 | P63: 0.9013157895 | Q63: 0.9861842105
B64: =Labels!E37 -> 0 | C64: 0.98 | D64: 0.99 | E64: 1 | H64: =Labels!E37 -> 0 | I64: 0.95 | J64: 0.97 | K64: 1 | N64: =Labels!E37 -> 0 | O64: 0.9 | P64: 0.95 | Q64: 1
B65: =Labels!E38 -> 0 | C65: 1.27 | D65: 1.1 | E65: 1.1 | H65: =Labels!E38 -> 0 | I65: 1.35 | J65: 1.15 | K65: 1 | N65: =Labels!E38 -> 0 | O65: 1.25 | P65: 1.15 | Q65: 1
B66: =Labels!E39 -> 0 | C66: 0.775 | D66: 1 | E66: 1 | H66: =Labels!E39 -> 0 | I66: 0.55 | J66: 0.9 | K66: 1 | N66: =Labels!E39 -> 0 | O66: 0.35 | P66: 0.8 | Q66: 1
B67: =Labels!E40 -> 0 | C67: 1 | D67: 1 | E67: 1 | H67: =Labels!E40 -> 0 | I67: 1 | J67: 1 | K67: 1 | N67: =Labels!E40 -> 0 | O67: 1 | P67: 1 | Q67: 1
B68: =Labels!E41 -> 0 | C68: 1 | D68: 1 | E68: 1 | H68: =Labels!E41 -> 0 | I68: 1 | J68: 1 | K68: 1 | N68: =Labels!E41 -> 0 | O68: 1 | P68: 1 | Q68: 1

Sheet Earthquake (hidden)
A2: light | B2: 3 month | H2: 6 month | N2: 12 month
A3: 0 | B3: Agriculture and forestry | C3: 0.9925 | D3: 0.9924 | E3: 0.9848 | H3: Agriculture and forestry | I3: 0.958 | J3: 0.9366 | K3: 0.9425 | N3: Agriculture and forestry | O3: 0.664 | P3: 0.4928 | Q3: 0.54 | U3: =O3-(1-O3)*3 -> -0.344 | V3: =P3-(1-P3)*3 -> -1.0288 | W3: =Q3-(1-Q3)*3 -> -0.84 | Z3: 0.916 | AA3: 0.8732 | AB3: 0.885
A4: 1 | B4: Fishing and fish processing on board | C4: 0.9925 | D4: 0.9924 | E4: 0.9848 | H4: Fishing and fish processing on board | I4: 0.958 | J4: 0.9366 | K4: 0.9425 | N4: Fishing and fish processing on board | O4: 0.664 | P4: 0.4928 | Q4: 0.54 | U4: =O4-(1-O4)*3 -> -0.344 | V4: -1.0288 | W4: -0.84 | Z4: 0.916 | AA4: 0.8732 | AB4: 0.885
A5: 2 | B5: Mining and quarrying | C5: 0.9445 | D5: 0.9497 | E5: 0.9331 | H5: Mining and quarrying | I5: 0.9166 | J5: 0.9113 | K5: 0.9192 | N5: Mining and quarrying | O5: 0.5328 | P5: 0.4904 | Q5: 0.5536 | U5: -0.8688 | V5: -1.0384 | W5: -0.7856 | Z5: 0.8832 | AA5: 0.8726 | AB5: 0.8884
A6: 3 | B6: Manufacturing | C6: 0.9945 | D6: 0.9997 | E6: 0.9831 | H6: Manufacturing | I6: 0.9916 | J6: 0.9863 | K6: 0.9942 | N6: Manufacturing | O6: 0.9328 | P6: 0.8904 | Q6: 0.9536 | U6: 0.7312 | V6: 0.5616 | W6: 0.8144 | Z6: 0.9832 | AA6: 0.9726 | AB6: 0.9884
A7: 4 | B7: Electricity and water | C7: 0.9945 | D7: 0.9997 | E7: 0.9831 | H7: Electricity and water | I7: 0.9916 | J7: 0.9863 | K7: 0.9942 | N7: Electricity and water | O7: 0.85 | P7: 0.8904 | Q7: 0.9536 | U7: 0.4 | V7: 0.5616 | W7: 0.8144 | Z7: 0.9832 | AA7: 0.9726 | AB7: 0.9884
A8: 5 | B8: Construction | C8: 0.9945 | D8: 0.9997 | E8: 0.9831 | H8: Construction | I8: 0.9916 | J8: 0.9863 | K8: 0.9942 | N8: Construction | O8: 0.9328 | P8: 0.8904 | Q8: 0.9536 | U8: 0.7312 | V8: 0.5616 | W8: 0.8144 | Z8: 0.9832 | AA8: 0.9726 | AB8: 0.9884
A9: 6 | B9: Wholesale and retail trade, repairs | C9: 0.9945 | D9: 0.9997 | E9: 0.9831 | H9: Wholesale and retail trade, repairs | I9: 0.9916 | J9: 0.9863 | K9: 0.9942 | N9: Wholesale and retail trade, repairs | O9: 0.9328 | P9: 0.8904 | Q9: 0.9536 | U9: 0.7312 | V9: 0.5616 | W9: 0.8144 | Z9: 0.9832 | AA9: 0.9726 | AB9: 0.9884
A10: 7 | B10: Hotels and restaurants | C10: 0.9945 | D10: 0.9997 | E10: 0.9831 | H10: Hotels and restaurants | I10: 0.9916 | J10: 0.9863 | K10: 0.9942 | N10: Hotels and restaurants | O10: 0.8 | P10: 0.7 | Q10: 0.9536 | U10: 0.8 | V10: 0.7 | W10: 0.8144 | Z10: 0.9832 | AA10: 0.9726 | AB10: 0.9884
A11: 8 | B11: Transport | C11: 0.9945 | D11: 0.9997 | E11: 0.9831 | H11: Transport | I11: 0.9916 | J11: 0.9863 | K11: 0.9942 | N11: Transport | O11: 0.75 | P11: 0.85 | Q11: 1 | U11: 0.75 | V11: 0.85 | W11: 1 | Z11: 0.9832 | AA11: 0.9726 | AB11: 0.9884
A12: 9 | B12: Communication | C12: 0.9945 | D12: 0.9997 | E12: 0.9831 | H12: Communication | I12: 0.9916 | J12: 0.9863 | K12: 0.9942 | N12: Communication | O12: 0.9328 | P12: 0.8904 | Q12: 1 | U12: =O12-(1-O12)*3 -> 0.7312 | V12: =P12-(1-P12)*3 -> 0.5616 | W12: 1 | Z12: 0.9832 | AA12: 0.9726 | AB12: 0.9884
A13: 10 | B13: Financial intermediation | C13: 0.9945 | D13: 0.9997 | E13: 0.9831 | H13: Financial intermediation | I13: 0.9916 | J13: 0.9863 | K13: 0.9942 | N13: Financial intermediation | O13: 0.9328 | P13: 0.8904 | Q13: 1 | U13: 0.7312 | V13: 0.5616 | W13: 1 | Z13: 0.9832 | AA13: 0.9726 | AB13: 0.9884
A14: 11 | B14: Real estate and business services | C14: 0.9945 | D14: 0.9997 | E14: 0.9831 | H14: Real estate and business services | I14: 0.9916 | J14: 0.9863 | K14: 0.9942 | N14: Real estate and business services | O14: 0.9328 | P14: 0.8904 | Q14: 1 | U14: 0.7312 | V14: 0.5616 | W14: 1 | Z14: 0.9832 | AA14: 0.9726 | AB14: 0.9884
A15: 12 | B15: Community, social and personal service activities | C15: 0.9945 | D15: 0.9997 | E15: 0.9831 | H15: Community, social and personal service activities | I15: 0.9916 | J15: 0.9863 | K15: 0.9942 | N15: Community, social and personal service activities | O15: 0.9328 | P15: 0.8904 | Q15: 1 | U15: 0.7312 | V15: 0.5616 | W15: 1 | Z15: 0.9832 | AA15: 0.9726 | AB15: 0.9884
A16: 13 | B16: Public administration and defence | C16: 0.9845 | D16: 0.9897 | E16: 0.9731 | H16: Public administration and defence | I16: 0.9716 | J16: 0.9663 | K16: 0.9742 | N16: Public administration and defence | O16: 0.8128 | P16: 0.7704 | Q16: 0.8336 | U16: 0.2512 | V16: 0.0816 | W16: =Q16-(1-Q16)*3 -> 0.3344 | Z16: 0.9532 | AA16: 0.9426 | AB16: 0.9584
A17: 14 | B17: Education | C17: 0.9945 | D17: 0.9997 | E17: 0.9831 | H17: Education | I17: 0.9916 | J17: 0.9863 | K17: 0.9942 | N17: Education | O17: 0.9328 | P17: 0.8904 | Q17: 0.9536 | U17: 0.7312 | V17: 0.5616 | W17: 0.8144 | Z17: 0.9832 | AA17: 0.9726 | AB17: 0.9884
A18: 15 | B18: Health | C18: 0.9845 | D18: 0.9897 | E18: 0.9731 | H18: Health | I18: 0.9716 | J18: 0.9663 | K18: 0.9742 | N18: Health | O18: 0.8128 | P18: 0.7704 | Q18: 0.8336 | U18: 0.2512 | V18: 0.0816 | W18: 0.3344 | Z18: 0.9532 | AA18: 0.9426 | AB18: 0.9584
A19: 16 | B19: Private household with employed persons | C19: 0.9845 | D19: 0.9897 | E19: 0.9731 | H19: Private household with employed persons | I19: 0.9716 | J19: 0.9663 | K19: 0.9742 | N19: Private household with employed persons | O19: 0.8128 | P19: 0.7704 | Q19: 0.8336 | U19: 0.2512 | V19: 0.0816 | W19: 0.3344 | Z19: 0.9532 | AA19: 0.9426 | AB19: 0.9584
A20: 17 | B20: Financial intermediation services indirectly measured | C20: 1 | D20: 1 | E20: 1 | H20: Financial intermediation services indirectly measured | I20: 1 | J20: 1 | K20: 1 | N20: Financial intermediation services indirectly measured | O20: 1 | P20: 1 | Q20: 1 | U20: 1 | V20: 1 | W20: 1 | Z20: 1 | AA20: 1 | AB20: 1
A21: 18 | B21: Less subsidies on products | C21: 1 | D21: 1 | E21: 1 | H21: Less subsidies on products | I21: 1 | J21: 1 | K21: 1 | N21: Less subsidies on products | O21: 1 | P21: 1 | Q21: 1 | U21: 1 | V21: 1 | W21: 1 | Z21: 1 | AA21: 1 | AB21: 1
A25: Medium
A26: 0 | B26: Agriculture and forestry | C26: 1.0025 | D26: 1.0024 | E26: 0.9948 | H26: Agriculture and forestry | I26: 0.988 | J26: 0.9666 | K26: 0.9725 | N26: Agriculture and forestry | O26: 0.784 | P26: 0.6128 | Q26: 0.66 | U26: =O26-(1-O26)*3 -> 0.136 | V26: =P26-(1-P26)*3 -> -0.5488 | W26: =Q26-(1-Q26)*3 -> -0.36 | Z26: 0.946 | AA26: 0.9032 | AB26: 0.915
A27: 1 | B27: Fishing and fish processing on board | C27: 1.0025 | D27: 1.0024 | E27: 0.9948 | H27: Fishing and fish processing on board | I27: 0.988 | J27: 0.9666 | K27: 0.9725 | N27: Fishing and fish processing on board | O27: 0.784 | P27: 0.6128 | Q27: 0.66 | U27: =O27-(1-O27)*3 -> 0.136 | V27: -0.5488 | W27: -0.36 | Z27: 0.946 | AA27: 0.9032 | AB27: 0.915
A28: 2 | B28: Mining and quarrying | C28: 0.9545 | D28: 0.9597 | E28: 0.9431 | H28: Mining and quarrying | I28: 0.9266 | J28: 0.9213 | K28: 0.9292 | N28: Mining and quarrying | O28: 0.5728 | P28: 0.5304 | Q28: 0.5936 | U28: -0.7088 | V28: -0.8784 | W28: -0.6256 | Z28: 0.8932 | AA28: 0.8826 | AB28: 0.8984
A29: 3 | B29: Manufacturing | C29: 1.0045 | D29: 1.0097 | E29: 0.9931 | H29: Manufacturing | I29: 1.0016 | J29: 0.9963 | K29: 1.0042 | N29: Manufacturing | O29: 0.9728 | P29: 0.9304 | Q29: 0.9936 | U29: 0.8912 | V29: 0.7216 | W29: 0.9744 | Z29: 0.9932 | AA29: 0.9826 | AB29: 0.9984
A30: 4 | B30: Electricity and water | C30: 1.0045 | D30: 1.0097 | E30: 0.9931 | H30: Electricity and water | I30: 1.0016 | J30: 0.9963 | K30: 1.0042 | N30: Electricity and water | O30: 0.9728 | P30: 0.9304 | Q30: 0.9936 | U30: 0.8912 | V30: 0.7216 | W30: 0.9744 | Z30: 0.9932 | AA30: 0.9826 | AB30: 0.9984
A31: 5 | B31: Construction | C31: 1.0045 | D31: 1.0097 | E31: 0.9931 | H31: Construction | I31: 1.0016 | J31: 0.9963 | K31: 1.0042 | N31: Construction | O31: 0.9728 | P31: 0.9304 | Q31: 0.9936 | U31: 0.8912 | V31: 0.7216 | W31: 0.9744 | Z31: 0.9932 | AA31: 0.9826 | AB31: 0.9984
A32: 6 | B32: Wholesale and retail trade, repairs | C32: 1.0045 | D32: 1.0097 | E32: 0.9931 | H32: Wholesale and retail trade, repairs | I32: 1.0016 | J32: 0.9963 | K32: 1.0042 | N32: Wholesale and retail trade, repairs | O32: 0.9728 | P32: 0.9304 | Q32: 0.9936 | U32: 0.8912 | V32: 0.7216 | W32: 0.9744 | Z32: 0.9932 | AA32: 0.9826 | AB32: 0.9984
A33: 7 | B33: Hotels and restaurants | C33: 1.0045 | D33: 1.0097 | E33: 0.9931 | H33: Hotels and restaurants | I33: 1.0016 | J33: 0.9963 | K33: 1.0042 | N33: Hotels and restaurants | O33: 0.85 | P33: 0.75 | Q33: 0.9936 | U33: 0.85 | V33: 0.75 | W33: 0.9744 | Z33: 0.9932 | AA33: 0.9826 | AB33: 0.9984
A34: 8 | B34: Transport | C34: 1.0045 | D34: 1.0097 | E34: 0.9931 | H34: Transport | I34: 1.0016 | J34: 0.9963 | K34: 1.0042 | N34: Transport | O34: 0.8 | P34: 0.85 | Q34: 1 | U34: 0.8 | V34: 0.85 | W34: 1 | Z34: 0.9932 | AA34: 0.9826 | AB34: 0.9984
A35: 9 | B35: Communication | C35: 1.0045 | D35: 1.0097 | E35: 0.9931 | H35: Communication | I35: 1.0016 | J35: 0.9963 | K35: 1.0042 | N35: Communication | O35: 0.9728 | P35: 0.9304 | Q35: 1 | U35: =O35-(1-O35)*3 -> 0.8912 | V35: =P35-(1-P35)*3 -> 0.7216 | W35: 1 | Z35: 0.9932 | AA35: 0.9826 | AB35: 0.9984
A36: 10 | B36: Financial intermediation | C36: 1.0045 | D36: 1.0097 | E36: 0.9931 | H36: Financial intermediation | I36: 1.0016 | J36: 0.9963 | K36: 1.0042 | N36: Financial intermediation | O36: 0.9728 | P36: 0.9304 | Q36: 1 | U36: 0.8912 | V36: 0.7216 | W36: 1 | Z36: 0.9932 | AA36: 0.9826 | AB36: 0.9984
A37: 11 | B37: Real estate and business services | C37: 1.0045 | D37: 1.0097 | E37: 0.9931 | H37: Real estate and business services | I37: 1.0016 | J37: 0.9963 | K37: 1.0042 | N37: Real estate and business services | O37: 0.9728 | P37: 0.9304 | Q37: 1 | U37: 0.8912 | V37: 0.7216 | W37: 1 | Z37: 0.9932 | AA37: 0.9826 | AB37: 0.9984
A38: 12 | B38: Community, social and personal service activities | C38: 1.0045 | D38: 1.0097 | E38: 0.9931 | H38: Community, social and personal service activities | I38: 1.0016 | J38: 0.9963 | K38: 1.0042 | N38: Community, social and personal service activities | O38: 0.9728 | P38: 0.9304 | Q38: 1 | U38: 0.8912 | V38: 0.7216 | W38: 1 | Z38: 0.9932 | AA38: 0.9826 | AB38: 0.9984
A39: 13 | B39: Public administration and defence | C39: 0.9945 | D39: 0.9997 | E39: 0.9831 | H39: Public administration and defence | I39: 0.9816 | J39: 0.9763 | K39: 0.9842 | N39: Public administration and defence | O39: 0.8528 | P39: 0.8104 | Q39: 0.8736 | U39: 0.4112 | V39: 0.2416 | W39: =Q39-(1-Q39)*3 -> 0.4944 | Z39: 0.9632 | AA39: 0.9526 | AB39: 0.9684
A40: 14 | B40: Education | C40: 1.0045 | D40: 1.0097 | E40: 0.9931 | H40: Education | I40: 1.0016 | J40: 0.9963 | K40: 1.0042 | N40: Education | O40: 0.9728 | P40: 0.9304 | Q40: 0.9936 | U40: 0.8912 | V40: 0.7216 | W40: 0.9744 | Z40: 0.9932 | AA40: 0.9826 | AB40: 0.9984
A41: 15 | B41: Health | C41: 0.9945 | D41: 0.9997 | E41: 0.9831 | H41: Health | I41: 0.9816 | J41: 0.9763 | K41: 0.9842 | N41: Health | O41: 0.8528 | P41: 0.8104 | Q41: 0.8736 | U41: 0.4112 | V41: 0.2416 | W41: 0.4944 | Z41: 0.9632 | AA41: 0.9526 | AB41: 0.9684
A42: 16 | B42: Private household with employed persons | C42: 0.9945 | D42: 0.9997 | E42: 0.9831 | H42: Private household with employed persons | I42: 0.9816 | J42: 0.9763 | K42: 0.9842 | N42: Private household with employed persons | O42: 0.8528 | P42: 0.8104 | Q42: 0.8736 | U42: 0.4112 | V42: 0.2416 | W42: 0.4944 | Z42: 0.9632 | AA42: 0.9526 | AB42: 0.9684
A43: 17 | B43: Financial intermediation services indirectly measured | C43: 1 | D43: 1 | E43: 1 | H43: Financial intermediation services indirectly measured | I43: 1 | J43: 1 | K43: 1 | N43: Financial intermediation services indirectly measured | O43: 1 | P43: 1 | Q43: 1 | U43: 1 | V43: 1 | W43: 1 | Z43: 1 | AA43: 1 | AB43: 1
A44: 18 | B44: Less subsidies on products | C44: 1 | D44: 1 | E44: 1 | H44: Less subsidies on products | I44: 1 | J44: 1 | K44: 1 | N44: Less subsidies on products | O44: 1 | P44: 1 | Q44: 1 | U44: 1 | V44: 1 | W44: 1 | Z44: 1 | AA44: 1 | AB44: 1
A49: High
A50: 0 | B50: Agriculture and forestry | C50: 1.00091 | D50: 1.00081 | E50: 0.99321 | H50: Agriculture and forestry | I50: 0.98641 | J50: 0.96501 | K50: 0.97091 | N50: Agriculture and forestry | O50: 0.87764 | P50: 0.70644 | Q50: 0.85364 | U50: =O50-(1-O50)*3 -> 0.51056 | V50: =P50-(1-P50)*3 -> -0.17424 | W50: 0.41456 | Z50: 0.94441 | AA50: 0.90161 | AB50: 0.91341
A51: 1 | B51: Fishing and fish processing on board | C51: 1.00091 | D51: 1.00081 | E51: 0.99321 | H51: Fishing and fish processing on board | I51: 0.98641 | J51: 0.96501 | K51: 0.97091 | N51: Fishing and fish processing on board | O51: 0.87764 | P51: 0.70644 | Q51: 0.85364 | U51: =O51-(1-O51)*3 -> 0.51056 | V51: -0.17424 | W51: 0.41456 | Z51: 0.94441 | AA51: 0.90161 | AB51: 0.91341
A52: 2 | B52: Mining and quarrying | C52: 0.95938 | D52: 0.96458 | E52: 0.94798 | H52: Mining and quarrying | I52: 0.93148 | J52: 0.92618 | K52: 0.93408 | N52: Mining and quarrying | O52: 0.69232 | P52: 0.59992 | Q52: 0.71312 | U52: -0.23072 | V52: -0.60032 | W52: -0.14752 | Z52: 0.89808 | AA52: 0.88748 | AB52: 0.90328
A53: 3 | B53: Manufacturing | C53: 1.00938 | D53: 1.01458 | E53: 0.99798 | H53: Manufacturing | I53: 1.00648 | J53: 1.00118 | K53: 1.00908 | N53: Manufacturing | O53: 0.99232 | P53: 0.94992 | Q53: 1.01312 | U53: 0.96928 | V53: 0.79968 | W53: 1.05248 | Z53: 0.99808 | AA53: 0.98748 | AB53: 1.00328
A54: 4 | B54: Electricity and water | C54: 1.00938 | D54: 1.01458 | E54: 0.99798 | H54: Electricity and water | I54: 1.00648 | J54: 1.00118 | K54: 1.00908 | N54: Electricity and water | O54: 0.99232 | P54: 0.94992 | Q54: 1.01312 | U54: 0.96928 | V54: 0.79968 | W54: 1.05248 | Z54: 0.99808 | AA54: 0.98748 | AB54: 1.00328
A55: 5 | B55: Construction | C55: 1.00938 | D55: 1.01458 | E55: 0.99798 | H55: Construction | I55: 1.00648 | J55: 1.00118 | K55: 1.00908 | N55: Construction | O55: 0.99232 | P55: 0.94992 | Q55: 1.01312 | U55: 0.96928 | V55: 0.79968 | W55: 1.05248 | Z55: 0.99808 | AA55: 0.98748 | AB55: 1.00328
A56: 6 | B56: Wholesale and retail trade, repairs | C56: 1.00938 | D56: 1.01458 | E56: 0.99798 | H56: Wholesale and retail trade, repairs | I56: 1.00648 | J56: 1.00118 | K56: 1.00908 | N56: Wholesale and retail trade, repairs | O56: 0.99232 | P56: 0.94992 | Q56: 1.01312 | U56: 0.96928 | V56: 0.79968 | W56: 1.05248 | Z56: 0.99808 | AA56: 0.98748 | AB56: 1.00328
A57: 7 | B57: Hotels and restaurants | C57: 1.00938 | D57: 1.01458 | E57: 0.99798 | H57: Hotels and restaurants | I57: 1.00648 | J57: 1.00118 | K57: 1.00908 | N57: Hotels and restaurants | O57: 0.9 | P57: 0.8 | Q57: 1.01312 | U57: 0.9 | V57: 0.8 | W57: 1.05248 | Z57: 0.99808 | AA57: 0.98748 | AB57: 1.00328
A58: 8 | B58: Transport | C58: 1.00938 | D58: 1.01458 | E58: 0.99798 | H58: Transport | I58: 1.00648 | J58: 1.00118 | K58: 1.00908 | N58: Transport | O58: 0.85 | P58: 0.9 | Q58: 1 | U58: 0.85 | V58: 0.9 | W58: 1 | Z58: 0.99808 | AA58: 0.98748 | AB58: 1.00328
A59: 9 | B59: Communication | C59: 1.00938 | D59: 1.01458 | E59: 0.99798 | H59: Communication | I59: 1.00648 | J59: 1.00118 | K59: 1.00908 | N59: Communication | O59: 0.99232 | P59: 0.94992 | Q59: 1 | U59: 0.96928 | V59: 0.79968 | W59: 1 | Z59: 0.99808 | AA59: 0.98748 | AB59: 1.00328
A60: 10 | B60: Financial intermediation | C60: 1.00938 | D60: 1.01458 | E60: 0.99798 | H60: Financial intermediation | I60: 1.00648 | J60: 1.00118 | K60: 1.00908 | N60: Financial intermediation | O60: 0.99232 | P60: 0.94992 | Q60: 1 | U60: 0.96928 | V60: 0.79968 | W60: 1 | Z60: 0.99808 | AA60: 0.98748 | AB60: 1.00328
A61: 11 | B61: Real estate and business services | C61: 1.00938 | D61: 1.01458 | E61: 0.99798 | H61: Real estate and business services | I61: 1.00648 | J61: 1.00118 | K61: 1.00908 | N61: Real estate and business services | O61: 0.99232 | P61: 0.94992 | Q61: 1 | U61: 0.96928 | V61: 0.79968 | W61: 1 | Z61: 0.99808 | AA61: 0.98748 | AB61: 1.00328
A62: 12 | B62: Community, social and personal service activities | C62: 1.00938 | D62: 1.01458 | E62: 0.99798 | H62: Community, social and personal service activities | I62: 1.00648 | J62: 1.00118 | K62: 1.00908 | N62: Community, social and personal service activities | O62: 0.99232 | P62: 0.94992 | Q62: 1 | U62: 0.96928 | V62: 0.79968 | W62: 1 | Z62: 0.99808 | AA62: 0.98748 | AB62: 1.00328
A63: 13 | B63: Public administration and defence | C63: 0.98929 | D63: 0.99449 | E63: 0.97789 | H63: Public administration and defence | I63: 0.97639 | J63: 0.97109 | K63: 0.97899 | N63: Public administration and defence | O63: 0.83196 | P63: 0.78956 | Q63: 0.85276 | U63: 0.32784 | V63: 0.15824 | W63: 0.41104 | Z63: 0.95799 | AA63: 0.94739 | AB63: 0.96319
A64: 14 | B64: Education | C64: 0.99929 | D64: 1.00449 | E64: 0.98789 | H64: Education | I64: 0.99639 | J64: 0.99109 | K64: 0.99899 | N64: Education | O64: 0.95196 | P64: 0.90956 | Q64: 0.97276 | U64: 0.80784 | V64: 0.63824 | W64: 0.89104 | Z64: 0.98799 | AA64: 0.97739 | AB64: 0.99319
A65: 15 | B65: Health | C65: 0.98929 | D65: 0.99449 | E65: 0.97789 | H65: Health | I65: 0.97639 | J65: 0.97109 | K65: 0.97899 | N65: Health | O65: 0.83196 | P65: 0.78956 | Q65: 0.85276 | U65: 0.32784 | V65: 0.15824 | W65: 0.41104 | Z65: 0.95799 | AA65: 0.94739 | AB65: 0.96319
A66: 16 | B66: Private household with employed persons | C66: 0.98929 | D66: 0.99449 | E66: 0.97789 | H66: Private household with employed persons | I66: 0.97639 | J66: 0.97109 | K66: 0.97899 | N66: Private household with employed persons | O66: 0.83196 | P66: 0.78956 | Q66: 0.85276 | U66: 0.32784 | V66: =P66-(1-P66)*3 -> 0.15824 | W66: =Q66-(1-Q66)*3 -> 0.41104 | Z66: 0.95799 | AA66: 0.94739 | AB66: 0.96319
A67: 17 | B67: Financial intermediation services indirectly measured | C67: 1 | D67: 1 | E67: 1 | H67: Financial intermediation services indirectly measured | I67: 1 | J67: 1 | K67: 1 | N67: Financial intermediation services indirectly measured | O67: 1 | P67: 1 | Q67: 1 | U67: 1 | V67: 1 | W67: 1 | Z67: 1 | AA67: 1 | AB67: 1
A68: 18 | B68: Less subsidies on products | C68: 1 | D68: 1 | E68: 1 | H68: Less subsidies on products | I68: 1 | J68: 1 | K68: 1 | N68: Less subsidies on products | O68: 1 | P68: 1 | Q68: 1 | U68: 1 | V68: 1 | W68: 1 | Z68: 1 | AA68: 1 | AB68: 1

Sheet Drought (hidden)
A2: light | B2: 3 month | H2: 6 month | N2: 12 month
A3: 0 | B3: Agriculture and forestry | C3: 0.9741 | D3: 0.9897 | E3: 0.9909 | H3: Agriculture and forestry | I3: 0.9362 | J3: 1.0315 | K3: 0.982 | N3: Agriculture and forestry | O3: 0.4896 | P3: 1.252 | Q3: 0.856 | T3: =O3-(1-O3)*3 -> -1.0416 | U3: =P3-(1-P3)*3 -> 2.008 | V3: =Q3-(1-Q3)*3 -> 0.424 | Y3: 0.8724 | Z3: 1.063 | AA3: 0.964
A4: 1 | B4: Fishing and fish processing on board | C4: 0.9741 | D4: 0.9897 | E4: 0.9909 | H4: Fishing and fish processing on board | I4: 0.9362 | J4: 1.0315 | K4: 0.982 | N4: Fishing and fish processing on board | O4: 0.4896 | P4: 1.252 | Q4: 0.856 | T4: =O4-(1-O4)*3 -> -1.0416 | U4: 2.008 | V4: 0.424 | Y4: 0.8724 | Z4: 1.063 | AA4: 0.964
A5: 2 | B5: Mining and quarrying | C5: 0.9749 | D5: 0.9721 | E5: 0.9738 | H5: Mining and quarrying | I5: 0.9594 | J5: 0.9713 | K5: 0.9656 | N5: Mining and quarrying | O5: 0.7864 | P5: 0.8578 | Q5: 0.8236 | T5: =O5-(1-O5)*2 -> 0.3592 | U5: =P5-(1-P5)*2 -> 0.5734 | V5: =Q5-(1-Q5)*2 -> 0.4708 | Y5: 0.9288 | Z5: 0.9526 | AA5: 0.9412
A6: 3 | B6: Manufacturing | C6: 0.9849 | D6: 0.9821 | E6: 0.9838 | H6: Manufacturing | I6: 0.9794 | J6: 0.9913 | K6: 0.9856 | N6: Manufacturing | O6: 0.8352 | P6: 0.9304 | Q6: 0.8848 | T6: =O6-(1-O6)*3 -> 0.3408 | U6: =P6-(1-P6)*3 -> 0.7216 | V6: =Q6-(1-Q6)*3 -> 0.5392 | Y6: 0.9588 | Z6: 0.9826 | AA6: 0.9712
A7: 4 | B7: Electricity and water | C7: 0.9849 | D7: 0.9821 | E7: 0.9838 | H7: Electricity and water | I7: 0.9794 | J7: 0.9913 | K7: 0.9856 | N7: Electricity and water | O7: 0.8352 | P7: 0.9304 | Q7: 0.8848 | T7: 0.3408 | U7: 0.7216 | V7: 0.5392 | Y7: 0.9588 | Z7: 0.9826 | AA7: 0.9712
A8: 5 | B8: Construction | C8: 0.9649 | D8: 0.9621 | E8: 0.9638 | H8: Construction | I8: 0.9494 | J8: 0.9613 | K8: 0.9556 | N8: Construction | O8: 0.6752 | P8: 0.7704 | Q8: 0.7248 | T8: -0.2992 | U8: 0.0816 | V8: -0.1008 | Y8: 0.9188 | Z8: 0.9426 | AA8: 0.9312
A9: 6 | B9: Wholesale and retail trade, repairs | C9: 0.9649 | D9: 0.9621 | E9: 0.9638 | H9: Wholesale and retail trade, repairs | I9: 0.9494 | J9: 0.9613 | K9: 0.9556 | N9: Wholesale and retail trade, repairs | O9: 0.6752 | P9: 0.7704 | Q9: 0.7248 | T9: -0.2992 | U9: 0.0816 | V9: -0.1008 | Y9: 0.9188 | Z9: 0.9426 | AA9: 0.9312
A10: 7 | B10: Hotels and restaurants | C10: 0.9849 | D10: 0.9821 | E10: 0.9838 | H10: Hotels and restaurants | I10: 0.9794 | J10: 0.9913 | K10: 0.9856 | N10: Hotels and restaurants | O10: 0.8352 | P10: 0.9304 | Q10: 0.8848 | T10: 0.3408 | U10: 0.7216 | V10: 0.5392 | Y10: 0.9588 | Z10: 0.9826 | AA10: 0.9712
A11: 8 | B11: Transport | C11: 0.9849 | D11: 0.9821 | E11: 0.9838 | H11: Transport | I11: 0.9794 | J11: 0.9913 | K11: 0.9856 | N11: Transport | O11: 0.8352 | P11: 0.9304 | Q11: 0.8848 | T11: 0.3408 | U11: 0.7216 | V11: 0.5392 | Y11: 0.9588 | Z11: 0.9826 | AA11: 0.9712
A12: 9 | B12: Communication | C12: 0.9849 | D12: 0.9821 | E12: 0.9838 | H12: Communication | I12: 0.9794 | J12: 0.9913 | K12: 0.9856 | N12: Communication | O12: 0.8352 | P12: 0.9304 | Q12: 0.8848 | T12: 0.3408 | U12: 0.7216 | V12: 0.5392 | Y12: 0.9588 | Z12: 0.9826 | AA12: 0.9712
A13: 10 | B13: Financial intermediation | C13: 0.9849 | D13: 0.9821 | E13: 0.9838 | H13: Financial intermediation | I13: 0.9794 | J13: 0.9913 | K13: 0.9856 | N13: Financial intermediation | O13: 0.8352 | P13: 0.9304 | Q13: 0.8848 | T13: 0.3408 | U13: 0.7216 | V13: 0.5392 | Y13: 0.9588 | Z13: 0.9826 | AA13: 0.9712
A14: 11 | B14: Real estate and business services | C14: 0.9649 | D14: 0.9621 | E14: 0.9638 | H14: Real estate and business services | I14: 0.9494 | J14: 0.9613 | K14: 0.9556 | N14: Real estate and business services | O14: 0.6752 | P14: 0.7704 | Q14: 0.7248 | T14: -0.2992 | U14: 0.0816 | V14: -0.1008 | Y14: 0.9188 | Z14: 0.9426 | AA14: 0.9312
A15: 12 | B15: Community, social and personal service activities | C15: 0.9849 | D15: 0.9821 | E15: 0.9838 | H15: Community, social and personal service activities | I15: 0.9794 | J15: 0.9913 | K15: 0.9856 | N15: Community, social and personal service activities | O15: 0.8352 | P15: 0.9304 | Q15: 0.8848 | T15: 0.3408 | U15: 0.7216 | V15: 0.5392 | Y15: 0.9588 | Z15: 0.9826 | AA15: 0.9712
A16: 13 | B16: Public administration and defence | C16: 0.9849 | D16: 0.9821 | E16: 0.9838 | H16: Public administration and defence | I16: 0.9794 | J16: 0.9913 | K16: 0.9856 | N16: Public administration and defence | O16: 0.8352 | P16: 0.9304 | Q16: 0.8848 | T16: 0.3408 | U16: 0.7216 | V16: 0.5392 | Y16: 0.9588 | Z16: 0.9826 | AA16: 0.9712
A17: 14 | B17: Education | C17: 0.9949 | D17: 0.9921 | E17: 0.9938 | H17: Education | I17: 0.9894 | J17: 1.0013 | K17: 0.9956 | N17: Education | O17: 0.8752 | P17: 0.9704 | Q17: 0.9248 | T17: 0.5008 | U17: 0.8816 | V17: 0.6992 | Y17: 0.9688 | Z17: 0.9926 | AA17: 0.9812
A18: 15 | B18: Health | C18: 0.9649 | D18: 0.9621 | E18: 0.9638 | H18: Health | I18: 0.9494 | J18: 0.9613 | K18: 0.9556 | N18: Health | O18: 0.6752 | P18: 0.7704 | Q18: 0.7248 | T18: -0.2992 | U18: 0.0816 | V18: -0.1008 | Y18: 0.9188 | Z18: 0.9426 | AA18: 0.9312
A19: 16 | B19: Private household with employed persons | C19: 0.9849 | D19: 0.9821 | E19: 0.9838 | H19: Private household with employed persons | I19: 0.9794 | J19: 0.9913 | K19: 0.9856 | N19: Private household with employed persons | O19: 0.8352 | P19: 0.9304 | Q19: 0.8848 | T19: 0.3408 | U19: 0.7216 | V19: 0.5392 | Y19: 0.9588 | Z19: 0.9826 | AA19: 0.9712
A20: 17 | B20: Financial intermediation services indirectly measured | C20: 1 | D20: 1 | E20: 1 | H20: Financial intermediation services indirectly measured | I20: 1 | J20: 1 | K20: 1 | N20: Financial intermediation services indirectly measured | O20: 1 | P20: 1 | Q20: 1 | T20: 1 | U20: 1 | V20: 1 | Y20: 1 | Z20: 1 | AA20: 1
A21: 18 | B21: Less subsidies on products | C21: 1 | D21: 1 | E21: 1 | H21: Less subsidies on products | I21: 1 | J21: 1 | K21: 1 | N21: Less subsidies on products | O21: 1 | P21: 1 | Q21: 1 | T21: 1 | U21: 1 | V21: 1 | Y21: 1 | Z21: 1 | AA21: 1
A25: Medium
A26: 0 | B26: Agriculture and forestry | C26: 0.9841 | D26: 0.9997 | E26: 1.0009 | H26: Agriculture and forestry | I26: 0.9462 | J26: 1.0415 | K26: 0.992 | N26: Agriculture and forestry | O26: 0.5296 | P26: 1.292 | Q26: 0.896 | T26: =O26-(1-O26)*3 -> -0.8816 | U26: =P26-(1-P26)*3 -> 2.168 | V26: =Q26-(1-Q26)*3 -> 0.584 | Y26: 0.8824 | Z26: 1.073 | AA26: 0.974
A27: 1 | B27: Fishing and fish processing on board | C27: 0.9841 | D27: 0.9997 | E27: 1.0009 | H27: Fishing and fish processing on board | I27: 0.9462 | J27: 1.0415 | K27: 0.992 | N27: Fishing and fish processing on board | O27: 0.5296 | P27: 1.292 | Q27: 0.896 | T27: =O27-(1-O27)*3 -> -0.8816 | U27: 2.168 | V27: 0.584 | Y27: 0.8824 | Z27: 1.073 | AA27: 0.974
A28: 2 | B28: Mining and quarrying | C28: 0.9849 | D28: 0.9821 | E28: 0.9838 | H28: Mining and quarrying | I28: 0.9694 | J28: 0.9813 | K28: 0.9756 | N28: Mining and quarrying | O28: 0.8164 | P28: 0.8878 | Q28: 0.8536 | T28: =O28-(1-O28)*2 -> 0.4492 | U28: =P28-(1-P28)*2 -> 0.6634 | V28: 0.5608 | Y28: 0.9388 | Z28: 0.9626 | AA28: 0.9512
A29: 3 | B29: Manufacturing | C29: 0.9949 | D29: 0.9921 | E29: 0.9938 | H29: Manufacturing | I29: 0.9894 | J29: 1.0013 | K29: 0.9956 | N29: Manufacturing | O29: 0.8752 | P29: 0.9704 | Q29: 0.9248 | T29: 0.5008 | U29: 0.8816 | V29: 0.6992 | Y29: 0.9688 | Z29: 0.9926 | AA29: 0.9812
A30: 4 | B30: Electricity and water | C30: 0.9949 | D30: 0.9921 | E30: 0.9938 | H30: Electricity and water | I30: 0.9894 | J30: 1.0013 | K30: 0.9956 | N30: Electricity and water | O30: 0.8752 | P30: 0.9704 | Q30: 0.9248 | T30: 0.5008 | U30: 0.8816 | V30: 0.6992 | Y30: 0.9688 | Z30: 0.9926 | AA30: 0.9812
A31: 5 | B31: Construction | C31: 1.0049 | D31: 1.0021 | E31: 1.0038 | H31: Construction | I31: 0.9994 | J31: 1.0113 | K31: 1.0056 | N31: Construction | O31: 0.9152 | P31: 1.0104 | Q31: 0.9648 | T31: 0.6608 | U31: 1.0416 | V31: 0.8592 | Y31: 0.9788 | Z31: 1.0026 | AA31: 0.9912
A32: 6 | B32: Wholesale and retail trade, repairs | C32: 0.9949 | D32: 0.9921 | E32: 0.9938 | H32: Wholesale and retail trade, repairs | I32: 0.9894 | J32: 1.0013 | K32: 0.9956 | N32: Wholesale and retail trade, repairs | O32: 0.8752 | P32: 0.9704 | Q32: 0.9248 | T32: 0.5008 | U32: 0.8816 | V32: 0.6992 | Y32: 0.9688 | Z32: 0.9926 | AA32: 0.9812
A33: 7 | B33: Hotels and restaurants | C33: 0.9849 | D33: 0.9821 | E33: 0.9838 | H33: Hotels and restaurants | I33: 0.9694 | J33: 0.9813 | K33: 0.9756 | N33: Hotels and restaurants | O33: 0.7552 | P33: 0.8504 | Q33: 0.8048 | T33: 0.0208 | U33: 0.4016 | V33: 0.2192 | Y33: 0.9388 | Z33: 0.9626 | AA33: 0.9512
A34: 8 | B34: Transport | C34: 0.9849 | D34: 0.9821 | E34: 0.9838 | H34: Transport | I34: 0.9694 | J34: 0.9813 | K34: 0.9756 | N34: Transport | O34: 0.7552 | P34: 0.8504 | Q34: 0.8048 | T34: 0.0208 | U34: 0.4016 | V34: 0.2192 | Y34: 0.9388 | Z34: 0.9626 | AA34: 0.9512
A35: 9 | B35: Communication | C35: 0.9849 | D35: 0.9821 | E35: 0.9838 | H35: Communication | I35: 0.9694 | J35: 0.9813 | K35: 0.9756 | N35: Communication | O35: 0.7552 | P35: 0.8504 | Q35: 0.8048 | T35: 0.0208 | U35: 0.4016 | V35: 0.2192 | Y35: 0.9388 | Z35: 0.9626 | AA35: 0.9512
A36: 10 | B36: Financial intermediation | C36: 0.9849 | D36: 0.9821 | E36: 0.9838 | H36: Financial intermediation | I36: 0.9694 | J36: 0.9813 | K36: 0.9756 | N36: Financial intermediation | O36: 0.7552 | P36: 0.8504 | Q36: 0.8048 | T36: 0.0208 | U36: 0.4016 | V36: 0.2192 | Y36: 0.9388 | Z36: 0.9626 | AA36: 0.9512
A37: 11 | B37: Real estate and business services | C37: 0.9949 | D37: 0.9921 | E37: 0.9938 | H37: Real estate and business services | I37: 0.9894 | J37: 1.0013 | K37: 0.9956 | N37: Real estate and business services | O37: 0.8752 | P37: 0.9704 | Q37: 0.9248 | T37: 0.5008 | U37: 0.8816 | V37: 0.6992 | Y37: 0.9688 | Z37: 0.9926 | AA37: 0.9812
A38: 12 | B38: Community, social and personal service activities | C38: 0.9949 | D38: 0.9921 | E38: 0.9938 | H38: Community, social and personal service activities | I38: 0.9894 | J38: 1.0013 | K38: 0.9956 | N38: Community, social and personal service activities | O38: 0.8752 | P38: 0.9704 | Q38: 0.9248 | T38: 0.5008 | U38: 0.8816 | V38: 0.6992 | Y38: 0.9688 | Z38: 0.9926 | AA38: 0.9812
A39: 13 | B39: Public administration and defence | C39: 1.0049 | D39: 1.0021 | E39: 1.0038 | H39: Public administration and defence | I39: 0.9994 | J39: 1.0113 | K39: 1.0056 | N39: Public administration and defence | O39: 0.9152 | P39: 1.0104 | Q39: 0.9648 | T39: 0.6608 | U39: 1.0416 | V39: 0.8592 | Y39: 0.9788 | Z39: 1.0026 | AA39: 0.9912
A40: 14 | B40: Education | C40: 1.0049 | D40: 1.0021 | E40: 1.0038 | H40: Education | I40: 0.9994 | J40: 1.0113 | K40: 1.0056 | N40: Education | O40: 0.9152 | P40: 1.0104 | Q40: 0.9648 | T40: 0.6608 | U40: 1.0416 | V40: 0.8592 | Y40: 0.9788 | Z40: 1.0026 | AA40: 0.9912
A41: 15 | B41: Health | C41: 0.9949 | D41: 0.9921 | E41: 0.9938 | H41: Health | I41: 0.9894 | J41: 1.0013 | K41: 0.9956 | N41: Health | O41: 0.8752 | P41: 0.9704 | Q41: 0.9248 | T41: 0.5008 | U41: 0.8816 | V41: 0.6992 | Y41: 0.9688 | Z41: 0.9926 | AA41: 0.9812
A42: 16 | B42: Private household with employed persons | C42: 0.9949 | D42: 0.9921 | E42: 0.9938 | H42: Private household with employed persons | I42: 0.9894 | J42: 1.0013 | K42: 0.9956 | N42: Private household with employed persons | O42: 0.8752 | P42: 0.9704 | Q42: 0.9248 | T42: 0.5008 | U42: 0.8816 | V42: 0.6992 | Y42: 0.9688 | Z42: 0.9926 | AA42: 0.9812
A43: 17 | B43: Financial intermediation services indirectly measured | C43: 1 | D43: 1 | E43: 1 | H43: Financial intermediation services indirectly measured | I43: 1 | J43: 1 | K43: 1 | N43: Financial intermediation services indirectly measured | O43: 1 | P43: 1 | Q43: 1 | T43: 1 | U43: 1 | V43: 1 | Y43: 1 | Z43: 1 | AA43: 1
A44: 18 | B44: Less subsidies on products | C44: 1 | D44: 1 | E44: 1 | H44: Less subsidies on products | I44: 1 | J44: 1 | K44: 1 | N44: Less subsidies on products | O44: 1 | P44: 1 | Q44: 1 | T44: 1 | U44: 1 | V44: 1 | Y44: 1 | Z44: 1 | AA44: 1
A49: High
A50: 0 | B50: Agriculture and forestry | C50: 0.98929 | D50: 1.00489 | E50: 1.00609 | H50: Agriculture and forestry | I50: 0.95139 | J50: 1.04669 | K50: 0.99719 | N50: Agriculture and forestry | O50: 0.55036 | P50: 1.31276 | Q50: 0.91676 | T50: =O50-(1-O50)*3 -> -0.79856 | U50: =P50-(1-P50)*3 -> 2.25104 | V50: 0.66704 | W50: -3 | Y50: 0.88759 | Z50: 1.07819 | AA50: 0.97919
A51: 1 | B51: Fishing and fish processing on board | C51: 0.98929 | D51: 1.00489 | E51: 1.00609 | H51: Fishing and fish processing on board | I51: 0.95139 | J51: 1.04669 | K51: 0.99719 | N51: Fishing and fish processing on board | O51: 0.55036 | P51: 1.31276 | Q51: 0.91676 | T51: =O51-(1-O51)*3 -> -0.79856 | U51: 2.25104 | V51: 0.66704 | W51: -3 | Y51: 0.88759 | Z51: 1.07819 | AA51: 0.97919
A52: 2 | B52: Mining and quarrying | C52: 0.97971 | D52: 0.97691 | E52: 0.97861 | H52: Mining and quarrying | I52: 0.96421 | J52: 0.97611 | K52: 0.97041 | N52: Mining and quarrying | O52: 0.73444 | P52: 0.82964 | Q52: 0.78404 | T52: -0.06224 | U52: 0.31856 | V52: 0.13616 | W52: -3 | Y52: 0.93361 | Z52: 0.95741 | AA52: 0.94601
A53: 3 | B53: Manufacturing | C53: 0.98971 | D53: 0.98691 | E53: 0.98861 | H53: Manufacturing | I53: 0.98421 | J53: 0.99611 | K53: 0.99041 | N53: Manufacturing | O53: 0.85444 | P53: 0.94964 | Q53: 0.90404 | T53: 0.41776 | U53: 0.79856 | V53: 0.61616 | W53: -3 | Y53: 0.96361 | Z53: 0.98741 | AA53: 0.97601
A54: 4 | B54: Electricity and water | C54: 0.98971 | D54: 0.98691 | E54: 0.98861 | H54: Electricity and water | I54: 0.98421 | J54: 0.99611 | K54: 0.99041 | N54: Electricity and water | O54: 0.85444 | P54: 0.94964 | Q54: 0.90404 | T54: 0.41776 | U54: 0.79856 | V54: 0.61616 | W54: -3 | Y54: 0.96361 | Z54: 0.98741 | AA54: 0.97601
A55: 5 | B55: Construction | C55: 0.99971 | D55: 0.99691 | E55: 0.99861 | H55: Construction | I55: 0.99421 | J55: 1.00611 | K55: 1.00041 | N55: Construction | O55: 0.89444 | P55: 0.98964 | Q55: 0.94404 | T55: 0.57776 | U55: 0.95856 | V55: 0.77616 | W55: -3 | Y55: 0.97361 | Z55: 0.99741 | AA55: 0.98601
A56: 6 | B56: Wholesale and retail trade, repairs | C56: 0.99873 | D56: 0.99593 | E56: 0.99763 | H56: Wholesale and retail trade, repairs | I56: 0.99323 | J56: 1.00513 | K56: 0.99943 | N56: Wholesale and retail trade, repairs | O56: 0.89052 | P56: 0.98572 | Q56: 0.94012 | T56: 0.56208 | U56: 0.94288 | V56: 0.76048 | W56: -3 | Y56: 0.97263 | Z56: 0.99643 | AA56: 0.98503
A57: 7 | B57: Hotels and restaurants | C57: 0.98873 | D57: 0.98593 | E57: 0.98763 | H57: Hotels and restaurants | I57: 0.97323 | J57: 0.98513 | K57: 0.97943 | N57: Hotels and restaurants | O57: 0.77052 | P57: 0.86572 | Q57: 0.82012 | T57: 0.08208 | U57: 0.46288 | V57: 0.28048 | W57: -3 | Y57: 0.94263 | Z57: 0.96643 | AA57: 0.95503
A58: 8 | B58: Transport | C58: 0.98873 | D58: 0.98593 | E58: 0.98763 | H58: Transport | I58: 0.97323 | J58: 0.98513 | K58: 0.97943 | N58: Transport | O58: 0.77052 | P58: 0.86572 | Q58: 0.82012 | T58: 0.08208 | U58: 0.46288 | V58: 0.28048 | W58: -3 | Y58: 0.94263 | Z58: 0.96643 | AA58: 0.95503
A59: 9 | B59: Communication | C59: 0.98873 | D59: 0.98593 | E59: 0.98763 | H59: Communication | I59: 0.97323 | J59: 0.98513 | K59: 0.97943 | N59: Communication | O59: 0.77052 | P59: 0.86572 | Q59: 0.82012 | T59: 0.08208 | U59: 0.46288 | V59: 0.28048 | W59: -3 | Y59: 0.94263 | Z59: 0.96643 | AA59: 0.95503
A60: 10 | B60: Financial intermediation | C60: 0.98873 | D60: 0.98593 | E60: 0.98763 | H60: Financial intermediation | I60: 0.97323 | J60: 0.98513 | K60: 0.97943 | N60: Financial intermediation | O60: 0.77052 | P60: 0.86572 | Q60: 0.82012 | T60: 0.08208 | U60: 0.46288 | V60: 0.28048 | W60: -3 | Y60: 0.94263 | Z60: 0.96643 | AA60: 0.95503
A61: 11 | B61: Real estate and business services | C61: 0.99873 | D61: 0.99593 | E61: 0.99763 | H61: Real estate and business services | I61: 0.99323 | J61: 1.00513 | K61: 0.99943 | N61: Real estate and business services | O61: 0.89052 | P61: 0.98572 | Q61: 0.94012 | T61: 0.56208 | U61: 0.94288 | V61: 0.76048 | W61: -3 | Y61: 0.97263 | Z61: 0.99643 | AA61: 0.98503
A62: 12 | B62: Community, social and personal service activities | C62: 0.99873 | D62: 0.99593 | E62: 0.99763 | H62: Community, social and personal service activities | I62: 0.99323 | J62: 1.00513 | K62: 0.99943 | N62: Community, social and personal service activities | O62: 0.89052 | P62: 0.98572 | Q62: 0.94012 | T62: 0.56208 | U62: 0.94288 | V62: 0.76048 | W62: -3 | Y62: 0.97263 | Z62: 0.99643 | AA62: 0.98503
A63: 13 | B63: Public administration and defence | C63: 1.00873 | D63: 1.00593 | E63: 1.00763 | H63: Public administration and defence | I63: 1.00323 | J63: 1.01513 | K63: 1.00943 | N63: Public administration and defence | O63: 0.93052 | P63: 1.02572 | Q63: 0.98012 | T63: 0.72208 | U63: 1.10288 | V63: 0.92048 | W63: -3 | Y63: 0.98263 | Z63: 1.00643 | AA63: 0.99503
A64: 14 | B64: Education | C64: 1.00873 | D64: 1.00593 | E64: 1.00763 | H64: Education | I64: 1.00323 | J64: 1.01513 | K64: 1.00943 | N64: Education | O64: 0.93052 | P64: 1.02572 | Q64: 0.98012 | T64: 0.72208 | U64: 1.10288 | V64: 0.92048 | W64: -3 | Y64: 0.98263 | Z64: 1.00643 | AA64: 0.99503
A65: 15 | B65: Health | C65: 0.99873 | D65: 0.99593 | E65: 0.99763 | H65: Health | I65: 0.99323 | J65: 1.00513 | K65: 0.99943 | N65: Health | O65: 0.89052 | P65: 0.98572 | Q65: 0.94012 | T65: 0.56208 | U65: 0.94288 | V65: 0.76048 | W65: -3 | Y65: 0.97263 | Z65: 0.99643 | AA65: 0.98503
A66: 16 | B66: Private household with employed persons | C66: 0.99873 | D66: 0.99593 | E66: 0.99763 | H66: Private household with employed persons | I66: 0.99323 | J66: 1.00513 | K66: 0.99943 | N66: Private household with employed persons | O66: 0.89052 | P66: 0.98572 | Q66: 0.94012 | T66: 0.56208 | U66: =P66-(1-P66)*3 -> 0.94288 | V66: =Q66-(1-Q66)*3 -> 0.76048 | W66: =R66-(1-R66)*3 -> -3 | Y66: 0.97263 | Z66: 0.99643 | AA66: 0.98503
A67: 17 | B67: Financial intermediation services indirectly measured | C67: 1 | D67: 1 | E67: 1 | H67: Financial intermediation services indirectly measured | I67: 1 | J67: 1 | K67: 1 | N67: Financial intermediation services indirectly measured | O67: 1 | P67: 1 | Q67: 1 | T67: 1 | U67: 1 | V67: 1 | W67: -3 | Y67: 1 | Z67: 1 | AA67: 1
A68: 18 | B68: Less subsidies on products | C68: 1 | D68: 1 | E68: 1 | H68: Less subsidies on products | I68: 1 | J68: 1 | K68: 1 | N68: Less subsidies on products | O68: 1 | P68: 1 | Q68: 1 | T68: 1 | U68: 1 | V68: 1 | W68: -3 | Y68: 1 | Z68: 1 | AA68: 1

Sheet Flood (hidden)
A2: light | B2: 3 month | H2: 6 month | N2: 12 month
A3: 0 | B3: Agriculture and forestry | C3: 0.9931 | D3: 0.9964 | E3: 0.9891 | H3: Agriculture and forestry | I3: 0.9945 | J3: 0.9955 | K3: 0.998 | N3: Agriculture and forestry | O3: 0.8 | P3: 0.991 | Q3: 0.991 | S3: 0.8 | T3: =P3 -> 0.991 | U3: =P3 -> 0.991 | W3: 0.989 | X3: 0.991 | Y3: 0.996
A4: 1 | B4: Fishing and fish processing on board | C4: 0.9931 | D4: 0.9964 | E4: 0.9891 | H4: Fishing and fish processing on board | I4: 0.9945 | J4: 0.9955 | K4: 0.998 | N4: Fishing and fish processing on board | O4: 0.8 | P4: 0.991 | Q4: 0.991 | S4: 0.8 | T4: =P4 -> 0.991 | U4: =P4 -> 0.991 | W4: 0.989 | X4: 0.991 | Y4: 0.996
A5: 2 | B5: Mining and quarrying | C5: 0.9909 | D5: 0.9903 | E5: 0.9942 | H5: Mining and quarrying | I5: 0.9881 | J5: 0.9886 | K5: 0.9922 | N5: Mining and quarrying | O5: 0.5 | P5: 0.75 | Q5: 0.9 | S5: 0.5 | T5: 0.75 | U5: 0.9 | W5: 0.9762 | X5: 0.9772 | Y5: 0.9844
A6: 3 | B6: Manufacturing | C6: 0.9909 | D6: 0.9903 | E6: 0.9942 | H6: Manufacturing | I6: 0.9881 | J6: 0.9886 | K6: 0.9922 | N6: Manufacturing | O6: 0.5 | P6: 0.75 | Q6: 0.9 | S6: 0.5 | T6: 0.75 | U6: 0.9 | W6: 0.9762 | X6: 0.9772 | Y6: 0.9844
A7: 4 | B7: Electricity and water | C7: 1.0009 | D7: 1.0003 | E7: 1.0042 | H7: Electricity and water | I7: 0.9981 | J7: 0.9986 | K7: 1.0022 | N7: Electricity and water | O7: 0.5 | P7: 0.075 | Q7: 0.9 | S7: 0.5 | T7: 0.075 | U7: 0.9 | W7: 0.9862 | X7: 0.9872 | Y7: 0.9944
A8: 5 | B8: Construction | C8: 0.9909 | D8: 0.9903 | E8: 0.9942 | H8: Construction | I8: 0.9881 | J8: 0.9886 | K8: 0.9922 | N8: Construction | O8: 0.5 | P8: 0.95 | Q8: 1.006 | S8: 0.5 | T8: 0.95 | U8: 1.006 | W8: 0.9762 | X8: 0.9772 | Y8: 0.9844
A9: 6 | B9: Wholesale and retail trade, repairs | C9: 1.0009 | D9: 1.0003 | E9: 1.0042 | H9: Wholesale and retail trade, repairs | I9: 0.9981 | J9: 0.9986 | K9: 1.0022 | N9: Wholesale and retail trade, repairs | O9: 0.9586 | P9: 0.9616 | Q9: 0.9832 | S9: =1-(1-O9)*3 -> 0.8758 | T9: =1-(1-P9)*3 -> 0.8848 | U9: =1-(1-Q9)*3 -> 0.9496 | W9: 0.9862 | X9: 0.9872 | Y9: 0.9944
A10: 7 | B10: Hotels and restaurants | C10: 0.9809 | D10: 0.9803 | E10: 0.9842 | H10: Hotels and restaurants | I10: 0.9681 | J10: 0.9686 | K10: 0.9722 | N10: Hotels and restaurants | O10: 0.8386 | P10: 0.8416 | Q10: 0.8632 | S10: =1-(1-O10)*3 -> 0.5158 | T10: 0.5248 | U10: 0.5896 | W10: 0.9462 | X10: 0.9472 | Y10: 0.9544
A11: 8 | B11: Transport | C11: 0.9809 | D11: 0.9803 | E11: 0.9842 | H11: Transport | I11: 0.9781 | J11: 0.9786 | K11: 0.9822 | N11: Transport | O11: 0.8986 | P11: 0.9016 | Q11: 0.9232 | S11: 0.6958 | T11: 0.7048 | U11: 0.7696 | W11: 0.9662 | X11: 0.9672 | Y11: 0.9744
A12: 9 | B12: Communication | C12: 0.9809 | D12: 0.9803 | E12: 0.9842 | H12: Communication | I12: 0.9781 | J12: 0.9786 | K12: 0.9822 | N12: Communication | O12: 0.8986 | P12: 0.9016 | Q12: 0.9232 | S12: 0.6958 | T12: 0.7048 | U12: 0.7696 | W12: 0.9662 | X12: 0.9672 | Y12: 0.9744
A13: 10 | B13: Financial intermediation | C13: 0.9709 | D13: 0.9703 | E13: 0.9742 | H13: Financial intermediation | I13: 0.9581 | J13: 0.9586 | K13: 0.9622 | N13: Financial intermediation | O13: 0.8086 | P13: 0.8116 | Q13: 0.8332 | S13: 0.4258 | T13: 0.4348 | U13: 0.4996 | W13: 0.9362 | X13: 0.9372 | Y13: 0.9444
A14: 11 | B14: Real estate and business services | C14: 0.9909 | D14: 0.9903 | E14: 0.9942 | H14: Real estate and business services | I14: 0.9881 | J14: 0.9886 | K14: 0.9922 | N14: Real estate and business services | O14: 0.9286 | P14: 0.9316 | Q14: 0.9532 | S14: 0.7858 | T14: 0.7948 | U14: 0.8596 | W14: 0.9762 | X14: 0.9772 | Y14: 0.9844
A15: 12 | B15: Community, social and personal service activities | C15: 0.9809 | D15: 0.9803 | E15: 0.9842 | H15: Community, social and personal service activities | I15: 0.9781 | J15: 0.9786 | K15: 0.9822 | N15: Community, social and personal service activities | O15: 0.8986 | P15: 0.9016 | Q15: 0.9232 | S15: 0.6958 | T15: 0.7048 | U15: 0.7696 | W15: 0.9662 | X15: 0.9672 | Y15: 0.9744
A16: 13 | B16: Public administration and defence | C16: 0.9609 | D16: 0.9603 | E16: 0.9642 | H16: Public administration and defence | I16: 0.9481 | J16: 0.9486 | K16: 0.9522 | N16: Public administration and defence | O16: 0.7786 | P16: 0.7816 | Q16: 0.8032 | S16: 0.3358 | T16: 0.3448 | U16: 0.4096 | W16: 0.9262 | X16: 0.9272 | Y16: 0.9344
A17: 14 | B17: Education | C17: 0.9809 | D17: 0.9803 | E17: 0.9842 | H17: Education | I17: 0.9781 | J17: 0.9786 | K17: 0.9822 | N17: Education | O17: 0.8986 | P17: 0.9016 | Q17: 0.9232 | S17: 0.6958 | T17: 0.7048 | U17: 0.7696 | W17: 0.9662 | X17: 0.9672 | Y17: 0.9744
A18: 15 | B18: Health | C18: 0.9809 | D18: 0.9803 | E18: 0.9842 | H18: Health | I18: 0.9781 | J18: 0.9786 | K18: 0.9822 | N18: Health | O18: 0.8986 | P18: 0.9016 | Q18: 0.9232 | S18: 0.6958 | T18: 0.7048 | U18: 0.7696 | W18: 0.9662 | X18: 0.9672 | Y18: 0.9744
A19: 16 | B19: Private household with employed persons | C19: 0.9809 | D19: 0.9803 | E19: 0.9842 | H19: Private household with employed persons | I19: 0.9781 | J19: 0.9786 | K19: 0.9822 | N19: Private household with employed persons | O19: 0.8986 | P19: 0.9016 | Q19: 0.9232 | S19: 0.6958 | T19: 0.7048 | U19: 0.7696 | W19: 0.9662 | X19: 0.9672 | Y19: 0.9744
A20: 17 | B20: Financial intermediation services indirectly measured | C20: 1 | D20: 1 | E20: 1 | H20: Financial intermediation services indirectly measured | I20: 1 | J20: 1 | K20: 1 | N20: Financial intermediation services indirectly measured | O20: 1 | P20: 1 | Q20: 1 | S20: 1 | T20: 1 | U20: 1 | W20: 1 | X20: 1 | Y20: 1
A21: 18 | B21: Less subsidies on products | C21: 1 | D21: 1 | E21: 1 | H21: Less subsidies on products | I21: 1 | J21: 1 | K21: 1 | N21: Less subsidies on products | O21: 1 | P21: 1 | Q21: 1 | S21: 1 | T21: 1 | U21: 1 | W21: 1 | X21: 1 | Y21: 1
A25: Medium
A26: 0 | B26: Agriculture and forestry | C26: 1.0031 | D26: 1.0064 | E26: 0.9991 | H26: Agriculture and forestry | I26: 1.0045 | J26: 1.0055 | K26: 1.008 | N26: Agriculture and forestry | O26: 0.85 | P26: 1.001 | Q26: 1.001 | S26: 0.85 | T26: =P26 -> 1.001 | U26: =P26 -> 1.001 | W26: 0.999 | X26: 1.001 | Y26: 1.006
A27: 1 | B27: Fishing and fish processing on board | C27: 1.0031 | D27: 1.0064 | E27: 0.9991 | H27: Fishing and fish processing on board | I27: 1.0045 | J27: 1.0055 | K27: 1.008 | N27: Fishing and fish processing on board | O27: 0.85 | P27: 1.001 | Q27: 1.001 | S27: 0.85 | T27: =P27 -> 1.001 | U27: =P27 -> 1.001 | W27: 0.999 | X27: 1.001 | Y27: 1.006
A28: 2 | B28: Mining and quarrying | C28: 1.0009 | D28: 1.0003 | E28: 1.0042 | H28: Mining and quarrying | I28: 0.9981 | J28: 0.9986 | K28: 1.0022 | N28: Mining and quarrying | O28: 0.6 | P28: 0.8 | Q28: 0.9 | S28: 0.6 | T28: 0.8 | U28: 0.9 | W28: 0.9862 | X28: 0.9872 | Y28: 0.9944
A29: 3 | B29: Manufacturing | C29: 1.0009 | D29: 1.0003 | E29: 1.0042 | H29: Manufacturing | I29: 0.9981 | J29: 0.9986 | K29: 1.0022 | N29: Manufacturing | O29: 0.6 | P29: 0.8 | Q29: 0.9 | S29: 0.6 | T29: 0.8 | U29: 0.9 | W29: 0.9862 | X29: 0.9872 | Y29: 0.9944
A30: 4 | B30: Electricity and water | C30: 1.0109 | D30: 1.0103 | E30: 1.0142 | H30: Electricity and water | I30: 1.0181 | J30: 1.0186 | K30: 1.0222 | N30: Electricity and water | O30: 0.6 | P30: 0.8 | Q30: 0.9 | S30: 0.6 | T30: 0.8 | U30: 0.9 | W30: 1.0162 | X30: 1.0172 | Y30: 1.0244
A31: 5 | B31: Construction | C31: 1.0009 | D31: 1.0003 | E31: 1.0042 | H31: Construction | I31: 0.9981 | J31: 0.9986 | K31: 1.0022 | N31: Construction | O31: 0.6 | P31: 1.004 | Q31: 1.006 | S31: 0.6 | T31: 1.004 | U31: 1.006 | W31: 0.9862 | X31: 0.9872 | Y31: 0.9944
A32: 6 | B32: Wholesale and retail trade, repairs | C32: 1.0109 | D32: 1.0103 | E32: 1.0142 | H32: Wholesale and retail trade, repairs | I32: 1.0081 | J32: 1.0086 | K32: 1.0122 | N32: Wholesale and retail trade, repairs | O32: 0.9886 | P32: 0.9916 | Q32: 1.0132 | S32: =1-(1-O32)*3 -> 0.9658 | T32: =1-(1-P32)*3 -> 0.9748 | U32: =1-(1-Q32)*3 -> 1.0396 | W32: 0.9962 | X32: 0.9972 | Y32: 1.0044
A33: 7 | B33: Hotels and restaurants | C33: 0.9909 | D33: 0.9903 | E33: 0.9942 | H33: Hotels and restaurants | I33: 0.9781 | J33: 0.9786 | K33: 0.9822 | N33: Hotels and restaurants | O33: 0.8686 | P33: 0.8716 | Q33: 0.8932 | S33: =1-(1-O33)*3 -> 0.6058 | T33: 0.6148 | U33: 0.6796 | W33: 0.9562 | X33: 0.9572 | Y33: 0.9644
A34: 8 | B34: Transport | C34: 0.9909 | D34: 0.9903 | E34: 0.9942 | H34: Transport | I34: 0.9881 | J34: 0.9886 | K34: 0.9922 | N34: Transport | O34: 0.9286 | P34: 0.9316 | Q34: 0.9532 | S34: 0.7858 | T34: 0.7948 | U34: 0.8596 | W34: 0.9762 | X34: 0.9772 | Y34: 0.9844
A35: 9 | B35: Communication | C35: 0.9909 | D35: 0.9903 | E35: 0.9942 | H35: Communication | I35: 0.9881 | J35: 0.9886 | K35: 0.9922 | N35: Communication | O35: 0.9286 | P35: 0.9316 | Q35: 0.9532 | S35: 0.7858 | T35: 0.7948 | U35: 0.8596 | W35: 0.9762 | X35: 0.9772 | Y35: 0.9844
A36: 10 | B36: Financial intermediation | C36: 0.9809 | D36: 0.9803 | E36: 0.9842 | H36: Financial intermediation | I36: 0.9681 | J36: 0.9686 | K36: 0.9722 | N36: Financial intermediation | O36: 0.8386 | P36: 0.8416 | Q36: 0.8632 | S36: 0.5158 | T36: 0.5248 | U36: 0.5896 | W36: 0.9462 | X36: 0.9472 | Y36: 0.9544
A37: 11 | B37: Real estate and business services | C37: 1.0009 | D37: 1.0003 | E37: 1.0042 | H37: Real estate and business services | I37: 0.9981 | J37: 0.9986 | K37: 1.0022 | N37: Real estate and business services | O37: 0.9586 | P37: 0.9616 | Q37: 0.9832 | S37: 0.8758 | T37: 0.8848 | U37: 0.9496 | W37: 0.9862 | X37: 0.9872 | Y37: 0.9944
A38: 12 | B38: Community, social and personal service activities | C38: 0.9909 | D38: 0.9903 | E38: 0.9942 | H38: Community, social and personal service activities | I38: 0.9881 | J38: 0.9886 | K38: 0.9922 | N38: Community, social and personal service activities | O38: 0.9286 | P38: 0.9316 | Q38: 0.9532 | S38: 0.7858 | T38: 0.7948 | U38: 0.8596 | W38: 0.9762 | X38: 0.9772 | Y38: 0.9844
A39: 13 | B39: Public administration and defence | C39: 0.9709 | D39: 0.9703 | E39: 0.9742 | H39: Public administration and defence | I39: 0.9581 | J39: 0.9586 | K39: 0.9622 | N39: Public administration and defence | O39: 0.8086 | P39: 0.8116 | Q39: 0.8332 | S39: 0.4258 | T39: 0.4348 | U39: 0.4996 | W39: 0.9362 | X39: 0.9372 | Y39: 0.9444
A40: 14 | B40: Education | C40: 0.9909 | D40: 0.9903 | E40: 0.9942 | H40: Education | I40: 0.9881 | J40: 0.9886 | K40: 0.9922 | N40: Education | O40: 0.9286 | P40: 0.9316 | Q40: 0.9532 | S40: 0.7858 | T40: 0.7948 | U40: 0.8596 | W40: 0.9762 | X40: 0.9772 | Y40: 0.9844
A41: 15 | B41: Health | C41: 0.9909 | D41: 0.9903 | E41: 0.9942 | H41: Health | I41: 0.9881 | J41: 0.9886 | K41: 0.9922 | N41: Health | O41: 0.9286 | P41: 0.9316 | Q41: 0.9532 | S41: 0.7858 | T41: 0.7948 | U41: 0.8596 | W41: 0.9762 | X41: 0.9772 | Y41: 0.9844
A42: 16 | B42: Private household with employed persons | C42: 0.9909 | D42: 0.9903 | E42: 0.9942 | H42: Private household with employed persons | I42: 0.9881 | J42: 0.9886 | K42: 0.9922 | N42: Private household with employed persons | O42: 0.9286 | P42: 0.9316 | Q42: 0.9532 | S42: 0.7858 | T42: 0.7948 | U42: 0.8596 | W42: 0.9762 | X42: 0.9772 | Y42: 0.9844
A43: 17 | B43: Financial intermediation services indirectly measured | C43: 1 | D43: 1 | E43: 1 | H43: Financial intermediation services indirectly measured | I43: 1 | J43: 1 | K43: 1 | N43: Financial intermediation services indirectly measured | O43: 1 | P43: 1 | Q43: 1 | S43: 1 | T43: 1 | U43: 1 | W43: 1 | X43: 1 | Y43: 1
A44: 18 | B44: Less subsidies on products | C44: 1 | D44: 1 | E44: 1 | H44: Less subsidies on products | I44: 1 | J44: 1 | K44: 1 | N44: Less subsidies on products | O44: 1 | P44: 1 | Q44: 1 | S44: 1 | T44: 1 | U44: 1 | W44: 1 | X44: 1 | Y44: 1
A49: High
A50: 0 | B50: Agriculture and forestry | C50: 1.00802 | D50: 1.01132 | E50: 1.00402 | H50: Agriculture and forestry | I50: 1.00942 | J50: 1.01042 | K50: 1.01292 | N50: Agriculture and forestry | O50: 0.9 | P50: 1.00592 | Q50: 1.00592 | S50: 0.9 | T50: =P50 -> 1.00592 | U50: =P50 -> 1.00592 | W50: 1.00392 | X50: 1.00592 | Y50: 1.01092
A51: 1 | B51: Fishing and fish processing on board | C51: 1.00802 | D51: 1.01132 | E51: 1.00402 | H51: Fishing and fish processing on board | I51: 1.00942 | J51: 1.01042 | K51: 1.01292 | N51: Fishing and fish processing on board | O51: 0.96 | P51: 1.00592 | Q51: 1.00592 | S51: 0.96 | T51: =P51 -> 1.00592 | U51: =P51 -> 1.00592 | W51: 1.00392 | X51: 1.00592 | Y51: 1.01092
A52: 2 | B52: Mining and quarrying | C52: 0.95935 | D52: 0.95875 | E52: 0.96265 | H52: Mining and quarrying | I52: 0.93155 | J52: 0.93205 | K52: 0.93565 | N52: Mining and quarrying | O52: 0.7 | P52: 0.89 | Q52: 0.9 | S52: 0.7 | T52: 0.89 | U52: 0.9 | W52: 0.89465 | X52: 0.89565 | Y52: 0.90285
A53: 3 | B53: Manufacturing | C53: 0.98935 | D53: 0.98875 | E53: 0.99265 | H53: Manufacturing | I53: 0.97655 | J53: 0.97705 | K53: 0.98065 | N53: Manufacturing | O53: 0.7 | P53: 0.89 | Q53: 0.9 | S53: 0.7 | T53: 0.89 | U53: 0.9 | W53: 0.95465 | X53: 0.95565 | Y53: 0.96285
A54: 4 | B54: Electricity and water | C54: 0.99935 | D54: 0.99875 | E54: 1.00265 | H54: Electricity and water | I54: 0.98655 | J54: 0.98705 | K54: 0.99065 | N54: Electricity and water | O54: 0.7 | P54: 0.89 | Q54: 0.9 | S54: 0.7 | T54: 0.89 | U54: 0.9 | W54: 0.96465 | X54: 0.96565 | Y54: 0.97285
A55: 5 | B55: Construction | C55: 1.01935 | D55: 1.01875 | E55: 1.02265 | H55: Construction | I55: 1.01655 | J55: 1.01705 | K55: 1.02065 | N55: Construction | O55: 0.7 | P55: 1.004 | Q55: 1.006 | S55: 0.7 | T55: 1.004 | U55: 1.006 | W55: 1.00465 | X55: 1.00565 | Y55: 1.01285
A56: 6 | B56: Wholesale and retail trade, repairs | C56: 0.99911 | D56: 0.99851 | E56: 1.00241 | H56: Wholesale and retail trade, repairs | I56: 0.98631 | J56: 0.98681 | K56: 0.99041 | N56: Wholesale and retail trade, repairs | O56: 0.89323 | P56: 0.89623 | Q56: 0.91783 | S56: =1-(1-O56)*3 -> 0.67969 | T56: =1-(1-P56)*3 -> 0.68869 | U56: 0.75349 | W56: 0.96441 | X56: 0.96541 | Y56: 0.97261
A57: 7 | B57: Hotels and restaurants | C57: 1.00911 | D57: 1.00851 | E57: 1.01241 | H57: Hotels and restaurants | I57: 1.00631 | J57: 1.00681 | K57: 1.01041 | N57: Hotels and restaurants | O57: 0.98323 | P57: 0.98623 | Q57: 1.00783 | S57: =1-(1-O57)*3 -> 0.94969 | T57: =1-(1-P57)*3 -> 0.95869 | U57: =1-(1-Q57)*3 -> 1.02349 | W57: 0.99441 | X57: 0.99541 | Y57: 1.00261
A58: 8 | B58: Transport | C58: 1.00911 | D58: 1.00851 | E58: 1.01241 | H58: Transport | I58: 1.00631 | J58: 1.00681 | K58: 1.01041 | N58: Transport | O58: 0.98323 | P58: 0.98623 | Q58: 1.00783 | S58: 0.94969 | T58: 0.95869 | U58: 1.02349 | W58: 0.99441 | X58: 0.99541 | Y58: 1.00261
A59: 9 | B59: Communication | C59: 1.00911 | D59: 1.00851 | E59: 1.01241 | H59: Communication | I59: 1.00631 | J59: 1.00681 | K59: 1.01041 | N59: Communication | O59: 0.98323 | P59: 0.98623 | Q59: 1.00783 | S59: 0.94969 | T59: 0.95869 | U59: 1.02349 | W59: 0.99441 | X59: 0.99541 | Y59: 1.00261
A60: 10 | B60: Financial intermediation | C60: 1.00911 | D60: 1.00851 | E60: 1.01241 | H60: Financial intermediation | I60: 1.00631 | J60: 1.00681 | K60: 1.01041 | N60: Financial intermediation | O60: 0.98323 | P60: 0.98623 | Q60: 1.00783 | S60: 0.94969 | T60: 0.95869 | U60: 1.02349 | W60: 0.99441 | X60: 0.99541 | Y60: 1.00261
A61: 11 | B61: Real estate and business services | C61: 1.00911 | D61: 1.00851 | E61: 1.01241 | H61: Real estate and business services | I61: 1.00631 | J61: 1.00681 | K61: 1.01041 | N61: Real estate and business services | O61: 0.98323 | P61: 0.98623 | Q61: 1.00783 | S61: 0.94969 | T61: 0.95869 | U61: 1.02349 | W61: 0.99441 | X61: 0.99541 | Y61: 1.00261
A62: 12 | B62: Community, social and personal service activities | C62: 1.00911 | D62: 1.00851 | E62: 1.01241 | H62: Community, social and personal service activities | I62: 1.00631 | J62: 1.00681 | K62: 1.01041 | N62: Community, social and personal service activities | O62: 0.98323 | P62: 0.98623 | Q62: 1.00783 | S62: 0.94969 | T62: 0.95869 | U62: 1.02349 | W62: 0.99441 | X62: 0.99541 | Y62: 1.00261
A63: 13 | B63: Public administration and defence | C63: 1.00911 | D63: 1.00851 | E63: 1.01241 | H63: Public administration and defence | I63: 1.00631 | J63: 1.00681 | K63: 1.01041 | N63: Public administration and defence | O63: 0.98323 | P63: 0.98623 | Q63: 1.00783 | S63: 0.94969 | T63: 0.95869 | U63: 1.02349 | W63: 0.99441 | X63: 0.99541 | Y63: 1.00261
A64: 14 | B64: Education | C64: 1.00911 | D64: 1.00851 | E64: 1.01241 | H64: Education | I64: 1.00631 | J64: 1.00681 | K64: 1.01041 | N64: Education | O64: 0.98323 | P64: 0.98623 | Q64: 1.00783 | S64: 0.94969 | T64: 0.95869 | U64: 1.02349 | W64: 0.99441 | X64: 0.99541 | Y64: 1.00261
A65: 15 | B65: Health | C65: 1.00911 | D65: 1.00851 | E65: 1.01241 | H65: Health | I65: 1.00631 | J65: 1.00681 | K65: 1.01041 | N65: Health | O65: 0.98323 | P65: 0.98623 | Q65: 1.00783 | S65: 0.94969 | T65: 0.95869 | U65: 1.02349 | W65: 0.99441 | X65: 0.99541 | Y65: 1.00261
A66: 16 | B66: Private household with employed persons | C66: 1.00911 | D66: 1.00851 | E66: 1.01241 | H66: Private household with employed persons | I66: 1.00631 | J66: 1.00681 | K66: 1.01041 | N66: Private household with employed persons | O66: 0.98323 | P66: 0.98623 | Q66: 1.00783 | S66: 0.94969 | T66: 0.95869 | U66: 1.02349 | W66: 0.99441 | X66: 0.99541 | Y66: 1.00261
A67: 17 | B67: Financial intermediation services indirectly measured | C67: 1 | D67: 1 | E67: 1 | H67: Financial intermediation services indirectly measured | I67: 1 | J67: 1 | K67: 1 | N67: Financial intermediation services indirectly measured | O67: 1 | P67: 1 | Q67: 1 | S67: =1-(1-O67)*3 -> 1 | T67: =1-(1-P67)*3 -> 1 | U67: =1-(1-Q67)*3 -> 1 | W67: 1 | X67: 1 | Y67: 1
A68: 18 | B68: Less subsidies on products | C68: 1 | D68: 1 | E68: 1 | H68: Less subsidies on products | I68: 1 | J68: 1 | K68: 1 | N68: Less subsidies on products | O68: 1 | P68: 1 | Q68: 1 | S68: 1 | T68: 1 | U68: 1 | W68: 1 | X68: 1 | Y68: 1

Sheet Storm (hidden)
A2: light | B2: 3 month | H2: 6 month | N2: 12 month
A3: 0 | B3: Agriculture and forestry | C3: 0.9841 | D3: 0.9973 | E3: 0.989 | H3: Agriculture and forestry | I3: 0.9715 | J3: 0.9645 | K3: 0.9722 | N3: Agriculture and forestry | O3: 0.943 | P3: 0.929 | Q3: 0.9444 | S3: 0.75 | T3: =1-(1-P3)*3 -> 0.787 | U3: 0.8332
A4: 1 | B4: Fishing and fish processing on board | C4: 0.9841 | D4: 0.9973 | E4: 0.989 | H4: Fishing and fish processing on board | I4: 0.9715 | J4: 0.9645 | K4: 0.9722 | N4: Fishing and fish processing on board | O4: 0.943 | P4: 0.929 | Q4: 0.9444 | S4: 0.75 | T4: 0.787 | U4: 0.8332
A5: 2 | B5: Mining and quarrying | C5: 0.9728 | D5: 0.9714 | E5: 0.9711 | H5: Mining and quarrying | I5: 0.915 | J5: 0.9101 | K5: 0.9181 | N5: Mining and quarrying | O5: 0.83 | P5: 0.8202 | Q5: 0.8362 | S5: =1-(1-O5)*3 -> 0.49 | T5: 0.4606 | U5: 0.5086
A6: 3 | B6: Manufacturing | C6: 0.9928 | D6: 0.9914 | E6: 0.9911 | H6: Manufacturing | I6: 0.965 | J6: 0.9601 | K6: 0.9681 | N6: Manufacturing | O6: 0.93 | P6: 0.9202 | Q6: 0.9362 | S6: 0.79 | T6: 0.7606 | U6: 0.8086
A7: 4 | B7: Electricity and water | C7: 0.9728 | D7: 0.9714 | E7: 0.9711 | H7: Electricity and water | I7: 0.935 | J7: 0.9301 | K7: 0.9381 | N7: Electricity and water | O7: 0.89 | P7: 0.8802 | Q7: 0.8962 | S7: 0.67 | T7: 0.6406 | U7: 0.6886
A8: 5 | B8: Construction | C8: 0.9828 | D8: 0.9814 | E8: 0.9811 | H8: Construction | I8: 0.945 | J8: 0.9401 | K8: 0.9481 | N8: Construction | O8: 0.9 | P8: 0.8902 | Q8: 0.9062 | S8: 0.7 | T8: 0.6706 | U8: 0.7186
A9: 6 | B9: Wholesale and retail trade, repairs | C9: 0.9928 | D9: 0.9914 | E9: 0.9911 | H9: Wholesale and retail trade, repairs | I9: 0.965 | J9: 0.9601 | K9: 0.9681 | N9: Wholesale and retail trade, repairs | O9: 0.93 | P9: 0.9202 | Q9: 0.9362 | S9: 0.79 | T9: 0.7606 | U9: 0.8086
A10: 7 | B10: Hotels and restaurants | C10: 0.9928 | D10: 0.9914 | E10: 0.9911 | H10: Hotels and restaurants | I10: 0.965 | J10: 0.9601 | K10: 0.9681 | N10: Hotels and restaurants | O10: 0.93 | P10: 0.9202 | Q10: 0.9362 | S10: 0.79 | T10: 0.7606 | U10: 0.8086
A11: 8 | B11: Transport | C11: 0.9928 | D11: 0.9914 | E11: 0.9911 | H11: Transport | I11: 0.965 | J11: 0.9601 | K11: 0.9681 | N11: Transport | O11: 0.93 | P11: 0.9202 | Q11: 0.9362 | S11: 0.79 | T11: 0.7606 | U11: 0.8086
A12: 9 | B12: Communication | C12: 0.9728 | D12: 0.9714 | E12: 0.9711 | H12: Communication | I12: 0.915 | J12: 0.9101 | K12: 0.9181 | N12: Communication | O12: 0.83 | P12: 0.8202 | Q12: 0.8362 | S12: 0.49 | T12: 0.4606 | U12: 0.5086
A13: 10 | B13: Financial intermediation | C13: 0.9728 | D13: 0.9714 | E13: 0.9711 | H13: Financial intermediation | I13: 0.915 | J13: 0.9101 | K13: 0.9181 | N13: Financial intermediation | O13: 0.85 | P13: 0.8402 | Q13: 0.8562 | S13: 0.55 | T13: 0.5206 | U13: 0.5686
A14: 11 | B14: Real estate and business services | C14: 0.9928 | D14: 0.9914 | E14: 0.9911 | H14: Real estate and business services | I14: 0.965 | J14: 0.9601 | K14: 0.9681 | N14: Real estate and business services | O14: 0.93 | P14: 0.9202 | Q14: 0.9362 | S14: 0.79 | T14: 0.7606 | U14: 0.8086
A15: 12 | B15: Community, social and personal service activities | C15: 0.9928 | D15: 0.9914 | E15: 0.9911 | H15: Community, social and personal service activities | I15: 0.965 | J15: 0.9601 | K15: 0.9681 | N15: Community, social and personal service activities | O15: 0.93 | P15: 0.9202 | Q15: 0.9362 | S15: 0.79 | T15: 0.7606 | U15: 0.8086
A16: 13 | B16: Public administration and defence | C16: 0.9728 | D16: 0.9714 | E16: 0.9711 | H16: Public administration and defence | I16: 0.915 | J16: 0.9101 | K16: 0.9181 | N16: Public administration and defence | O16: 0.85 | P16: 0.8402 | Q16: 0.8562 | S16: 0.55 | T16: 0.5206 | U16: 0.5686
A17: 14 | B17: Education | C17: 0.9728 | D17: 0.9714 | E17: 0.9711 | H17: Education | I17: 0.915 | J17: 0.9101 | K17: 0.9181 | N17: Education | O17: 0.85 | P17: 0.8402 | Q17: 0.8562 | S17: 0.55 | T17: 0.5206 | U17: 0.5686
A18: 15 | B18: Health | C18: 0.9728 | D18: 0.9714 | E18: 0.9711 | H18: Health | I18: 0.915 | J18: 0.9101 | K18: 0.9181 | N18: Health | O18: 0.85 | P18: 0.8402 | Q18: 0.8562 | S18: 0.55 | T18: 0.5206 | U18: 0.5686
A19: 16 | B19: Private household with employed persons | C19: 0.9928 | D19: 0.9914 | E19: 0.9911 | H19: Private household with employed persons | I19: 0.965 | J19: 0.9601 | K19: 0.9681 | N19: Private household with employed persons | O19: 0.93 | P19: 0.9202 | Q19: 0.9362 | S19: 0.79 | T19: =1-(1-P19)*3 -> 0.7606 | U19: =1-(1-Q19)*3 -> 0.8086
A20: 17 | B20: Financial intermediation services indirectly measured | C20: 1 | D20: 1 | E20: 1 | H20: Financial intermediation services indirectly measured | I20: 1 | J20: 1 | K20: 1 | N20: Financial intermediation services indirectly measured | O20: 1 | P20: 1 | Q20: 1 | S20: 1 | T20: 1 | U20: 1
A21: 18 | B21: Less subsidies on products | C21: 1 | D21: 1 | E21: 1 | H21: Less subsidies on products | I21: 1 | J21: 1 | K21: 1 | N21: Less subsidies on products | O21: 1 | P21: 1 | Q21: 1 | S21: 1 | T21: 1 | U21: 1
A25: Medium
A26: 0 | B26: Agriculture and forestry | C26: 0.9941 | D26: 1.0073 | E26: 0.999 | H26: Agriculture and forestry | I26: 1.0015 | J26: 0.9945 | K26: 1.0022 | N26: Agriculture and forestry | O26: 0.973 | P26: 0.959 | Q26: 0.9744 | S26: 0.8 | T26: =1-(1-P26)*3 -> 0.877 | U26: =1-(1-Q26)*3 -> 0.9232
A27: 1 | B27: Fishing and fish processing on board | C27: 0.9941 | D27: 1.0073 | E27: 0.999 | H27: Fishing and fish processing on board | I27: 1.0015 | J27: 0.9945 | K27: 1.0022 | N27: Fishing and fish processing on board | O27: 0.973 | P27: 0.959 | Q27: 0.9744 | S27: 0.8 | T27: 0.877 | U27: 0.9232
A28: 2 | B28: Mining and quarrying | C28: 0.9828 | D28: 0.9814 | E28: 0.9811 | H28: Mining and quarrying | I28: 0.945 | J28: 0.9401 | K28: 0.9481 | N28: Mining and quarrying | O28: 0.86 | P28: 0.8502 | Q28: 0.8662 | S28: =1-(1-O28)*3 -> 0.58 | T28: 0.5506 | U28: 0.5986
A29: 3 | B29: Manufacturing | C29: 1.0028 | D29: 1.0014 | E29: 1.0011 | H29: Manufacturing | I29: 0.995 | J29: 0.9901 | K29: 0.9981 | N29: Manufacturing | O29: 0.96 | P29: 0.9502 | Q29: 0.9662 | S29: 0.88 | T29: 0.8506 | U29: 0.8986
A30: 4 | B30: Electricity and water | C30: 0.9828 | D30: 0.9814 | E30: 0.9811 | H30: Electricity and water | I30: 0.965 | J30: 0.9601 | K30: 0.9681 | N30: Electricity and water | O30: 0.92 | P30: 0.9102 | Q30: 0.9262 | S30: 0.76 | T30: 0.7306 | U30: 0.7786
A31: 5 | B31: Construction | C31: 0.9928 | D31: 0.9914 | E31: 0.9911 | H31: Construction | I31: 0.975 | J31: 0.9701 | K31: 0.9781 | N31: Construction | O31: 0.93 | P31: 0.9202 | Q31: 0.9362 | S31: 0.79 | T31: 0.7606 | U31: 0.8086
A32: 6 | B32: Wholesale and retail trade, repairs | C32: 1.0028 | D32: 1.0014 | E32: 1.0011 | H32: Wholesale and retail trade, repairs | I32: 0.995 | J32: 0.9901 | K32: 0.9981 | N32: Wholesale and retail trade, repairs | O32: 0.96 | P32: 0.9502 | Q32: 0.9662 | S32: 0.88 | T32: 0.8506 | U32: 0.8986
A33: 7 | B33: Hotels and restaurants | C33: 1.0028 | D33: 1.0014 | E33: 1.0011 | H33: Hotels and restaurants | I33: 0.995 | J33: 0.9901 | K33: 0.9981 | N33: Hotels and restaurants | O33: 0.96 | P33: 0.9502 | Q33: 0.9662 | S33: 0.88 | T33: 0.8506 | U33: 0.8986
A34: 8 | B34: Transport | C34: 1.0028 | D34: 1.0014 | E34: 1.0011 | H34: Transport | I34: 0.995 | J34: 0.9901 | K34: 0.9981 | N34: Transport | O34: 0.96 | P34: 0.9502 | Q34: 0.9662 | S34: 0.88 | T34: 0.8506 | U34: 0.8986
A35: 9 | B35: Communication | C35: 0.9828 | D35: 0.9814 | E35: 0.9811 | H35: Communication | I35: 0.945 | J35: 0.9401 | K35: 0.9481 | N35: Communication | O35: 0.86 | P35: 0.8502 | Q35: 0.8662 | S35: 0.58 | T35: 0.5506 | U35: 0.5986
A36: 10 | B36: Financial intermediation | C36: 0.9828 | D36: 0.9814 | E36: 0.9811 | H36: Financial intermediation | I36: 0.945 | J36: 0.9401 | K36: 0.9481 | N36: Financial intermediation | O36: 0.88 | P36: 0.8702 | Q36: 0.8862 | S36: 0.64 | T36: 0.6106 | U36: 0.6586
A37: 11 | B37: Real estate and business services | C37: 1.0028 | D37: 1.0014 | E37: 1.0011 | H37: Real estate and business services | I37: 0.995 | J37: 0.9901 | K37: 0.9981 | N37: Real estate and business services | O37: 0.96 | P37: 0.9502 | Q37: 0.9662 | S37: 0.88 | T37: 0.8506 | U37: 0.8986
A38: 12 | B38: Community, social and personal service activities | C38: 1.0028 | D38: 1.0014 | E38: 1.0011 | H38: Community, social and personal service activities | I38: 0.995 | J38: 0.9901 | K38: 0.9981 | N38: Community, social and personal service activities | O38: 0.96 | P38: 0.9502 | Q38: 0.9662 | S38: 0.88 | T38: 0.8506 | U38: 0.8986
A39: 13 | B39: Public administration and defence | C39: 0.9828 | D39: 0.9814 | E39: 0.9811 | H39: Public administration and defence | I39: 0.945 | J39: 0.9401 | K39: 0.9481 | N39: Public administration and defence | O39: 0.88 | P39: 0.8702 | Q39: 0.8862 | S39: 0.64 | T39: 0.6106 | U39: 0.6586
A40: 14 | B40: Education | C40: 0.9828 | D40: 0.9814 | E40: 0.9811 | H40: Education | I40: 0.945 | J40: 0.9401 | K40: 0.9481 | N40: Education | O40: 0.88 | P40: 0.8702 | Q40: 0.8862 | S40: 0.64 | T40: 0.6106 | U40: 0.6586
A41: 15 | B41: Health | C41: 0.9828 | D41: 0.9814 | E41: 0.9811 | H41: Health | I41: 0.945 | J41: 0.9401 | K41: 0.9481 | N41: Health | O41: 0.88 | P41: 0.8702 | Q41: 0.8862 | S41: 0.64 | T41: 0.6106 | U41: 0.6586
A42: 16 | B42: Private household with employed persons | C42: 1.0028 | D42: 1.0014 | E42: 1.0011 | H42: Private household with employed persons | I42: 0.995 | J42: 0.9901 | K42: 0.9981 | N42: Private household with employed persons | O42: 0.96 | P42: 0.9502 | Q42: 0.9662 | S42: 0.88 | T42: 0.8506 | U42: 0.8986
A43: 17 | B43: Financial intermediation services indirectly measured | C43: 1 | D43: 1 | E43: 1 | H43: Financial intermediation services indirectly measured | I43: 1 | J43: 1 | K43: 1 | N43: Financial intermediation services indirectly measured | O43: 1 | P43: 1 | Q43: 1 | S43: 1 | T43: 1 | U43: 1
A44: 18 | B44: Less subsidies on products | C44: 1 | D44: 1 | E44: 1 | H44: Less subsidies on products | I44: 1 | J44: 1 | K44: 1 | N44: Less subsidies on products | O44: 1 | P44: 1 | Q44: 1 | S44: 1 | T44: 1 | U44: 1
A49: High
A50: 0 | B50: Agriculture and forestry | C50: 0.99441 | D50: 1.00761 | E50: 0.99931 | H50: Agriculture and forestry | I50: 1.00181 | J50: 0.99481 | K50: 1.00251 | N50: Agriculture and forestry | O50: 0.97331 | P50: 0.95931 | Q50: 0.97471 | S50: 0.8 | T50: =1-(1-P50)*3 -> 0.87793 | U50: =1-(1-Q50)*3 -> 0.92413
A51: 1 | B51: Fishing and fish processing on board | C51: 0.99441 | D51: 1.00761 | E51: 0.99931 | H51: Fishing and fish processing on board | I51: 1.00181 | J51: 0.99481 | K51: 1.00251 | N51: Fishing and fish processing on board | O51: 0.97331 | P51: 0.95931 | Q51: 0.97471 | S51: 0.8 | T51: 0.87793 | U51: 0.92413
A52: 2 | B52: Mining and quarrying | C52: 0.98838 | D52: 0.98698 | E52: 0.98668 | H52: Mining and quarrying | I52: 0.97058 | J52: 0.96568 | K52: 0.97368 | N52: Mining and quarrying | O52: 0.92558 | P52: 0.91578 | Q52: 0.93178 | S52: =1-(1-O52)*3 -> 0.77674 | T52: 0.74734 | U52: 0.79534
A53: 3 | B53: Manufacturing | C53: 1.00838 | D53: 1.00698 | E53: 1.00668 | H53: Manufacturing | I53: 1.00058 | J53: 0.99568 | K53: 1.00368 | N53: Manufacturing | O53: 0.96558 | P53: 0.95578 | Q53: 0.97178 | S53: 0.89674 | T53: 0.86734 | U53: 0.91534
A54: 4 | B54: Electricity and water | C54: 0.99838 | D54: 0.99698 | E54: 0.99668 | H54: Electricity and water | I54: 0.98058 | J54: 0.97568 | K54: 0.98368 | N54: Electricity and water | O54: 0.93558 | P54: 0.92578 | Q54: 0.94178 | S54: 0.80674 | T54: 0.77734 | U54: 0.82534
A55: 5 | B55: Construction | C55: 1.03838 | D55: 1.03698 | E55: 1.03668 | H55: Construction | I55: 0.96058 | J55: 0.95568 | K55: 0.96368 | N55: Construction | O55: 0.91558 | P55: 0.90578 | Q55: 0.92178 | S55: 0.74674 | T55: 0.71734 | U55: 0.76534
A56: 6 | B56: Wholesale and retail trade, repairs | C56: 0.99793 | D56: 0.99653 | E56: 0.99623 | H56: Wholesale and retail trade, repairs | I56: 0.99013 | J56: 0.98523 | K56: 0.99323 | N56: Wholesale and retail trade, repairs | O56: 0.95513 | P56: 0.94533 | Q56: 0.96133 | S56: 0.86539 | T56: 0.83599 | U56: 0.88399
A57: 7 | B57: Hotels and restaurants | C57: 1.00793 | D57: 1.00653 | E57: 1.00623 | H57: Hotels and restaurants | I57: 1.00013 | J57: 0.99523 | K57: 1.00323 | N57: Hotels and restaurants | O57: 0.96513 | P57: 0.95533 | Q57: 0.97133 | S57: 0.89539 | T57: 0.86599 | U57: 0.91399
A58: 8 | B58: Transport | C58: 1.00793 | D58: 1.00653 | E58: 1.00623 | H58: Transport | I58: 1.00013 | J58: 0.99523 | K58: 1.00323 | N58: Transport | O58: 0.96513 | P58: 0.95533 | Q58: 0.97133 | S58: 0.89539 | T58: 0.86599 | U58: 0.91399
A59: 9 | B59: Communication | C59: 0.99793 | D59: 0.99653 | E59: 0.99623 | H59: Communication | I59: 0.99013 | J59: 0.98523 | K59: 0.99323 | N59: Communication | O59: 0.95513 | P59: 0.94533 | Q59: 0.96133 | S59: 0.86539 | T59: 0.83599 | U59: 0.88399
A60: 10 | B60: Financial intermediation | C60: 0.99793 | D60: 0.99653 | E60: 0.99623 | H60: Financial intermediation | I60: 0.99013 | J60: 0.98523 | K60: 0.99323 | N60: Financial intermediation | O60: 0.95513 | P60: 0.94533 | Q60: 0.96133 | S60: 0.86539 | T60: 0.83599 | U60: 0.88399
A61: 11 | B61: Real estate and business services | C61: 0.99793 | D61: 0.99653 | E61: 0.99623 | H61: Real estate and business services | I61: 0.99013 | J61: 0.98523 | K61: 0.99323 | N61: Real estate and business services | O61: 0.95513 | P61: 0.94533 | Q61: 0.96133 | S61: 0.86539 | T61: 0.83599 | U61: 0.88399
A62: 12 | B62: Community, social and personal service activities | C62: 0.99793 | D62: 0.99653 | E62: 0.99623 | H62: Community, social and personal service activities | I62: 0.99013 | J62: 0.98523 | K62: 0.99323 | N62: Community, social and personal service activities | O62: 0.95513 | P62: 0.94533 | Q62: 0.96133 | S62: 0.86539 | T62: 0.83599 | U62: 0.88399
A63: 13 | B63: Public administration and defence | C63: 0.98793 | D63: 0.98653 | E63: 0.98623 | H63: Public administration and defence | I63: 0.98013 | J63: 0.97523 | K63: 0.98323 | N63: Public administration and defence | O63: 0.94513 | P63: 0.93533 | Q63: 0.95133 | S63: 0.83539 | T63: 0.80599 | U63: 0.85399
A64: 14 | B64: Education | C64: 0.99793 | D64: 0.99653 | E64: 0.99623 | H64: Education | I64: 0.99013 | J64: 0.98523 | K64: 0.99323 | N64: Education | O64: 0.95513 | P64: 0.94533 | Q64: 0.96133 | S64: 0.86539 | T64: 0.83599 | U64: 0.88399
A65: 15 | B65: Health | C65: 1.00793 | D65: 1.00653 | E65: 1.00623 | H65: Health | I65: 1.00013 | J65: 0.99523 | K65: 1.00323 | N65: Health | O65: 0.96513 | P65: 0.95533 | Q65: 0.97133 | S65: 0.89539 | T65: 0.86599 | U65: 0.91399
A66: 16 | B66: Private household with employed persons | C66: 0.98793 | D66: 0.98653 | E66: 0.98623 | H66: Private household with employed persons | I66: 0.97013 | J66: 0.96523 | K66: 0.97323 | N66: Private household with employed persons | O66: 0.92513 | P66: 0.91533 | Q66: 0.93133 | S66: 0.77539 | T66: 0.74599 | U66: 0.79399
A67: 17 | B67: Financial intermediation services indirectly measured | C67: 1 | D67: 1 | E67: 1 | H67: Financial intermediation services indirectly measured | I67: 1 | J67: 1 | K67: 1 | N67: Financial intermediation services indirectly measured | O67: 1 | P67: 1 | Q67: 1 | S67: 1 | T67: 1 | U67: 1
A68: 18 | B68: Less subsidies on products | C68: 1 | D68: 1 | E68: 1 | H68: Less subsidies on products | I68: 1 | J68: 1 | K68: 1 | N68: Less subsidies on products | O68: 1 | P68: 1 | Q68: 1 | S68: 1 | T68: 1 | U68: 1

Sheet Fix Sector Parameter (hidden)
C2: ESTIMATED PARAMETERS | G2: JUDGEMENT OVERRIDE | K2: FINAL PARAMETERS
B3: 2021 | C3: 2022 | D3: 2023 | F3: =B3 -> 2021 | G3: =C3 -> 2022 | H3: 2023 | J3: =F3 -> 2021 | K3: =G3 -> 2022 | L3: 2023
A4: Agriculture, forestry, and fishing | B4: ='Check Parameter Mapping'!G30 -> 1 | C4: ='Check Parameter Mapping'!H30 -> 1 | D4: ='Check Parameter Mapping'!I30 -> 1 | J4: =IF(F4<>"",F4,B4) -> 1 | K4: =IF(G4<>"",G4,C4) -> 1 | L4: 1
A5: Mining & quarrying | B5: ='Check Parameter Mapping'!G31 -> 0.94 | C5: ='Check Parameter Mapping'!H31 -> 1 | D5: ='Check Parameter Mapping'!I31 -> 1 | J5: =IF(F5<>"",F5,B5) -> 0.94 | K5: =IF(G5<>"",G5,C5) -> 1 | L5: =IF(H5<>"",H5,D5) -> 1
A6: Manufacturing | B6: ='Check Parameter Mapping'!G32 -> 0.81 | C6: ='Check Parameter Mapping'!H32 -> 1 | D6: ='Check Parameter Mapping'!I32 -> 1 | J6: 0.81 | K6: 1 | L6: 1
A7: Electricity | B7: ='Check Parameter Mapping'!G33 -> 0.955 | C7: ='Check Parameter Mapping'!H33 -> 1 | D7: ='Check Parameter Mapping'!I33 -> 1 | J7: 0.955 | K7: 1 | L7: 1
A8: Water & waste management | B8: ='Check Parameter Mapping'!G34 -> 0.955 | C8: ='Check Parameter Mapping'!H34 -> 1 | D8: ='Check Parameter Mapping'!I34 -> 1 | J8: 0.955 | K8: 1 | L8: 1
A9: Construction | B9: ='Check Parameter Mapping'!G35 -> 0.85 | C9: ='Check Parameter Mapping'!H35 -> 0.9 | D9: ='Check Parameter Mapping'!I35 -> 1 | J9: 0.85 | K9: 0.9 | L9: 1
A10: Maintenance and repair of motor vehicles | B10: ='Check Parameter Mapping'!G36 -> 0 | C10: ='Check Parameter Mapping'!H36 -> 0 | D10: ='Check Parameter Mapping'!I36 -> 0 | J10: 0 | K10: 0 | L10: 0
A11: Wholesale & retail trade | B11: ='Check Parameter Mapping'!G37 -> 0.9727009019 | C11: ='Check Parameter Mapping'!H37 -> 0.986350451 | D11: ='Check Parameter Mapping'!I37 -> 1 | J11: 0.9727009019 | K11: 0.986350451 | L11: 1
A12: Transport services | B12: ='Check Parameter Mapping'!G38 -> 0.85 | C12: ='Check Parameter Mapping'!H38 -> 0.95 | D12: ='Check Parameter Mapping'!I38 -> 1 | J12: 0.85 | K12: 0.95 | L12: 1
A13: Hotels & restaurants | B13: ='Check Parameter Mapping'!G39 -> 0.85 | C13: ='Check Parameter Mapping'!H39 -> 0.95 | D13: ='Check Parameter Mapping'!I39 -> 1 | J13: 0.85 | K13: 0.95 | L13: 1
A14: Information & communication | B14: ='Check Parameter Mapping'!G40 -> 0.85 | C14: ='Check Parameter Mapping'!H40 -> 0.95 | D14: ='Check Parameter Mapping'!I40 -> 1 | J14: 0.85 | K14: 0.95 | L14: 1
A15: Financial services | B15: ='Check Parameter Mapping'!G41 -> 0.85 | C15: ='Check Parameter Mapping'!H41 -> 0.95 | D15: ='Check Parameter Mapping'!I41 -> 1 | J15: 0.85 | K15: 0.95 | L15: 1
A16: Real estate activities | B16: ='Check Parameter Mapping'!G42 -> 0.98 | C16: ='Check Parameter Mapping'!H42 -> 1 | D16: ='Check Parameter Mapping'!I42 -> 1 | J16: 0.98 | K16: 1 | L16: 1
A17: Professional, scientific and technical activities | B17: ='Check Parameter Mapping'!G43 -> 0.9 | C17: ='Check Parameter Mapping'!H43 -> 1 | D17: ='Check Parameter Mapping'!I43 -> 1 | J17: 0.9 | K17: 1 | L17: 1
A18: Administrative and support service activities | B18: ='Check Parameter Mapping'!G44 -> 0.9 | C18: ='Check Parameter Mapping'!H44 -> 1 | D18: ='Check Parameter Mapping'!I44 -> 1 | J18: 0.9 | K18: 1 | L18: 1
A19: Public administration and defence; compulsory social security | B19: ='Check Parameter Mapping'!G45 -> 0.9375 | C19: ='Check Parameter Mapping'!H45 -> 1 | D19: ='Check Parameter Mapping'!I45 -> 1 | J19: 0.9375 | K19: 1 | L19: 1
A20: Education | B20: ='Check Parameter Mapping'!G46 -> 1 | C20: ='Check Parameter Mapping'!H46 -> 1 | D20: ='Check Parameter Mapping'!I46 -> 1 | J20: 1 | K20: 1 | L20: 1
A21: Human health and social work activities | B21: ='Check Parameter Mapping'!G47 -> 1.3 | C21: ='Check Parameter Mapping'!H47 -> 1.1 | D21: ='Check Parameter Mapping'!I47 -> 1 | J21: 1.3 | K21: 1.1 | L21: 1
A22: Cultural, domestic & other services | B22: ='Check Parameter Mapping'!G48 -> 0.98 | C22: ='Check Parameter Mapping'!H48 -> 1 | D22: ='Check Parameter Mapping'!I48 -> 1 | J22: 0.98 | K22: 1 | L22: 1
A23: Taxes less subsidies on products | B23: ='Check Parameter Mapping'!G49 -> 1 | C23: ='Check Parameter Mapping'!H49 -> 1 | D23: ='Check Parameter Mapping'!I49 -> 1 | J23: 1 | K23: 1 | L23: 1

Sheet GDP (P)
B1: =Labels!F51 -> Shock Scenario | E1: 2012 | F1: =E1+1 -> 2013 | G1: =F1+1 -> 2014 | H1: 2015 | I1: 2016 | J1: 2017 | K1: 2018 | L1: 2019 | M1: 2020 | N1: 2021 | O1: 2022 | P1: 2023 | Q1: 2024 | R1: 2025
B2: =Labels!F52 -> GDP at current prices | E2: =E149 -> 0 | F2: =F149 -> 0 | G2: =G149 -> 0 | H2: 0 | I2: 0 | J2: 0 | K2: 0 | L2: 0 | M2: 0 | N2: 0 | O2: 0 | P2: 0 | Q2: 0 | R2: 0
B3: =Labels!F53 -> GDP at constant prices | E3: =E101 -> 0 | F3: =F101 -> 0 | G3: =G101 -> 0 | H3: 0 | I3: 0 | J3: 0 | K3: 0 | L3: 0 | M3: 0 | N3: 0 | O3: 0 | P3: 0 | Q3: 0 | R3: 0
B4: =Labels!F54 -> GDP at current prices (growth) | E4: =NA() ->  | F4: =NA() ->  | G4: =IFERROR(G149/F149*100-100,"") ->  | H4: =IFERROR(H149/G149*100-100,"") -> 
B5: =Labels!F55 -> GDP at constant prices (growth) | E5: =NA() ->  | F5: =NA() ->  | G5: =G125 ->  | H5: =H125 -> 
B6: =Labels!F56 -> GDP deflator growth | E6: =NA() ->  | F6: =NA() ->  | G6: =IFERROR(G77/F77*100-100,"") ->  | H6: =IFERROR(H77/G77*100-100,"") -> 
B8: =Labels!F57 -> GDP at Constant prices (History and Baseline/Trend)
B9: Agriculture, forestry, and fishing | O9: =N9*(1+'PF - monthly estimates'!$F$4/100) -> 0 | P9: =O9*(1+'PF - monthly estimates'!$F$4/100) -> 0 | Q9: =P9*(1+'PF - monthly estimates'!$F$4/100) -> 0 | R9: =Q9*(1+'PF - monthly estimates'!$F$4/100) -> 0
B10: Mining & quarrying | O10: =N10*(1+'PF - monthly estimates'!$F$4/100) -> 0 | P10: =O10*(1+'PF - monthly estimates'!$F$4/100) -> 0 | Q10: =P10*(1+'PF - monthly estimates'!$F$4/100) -> 0 | R10: =Q10*(1+'PF - monthly estimates'!$F$4/100) -> 0
B11: Manufacturing | O11: =N11*(1+'PF - monthly estimates'!$F$4/100) -> 0 | P11: =O11*(1+'PF - monthly estimates'!$F$4/100) -> 0 | Q11: =P11*(1+'PF - monthly estimates'!$F$4/100) -> 0 | R11: =Q11*(1+'PF - monthly estimates'!$F$4/100) -> 0
B12: Electricity | O12: =N12*(1+'PF - monthly estimates'!$F$4/100) -> 0 | P12: =O12*(1+'PF - monthly estimates'!$F$4/100) -> 0 | Q12: =P12*(1+'PF - monthly estimates'!$F$4/100) -> 0 | R12: =Q12*(1+'PF - monthly estimates'!$F$4/100) -> 0
B13: Water & waste management | O13: =N13*(1+'PF - monthly estimates'!$F$4/100) -> 0 | P13: =O13*(1+'PF - monthly estimates'!$F$4/100) -> 0 | Q13: =P13*(1+'PF - monthly estimates'!$F$4/100) -> 0 | R13: =Q13*(1+'PF - monthly estimates'!$F$4/100) -> 0
B14: Construction | O14: =N14*(1+'PF - monthly estimates'!$F$4/100) -> 0 | P14: =O14*(1+'PF - monthly estimates'!$F$4/100) -> 0 | Q14: =P14*(1+'PF - monthly estimates'!$F$4/100) -> 0 | R14: =Q14*(1+'PF - monthly estimates'!$F$4/100) -> 0
B15: Maintenance and repair of motor vehicles | O15: =N15*(1+'PF - monthly estimates'!$F$4/100) -> 0 | P15: =O15*(1+'PF - monthly estimates'!$F$4/100) -> 0 | Q15: =P15*(1+'PF - monthly estimates'!$F$4/100) -> 0 | R15: =Q15*(1+'PF - monthly estimates'!$F$4/100) -> 0
B16: Wholesale & retail trade | O16: =N16*(1+'PF - monthly estimates'!$F$4/100) -> 0 | P16: =O16*(1+'PF - monthly estimates'!$F$4/100) -> 0 | Q16: =P16*(1+'PF - monthly estimates'!$F$4/100) -> 0 | R16: =Q16*(1+'PF - monthly estimates'!$F$4/100) -> 0
B17: Transport services | O17: =N17*(1+'PF - monthly estimates'!$F$4/100) -> 0 | P17: =O17*(1+'PF - monthly estimates'!$F$4/100) -> 0 | Q17: =P17*(1+'PF - monthly estimates'!$F$4/100) -> 0 | R17: =Q17*(1+'PF - monthly estimates'!$F$4/100) -> 0
B18: Hotels & restaurants | O18: =N18*(1+'PF - monthly estimates'!$F$4/100) -> 0 | P18: =O18*(1+'PF - monthly estimates'!$F$4/100) -> 0 | Q18: =P18*(1+'PF - monthly estimates'!$F$4/100) -> 0 | R18: =Q18*(1+'PF - monthly estimates'!$F$4/100) -> 0
B19: Information & communication | O19: =N19*(1+'PF - monthly estimates'!$F$4/100) -> 0 | P19: =O19*(1+'PF - monthly estimates'!$F$4/100) -> 0 | Q19: =P19*(1+'PF - monthly estimates'!$F$4/100) -> 0 | R19: =Q19*(1+'PF - monthly estimates'!$F$4/100) -> 0
B20: Financial services | O20: =N20*(1+'PF - monthly estimates'!$F$4/100) -> 0 | P20: =O20*(1+'PF - monthly estimates'!$F$4/100) -> 0 | Q20: =P20*(1+'PF - monthly estimates'!$F$4/100) -> 0 | R20: =Q20*(1+'PF - monthly estimates'!$F$4/100) -> 0
B21: Real estate activities | O21: =N21*(1+'PF - monthly estimates'!$F$4/100) -> 0 | P21: =O21*(1+'PF - monthly estimates'!$F$4/100) -> 0 | Q21: =P21*(1+'PF - monthly estimates'!$F$4/100) -> 0 | R21: =Q21*(1+'PF - monthly estimates'!$F$4/100) -> 0
B22: Professional, scientific and technical activities | O22: =N22*(1+'PF - monthly estimates'!$F$4/100) -> 0 | P22: =O22*(1+'PF - monthly estimates'!$F$4/100) -> 0 | Q22: =P22*(1+'PF - monthly estimates'!$F$4/100) -> 0 | R22: =Q22*(1+'PF - monthly estimates'!$F$4/100) -> 0
B23: Administrative and support service activities | O23: =N23*(1+'PF - monthly estimates'!$F$4/100) -> 0 | P23: =O23*(1+'PF - monthly estimates'!$F$4/100) -> 0 | Q23: =P23*(1+'PF - monthly estimates'!$F$4/100) -> 0 | R23: =Q23*(1+'PF - monthly estimates'!$F$4/100) -> 0
B24: Public administration and defence; compulsory social security | O24: =N24*(1+'PF - monthly estimates'!$F$4/100) -> 0 | P24: =O24*(1+'PF - monthly estimates'!$F$4/100) -> 0 | Q24: =P24*(1+'PF - monthly estimates'!$F$4/100) -> 0 | R24: =Q24*(1+'PF - monthly estimates'!$F$4/100) -> 0
B25: Education | O25: =N25*(1+'PF - monthly estimates'!$F$4/100) -> 0 | P25: =O25*(1+'PF - monthly estimates'!$F$4/100) -> 0 | Q25: =P25*(1+'PF - monthly estimates'!$F$4/100) -> 0 | R25: =Q25*(1+'PF - monthly estimates'!$F$4/100) -> 0
B26: Human health and social work activities | O26: =N26*(1+'PF - monthly estimates'!$F$4/100) -> 0 | P26: =O26*(1+'PF - monthly estimates'!$F$4/100) -> 0 | Q26: =P26*(1+'PF - monthly estimates'!$F$4/100) -> 0 | R26: =Q26*(1+'PF - monthly estimates'!$F$4/100) -> 0
B27: Cultural, domestic & other services | O27: =N27*(1+'PF - monthly estimates'!$F$4/100) -> 0 | P27: =O27*(1+'PF - monthly estimates'!$F$4/100) -> 0 | Q27: =P27*(1+'PF - monthly estimates'!$F$4/100) -> 0 | R27: =Q27*(1+'PF - monthly estimates'!$F$4/100) -> 0
B28: Taxes less subsidies on products | O28: =N28*(1+'PF - monthly estimates'!$F$4/100) -> 0 | P28: =O28*(1+'PF - monthly estimates'!$F$4/100) -> 0 | Q28: =P28*(1+'PF - monthly estimates'!$F$4/100) -> 0 | R28: =Q28*(1+'PF - monthly estimates'!$F$4/100) -> 0
B29: GDP | F29: =SUM(F9:F28) -> 0 | G29: =SUM(G9:G28) -> 0 | H29: 0 | I29: 0 | J29: 0 | K29: 0 | L29: 0 | M29: 0 | N29: 0 | O29: 0 | P29: 0 | Q29: 0 | R29: 0
B32: =Labels!F58 -> GDP at Current prices (History and Baseline/Trend)
B33: Agriculture, forestry, and fishing | O33: =IFERROR(O9*O57/100,"") ->  | P33: =IFERROR(P9*P57/100,"") -> 
B34: Mining & quarrying | O34: =IFERROR(O10*O58/100,"") -> 
B35: Manufacturing | O35: =IFERROR(O11*O59/100,"") -> 
B36: Electricity | O36: =IFERROR(O12*O60/100,"") -> 
B37: Water & waste management | O37: =IFERROR(O13*O61/100,"") -> 
B38: Construction | O38: =IFERROR(O14*O62/100,"") -> 
B39: Maintenance and repair of motor vehicles | O39: =IFERROR(O15*O63/100,"") -> 
B40: Wholesale & retail trade | O40: =IFERROR(O16*O64/100,"") -> 
B41: Transport services | O41: =IFERROR(O17*O65/100,"") -> 
B42: Hotels & restaurants | O42: =IFERROR(O18*O66/100,"") -> 
B43: Information & communication | O43: =IFERROR(O19*O67/100,"") -> 
B44: Financial services | O44: =IFERROR(O20*O68/100,"") -> 
B45: Real estate activities | O45: =IFERROR(O21*O69/100,"") -> 
B46: Professional, scientific and technical activities | O46: =IFERROR(O22*O70/100,"") -> 
B47: Administrative and support service activities | O47: =IFERROR(O23*O71/100,"") -> 
B48: Public administration and defence; compulsory social security | O48: =IFERROR(O24*O72/100,"") -> 
B49: Education | O49: =IFERROR(O25*O73/100,"") -> 
B50: Human health and social work activities | O50: =IFERROR(O26*O74/100,"") -> 
B51: Cultural, domestic & other services | O51: =IFERROR(O27*O75/100,"") -> 
B52: Taxes less subsidies on products | O52: =IFERROR(O28*O76/100,"") -> 
B53: GDP | F53: =SUM(F33:F52) -> 0 | G53: =SUM(G33:G52) -> 0 | H53: 0 | I53: 0 | J53: 0 | K53: 0 | L53: 0 | M53: 0 | N53: 0 | O53: 0 | P53: 0 | Q53: 0 | R53: 0
B56: =Labels!F59 -> Deflator (History and Basic Forecast)
B57: Agriculture, forestry, and fishing | F57: =IFERROR(F33/F9*100,"") ->  | G57: =IFERROR(G33/G9*100,"") ->  | O57: =IFERROR(N57*(1+'Other Macro'!O$7/100),"") ->  | P57: =IFERROR(O57*(1+'Other Macro'!P$7/100),"") ->  | Q57: =IFERROR(P57*(1+'Other Macro'!Q$7/100),"") ->  | R57: =IFERROR(Q57*(1+'Other Macro'!R$7/100),"") -> 
B58: Mining & quarrying | F58: =IFERROR(F34/F10*100,"") ->  | O58: =IFERROR(N58*(1+'Other Macro'!O$7/100),"") ->  | P58: =IFERROR(O58*(1+'Other Macro'!P$7/100),"") ->  | Q58: =IFERROR(P58*(1+'Other Macro'!Q$7/100),"") ->  | R58: =IFERROR(Q58*(1+'Other Macro'!R$7/100),"") -> 
B59: Manufacturing | F59: =IFERROR(F35/F11*100,"") ->  | O59: =IFERROR(N59*(1+'Other Macro'!O$7/100),"") ->  | P59: =IFERROR(O59*(1+'Other Macro'!P$7/100),"") ->  | Q59: =IFERROR(P59*(1+'Other Macro'!Q$7/100),"") ->  | R59: =IFERROR(Q59*(1+'Other Macro'!R$7/100),"") -> 
B60: Electricity | F60: =IFERROR(F36/F12*100,"") ->  | O60: =IFERROR(N60*(1+'Other Macro'!O$7/100),"") ->  | P60: =IFERROR(O60*(1+'Other Macro'!P$7/100),"") ->  | Q60: =IFERROR(P60*(1+'Other Macro'!Q$7/100),"") ->  | R60: =IFERROR(Q60*(1+'Other Macro'!R$7/100),"") -> 
B61: Water & waste management | F61: =IFERROR(F37/F13*100,"") ->  | O61: =IFERROR(N61*(1+'Other Macro'!O$7/100),"") ->  | P61: =IFERROR(O61*(1+'Other Macro'!P$7/100),"") ->  | Q61: =IFERROR(P61*(1+'Other Macro'!Q$7/100),"") ->  | R61: =IFERROR(Q61*(1+'Other Macro'!R$7/100),"") -> 
B62: Construction | F62: =IFERROR(F38/F14*100,"") ->  | O62: =IFERROR(N62*(1+'Other Macro'!O$7/100),"") ->  | P62: =IFERROR(O62*(1+'Other Macro'!P$7/100),"") ->  | Q62: =IFERROR(P62*(1+'Other Macro'!Q$7/100),"") ->  | R62: =IFERROR(Q62*(1+'Other Macro'!R$7/100),"") -> 
B63: Maintenance and repair of motor vehicles | F63: =IFERROR(F39/F15*100,"") ->  | O63: =IFERROR(N63*(1+'Other Macro'!O$7/100),"") ->  | P63: =IFERROR(O63*(1+'Other Macro'!P$7/100),"") ->  | Q63: =IFERROR(P63*(1+'Other Macro'!Q$7/100),"") ->  | R63: =IFERROR(Q63*(1+'Other Macro'!R$7/100),"") -> 
B64: Wholesale & retail trade | F64: =IFERROR(F40/F16*100,"") ->  | O64: =IFERROR(N64*(1+'Other Macro'!O$7/100),"") ->  | P64: =IFERROR(O64*(1+'Other Macro'!P$7/100),"") ->  | Q64: =IFERROR(P64*(1+'Other Macro'!Q$7/100),"") ->  | R64: =IFERROR(Q64*(1+'Other Macro'!R$7/100),"") -> 
B65: Transport services | F65: =IFERROR(F41/F17*100,"") ->  | O65: =IFERROR(N65*(1+'Other Macro'!O$7/100),"") ->  | P65: =IFERROR(O65*(1+'Other Macro'!P$7/100),"") ->  | Q65: =IFERROR(P65*(1+'Other Macro'!Q$7/100),"") ->  | R65: =IFERROR(Q65*(1+'Other Macro'!R$7/100),"") -> 
B66: Hotels & restaurants | F66: =IFERROR(F42/F18*100,"") ->  | O66: =IFERROR(N66*(1+'Other Macro'!O$7/100),"") ->  | P66: =IFERROR(O66*(1+'Other Macro'!P$7/100),"") ->  | Q66: =IFERROR(P66*(1+'Other Macro'!Q$7/100),"") ->  | R66: =IFERROR(Q66*(1+'Other Macro'!R$7/100),"") -> 
B67: Information & communication | F67: =IFERROR(F43/F19*100,"") ->  | O67: =IFERROR(N67*(1+'Other Macro'!O$7/100),"") ->  | P67: =IFERROR(O67*(1+'Other Macro'!P$7/100),"") ->  | Q67: =IFERROR(P67*(1+'Other Macro'!Q$7/100),"") ->  | R67: =IFERROR(Q67*(1+'Other Macro'!R$7/100),"") -> 
B68: Financial services | F68: =IFERROR(F44/F20*100,"") ->  | O68: =IFERROR(N68*(1+'Other Macro'!O$7/100),"") ->  | P68: =IFERROR(O68*(1+'Other Macro'!P$7/100),"") ->  | Q68: =IFERROR(P68*(1+'Other Macro'!Q$7/100),"") ->  | R68: =IFERROR(Q68*(1+'Other Macro'!R$7/100),"") -> 
B69: Real estate activities | F69: =IFERROR(F45/F21*100,"") ->  | O69: =IFERROR(N69*(1+'Other Macro'!O$7/100),"") ->  | P69: =IFERROR(O69*(1+'Other Macro'!P$7/100),"") ->  | Q69: =IFERROR(P69*(1+'Other Macro'!Q$7/100),"") ->  | R69: =IFERROR(Q69*(1+'Other Macro'!R$7/100),"") -> 
B70: Professional, scientific and technical activities | F70: =IFERROR(F46/F22*100,"") ->  | O70: =IFERROR(N70*(1+'Other Macro'!O$7/100),"") ->  | P70: =IFERROR(O70*(1+'Other Macro'!P$7/100),"") ->  | Q70: =IFERROR(P70*(1+'Other Macro'!Q$7/100),"") ->  | R70: =IFERROR(Q70*(1+'Other Macro'!R$7/100),"") -> 
B71: Administrative and support service activities | F71: =IFERROR(F47/F23*100,"") ->  | O71: =IFERROR(N71*(1+'Other Macro'!O$7/100),"") ->  | P71: =IFERROR(O71*(1+'Other Macro'!P$7/100),"") ->  | Q71: =IFERROR(P71*(1+'Other Macro'!Q$7/100),"") ->  | R71: =IFERROR(Q71*(1+'Other Macro'!R$7/100),"") -> 
B72: Public administration and defence; compulsory social security | F72: =IFERROR(F48/F24*100,"") ->  | O72: =IFERROR(N72*(1+'Other Macro'!O$7/100),"") ->  | P72: =IFERROR(O72*(1+'Other Macro'!P$7/100),"") ->  | Q72: =IFERROR(P72*(1+'Other Macro'!Q$7/100),"") ->  | R72: =IFERROR(Q72*(1+'Other Macro'!R$7/100),"") -> 
B73: Education | F73: =IFERROR(F49/F25*100,"") ->  | O73: =IFERROR(N73*(1+'Other Macro'!O$7/100),"") ->  | P73: =IFERROR(O73*(1+'Other Macro'!P$7/100),"") ->  | Q73: =IFERROR(P73*(1+'Other Macro'!Q$7/100),"") ->  | R73: =IFERROR(Q73*(1+'Other Macro'!R$7/100),"") -> 
B74: Human health and social work activities | F74: =IFERROR(F50/F26*100,"") ->  | O74: =IFERROR(N74*(1+'Other Macro'!O$7/100),"") ->  | P74: =IFERROR(O74*(1+'Other Macro'!P$7/100),"") ->  | Q74: =IFERROR(P74*(1+'Other Macro'!Q$7/100),"") ->  | R74: =IFERROR(Q74*(1+'Other Macro'!R$7/100),"") -> 
B75: Cultural, domestic & other services | F75: =IFERROR(F51/F27*100,"") ->  | O75: =IFERROR(N75*(1+'Other Macro'!O$7/100),"") ->  | P75: =IFERROR(O75*(1+'Other Macro'!P$7/100),"") ->  | Q75: =IFERROR(P75*(1+'Other Macro'!Q$7/100),"") ->  | R75: =IFERROR(Q75*(1+'Other Macro'!R$7/100),"") -> 
B76: Taxes less subsidies on products | F76: =IFERROR(F52/F28*100,"") ->  | O76: =IFERROR(N76*(1+'Other Macro'!O$7/100),"") ->  | P76: =IFERROR(O76*(1+'Other Macro'!P$7/100),"") ->  | Q76: =IFERROR(P76*(1+'Other Macro'!Q$7/100),"") ->  | R76: =IFERROR(Q76*(1+'Other Macro'!R$7/100),"") -> 
B77: GDP | F77: =IFERROR(F53/F29*100,"") ->  | O77: =IFERROR(N77*(1+'Other Macro'!O$7/100),"") ->  | P77: =IFERROR(O77*(1+'Other Macro'!P$7/100),"") ->  | Q77: =IFERROR(P77*(1+'Other Macro'!Q$7/100),"") ->  | R77: =IFERROR(Q77*(1+'Other Macro'!R$7/100),"") -> 
B80: COVID-19 Scenario Levels (Constant Prices)
B81: Agriculture, forestry, and fishing | F81: =F9 -> 0 | G81: =G9 -> 0 | H81: 0 | I81: 0 | J81: 0 | K81: 0 | L81: 0 | M81: 0 | N81: 0 | O81: =IF('Fix Sector Parameter'!J4>1,O9*'Fix Sector Parameter'!J4,IF(O9*'Fix Sector Parameter'!J4>O153,O153,O9*'Fix Sector Parameter'!J4)) -> 0 | P81: =IF('Fix Sector Parameter'!K4>1,P9*'Fix Sector Parameter'!K4,IF(P9*'Fix Sector Parameter'!K4>P153,P153,P9*'Fix Sector Parameter'!K4)) -> 0 | Q81: =IF('Fix Sector Parameter'!L4>1,Q9*'Fix Sector Parameter'!L4,IF(Q9*'Fix Sector Parameter'!L4>Q153,Q153,Q9*'Fix Sector Parameter'!L4)) -> 0 | R81: =R153 -> 0
B82: Mining & quarrying | F82: =F10 -> 0 | G82: 0 | H82: 0 | I82: 0 | J82: 0 | K82: 0 | L82: 0 | M82: 0 | N82: 0 | O82: =IF('Fix Sector Parameter'!J5>1,O10*'Fix Sector Parameter'!J5,IF(O10*'Fix Sector Parameter'!J5>O154,O154,O10*'Fix Sector Parameter'!J5)) -> 0 | P82: =IF('Fix Sector Parameter'!K5>1,P10*'Fix Sector Parameter'!K5,IF(P10*'Fix Sector Parameter'!K5>P154,P154,P10*'Fix Sector Parameter'!K5)) -> 0 | Q82: =IF('Fix Sector Parameter'!L5>1,Q10*'Fix Sector Parameter'!L5,IF(Q10*'Fix Sector Parameter'!L5>Q154,Q154,Q10*'Fix Sector Parameter'!L5)) -> 0 | R82: =R154 -> 0
B83: Manufacturing | F83: =F11 -> 0 | G83: 0 | H83: 0 | I83: 0 | J83: 0 | K83: 0 | L83: 0 | M83: 0 | N83: 0 | O83: =IF('Fix Sector Parameter'!J6>1,O11*'Fix Sector Parameter'!J6,IF(O11*'Fix Sector Parameter'!J6>O155,O155,O11*'Fix Sector Parameter'!J6)) -> 0 | P83: =IF('Fix Sector Parameter'!K6>1,P11*'Fix Sector Parameter'!K6,IF(P11*'Fix Sector Parameter'!K6>P155,P155,P11*'Fix Sector Parameter'!K6)) -> 0 | Q83: =IF('Fix Sector Parameter'!L6>1,Q11*'Fix Sector Parameter'!L6,IF(Q11*'Fix Sector Parameter'!L6>Q155,Q155,Q11*'Fix Sector Parameter'!L6)) -> 0 | R83: 0
B84: Electricity | F84: =F12 -> 0 | G84: 0 | H84: 0 | I84: 0 | J84: 0 | K84: 0 | L84: 0 | M84: 0 | N84: 0 | O84: =IF('Fix Sector Parameter'!J7>1,O12*'Fix Sector Parameter'!J7,IF(O12*'Fix Sector Parameter'!J7>O156,O156,O12*'Fix Sector Parameter'!J7)) -> 0 | P84: =IF('Fix Sector Parameter'!K7>1,P12*'Fix Sector Parameter'!K7,IF(P12*'Fix Sector Parameter'!K7>P156,P156,P12*'Fix Sector Parameter'!K7)) -> 0 | Q84: =IF('Fix Sector Parameter'!L7>1,Q12*'Fix Sector Parameter'!L7,IF(Q12*'Fix Sector Parameter'!L7>Q156,Q156,Q12*'Fix Sector Parameter'!L7)) -> 0 | R84: 0
B85: Water & waste management | F85: =F13 -> 0 | G85: 0 | H85: 0 | I85: 0 | J85: 0 | K85: 0 | L85: 0 | M85: 0 | N85: 0 | O85: =IF('Fix Sector Parameter'!J8>1,O13*'Fix Sector Parameter'!J8,IF(O13*'Fix Sector Parameter'!J8>O157,O157,O13*'Fix Sector Parameter'!J8)) -> 0 | P85: =IF('Fix Sector Parameter'!K8>1,P13*'Fix Sector Parameter'!K8,IF(P13*'Fix Sector Parameter'!K8>P157,P157,P13*'Fix Sector Parameter'!K8)) -> 0 | Q85: =IF('Fix Sector Parameter'!L8>1,Q13*'Fix Sector Parameter'!L8,IF(Q13*'Fix Sector Parameter'!L8>Q157,Q157,Q13*'Fix Sector Parameter'!L8)) -> 0 | R85: 0
B86: Construction | F86: =F14 -> 0 | G86: 0 | H86: 0 | I86: 0 | J86: 0 | K86: 0 | L86: 0 | M86: 0 | N86: 0 | O86: =IF('Fix Sector Parameter'!J9>1,O14*'Fix Sector Parameter'!J9,IF(O14*'Fix Sector Parameter'!J9>O158,O158,O14*'Fix Sector Parameter'!J9)) -> 0 | P86: =IF('Fix Sector Parameter'!K9>1,P14*'Fix Sector Parameter'!K9,IF(P14*'Fix Sector Parameter'!K9>P158,P158,P14*'Fix Sector Parameter'!K9)) -> 0 | Q86: =IF('Fix Sector Parameter'!L9>1,Q14*'Fix Sector Parameter'!L9,IF(Q14*'Fix Sector Parameter'!L9>Q158,Q158,Q14*'Fix Sector Parameter'!L9)) -> 0 | R86: 0
B87: Maintenance and repair of motor vehicles | F87: =F15 -> 0 | G87: 0 | H87: 0 | I87: 0 | J87: 0 | K87: 0 | L87: 0 | M87: 0 | N87: 0 | O87: =IF('Fix Sector Parameter'!J10>1,O15*'Fix Sector Parameter'!J10,IF(O15*'Fix Sector Parameter'!J10>O159,O159,O15*'Fix Sector Parameter'!J10)) -> 0 | P87: =IF('Fix Sector Parameter'!K10>1,P15*'Fix Sector Parameter'!K10,IF(P15*'Fix Sector Parameter'!K10>P159,P159,P15*'Fix Sector Parameter'!K10)) -> 0 | Q87: =IF('Fix Sector Parameter'!L10>1,Q15*'Fix Sector Parameter'!L10,IF(Q15*'Fix Sector Parameter'!L10>Q159,Q159,Q15*'Fix Sector Parameter'!L10)) -> 0 | R87: 0
B88: Wholesale & retail trade | F88: =F16 -> 0 | G88: 0 | H88: 0 | I88: 0 | J88: 0 | K88: 0 | L88: 0 | M88: 0 | N88: 0 | O88: =IF('Fix Sector Parameter'!J11>1,O16*'Fix Sector Parameter'!J11,IF(O16*'Fix Sector Parameter'!J11>O160,O160,O16*'Fix Sector Parameter'!J11)) -> 0 | P88: =IF('Fix Sector Parameter'!K11>1,P16*'Fix Sector Parameter'!K11,IF(P16*'Fix Sector Parameter'!K11>P160,P160,P16*'Fix Sector Parameter'!K11)) -> 0 | Q88: =IF('Fix Sector Parameter'!L11>1,Q16*'Fix Sector Parameter'!L11,IF(Q16*'Fix Sector Parameter'!L11>Q160,Q160,Q16*'Fix Sector Parameter'!L11)) -> 0 | R88: 0
B89: Transport services | F89: =F17 -> 0 | G89: 0 | H89: 0 | I89: 0 | J89: 0 | K89: 0 | L89: 0 | M89: 0 | N89: 0 | O89: =IF('Fix Sector Parameter'!J12>1,O17*'Fix Sector Parameter'!J12,IF(O17*'Fix Sector Parameter'!J12>O161,O161,O17*'Fix Sector Parameter'!J12)) -> 0 | P89: =IF('Fix Sector Parameter'!K12>1,P17*'Fix Sector Parameter'!K12,IF(P17*'Fix Sector Parameter'!K12>P161,P161,P17*'Fix Sector Parameter'!K12)) -> 0 | Q89: =IF('Fix Sector Parameter'!L12>1,Q17*'Fix Sector Parameter'!L12,IF(Q17*'Fix Sector Parameter'!L12>Q161,Q161,Q17*'Fix Sector Parameter'!L12)) -> 0 | R89: 0
B90: Hotels & restaurants | F90: =F18 -> 0 | G90: 0 | H90: 0 | I90: 0 | J90: 0 | K90: 0 | L90: 0 | M90: 0 | N90: 0 | O90: =IF('Fix Sector Parameter'!J13>1,O18*'Fix Sector Parameter'!J13,IF(O18*'Fix Sector Parameter'!J13>O162,O162,O18*'Fix Sector Parameter'!J13)) -> 0 | P90: =IF('Fix Sector Parameter'!K13>1,P18*'Fix Sector Parameter'!K13,IF(P18*'Fix Sector Parameter'!K13>P162,P162,P18*'Fix Sector Parameter'!K13)) -> 0 | Q90: =IF('Fix Sector Parameter'!L13>1,Q18*'Fix Sector Parameter'!L13,IF(Q18*'Fix Sector Parameter'!L13>Q162,Q162,Q18*'Fix Sector Parameter'!L13)) -> 0 | R90: 0
B91: Information & communication | F91: =F19 -> 0 | G91: 0 | H91: 0 | I91: 0 | J91: 0 | K91: 0 | L91: 0 | M91: 0 | N91: 0 | O91: =IF('Fix Sector Parameter'!J14>1,O19*'Fix Sector Parameter'!J14,IF(O19*'Fix Sector Parameter'!J14>O163,O163,O19*'Fix Sector Parameter'!J14)) -> 0 | P91: =IF('Fix Sector Parameter'!K14>1,P19*'Fix Sector Parameter'!K14,IF(P19*'Fix Sector Parameter'!K14>P163,P163,P19*'Fix Sector Parameter'!K14)) -> 0 | Q91: =IF('Fix Sector Parameter'!L14>1,Q19*'Fix Sector Parameter'!L14,IF(Q19*'Fix Sector Parameter'!L14>Q163,Q163,Q19*'Fix Sector Parameter'!L14)) -> 0 | R91: 0
B92: Financial services | F92: =F20 -> 0 | G92: 0 | H92: 0 | I92: 0 | J92: 0 | K92: 0 | L92: 0 | M92: 0 | N92: 0 | O92: =IF('Fix Sector Parameter'!J15>1,O20*'Fix Sector Parameter'!J15,IF(O20*'Fix Sector Parameter'!J15>O164,O164,O20*'Fix Sector Parameter'!J15)) -> 0 | P92: =IF('Fix Sector Parameter'!K15>1,P20*'Fix Sector Parameter'!K15,IF(P20*'Fix Sector Parameter'!K15>P164,P164,P20*'Fix Sector Parameter'!K15)) -> 0 | Q92: =IF('Fix Sector Parameter'!L15>1,Q20*'Fix Sector Parameter'!L15,IF(Q20*'Fix Sector Parameter'!L15>Q164,Q164,Q20*'Fix Sector Parameter'!L15)) -> 0 | R92: 0
B93: Real estate activities | F93: =F21 -> 0 | G93: 0 | H93: 0 | I93: 0 | J93: 0 | K93: 0 | L93: 0 | M93: 0 | N93: 0 | O93: =IF('Fix Sector Parameter'!J16>1,O21*'Fix Sector Parameter'!J16,IF(O21*'Fix Sector Parameter'!J16>O165,O165,O21*'Fix Sector Parameter'!J16)) -> 0 | P93: =IF('Fix Sector Parameter'!K16>1,P21*'Fix Sector Parameter'!K16,IF(P21*'Fix Sector Parameter'!K16>P165,P165,P21*'Fix Sector Parameter'!K16)) -> 0 | Q93: =IF('Fix Sector Parameter'!L16>1,Q21*'Fix Sector Parameter'!L16,IF(Q21*'Fix Sector Parameter'!L16>Q165,Q165,Q21*'Fix Sector Parameter'!L16)) -> 0 | R93: 0
B94: Professional, scientific and technical activities | F94: =F22 -> 0 | G94: 0 | H94: 0 | I94: 0 | J94: 0 | K94: 0 | L94: 0 | M94: 0 | N94: 0 | O94: =IF('Fix Sector Parameter'!J17>1,O22*'Fix Sector Parameter'!J17,IF(O22*'Fix Sector Parameter'!J17>O166,O166,O22*'Fix Sector Parameter'!J17)) -> 0 | P94: =IF('Fix Sector Parameter'!K17>1,P22*'Fix Sector Parameter'!K17,IF(P22*'Fix Sector Parameter'!K17>P166,P166,P22*'Fix Sector Parameter'!K17)) -> 0 | Q94: =IF('Fix Sector Parameter'!L17>1,Q22*'Fix Sector Parameter'!L17,IF(Q22*'Fix Sector Parameter'!L17>Q166,Q166,Q22*'Fix Sector Parameter'!L17)) -> 0 | R94: 0
B95: Administrative and support service activities | F95: =F23 -> 0 | G95: 0 | H95: 0 | I95: 0 | J95: 0 | K95: 0 | L95: 0 | M95: 0 | N95: 0 | O95: =IF('Fix Sector Parameter'!J18>1,O23*'Fix Sector Parameter'!J18,IF(O23*'Fix Sector Parameter'!J18>O167,O167,O23*'Fix Sector Parameter'!J18)) -> 0 | P95: =IF('Fix Sector Parameter'!K18>1,P23*'Fix Sector Parameter'!K18,IF(P23*'Fix Sector Parameter'!K18>P167,P167,P23*'Fix Sector Parameter'!K18)) -> 0 | Q95: =IF('Fix Sector Parameter'!L18>1,Q23*'Fix Sector Parameter'!L18,IF(Q23*'Fix Sector Parameter'!L18>Q167,Q167,Q23*'Fix Sector Parameter'!L18)) -> 0 | R95: 0
B96: Public administration and defence; compulsory social security | F96: =F24 -> 0 | G96: 0 | H96: 0 | I96: 0 | J96: 0 | K96: 0 | L96: 0 | M96: 0 | N96: 0 | O96: =IF('Fix Sector Parameter'!J19>1,O24*'Fix Sector Parameter'!J19,IF(O24*'Fix Sector Parameter'!J19>O168,O168,O24*'Fix Sector Parameter'!J19)) -> 0 | P96: =IF('Fix Sector Parameter'!K19>1,P24*'Fix Sector Parameter'!K19,IF(P24*'Fix Sector Parameter'!K19>P168,P168,P24*'Fix Sector Parameter'!K19)) -> 0 | Q96: =IF('Fix Sector Parameter'!L19>1,Q24*'Fix Sector Parameter'!L19,IF(Q24*'Fix Sector Parameter'!L19>Q168,Q168,Q24*'Fix Sector Parameter'!L19)) -> 0 | R96: 0
B97: Education | F97: =F25 -> 0 | G97: 0 | H97: 0 | I97: 0 | J97: 0 | K97: 0 | L97: 0 | M97: 0 | N97: 0 | O97: =IF('Fix Sector Parameter'!J20>1,O25*'Fix Sector Parameter'!J20,IF(O25*'Fix Sector Parameter'!J20>O169,O169,O25*'Fix Sector Parameter'!J20)) -> 0 | P97: =IF('Fix Sector Parameter'!K20>1,P25*'Fix Sector Parameter'!K20,IF(P25*'Fix Sector Parameter'!K20>P169,P169,P25*'Fix Sector Parameter'!K20)) -> 0 | Q97: =IF('Fix Sector Parameter'!L20>1,Q25*'Fix Sector Parameter'!L20,IF(Q25*'Fix Sector Parameter'!L20>Q169,Q169,Q25*'Fix Sector Parameter'!L20)) -> 0 | R97: 0
B98: Human health and social work activities | F98: =F26 -> 0 | G98: 0 | H98: 0 | I98: 0 | J98: 0 | K98: 0 | L98: 0 | M98: 0 | N98: 0 | O98: =IF('Fix Sector Parameter'!J21>1,O26*'Fix Sector Parameter'!J21,IF(O26*'Fix Sector Parameter'!J21>O170,O170,O26*'Fix Sector Parameter'!J21)) -> 0 | P98: =IF('Fix Sector Parameter'!K21>1,P26*'Fix Sector Parameter'!K21,IF(P26*'Fix Sector Parameter'!K21>P170,P170,P26*'Fix Sector Parameter'!K21)) -> 0 | Q98: =IF('Fix Sector Parameter'!L21>1,Q26*'Fix Sector Parameter'!L21,IF(Q26*'Fix Sector Parameter'!L21>Q170,Q170,Q26*'Fix Sector Parameter'!L21)) -> 0 | R98: 0
B99: Cultural, domestic & other services | F99: =F27 -> 0 | G99: 0 | H99: 0 | I99: 0 | J99: 0 | K99: 0 | L99: 0 | M99: 0 | N99: 0 | O99: =IF('Fix Sector Parameter'!J22>1,O27*'Fix Sector Parameter'!J22,IF(O27*'Fix Sector Parameter'!J22>O171,O171,O27*'Fix Sector Parameter'!J22)) -> 0 | P99: =IF('Fix Sector Parameter'!K22>1,P27*'Fix Sector Parameter'!K22,IF(P27*'Fix Sector Parameter'!K22>P171,P171,P27*'Fix Sector Parameter'!K22)) -> 0 | Q99: =IF('Fix Sector Parameter'!L22>1,Q27*'Fix Sector Parameter'!L22,IF(Q27*'Fix Sector Parameter'!L22>Q171,Q171,Q27*'Fix Sector Parameter'!L22)) -> 0 | R99: 0
B100: Taxes less subsidies on products | F100: =F28 -> 0 | G100: 0 | H100: 0 | I100: 0 | J100: 0 | K100: 0 | L100: 0 | M100: 0 | N100: 0 | O100: =IF('Fix Sector Parameter'!J23>1,O28*'Fix Sector Parameter'!J23,IF(O28*'Fix Sector Parameter'!J23>O172,O172,O28*'Fix Sector Parameter'!J23)) -> 0 | P100: =IF('Fix Sector Parameter'!K23>1,P28*'Fix Sector Parameter'!K23,IF(P28*'Fix Sector Parameter'!K23>P172,P172,P28*'Fix Sector Parameter'!K23)) -> 0 | Q100: =IF('Fix Sector Parameter'!L23>1,Q28*'Fix Sector Parameter'!L23,IF(Q28*'Fix Sector Parameter'!L23>Q172,Q172,Q28*'Fix Sector Parameter'!L23)) -> 0 | R100: 0
B101: GDP | F101: =SUM(F81:F100) -> 0 | G101: =SUM(G81:G100) -> 0 | H101: 0 | I101: 0 | J101: 0 | K101: 0 | L101: 0 | M101: 0 | N101: 0 | O101: 0 | P101: 0 | Q101: 0 | R101: 0
B104: =Labels!F60 -> Shock Scenario Levels (Constant Prices)
B105: Agriculture, forestry, and fishing | F105: =NA() ->  | G105: =IFERROR(G9/F9*100-100,"") ->  | H105: =IFERROR(H9/G9*100-100,"") ->  | O105: =IFERROR(O81/N81*100-100,"") ->  | P105: =IFERROR(P81/O81*100-100,"") -> 
B106: Mining & quarrying | F106: =NA() ->  | G106: =IFERROR(G10/F10*100-100,"") ->  | O106: =IFERROR(O82/N82*100-100,"") -> 
B107: Manufacturing | F107: =NA() ->  | G107: =IFERROR(G11/F11*100-100,"") ->  | O107: =IFERROR(O83/N83*100-100,"") -> 
B108: Electricity | F108: =NA() ->  | G108: =IFERROR(G12/F12*100-100,"") ->  | O108: =IFERROR(O84/N84*100-100,"") -> 
B109: Water & waste management | F109: =NA() ->  | G109: =IFERROR(G13/F13*100-100,"") ->  | O109: =IFERROR(O85/N85*100-100,"") -> 
B110: Construction | F110: =NA() ->  | G110: =IFERROR(G14/F14*100-100,"") ->  | O110: =IFERROR(O86/N86*100-100,"") -> 
B111: Maintenance and repair of motor vehicles | F111: =NA() ->  | G111: =IFERROR(G15/F15*100-100,"") ->  | O111: =IFERROR(O87/N87*100-100,"") -> 
B112: Wholesale & retail trade | F112: =NA() ->  | G112: =IFERROR(G16/F16*100-100,"") ->  | O112: =IFERROR(O88/N88*100-100,"") -> 
B113: Transport services | F113: =NA() ->  | G113: =IFERROR(G17/F17*100-100,"") ->  | O113: =IFERROR(O89/N89*100-100,"") -> 
B114: Hotels & restaurants | F114: =NA() ->  | G114: =IFERROR(G18/F18*100-100,"") ->  | O114: =IFERROR(O90/N90*100-100,"") -> 
B115: Information & communication | F115: =NA() ->  | G115: =IFERROR(G19/F19*100-100,"") ->  | O115: =IFERROR(O91/N91*100-100,"") -> 
B116: Financial services | F116: =NA() ->  | G116: =IFERROR(G20/F20*100-100,"") ->  | O116: =IFERROR(O92/N92*100-100,"") -> 
B117: Real estate activities | F117: =NA() ->  | G117: =IFERROR(G21/F21*100-100,"") ->  | O117: =IFERROR(O93/N93*100-100,"") -> 
B118: Professional, scientific and technical activities | F118: =NA() ->  | G118: =IFERROR(G22/F22*100-100,"") ->  | O118: =IFERROR(O94/N94*100-100,"") -> 
B119: Administrative and support service activities | F119: =NA() ->  | G119: =IFERROR(G23/F23*100-100,"") ->  | O119: =IFERROR(O95/N95*100-100,"") -> 
B120: Public administration and defence; compulsory social security | F120: =NA() ->  | G120: =IFERROR(G24/F24*100-100,"") ->  | O120: =IFERROR(O96/N96*100-100,"") -> 
B121: Education | F121: =NA() ->  | G121: =IFERROR(G25/F25*100-100,"") ->  | O121: =IFERROR(O97/N97*100-100,"") -> 
B122: Human health and social work activities | F122: =NA() ->  | G122: =IFERROR(G26/F26*100-100,"") ->  | O122: =IFERROR(O98/N98*100-100,"") -> 
B123: Cultural, domestic & other services | F123: =NA() ->  | G123: =IFERROR(G27/F27*100-100,"") ->  | O123: =IFERROR(O99/N99*100-100,"") -> 
B124: Taxes less subsidies on products | F124: =NA() ->  | G124: =IFERROR(G28/F28*100-100,"") ->  | O124: =IFERROR(O100/N100*100-100,"") -> 
B125: GDP | F125: =NA() ->  | G125: =IFERROR(G29/F29*100-100,"") ->  | O125: =IFERROR(O101/N101*100-100,"") -> 
B128: =Labels!F61 -> Shock Scenario Growth Rates (Constant Prices)
B129: Agriculture, forestry, and fishing | F129: =F33 -> 0 | G129: =G33 -> 0 | H129: 0 | I129: 0 | J129: 0 | K129: 0 | L129: 0 | M129: 0 | N129: 0 | O129: =IFERROR(O81*O57/100,"") ->  | P129: =IFERROR(P81*P57/100,"") -> 
B130: Mining & quarrying | F130: =F34 -> 0 | G130: 0 | H130: 0 | I130: 0 | J130: 0 | K130: 0 | L130: 0 | M130: 0 | N130: 0 | O130: =IFERROR(O82*O58/100,"") -> 
B131: Manufacturing | F131: =F35 -> 0 | G131: 0 | H131: 0 | I131: 0 | J131: 0 | K131: 0 | L131: 0 | M131: 0 | N131: 0 | O131: =IFERROR(O83*O59/100,"") -> 
B132: Electricity | F132: =F36 -> 0 | G132: 0 | H132: 0 | I132: 0 | J132: 0 | K132: 0 | L132: 0 | M132: 0 | N132: 0 | O132: =IFERROR(O84*O60/100,"") -> 
B133: Water & waste management | F133: =F37 -> 0 | G133: 0 | H133: 0 | I133: 0 | J133: 0 | K133: 0 | L133: 0 | M133: 0 | N133: 0 | O133: =IFERROR(O85*O61/100,"") -> 
B134: Construction | F134: =F38 -> 0 | G134: 0 | H134: 0 | I134: 0 | J134: 0 | K134: 0 | L134: 0 | M134: 0 | N134: 0 | O134: =IFERROR(O86*O62/100,"") -> 
B135: Maintenance and repair of motor vehicles | F135: =F39 -> 0 | G135: 0 | H135: 0 | I135: 0 | J135: 0 | K135: 0 | L135: 0 | M135: 0 | N135: 0 | O135: =IFERROR(O87*O63/100,"") -> 
B136: Wholesale & retail trade | F136: =F40 -> 0 | G136: 0 | H136: 0 | I136: 0 | J136: 0 | K136: 0 | L136: 0 | M136: 0 | N136: 0 | O136: =IFERROR(O88*O64/100,"") -> 
B137: Transport services | F137: =F41 -> 0 | G137: 0 | H137: 0 | I137: 0 | J137: 0 | K137: 0 | L137: 0 | M137: 0 | N137: 0 | O137: =IFERROR(O89*O65/100,"") -> 
B138: Hotels & restaurants | F138: =F42 -> 0 | G138: 0 | H138: 0 | I138: 0 | J138: 0 | K138: 0 | L138: 0 | M138: 0 | N138: 0 | O138: =IFERROR(O90*O66/100,"") -> 
B139: Information & communication | F139: =F43 -> 0 | G139: 0 | H139: 0 | I139: 0 | J139: 0 | K139: 0 | L139: 0 | M139: 0 | N139: 0 | O139: =IFERROR(O91*O67/100,"") -> 
B140: Financial services | F140: =F44 -> 0 | G140: 0 | H140: 0 | I140: 0 | J140: 0 | K140: 0 | L140: 0 | M140: 0 | N140: 0 | O140: =IFERROR(O92*O68/100,"") -> 
B141: Real estate activities | F141: =F45 -> 0 | G141: 0 | H141: 0 | I141: 0 | J141: 0 | K141: 0 | L141: 0 | M141: 0 | N141: 0 | O141: =IFERROR(O93*O69/100,"") -> 
B142: Professional, scientific and technical activities | F142: =F46 -> 0 | G142: 0 | H142: 0 | I142: 0 | J142: 0 | K142: 0 | L142: 0 | M142: 0 | N142: 0 | O142: =IFERROR(O94*O70/100,"") -> 
B143: Administrative and support service activities | F143: =F47 -> 0 | G143: 0 | H143: 0 | I143: 0 | J143: 0 | K143: 0 | L143: 0 | M143: 0 | N143: 0 | O143: =IFERROR(O95*O71/100,"") -> 
B144: Public administration and defence; compulsory social security | F144: =F48 -> 0 | G144: 0 | H144: 0 | I144: 0 | J144: 0 | K144: 0 | L144: 0 | M144: 0 | N144: 0 | O144: =IFERROR(O96*O72/100,"") -> 
B145: Education | F145: =F49 -> 0 | G145: 0 | H145: 0 | I145: 0 | J145: 0 | K145: 0 | L145: 0 | M145: 0 | N145: 0 | O145: =IFERROR(O97*O73/100,"") -> 
B146: Human health and social work activities | F146: =F50 -> 0 | G146: 0 | H146: 0 | I146: 0 | J146: 0 | K146: 0 | L146: 0 | M146: 0 | N146: 0 | O146: =IFERROR(O98*O74/100,"") -> 
B147: Cultural, domestic & other services | F147: =F51 -> 0 | G147: 0 | H147: 0 | I147: 0 | J147: 0 | K147: 0 | L147: 0 | M147: 0 | N147: 0 | O147: =IFERROR(O99*O75/100,"") -> 
B148: Taxes less subsidies on products | F148: =F52 -> 0 | G148: 0 | H148: 0 | I148: 0 | J148: 0 | K148: 0 | L148: 0 | M148: 0 | N148: 0 | O148: =IFERROR(O100*O76/100,"") -> 
B149: GDP | F149: =F53 -> 0 | G149: 0 | H149: 0 | I149: 0 | J149: 0 | K149: 0 | L149: 0 | M149: 0 | N149: 0 | O149: =SUM(O129:O148) -> 0 | P149: =SUM(P129:P148) -> 0 | Q149: 0 | R149: 0
B152: =Labels!F62 -> Shock Scenario Levels (Current Prices)
B153: Agriculture, forestry, and fishing | F153: =F9 -> 0 | G153: =G9 -> 0 | H153: 0 | I153: 0 | J153: 0 | K153: 0 | L153: 0 | M153: 0 | N153: 0 | O153: =N153*(1+O177/100) -> 0 | P153: =O153*(1+P177/100) -> 0 | Q153: 0 | R153: 0
B154: Mining & quarrying | F154: =F10 -> 0 | G154: 0 | H154: 0 | I154: 0 | J154: 0 | K154: 0 | L154: 0 | M154: 0 | N154: 0 | O154: =N154*(1+O178/100) -> 0 | P154: 0 | Q154: 0 | R154: 0
B155: Manufacturing | F155: =F11 -> 0 | G155: 0 | H155: 0 | I155: 0 | J155: 0 | K155: 0 | L155: 0 | M155: 0 | N155: 0 | O155: =N155*(1+O179/100) -> 0 | P155: 0 | Q155: 0 | R155: 0
B156: Electricity | F156: =F12 -> 0 | G156: 0 | H156: 0 | I156: 0 | J156: 0 | K156: 0 | L156: 0 | M156: 0 | N156: 0 | O156: =N156*(1+O180/100) -> 0 | P156: 0 | Q156: 0 | R156: 0
B157: Water & waste management | F157: =F13 -> 0 | G157: 0 | H157: 0 | I157: 0 | J157: 0 | K157: 0 | L157: 0 | M157: 0 | N157: 0 | O157: =N157*(1+O181/100) -> 0 | P157: 0 | Q157: 0 | R157: 0
B158: Construction | F158: =F14 -> 0 | G158: 0 | H158: 0 | I158: 0 | J158: 0 | K158: 0 | L158: 0 | M158: 0 | N158: 0 | O158: =N158*(1+O182/100) -> 0 | P158: 0 | Q158: 0 | R158: 0
B159: Maintenance and repair of motor vehicles | F159: =F15 -> 0 | G159: 0 | H159: 0 | I159: 0 | J159: 0 | K159: 0 | L159: 0 | M159: 0 | N159: 0 | O159: =N159*(1+O183/100) -> 0 | P159: 0 | Q159: 0 | R159: 0
B160: Wholesale & retail trade | F160: =F16 -> 0 | G160: 0 | H160: 0 | I160: 0 | J160: 0 | K160: 0 | L160: 0 | M160: 0 | N160: 0 | O160: =N160*(1+O184/100) -> 0 | P160: 0 | Q160: 0 | R160: 0
B161: Transport services | F161: =F17 -> 0 | G161: 0 | H161: 0 | I161: 0 | J161: 0 | K161: 0 | L161: 0 | M161: 0 | N161: 0 | O161: =N161*(1+O185/100) -> 0 | P161: 0 | Q161: 0 | R161: 0
B162: Hotels & restaurants | F162: =F18 -> 0 | G162: 0 | H162: 0 | I162: 0 | J162: 0 | K162: 0 | L162: 0 | M162: 0 | N162: 0 | O162: =N162*(1+O186/100) -> 0 | P162: 0 | Q162: 0 | R162: 0
B163: Information & communication | F163: =F19 -> 0 | G163: 0 | H163: 0 | I163: 0 | J163: 0 | K163: 0 | L163: 0 | M163: 0 | N163: 0 | O163: =N163*(1+O187/100) -> 0 | P163: 0 | Q163: 0 | R163: 0
B164: Financial services | F164: =F20 -> 0 | G164: 0 | H164: 0 | I164: 0 | J164: 0 | K164: 0 | L164: 0 | M164: 0 | N164: 0 | O164: =N164*(1+O188/100) -> 0 | P164: 0 | Q164: 0 | R164: 0
B165: Real estate activities | F165: =F21 -> 0 | G165: 0 | H165: 0 | I165: 0 | J165: 0 | K165: 0 | L165: 0 | M165: 0 | N165: 0 | O165: =N165*(1+O189/100) -> 0 | P165: 0 | Q165: 0 | R165: 0
B166: Professional, scientific and technical activities | F166: =F22 -> 0 | G166: 0 | H166: 0 | I166: 0 | J166: 0 | K166: 0 | L166: 0 | M166: 0 | N166: 0 | O166: =N166*(1+O190/100) -> 0 | P166: 0 | Q166: 0 | R166: 0
B167: Administrative and support service activities | F167: =F23 -> 0 | G167: 0 | H167: 0 | I167: 0 | J167: 0 | K167: 0 | L167: 0 | M167: 0 | N167: 0 | O167: =N167*(1+O191/100) -> 0 | P167: 0 | Q167: 0 | R167: 0
B168: Public administration and defence; compulsory social security | F168: =F24 -> 0 | G168: 0 | H168: 0 | I168: 0 | J168: 0 | K168: 0 | L168: 0 | M168: 0 | N168: 0 | O168: =N168*(1+O192/100) -> 0 | P168: 0 | Q168: 0 | R168: 0
B169: Education | F169: =F25 -> 0 | G169: 0 | H169: 0 | I169: 0 | J169: 0 | K169: 0 | L169: 0 | M169: 0 | N169: 0 | O169: =N169*(1+O193/100) -> 0 | P169: 0 | Q169: 0 | R169: 0
B170: Human health and social work activities | F170: =F26 -> 0 | G170: 0 | H170: 0 | I170: 0 | J170: 0 | K170: 0 | L170: 0 | M170: 0 | N170: 0 | O170: =N170*(1+O194/100) -> 0 | P170: 0 | Q170: 0 | R170: 0
B171: Cultural, domestic & other services | F171: =F27 -> 0 | G171: 0 | H171: 0 | I171: 0 | J171: 0 | K171: 0 | L171: 0 | M171: 0 | N171: 0 | O171: =N171*(1+O195/100) -> 0 | P171: 0 | Q171: 0 | R171: 0
B172: Taxes less subsidies on products | F172: =F28 -> 0 | G172: 0 | H172: 0 | I172: 0 | J172: 0 | K172: 0 | L172: 0 | M172: 0 | N172: 0 | O172: =N172*(1+O196/100) -> 0 | P172: 0 | Q172: 0 | R172: 0
B173: GDP | F173: =SUM(F153:F172) -> 0 | G173: =SUM(G153:G172) -> 0 | H173: 0 | I173: 0 | J173: 0 | K173: 0 | L173: 0 | M173: 0 | N173: 0 | O173: 0 | P173: 0 | Q173: 0 | R173: 0
B176: =Labels!F63 -> PF Levels
B177: Agriculture, forestry, and fishing | F177: =NA() ->  | G177: =IFERROR(G9/F9*100-100,"") ->  | H177: =IFERROR(H9/G9*100-100,"") ->  | O177: ='PF - annual estimates'!G$25 -> 7.924314656 | P177: ='PF - annual estimates'!G$26 -> 8.023826161 | Q177: ='PF - annual estimates'!G$27 -> 8.019399875 | R177: ='PF - annual estimates'!G$28 -> 8.015071898
B178: Mining & quarrying | F178: =NA() ->  | G178: =IFERROR(G10/F10*100-100,"") ->  | O178: ='PF - annual estimates'!G$25 -> 7.924314656 | P178: ='PF - annual estimates'!G$26 -> 8.023826161 | Q178: ='PF - annual estimates'!G$27 -> 8.019399875 | R178: ='PF - annual estimates'!G$28 -> 8.015071898
B179: Manufacturing | F179: =NA() ->  | G179: =IFERROR(G11/F11*100-100,"") ->  | O179: ='PF - annual estimates'!G$25 -> 7.924314656 | P179: ='PF - annual estimates'!G$26 -> 8.023826161 | Q179: ='PF - annual estimates'!G$27 -> 8.019399875 | R179: ='PF - annual estimates'!G$28 -> 8.015071898
B180: Electricity | F180: =NA() ->  | G180: =IFERROR(G12/F12*100-100,"") ->  | O180: ='PF - annual estimates'!G$25 -> 7.924314656 | P180: ='PF - annual estimates'!G$26 -> 8.023826161 | Q180: ='PF - annual estimates'!G$27 -> 8.019399875 | R180: ='PF - annual estimates'!G$28 -> 8.015071898
B181: Water & waste management | F181: =NA() ->  | G181: =IFERROR(G13/F13*100-100,"") ->  | O181: ='PF - annual estimates'!G$25 -> 7.924314656 | P181: ='PF - annual estimates'!G$26 -> 8.023826161 | Q181: ='PF - annual estimates'!G$27 -> 8.019399875 | R181: ='PF - annual estimates'!G$28 -> 8.015071898
B182: Construction | F182: =NA() ->  | G182: =IFERROR(G14/F14*100-100,"") ->  | O182: ='PF - annual estimates'!G$25 -> 7.924314656 | P182: ='PF - annual estimates'!G$26 -> 8.023826161 | Q182: ='PF - annual estimates'!G$27 -> 8.019399875 | R182: ='PF - annual estimates'!G$28 -> 8.015071898
B183: Maintenance and repair of motor vehicles | F183: =NA() ->  | G183: =IFERROR(G15/F15*100-100,"") ->  | O183: ='PF - annual estimates'!G$25 -> 7.924314656 | P183: ='PF - annual estimates'!G$26 -> 8.023826161 | Q183: ='PF - annual estimates'!G$27 -> 8.019399875 | R183: ='PF - annual estimates'!G$28 -> 8.015071898
B184: Wholesale & retail trade | F184: =NA() ->  | G184: =IFERROR(G16/F16*100-100,"") ->  | O184: ='PF - annual estimates'!G$25 -> 7.924314656 | P184: ='PF - annual estimates'!G$26 -> 8.023826161 | Q184: ='PF - annual estimates'!G$27 -> 8.019399875 | R184: ='PF - annual estimates'!G$28 -> 8.015071898
B185: Transport services | F185: =NA() ->  | G185: =IFERROR(G17/F17*100-100,"") ->  | O185: ='PF - annual estimates'!G$25 -> 7.924314656 | P185: ='PF - annual estimates'!G$26 -> 8.023826161 | Q185: ='PF - annual estimates'!G$27 -> 8.019399875 | R185: ='PF - annual estimates'!G$28 -> 8.015071898
B186: Hotels & restaurants | F186: =NA() ->  | G186: =IFERROR(G18/F18*100-100,"") ->  | O186: ='PF - annual estimates'!G$25 -> 7.924314656 | P186: ='PF - annual estimates'!G$26 -> 8.023826161 | Q186: ='PF - annual estimates'!G$27 -> 8.019399875 | R186: ='PF - annual estimates'!G$28 -> 8.015071898
B187: Information & communication | F187: =NA() ->  | G187: =IFERROR(G19/F19*100-100,"") ->  | O187: ='PF - annual estimates'!G$25 -> 7.924314656 | P187: ='PF - annual estimates'!G$26 -> 8.023826161 | Q187: ='PF - annual estimates'!G$27 -> 8.019399875 | R187: ='PF - annual estimates'!G$28 -> 8.015071898
B188: Financial services | F188: =NA() ->  | G188: =IFERROR(G20/F20*100-100,"") ->  | O188: ='PF - annual estimates'!G$25 -> 7.924314656 | P188: ='PF - annual estimates'!G$26 -> 8.023826161 | Q188: ='PF - annual estimates'!G$27 -> 8.019399875 | R188: ='PF - annual estimates'!G$28 -> 8.015071898
B189: Real estate activities | F189: =NA() ->  | G189: =IFERROR(G21/F21*100-100,"") ->  | O189: ='PF - annual estimates'!G$25 -> 7.924314656 | P189: ='PF - annual estimates'!G$26 -> 8.023826161 | Q189: ='PF - annual estimates'!G$27 -> 8.019399875 | R189: ='PF - annual estimates'!G$28 -> 8.015071898
B190: Professional, scientific and technical activities | F190: =NA() ->  | G190: =IFERROR(G22/F22*100-100,"") ->  | O190: ='PF - annual estimates'!G$25 -> 7.924314656 | P190: ='PF - annual estimates'!G$26 -> 8.023826161 | Q190: ='PF - annual estimates'!G$27 -> 8.019399875 | R190: ='PF - annual estimates'!G$28 -> 8.015071898
B191: Administrative and support service activities | F191: =NA() ->  | G191: =IFERROR(G23/F23*100-100,"") ->  | O191: ='PF - annual estimates'!G$25 -> 7.924314656 | P191: ='PF - annual estimates'!G$26 -> 8.023826161 | Q191: ='PF - annual estimates'!G$27 -> 8.019399875 | R191: ='PF - annual estimates'!G$28 -> 8.015071898
B192: Public administration and defence; compulsory social security | F192: =NA() ->  | G192: =IFERROR(G24/F24*100-100,"") ->  | O192: ='PF - annual estimates'!G$25 -> 7.924314656 | P192: ='PF - annual estimates'!G$26 -> 8.023826161 | Q192: ='PF - annual estimates'!G$27 -> 8.019399875 | R192: ='PF - annual estimates'!G$28 -> 8.015071898
B193: Education | F193: =NA() ->  | G193: =IFERROR(G25/F25*100-100,"") ->  | O193: ='PF - annual estimates'!G$25 -> 7.924314656 | P193: ='PF - annual estimates'!G$26 -> 8.023826161 | Q193: ='PF - annual estimates'!G$27 -> 8.019399875 | R193: ='PF - annual estimates'!G$28 -> 8.015071898
B194: Human health and social work activities | F194: =NA() ->  | G194: =IFERROR(G26/F26*100-100,"") ->  | O194: ='PF - annual estimates'!G$25 -> 7.924314656 | P194: ='PF - annual estimates'!G$26 -> 8.023826161 | Q194: ='PF - annual estimates'!G$27 -> 8.019399875 | R194: ='PF - annual estimates'!G$28 -> 8.015071898
B195: Cultural, domestic & other services | F195: =NA() ->  | G195: =IFERROR(G27/F27*100-100,"") ->  | O195: ='PF - annual estimates'!G$25 -> 7.924314656 | P195: ='PF - annual estimates'!G$26 -> 8.023826161 | Q195: ='PF - annual estimates'!G$27 -> 8.019399875 | R195: ='PF - annual estimates'!G$28 -> 8.015071898
B196: Taxes less subsidies on products | F196: =NA() ->  | G196: =IFERROR(G28/F28*100-100,"") ->  | O196: ='PF - annual estimates'!G$25 -> 7.924314656 | P196: ='PF - annual estimates'!G$26 -> 8.023826161 | Q196: ='PF - annual estimates'!G$27 -> 8.019399875 | R196: ='PF - annual estimates'!G$28 -> 8.015071898
B197: GDP | F197: =NA() ->  | G197: =IFERROR(G29/F29*100-100,"") ->  | O197: ='PF - annual estimates'!G$25 -> 7.924314656 | P197: ='PF - annual estimates'!G$26 -> 8.023826161 | Q197: ='PF - annual estimates'!G$27 -> 8.019399875 | R197: ='PF - annual estimates'!G$28 -> 8.015071898

Sheet GDP (E)
B1: =Labels!F51 -> Shock Scenario | E1: =IF('Setup File and Task Panel'!C7='GDP (P)'!E1,'GDP (P)'!E1,"") ->  | F1: ='GDP (P)'!F1 -> 2013 | G1: ='GDP (P)'!G1 -> 2014 | H1: ='GDP (P)'!H1 -> 2015 | I1: ='GDP (P)'!I1 -> 2016 | J1: ='GDP (P)'!J1 -> 2017 | K1: ='GDP (P)'!K1 -> 2018 | L1: ='GDP (P)'!L1 -> 2019 | M1: ='GDP (P)'!M1 -> 2020 | N1: ='GDP (P)'!N1 -> 2021 | O1: ='GDP (P)'!O1 -> 2022 | P1: ='GDP (P)'!P1 -> 2023 | Q1: ='GDP (P)'!Q1 -> 2024 | R1: ='GDP (P)'!R1 -> 2025
B2: =Labels!F65 -> Current Prices
B3: =Labels!F66 -> Total consumption | F3: =IFERROR(F4+F5,"") -> 0 | G3: 0 | H3: 0 | I3: 0 | J3: 0 | K3: 0 | L3: 0 | M3: 0 | N3: 0 | O3: =IFERROR(O4+O5,"") ->  | P3: =IFERROR(P4+P5,"") ->  | Q3: =IFERROR(Q4+Q5,"") ->  | R3: =IFERROR(R4+R5,"") -> 
B4: =Labels!F67 -> Government consumption | O4: =IFERROR(SUM(EXPENDITURE!O8,EXPENDITURE!O11)/SUM(EXPENDITURE!N8,EXPENDITURE!N11)*N4,"") ->  | P4: =IFERROR(SUM(EXPENDITURE!P8,EXPENDITURE!P11)/SUM(EXPENDITURE!O8,EXPENDITURE!O11)*O4,"") ->  | Q4: =IFERROR(SUM(EXPENDITURE!Q8,EXPENDITURE!Q11)/SUM(EXPENDITURE!P8,EXPENDITURE!P11)*P4,"") ->  | R4: =IFERROR(SUM(EXPENDITURE!R8,EXPENDITURE!R11)/SUM(EXPENDITURE!Q8,EXPENDITURE!Q11)*Q4,"") -> 
B5: =Labels!F68 -> Private consumption | O5: =IFERROR(O28/N28*(1+O17/100)*N5,"") ->  | P5: =IFERROR(P28/O28*(1+P17/100)*O5,"") ->  | Q5: =IFERROR(Q28/P28*(1+Q17/100)*P5,"") ->  | R5: =IFERROR(R28/Q28*(1+R17/100)*Q5,"") -> 
B6: =Labels!F69 -> Total investment | F6: =IFERROR(F7+F10,"") -> 0 | G6: 0 | H6: 0 | I6: 0 | J6: 0 | K6: 0 | L6: 0 | M6: 0 | N6: 0 | O6: =IFERROR(O7+O10,"") ->  | P6: =IFERROR(P7+P10,"") ->  | Q6: =IFERROR(Q7+Q10,"") ->  | R6: =IFERROR(R7+R10,"") -> 
B7: =Labels!F70 -> Gross fixed capital formation | O7: =IFERROR(O8+O9,"") ->  | P7: =IFERROR(P8+P9,"") ->  | Q7: =IFERROR(Q8+Q9,"") ->  | R7: =IFERROR(R8+R9,"") -> 
B8: =Labels!F71 -> Public investments | O8: =IFERROR(O31/N31*(1+O18/100)*N8,"") ->  | P8: =IFERROR(P31/O31*(1+P18/100)*O8,"") ->  | Q8: =IFERROR(Q31/P31*(1+Q18/100)*P8,"") ->  | R8: =IFERROR(R31/Q31*(1+R18/100)*Q8,"") -> 
B9: =Labels!F72 -> Private Investment | O9: =IFERROR(O32/N32*(1+O18/100)*N9,"") ->  | P9: =IFERROR(P32/O32*(1+P18/100)*O9,"") ->  | Q9: =IFERROR(Q32/P32*(1+Q18/100)*P9,"") ->  | R9: =IFERROR(R32/Q32*(1+R18/100)*Q9,"") -> 
B10: =Labels!F73 -> Changes in stocks | O10: =IFERROR(IF(N10=0,0,O33/N33*(1+O18/100)*N10),"") -> 0 | P10: =IFERROR(IF(O10=0,0,P33/O33*(1+P18/100)*O10),"") -> 0 | Q10: =IFERROR(IF(P10=0,0,Q33/P33*(1+Q18/100)*P10),"") -> 0 | R10: =IFERROR(IF(Q10=0,0,R33/Q33*(1+R18/100)*Q10),"") -> 0
B11: =Labels!F74 -> Gross domestic expenditure | F11: =IFERROR(F6+F3,"") -> 0 | G11: 0 | H11: 0 | I11: 0 | J11: 0 | K11: 0 | L11: 0 | M11: 0 | N11: 0 | O11: =IFERROR(O6+O3,"") ->  | P11: =IFERROR(P6+P3,"") ->  | Q11: =IFERROR(Q6+Q3,"") ->  | R11: =IFERROR(R6+R3,"") -> 
B12: =Labels!F75 -> Exports of goods and services | O12: =IFERROR(O35/N35*(1+O19/100)*N12,"") ->  | P12: =IFERROR(P35/O35*(1+P19/100)*O12,"") ->  | Q12: =IFERROR(Q35/P35*(1+Q19/100)*P12,"") ->  | R12: =IFERROR(R35/Q35*(1+R19/100)*Q12,"") -> 
B13: =Labels!F76 -> Imports of goods and services | O13: =IFERROR(O36/N36*(1+O19/100)*N13,"") ->  | P13: =IFERROR(P36/O36*(1+P19/100)*O13,"") ->  | Q13: =IFERROR(Q36/P36*(1+Q19/100)*P13,"") ->  | R13: =IFERROR(R36/Q36*(1+R19/100)*Q13,"") -> 
B14: =Labels!F77 -> Total GDP | F14: =IFERROR(F3+F6+F12-F13,"") -> 0 | G14: 0 | H14: 0 | I14: 0 | J14: 0 | K14: 0 | L14: 0 | M14: 0 | N14: 0 | O14: =IFERROR(O3+O6+O12-O13,"") ->  | P14: =IFERROR(P3+P6+P12-P13,"") ->  | Q14: =IFERROR(Q3+Q6+Q12-Q13,"") ->  | R14: =IFERROR(R3+R6+R12-R13,"") -> 
B17: =Labels!F78 -> Consumption deflator growth | E17: =IF(E$3<>"",'Other Macro'!E5,"") ->  | F17: =IFERROR(F21/E21*100-100,"") ->  | G17: =IFERROR(G21/F21*100-100,"") ->  | O17: ='Other Macro'!O5*O49 -> 0 | P17: ='Other Macro'!P5*P49 -> 0 | Q17: ='Other Macro'!Q5*Q49 -> 0 | R17: ='Other Macro'!R5*R49 -> 0
B18: =Labels!F79 -> Investment deflator growth | E18: =IF(E$3<>"",'Other Macro'!E6,"") ->  | F18: =IFERROR(F22/E22*100-100,"") ->  | O18: ='Other Macro'!O6*O49 -> 0 | P18: ='Other Macro'!P6*P49 -> 0 | Q18: ='Other Macro'!Q6*Q49 -> 0 | R18: ='Other Macro'!R6*R49 -> 0
B19: =Labels!F80 -> Exchange rate (USD) growth | E19: =IF(E$3<>"",'Other Macro'!E13,"") ->  | F19: =IFERROR(F23/E23*100-100,"") ->  | O19: ='Other Macro'!O11 ->  | P19: ='Other Macro'!P11 ->  | Q19: ='Other Macro'!Q11 ->  | R19: ='Other Macro'!R11 -> 
B21: =Labels!F81 -> Consumption deflator | E21: =IF(E3<>"",F21/(1+E17/100),"") ->  | F21: =IFERROR(F3/F26*100,"") ->  | G21: =IFERROR(G3/G26*100,"") ->  | O21: =IFERROR(N21*(1+O17/100),"") -> 
B22: =Labels!F82 -> Investment deflator | E22: =IF(E4<>"",F22/(1+E18/100),"") ->  | F22: =IFERROR(F6/F29*100,"") ->  | N22: =IFERROR(N6/N29*100,"") -> 
B23: =Labels!F83 -> Trade deflator | E23: =IFERROR(IF(E5<>"",F23/(1+E19/100),""),"") ->  | F23: =IFERROR(F12/F35*100,"") ->  | N23: =IFERROR(N12/N35*100,"") -> 
B25: =Labels!F84 -> Constant Prices
B26: =B3 -> Total consumption | F26: =IFERROR(F27+F28,"") -> 0 | G26: 0 | H26: 0 | I26: 0 | J26: 0 | K26: 0 | L26: 0 | M26: 0 | N26: 0 | O26: =IFERROR(O27+O28,"") ->  | P26: =IFERROR(P27+P28,"") ->  | Q26: =IFERROR(Q27+Q28,"") ->  | R26: =IFERROR(R27+R28,"") -> 
B27: =B4 -> Government consumption | O27: =IF(O4<>"",O4/((O21/100)),"") ->  | P27: =IF(P4<>"",P4/((P21/100)),"") ->  | Q27: =IF(Q4<>"",Q4/((Q21/100)),"") ->  | R27: =IF(R4<>"",R4/((R21/100)),"") -> 
B28: Private consumption | O28: =IFERROR(N28*(1+O53)*O48,"") -> 0 | P28: =IFERROR(O28*(1+P53)*P48,"") -> 0 | Q28: =IFERROR(P28*(1+Q53)*Q48,"") -> 0 | R28: =IFERROR(Q28*(1+R53)*R48,"") -> 0
B29: Total investment | F29: =IF(F3<>"",F30+F33,"") -> 0 | G29: 0 | H29: 0 | I29: 0 | J29: 0 | K29: 0 | L29: 0 | M29: 0 | N29: 0 | O29: =IF(O3<>"",O30+O33,"") ->  | P29: =IF(P3<>"",P30+P33,"") ->  | Q29: =IF(Q3<>"",Q30+Q33,"") ->  | R29: =IF(R3<>"",R30+R33,"") -> 
B30: Gross fixed capital formation | O30: =IF(O3<>"",O31+O32,"") ->  | P30: =IF(P3<>"",P31+P32,"") ->  | Q30: =IF(Q3<>"",Q31+Q32,"") ->  | R30: =IF(R3<>"",R31+R32,"") -> 
B31: Public investments | O31: =IFERROR(N31*(EXPENDITURE!O21/EXPENDITURE!N21),"") ->  | P31: =IFERROR(O31*(EXPENDITURE!P21/EXPENDITURE!O21),"") ->  | Q31: =IFERROR(P31*(EXPENDITURE!Q21/EXPENDITURE!P21),"") ->  | R31: =IFERROR(Q31*(EXPENDITURE!R21/EXPENDITURE!Q21),"") -> 
B32: Private Investment | O32: =IFERROR(N32*(1+O54)*O48,"") -> 0 | P32: =IFERROR(O32*(1+P54)*P48,"") -> 0 | Q32: =IFERROR(P32*(1+Q54)*Q48,"") -> 0 | R32: =IFERROR(Q32*(1+R54)*R48,"") -> 0
B33: Changes in stocks | O33: =IFERROR(IF(N33=0,0,O43*O30),"") -> 0 | P33: =IFERROR(IF(O33=0,0,P43*P30),"") -> 0 | Q33: =IFERROR(IF(P33=0,0,Q43*Q30),"") -> 0 | R33: =IFERROR(IF(Q33=0,0,R43*R30),"") -> 0
B34: Gross domestic expenditure | F34: =IF(F26<>"",F29+F26,"") -> 0 | G34: 0 | H34: 0 | I34: 0 | J34: 0 | K34: 0 | L34: 0 | M34: 0 | N34: 0 | O34: =IF(O26<>"",O29+O26,"") ->  | P34: =IF(P26<>"",P29+P26,"") ->  | Q34: =IF(Q26<>"",Q29+Q26,"") ->  | R34: =IF(R26<>"",R29+R26,"") -> 
B35: Exports of goods and services | O35: =IFERROR(N35*(1+O54),"") -> 0 | P35: =IFERROR(O35*(1+P54),"") -> 0 | Q35: =IFERROR(P35*(1+Q54),"") -> 0 | R35: =IFERROR(Q35*(1+R54),"") -> 0
B36: Imports of goods and services | O36: =IFERROR(O42*(O26+O29),"") ->  | P36: =IFERROR(P42*(P26+P29),"") ->  | Q36: =IFERROR(Q42*(Q26+Q29),"") ->  | R36: =IFERROR(R42*(R26+R29),"") -> 
B37: Total GDP | F37: =IFERROR(F26+F29+F35-F36,"") -> 0 | G37: 0 | H37: 0 | I37: 0 | J37: 0 | K37: 0 | L37: 0 | M37: 0 | N37: 0 | O37: =IFERROR(O26+O29+O35-O36,"") ->  | P37: =IFERROR(P26+P29+P35-P36,"") ->  | Q37: =IFERROR(Q26+Q29+Q35-Q36,"") ->  | R37: =IFERROR(R26+R29+R35-R36,"") -> 
B39: =Labels!F91 -> Deflator | E39: =IF(E14<>"",E14/E37*100,"") ->  | F39: =IFERROR(F14/F37*100,"") ->  | G39: =IFERROR(G14/G37*100,"") ->  | O39: =IF(O14<>"",O14/O37*100,"") ->  | P39: =IF(P14<>"",P14/P37*100,"") ->  | Q39: =IF(Q14<>"",Q14/Q37*100,"") ->  | R39: =IF(R14<>"",R14/R37*100,"") -> 
B40: =Labels!F92 -> Deflator growth | E40: =IF(E39<>"",E39/D39*100-100,"") ->  | F40: =IF(F39<>"",F39/E39*100-100,"") ->  | L40: =IF(K39<>"",L39/K39*100-100,"") ->  | M40: =IF(L39<>"",M39/L39*100-100,"") ->  | N40: =IF(M39<>"",N39/M39*100-100,"") ->  | O40: =IFERROR(IF(N39<>"",O39/N39*100-100,""),"") ->  | P40: =IFERROR(IF(O39<>"",P39/O39*100-100,""),"") ->  | Q40: =IFERROR(IF(P39<>"",Q39/P39*100-100,""),"") ->  | R40: =IFERROR(IF(Q39<>"",R39/Q39*100-100,""),"") -> 
B42: =Labels!F85 -> Imports share of (I + C) | E42: =IFERROR(E36/(E26+E29),"") ->  | L42: =IFERROR(L36/(L26+L29),"") ->  | M42: =IFERROR(M36/(M26+M29),"") ->  | N42: =IFERROR(N36/(N26+N29),"") ->  | O42: =IFERROR(AVERAGE(L42:N42),"") ->  | P42: =O42 -> 
B43: =Labels!F86 -> Change in stocks share of I | E43: =IFERROR(E33/(E31+E32),"") ->  | M43: =IFERROR(M33/(M31+M32),"") ->  | N43: =IFERROR(N33/(N31+N32),"") ->  | O43: =IFERROR(AVERAGE(L43:N43),"") -> 
B44: =Labels!F87 -> Domestic
B46: =Labels!F88 -> Stat discrepancy (real) | C46: =SUM(O46:R46) -> 0 | E46: =IF(E37="","",E37-'GDP (P)'!E3) ->  | F46: =IF(F37="","",F37-'GDP (P)'!F3) -> 0 | G46: =IF(G37="","",G37-'GDP (P)'!G3) -> 0 | H46: =IF(H37="","",H37-'GDP (P)'!H3) -> 0 | I46: =IF(I37="","",I37-'GDP (P)'!I3) -> 0 | J46: =IF(J37="","",J37-'GDP (P)'!J3) -> 0 | K46: =IF(K37="","",K37-'GDP (P)'!K3) -> 0 | L46: =IF(L37="","",L37-'GDP (P)'!L3) -> 0 | M46: =IF(M37="","",M37-'GDP (P)'!M3) -> 0 | N46: =IF(N37="","",N37-'GDP (P)'!N3) -> 0 | O46: =IF(O37="","",O37-'GDP (P)'!O3) ->  | P46: =IF(P37="","",P37-'GDP (P)'!P3) ->  | Q46: =IF(Q37="","",Q37-'GDP (P)'!Q3) ->  | R46: =IF(R37="","",R37-'GDP (P)'!R3) -> 
B47: =Labels!F89 -> Stat discrepancy (nominal) | C47: =SUM(O47:R47) -> 0 | E47: =IF(E14="","",E14-'GDP (P)'!E2) ->  | F47: =IF(F14="","",F14-'GDP (P)'!F2) -> 0 | G47: =IF(G14="","",G14-'GDP (P)'!G2) -> 0 | H47: =IF(H14="","",H14-'GDP (P)'!H2) -> 0 | I47: =IF(I14="","",I14-'GDP (P)'!I2) -> 0 | J47: =IF(J14="","",J14-'GDP (P)'!J2) -> 0 | K47: =IF(K14="","",K14-'GDP (P)'!K2) -> 0 | L47: =IF(L14="","",L14-'GDP (P)'!L2) -> 0 | M47: =IF(M14="","",M14-'GDP (P)'!M2) -> 0 | N47: =IF(N14="","",N14-'GDP (P)'!N2) -> 0 | O47: =IF(O14="","",O14-'GDP (P)'!O2) ->  | P47: =IF(P14="","",P14-'GDP (P)'!P2) ->  | Q47: =IF(Q14="","",Q14-'GDP (P)'!Q2) ->  | R47: =IF(R14="","",R14-'GDP (P)'!R2) -> 
O48: 0.8319229581 | P48: 0.9797721524 | Q48: 0.9978610822 | R48: 0.9947819066
O49: 0.4014204946 | P49: 2.708669093 | Q49: 0.9169854148 | R49: 0.8955948594
O50: 0 | P50: 0 | Q50: 0 | R50: 0
B52: =Labels!F90 -> Mapping from the P-side
B53: =Labels!F68 -> Private consumption | O53: =IFERROR(SUMPRODUCT($C60:$C79,'GDP (P)'!O105:O124)/100,"") -> 0 | P53: =IFERROR(SUMPRODUCT($C60:$C79,'GDP (P)'!P105:P124)/100,"") -> 0 | Q53: =IFERROR(SUMPRODUCT($C60:$C79,'GDP (P)'!Q105:Q124)/100,"") -> 0 | R53: =IFERROR(SUMPRODUCT($C60:$C79,'GDP (P)'!R105:R124)/100,"") -> 0
B54: =Labels!F72 -> Private Investment | O54: =IFERROR(SUMPRODUCT($D60:$D79,'GDP (P)'!O105:O124)/100,"") -> 0 | P54: =IFERROR(SUMPRODUCT($D60:$D79,'GDP (P)'!P105:P124)/100,"") -> 0 | Q54: =IFERROR(SUMPRODUCT($D60:$D79,'GDP (P)'!Q105:Q124)/100,"") -> 0 | R54: =IFERROR(SUMPRODUCT($D60:$D79,'GDP (P)'!R105:R124)/100,"") -> 0
B55: =Labels!F75 -> Exports of goods and services | O55: =IFERROR(SUMPRODUCT($E60:$E79,'GDP (P)'!O105:O124)/100,"") -> 0 | P55: =IFERROR(SUMPRODUCT($E60:$E79,'GDP (P)'!P105:P124)/100,"") -> 0 | Q55: =IFERROR(SUMPRODUCT($E60:$E79,'GDP (P)'!Q105:Q124)/100,"") -> 0 | R55: =IFERROR(SUMPRODUCT($E60:$E79,'GDP (P)'!R105:R124)/100,"") -> 0
B59: =Labels!F16 -> GDP (E) Mapping | C59: =Labels!F93 -> CONS | D59: =Labels!F94 -> INV | E59: =Labels!F95 -> EXP
B60: Agriculture, forestry, and fishing
B61: Mining & quarrying
B62: Manufacturing
B63: Electricity
B64: Water & waste management
B65: Construction
B66: Maintenance and repair of motor vehicles
B67: Wholesale & retail trade
B68: Transport services
B69: Hotels & restaurants
B70: Information & communication
B71: Financial services
B72: Real estate activities
B73: Professional, scientific and technical activities
B74: Administrative and support service activities
B75: Public administration and defence; compulsory social security
B76: Education
B77: Human health and social work activities
B78: Cultural, domestic & other services
B79: Taxes less subsidies on products
B80: Total | C80: =SUM(C60:C79) -> 0 | D80: =SUM(D60:D79) -> 0 | E80: 0

Sheet Other Macro
E1: ='GDP (P)'!E1 -> 2012 | F1: ='GDP (P)'!F1 -> 2013 | G1: ='GDP (P)'!G1 -> 2014 | H1: ='GDP (P)'!H1 -> 2015 | I1: ='GDP (P)'!I1 -> 2016 | J1: ='GDP (P)'!J1 -> 2017 | K1: ='GDP (P)'!K1 -> 2018 | L1: ='GDP (P)'!L1 -> 2019 | M1: ='GDP (P)'!M1 -> 2020 | N1: ='GDP (P)'!N1 -> 2021 | O1: ='GDP (P)'!O1 -> 2022 | P1: ='GDP (P)'!P1 -> 2023 | Q1: ='GDP (P)'!Q1 -> 2024 | R1: ='GDP (P)'!R1 -> 2025
B4: =Labels!F96&'Setup File and Task Panel'!C4 &")" -> Nominal Exchange Rate (United States / Macrofiscalia) | P4: =IFERROR(O4*(1+P12/100),"") ->  | Q4: =IFERROR(P4*(1+Q12/100),"") ->  | R4: =IFERROR(Q4*(1+R12/100),"") -> 
B5: =Labels!F97 -> Consumption deflator growth
B6: =Labels!F98 -> Investment deflator growth
B7: =Labels!F99 -> GDP deflator growth
B9: =Labels!F100 -> Change in employment, y-o-y, in % | M9: 0 | N9: 0 | O9: ='PF - monthly estimates'!AE100/'PF - monthly estimates'!AE99*100-100 -> 7.924314656 | P9: ='PF - monthly estimates'!AE101/'PF - monthly estimates'!AE100*100-100 -> 8.023826161 | Q9: ='PF - monthly estimates'!AE102/'PF - monthly estimates'!AE101*100-100 -> 8.019399875 | R9: ='PF - monthly estimates'!AE103/'PF - monthly estimates'!AE102*100-100 -> 8.015071898
B11: =Labels!F101 -> Growth in Nominal Exchange Rate | E11: =IFERROR(E4/D4*100-100,"") ->  | R11: =IFERROR(R4/Q4*100-100,"") -> 
B12: =Labels!F102 -> Average deflator less US CPI (for RER) | E12: =IFERROR(AVERAGE(E5:E6)-1.5,"") ->  | R12: =IFERROR(AVERAGE(R5:R6)-1.5,"") -> 

Sheet REVENUE
E1: ='GDP (P)'!E1 -> 2012 | F1: ='GDP (P)'!F1 -> 2013 | G1: ='GDP (P)'!G1 -> 2014 | H1: ='GDP (P)'!H1 -> 2015 | I1: ='GDP (P)'!I1 -> 2016 | J1: ='GDP (P)'!J1 -> 2017 | K1: ='GDP (P)'!K1 -> 2018 | L1: ='GDP (P)'!L1 -> 2019 | M1: ='GDP (P)'!M1 -> 2020 | N1: ='GDP (P)'!N1 -> 2021 | O1: ='GDP (P)'!O1 -> 2022 | P1: ='GDP (P)'!P1 -> 2023 | Q1: ='GDP (P)'!Q1 -> 2024 | R1: ='GDP (P)'!R1 -> 2025
B4: =Labels!F103 -> SCENARIO (2021 Budget)
B5: =Labels!F104 -> Tax Revenue | E5: =IF(E21<>"",E21,"") ->  | F5: 0 | G5: 0 | H5: 0 | I5: 0 | J5: 0 | K5: 0 | L5: 0 | M5: 0 | N5: 0 | O5: =O21 ->  | P5: =P21 ->  | Q5: =Q21 ->  | R5: =R21 -> 
B6: =Labels!F105 -> Non-Tax Revenue | E6: =IF(E35="","",E35) ->  | F6: 0 | G6: 0 | H6: 0 | I6: 0 | J6: 0 | K6: 0 | L6: 0 | M6: 0 | N6: 0 | O6: =O35 -> 0 | P6: =P35 -> 0 | Q6: =Q35 -> 0 | R6: =R35 -> 0
B7: =Labels!F106 -> Grants | E7: =IF(E39="","",E39) ->  | O7: =O39 -> 0 | P7: =P39 -> 0 | Q7: =Q39 -> 0 | R7: =R39 -> 0
B8: =Labels!F107 -> Total Revenue excl. Grants | E8: =IF(E40="","",E40) ->  | F8: 0 | G8: 0 | H8: 0 | I8: 0 | J8: 0 | K8: 0 | L8: 0 | M8: 0 | N8: 0 | O8: =O40 -> 
B9: =Labels!F108 -> Total Revenue | E9: =IF(E41="","",E41) ->  | F9: 0 | G9: 0 | H9: 0 | I9: 0 | J9: 0 | K9: 0 | L9: 0 | M9: 0 | N9: 0
B11: =Labels!F109 -> BASELINE (2021 Budget)
B12: =Labels!F104 -> Tax Revenue | E12: =IF(E21="","",E21) ->  | F12: 0 | G12: 0 | H12: 0 | I12: 0 | J12: 0 | K12: 0 | L12: 0 | M12: 0 | N12: 0
B13: =Labels!F105 -> Non-Tax Revenue | E13: =IF(E35="","",E35) ->  | F13: 0 | G13: 0 | H13: 0 | I13: 0 | J13: 0 | K13: 0 | L13: 0 | M13: 0 | N13: 0
B14: =Labels!F106 -> Grants | E14: =IF(E39="","",E39) -> 
B15: =Labels!F107 -> Total Revenue excl. Grants | E15: =IF(E40="","",E40) ->  | F15: 0 | G15: 0 | H15: 0 | I15: 0 | J15: 0 | K15: 0 | L15: 0 | M15: 0 | N15: 0 | O15: =O16-O14 -> 0 | P15: =P16-P14 -> 0 | Q15: =Q16-Q14 -> 0 | R15: =R16-R14 -> 0
B16: =Labels!F108 -> Total Revenue | E16: =IF(E41="","",E41) ->  | F16: 0 | G16: 0 | H16: 0 | I16: 0 | J16: 0 | K16: 0 | L16: 0 | M16: 0 | N16: 0 | O16: =O12+O13+O14 -> 0 | P16: 0 | Q16: 0 | R16: =R12+R13+R14 -> 0
O18: =+SUMIFS('Policy Responses'!O$3:O$50,'Policy Responses'!$B$3:$B$50,'Policy Responses'!$T$6) -> 0
B19: =Labels!F110 -> MODELLED
B20: =Labels!F111 -> TOTAL REVENUE | F20: =IFERROR(F21+F35+F39,"") -> 0 | G20: 0 | H20: 0 | I20: 0 | J20: 0 | K20: 0 | L20: 0 | M20: 0 | N20: 0 | O20: =IFERROR(O21+O35+O39,"") ->  | R20: =IFERROR(R21+R35+R39,"") -> 
B21: =Labels!F112 -> Tax revenues | F21: =IFERROR(F22+F28+F31+F34,"") -> 0 | G21: 0 | H21: 0 | I21: 0 | J21: 0 | K21: 0 | L21: 0 | M21: 0 | N21: 0 | O21: =IFERROR(O22+O28+O31+O34,"") ->  | P21: =IFERROR(P22+P28+P31+P34,"") ->  | Q21: =IFERROR(Q22+Q28+Q31+Q34,"") ->  | R21: =IFERROR(R22+R28+R31+R34,"") -> 
B22: =Labels!F113 -> a.Income Tax | F22: =IFERROR(F23+F26+F27,"") -> 0 | G22: 0 | H22: 0 | I22: 0 | J22: 0 | K22: 0 | L22: 0 | M22: 0 | N22: 0 | O22: =IFERROR(O23+O26+O27,"") ->  | P22: =IFERROR(P23+P26+P27,"") ->  | Q22: =IFERROR(Q23+Q26+Q27,"") ->  | R22: =IFERROR(R23+R26+R27,"") -> 
B23: =Labels!F114 -> Company tax | D23: =NA() ->  | E23: =NA() ->  | O23: =IFERROR(O24+O25,"") -> 0 | P23: =IFERROR(P24+P25,"") -> 0 | Q23: 0 | R23: 0
B24: =Labels!F115 -> o/w commodity based | D24: =NA() ->  | E24: =NA() ->  | O24: =IFERROR(IF($D48=$B$77,O48*VLOOKUP($C48,$B$66:$R$71,COLUMN()-1,FALSE),IF($D48=$B$78,((O48*((VLOOKUP($C48,$B$66:$R$71,COLUMN()-1,FALSE)/VLOOKUP($C48,$B$66:$R$71,COLUMN()-2,FALSE)-1))+1)*N24)))+SUMIFS('Policy Responses'!O$3:O$50,'Policy Responses'!$B$3:$B$50,'Policy Responses'!$T$5),"") -> 0 | P24: =IFERROR(IF($D48=$B$77,P48*VLOOKUP($C48,$B$66:$R$71,COLUMN()-1,FALSE),IF($D48=$B$78,((P48*((VLOOKUP($C48,$B$66:$R$71,COLUMN()-1,FALSE)/VLOOKUP($C48,$B$66:$R$71,COLUMN()-2,FALSE)-1))+1)*O24)))+SUMIFS('Policy Responses'!P$3:P$50,'Policy Responses'!$B$3:$B$50,'Policy Responses'!$T$5),"") -> 0 | Q24: =IFERROR(IF($D48=$B$77,Q48*VLOOKUP($C48,$B$66:$R$71,COLUMN()-1,FALSE),IF($D48=$B$78,((Q48*((VLOOKUP($C48,$B$66:$R$71,COLUMN()-1,FALSE)/VLOOKUP($C48,$B$66:$R$71,COLUMN()-2,FALSE)-1))+1)*P24)))+SUMIFS('Policy Responses'!Q$3:Q$50,'Policy Responses'!$B$3:$B$50,'Policy Responses'!$T$5),"") -> 0 | R24: =IFERROR(IF($D48=$B$77,R48*VLOOKUP($C48,$B$66:$R$71,COLUMN()-1,FALSE),IF($D48=$B$78,((R48*((VLOOKUP($C48,$B$66:$R$71,COLUMN()-1,FALSE)/VLOOKUP($C48,$B$66:$R$71,COLUMN()-2,FALSE)-1))+1)*Q24)))+SUMIFS('Policy Responses'!R$3:R$50,'Policy Responses'!$B$3:$B$50,'Policy Responses'!$T$5),"") -> 0
B25: =Labels!F116 -> o/w non commodity based | D25: =NA() ->  | E25: =NA() ->  | O25: =IFERROR(IF($D49=$B$77,O49*VLOOKUP($C49,$B$66:$R$71,COLUMN()-1,FALSE),IF($D49=$B$78,((O49*((VLOOKUP($C49,$B$66:$R$71,COLUMN()-1,FALSE)/VLOOKUP($C49,$B$66:$R$71,COLUMN()-2,FALSE)-1))+1)*N25)))+SUMIFS('Policy Responses'!O$3:O$50,'Policy Responses'!$B$3:$B$50,'Policy Responses'!$T$6),"") -> 0 | P25: =IFERROR(IF($D49=$B$77,P49*VLOOKUP($C49,$B$66:$R$71,COLUMN()-1,FALSE),IF($D49=$B$78,((P49*((VLOOKUP($C49,$B$66:$R$71,COLUMN()-1,FALSE)/VLOOKUP($C49,$B$66:$R$71,COLUMN()-2,FALSE)-1))+1)*O25)))+SUMIFS('Policy Responses'!P$3:P$50,'Policy Responses'!$B$3:$B$50,'Policy Responses'!$T$6),"") -> 0 | Q25: =IFERROR(IF($D49=$B$77,Q49*VLOOKUP($C49,$B$66:$R$71,COLUMN()-1,FALSE),IF($D49=$B$78,((Q49*((VLOOKUP($C49,$B$66:$R$71,COLUMN()-1,FALSE)/VLOOKUP($C49,$B$66:$R$71,COLUMN()-2,FALSE)-1))+1)*P25)))+SUMIFS('Policy Responses'!Q$3:Q$50,'Policy Responses'!$B$3:$B$50,'Policy Responses'!$T$6),"") -> 0 | R25: =IFERROR(IF($D49=$B$77,R49*VLOOKUP($C49,$B$66:$R$71,COLUMN()-1,FALSE),IF($D49=$B$78,((R49*((VLOOKUP($C49,$B$66:$R$71,COLUMN()-1,FALSE)/VLOOKUP($C49,$B$66:$R$71,COLUMN()-2,FALSE)-1))+1)*Q25)))+SUMIFS('Policy Responses'!R$3:R$50,'Policy Responses'!$B$3:$B$50,'Policy Responses'!$T$6),"") -> 0
B26: =Labels!F117 -> Individuals | D26: =NA() ->  | E26: =NA() ->  | O26: =IFERROR(IF($D50=$B$77,O50*VLOOKUP($C50,$B$66:$R$71,COLUMN()-1,FALSE),IF($D50=$B$78,((O50*((VLOOKUP($C50,$B$66:$R$71,COLUMN()-1,FALSE)/VLOOKUP($C50,$B$66:$R$71,COLUMN()-2,FALSE)-1))+1)*N26)))+SUMIFS('Policy Responses'!O$3:O$50,'Policy Responses'!$B$3:$B$50,'Policy Responses'!$T$7),"") ->  | P26: =IFERROR(IF($D50=$B$77,P50*VLOOKUP($C50,$B$66:$R$71,COLUMN()-1,FALSE),IF($D50=$B$78,((P50*((VLOOKUP($C50,$B$66:$R$71,COLUMN()-1,FALSE)/VLOOKUP($C50,$B$66:$R$71,COLUMN()-2,FALSE)-1))+1)*O26)))+SUMIFS('Policy Responses'!P$3:P$50,'Policy Responses'!$B$3:$B$50,'Policy Responses'!$T$7),"") ->  | Q26: =IFERROR(IF($D50=$B$77,Q50*VLOOKUP($C50,$B$66:$R$71,COLUMN()-1,FALSE),IF($D50=$B$78,((Q50*((VLOOKUP($C50,$B$66:$R$71,COLUMN()-1,FALSE)/VLOOKUP($C50,$B$66:$R$71,COLUMN()-2,FALSE)-1))+1)*P26)))+SUMIFS('Policy Responses'!Q$3:Q$50,'Policy Responses'!$B$3:$B$50,'Policy Responses'!$T$7),"") ->  | R26: =IFERROR(IF($D50=$B$77,R50*VLOOKUP($C50,$B$66:$R$71,COLUMN()-1,FALSE),IF($D50=$B$78,((R50*((VLOOKUP($C50,$B$66:$R$71,COLUMN()-1,FALSE)/VLOOKUP($C50,$B$66:$R$71,COLUMN()-2,FALSE)-1))+1)*Q26)))+SUMIFS('Policy Responses'!R$3:R$50,'Policy Responses'!$B$3:$B$50,'Policy Responses'!$T$7),"") -> 
B27: =Labels!F118 -> Other income tax | D27: =NA() ->  | E27: =NA() ->  | O27: =IFERROR(IF($D51=$B$77,O51*VLOOKUP($C51,$B$66:$R$71,COLUMN()-1,FALSE),IF($D51=$B$78,((O51*((VLOOKUP($C51,$B$66:$R$71,COLUMN()-1,FALSE)/VLOOKUP($C51,$B$66:$R$71,COLUMN()-2,FALSE)-1))+1)*N27)))+SUMIFS('Policy Responses'!O$3:O$50,'Policy Responses'!$B$3:$B$50,'Policy Responses'!$T$8),"") -> 0 | P27: =IFERROR(IF($D51=$B$77,P51*VLOOKUP($C51,$B$66:$R$71,COLUMN()-1,FALSE),IF($D51=$B$78,((P51*((VLOOKUP($C51,$B$66:$R$71,COLUMN()-1,FALSE)/VLOOKUP($C51,$B$66:$R$71,COLUMN()-2,FALSE)-1))+1)*O27)))+SUMIFS('Policy Responses'!P$3:P$50,'Policy Responses'!$B$3:$B$50,'Policy Responses'!$T$8),"") -> 0 | Q27: =IFERROR(IF($D51=$B$77,Q51*VLOOKUP($C51,$B$66:$R$71,COLUMN()-1,FALSE),IF($D51=$B$78,((Q51*((VLOOKUP($C51,$B$66:$R$71,COLUMN()-1,FALSE)/VLOOKUP($C51,$B$66:$R$71,COLUMN()-2,FALSE)-1))+1)*P27)))+SUMIFS('Policy Responses'!Q$3:Q$50,'Policy Responses'!$B$3:$B$50,'Policy Responses'!$T$8),"") -> 0 | R27: =IFERROR(IF($D51=$B$77,R51*VLOOKUP($C51,$B$66:$R$71,COLUMN()-1,FALSE),IF($D51=$B$78,((R51*((VLOOKUP($C51,$B$66:$R$71,COLUMN()-1,FALSE)/VLOOKUP($C51,$B$66:$R$71,COLUMN()-2,FALSE)-1))+1)*Q27)))+SUMIFS('Policy Responses'!R$3:R$50,'Policy Responses'!$B$3:$B$50,'Policy Responses'!$T$8),"") -> 0
B28: =Labels!F119 -> b.Value Added Tax | F28: =IFERROR(F29+F30,"") -> 0 | G28: 0 | H28: 0 | I28: 0 | J28: 0 | K28: 0 | L28: 0 | M28: 0 | N28: 0 | O28: =IFERROR(O29+O30,"") ->  | P28: =IFERROR(P29+P30,"") -> 
B29: =Labels!F120 -> o/w Domestic | D29: =NA() ->  | E29: =NA() ->  | O29: =IFERROR(IF($D53=$B$77,O53*VLOOKUP($C53,$B$66:$R$71,COLUMN()-1,FALSE),IF($D53=$B$78,((O53*((VLOOKUP($C53,$B$66:$R$71,COLUMN()-1,FALSE)/VLOOKUP($C53,$B$66:$R$71,COLUMN()-2,FALSE)-1))+1)*N29)))+SUMIFS('Policy Responses'!O$3:O$50,'Policy Responses'!$B$3:$B$50,'Policy Responses'!$T$9),"") ->  | P29: =IFERROR(IF($D53=$B$77,P53*VLOOKUP($C53,$B$66:$R$71,COLUMN()-1,FALSE),IF($D53=$B$78,((P53*((VLOOKUP($C53,$B$66:$R$71,COLUMN()-1,FALSE)/VLOOKUP($C53,$B$66:$R$71,COLUMN()-2,FALSE)-1))+1)*O29)))+SUMIFS('Policy Responses'!P$3:P$50,'Policy Responses'!$B$3:$B$50,'Policy Responses'!$T$9),"") ->  | Q29: =IFERROR(IF($D53=$B$77,Q53*VLOOKUP($C53,$B$66:$R$71,COLUMN()-1,FALSE),IF($D53=$B$78,((Q53*((VLOOKUP($C53,$B$66:$R$71,COLUMN()-1,FALSE)/VLOOKUP($C53,$B$66:$R$71,COLUMN()-2,FALSE)-1))+1)*P29)))+SUMIFS('Policy Responses'!Q$3:Q$50,'Policy Responses'!$B$3:$B$50,'Policy Responses'!$T$9),"") ->  | R29: =IFERROR(IF($D53=$B$77,R53*VLOOKUP($C53,$B$66:$R$71,COLUMN()-1,FALSE),IF($D53=$B$78,((R53*((VLOOKUP($C53,$B$66:$R$71,COLUMN()-1,FALSE)/VLOOKUP($C53,$B$66:$R$71,COLUMN()-2,FALSE)-1))+1)*Q29)))+SUMIFS('Policy Responses'!R$3:R$50,'Policy Responses'!$B$3:$B$50,'Policy Responses'!$T$9),"") -> 
B30: =Labels!F121 -> o/w Import-based | D30: =NA() ->  | E30: =NA() ->  | O30: =IFERROR(IF($D54=$B$77,O54*VLOOKUP($C54,$B$66:$R$71,COLUMN()-1,FALSE),IF($D54=$B$78,((O54*((VLOOKUP($C54,$B$66:$R$71,COLUMN()-1,FALSE)/VLOOKUP($C54,$B$66:$R$71,COLUMN()-2,FALSE)-1))+1)*N30)))+SUMIFS('Policy Responses'!O$3:O$50,'Policy Responses'!$B$3:$B$50,'Policy Responses'!$T$10),"") -> 0 | P30: =IFERROR(IF($D54=$B$77,P54*VLOOKUP($C54,$B$66:$R$71,COLUMN()-1,FALSE),IF($D54=$B$78,((P54*((VLOOKUP($C54,$B$66:$R$71,COLUMN()-1,FALSE)/VLOOKUP($C54,$B$66:$R$71,COLUMN()-2,FALSE)-1))+1)*O30)))+SUMIFS('Policy Responses'!P$3:P$50,'Policy Responses'!$B$3:$B$50,'Policy Responses'!$T$10),"") -> 0 | Q30: =IFERROR(IF($D54=$B$77,Q54*VLOOKUP($C54,$B$66:$R$71,COLUMN()-1,FALSE),IF($D54=$B$78,((Q54*((VLOOKUP($C54,$B$66:$R$71,COLUMN()-1,FALSE)/VLOOKUP($C54,$B$66:$R$71,COLUMN()-2,FALSE)-1))+1)*P30)))+SUMIFS('Policy Responses'!Q$3:Q$50,'Policy Responses'!$B$3:$B$50,'Policy Responses'!$T$10),"") -> 0 | R30: =IFERROR(IF($D54=$B$77,R54*VLOOKUP($C54,$B$66:$R$71,COLUMN()-1,FALSE),IF($D54=$B$78,((R54*((VLOOKUP($C54,$B$66:$R$71,COLUMN()-1,FALSE)/VLOOKUP($C54,$B$66:$R$71,COLUMN()-2,FALSE)-1))+1)*Q30)))+SUMIFS('Policy Responses'!R$3:R$50,'Policy Responses'!$B$3:$B$50,'Policy Responses'!$T$10),"") -> 0
B31: =Labels!F122 -> c. Customs and Excise duty | F31: =IFERROR(F32+F33,"") -> 0 | G31: 0 | H31: 0 | I31: 0 | J31: 0 | K31: 0 | L31: 0 | M31: 0 | N31: 0 | O31: =IFERROR(O32+O33,"") -> 0 | P31: =IFERROR(P32+P33,"") -> 0 | Q31: 0 | R31: 0
B32: =Labels!F123 -> o/w Customs duty | D32: =NA() ->  | E32: =NA() ->  | O32: =IFERROR(IF($D56=$B$77,O56*VLOOKUP($C56,$B$66:$R$71,COLUMN()-1,FALSE),IF($D56=$B$78,((O56*((VLOOKUP($C56,$B$66:$R$71,COLUMN()-1,FALSE)/VLOOKUP($C56,$B$66:$R$71,COLUMN()-2,FALSE)-1))+1)*N32)))+SUMIFS('Policy Responses'!O$3:O$50,'Policy Responses'!$B$3:$B$50,'Policy Responses'!$T$11),"") -> 0 | P32: =IFERROR(IF($D56=$B$77,P56*VLOOKUP($C56,$B$66:$R$71,COLUMN()-1,FALSE),IF($D56=$B$78,((P56*((VLOOKUP($C56,$B$66:$R$71,COLUMN()-1,FALSE)/VLOOKUP($C56,$B$66:$R$71,COLUMN()-2,FALSE)-1))+1)*O32)))+SUMIFS('Policy Responses'!P$3:P$50,'Policy Responses'!$B$3:$B$50,'Policy Responses'!$T$11),"") -> 0 | Q32: =IFERROR(IF($D56=$B$77,Q56*VLOOKUP($C56,$B$66:$R$71,COLUMN()-1,FALSE),IF($D56=$B$78,((Q56*((VLOOKUP($C56,$B$66:$R$71,COLUMN()-1,FALSE)/VLOOKUP($C56,$B$66:$R$71,COLUMN()-2,FALSE)-1))+1)*P32)))+SUMIFS('Policy Responses'!Q$3:Q$50,'Policy Responses'!$B$3:$B$50,'Policy Responses'!$T$11),"") -> 0 | R32: =IFERROR(IF($D56=$B$77,R56*VLOOKUP($C56,$B$66:$R$71,COLUMN()-1,FALSE),IF($D56=$B$78,((R56*((VLOOKUP($C56,$B$66:$R$71,COLUMN()-1,FALSE)/VLOOKUP($C56,$B$66:$R$71,COLUMN()-2,FALSE)-1))+1)*Q32)))+SUMIFS('Policy Responses'!R$3:R$50,'Policy Responses'!$B$3:$B$50,'Policy Responses'!$T$11),"") -> 0
B33: =Labels!F124 -> o/w Excise duty | D33: =NA() ->  | E33: =NA() ->  | O33: =IFERROR(IF($D57=$B$77,O57*VLOOKUP($C57,$B$66:$R$71,COLUMN()-1,FALSE),IF($D57=$B$78,((O57*((VLOOKUP($C57,$B$66:$R$71,COLUMN()-1,FALSE)/VLOOKUP($C57,$B$66:$R$71,COLUMN()-2,FALSE)-1))+1)*N33)))+SUMIFS('Policy Responses'!O$3:O$50,'Policy Responses'!$B$3:$B$50,'Policy Responses'!$T$12),"") -> 0 | P33: =IFERROR(IF($D57=$B$77,P57*VLOOKUP($C57,$B$66:$R$71,COLUMN()-1,FALSE),IF($D57=$B$78,((P57*((VLOOKUP($C57,$B$66:$R$71,COLUMN()-1,FALSE)/VLOOKUP($C57,$B$66:$R$71,COLUMN()-2,FALSE)-1))+1)*O33)))+SUMIFS('Policy Responses'!P$3:P$50,'Policy Responses'!$B$3:$B$50,'Policy Responses'!$T$12),"") -> 0 | Q33: =IFERROR(IF($D57=$B$77,Q57*VLOOKUP($C57,$B$66:$R$71,COLUMN()-1,FALSE),IF($D57=$B$78,((Q57*((VLOOKUP($C57,$B$66:$R$71,COLUMN()-1,FALSE)/VLOOKUP($C57,$B$66:$R$71,COLUMN()-2,FALSE)-1))+1)*P33)))+SUMIFS('Policy Responses'!Q$3:Q$50,'Policy Responses'!$B$3:$B$50,'Policy Responses'!$T$12),"") -> 0 | R33: =IFERROR(IF($D57=$B$77,R57*VLOOKUP($C57,$B$66:$R$71,COLUMN()-1,FALSE),IF($D57=$B$78,((R57*((VLOOKUP($C57,$B$66:$R$71,COLUMN()-1,FALSE)/VLOOKUP($C57,$B$66:$R$71,COLUMN()-2,FALSE)-1))+1)*Q33)))+SUMIFS('Policy Responses'!R$3:R$50,'Policy Responses'!$B$3:$B$50,'Policy Responses'!$T$12),"") -> 0
B34: =Labels!F125 -> d. Other Taxes | D34: =NA() ->  | E34: =NA() ->  | O34: =IFERROR(IF($D58=$B$77,O58*VLOOKUP($C58,$B$66:$R$71,COLUMN()-1,FALSE),IF($D58=$B$78,((O58*((VLOOKUP($C58,$B$66:$R$71,COLUMN()-1,FALSE)/VLOOKUP($C58,$B$66:$R$71,COLUMN()-2,FALSE)-1))+1)*N34)))+SUMIFS('Policy Responses'!O$3:O$50,'Policy Responses'!$B$3:$B$50,'Policy Responses'!$T$13),"") -> 0 | P34: =IFERROR(IF($D58=$B$77,P58*VLOOKUP($C58,$B$66:$R$71,COLUMN()-1,FALSE),IF($D58=$B$78,((P58*((VLOOKUP($C58,$B$66:$R$71,COLUMN()-1,FALSE)/VLOOKUP($C58,$B$66:$R$71,COLUMN()-2,FALSE)-1))+1)*O34)))+SUMIFS('Policy Responses'!P$3:P$50,'Policy Responses'!$B$3:$B$50,'Policy Responses'!$T$13),"") -> 0 | Q34: =IFERROR(IF($D58=$B$77,Q58*VLOOKUP($C58,$B$66:$R$71,COLUMN()-1,FALSE),IF($D58=$B$78,((Q58*((VLOOKUP($C58,$B$66:$R$71,COLUMN()-1,FALSE)/VLOOKUP($C58,$B$66:$R$71,COLUMN()-2,FALSE)-1))+1)*P34)))+SUMIFS('Policy Responses'!Q$3:Q$50,'Policy Responses'!$B$3:$B$50,'Policy Responses'!$T$13),"") -> 0 | R34: =IFERROR(IF($D58=$B$77,R58*VLOOKUP($C58,$B$66:$R$71,COLUMN()-1,FALSE),IF($D58=$B$78,((R58*((VLOOKUP($C58,$B$66:$R$71,COLUMN()-1,FALSE)/VLOOKUP($C58,$B$66:$R$71,COLUMN()-2,FALSE)-1))+1)*Q34)))+SUMIFS('Policy Responses'!R$3:R$50,'Policy Responses'!$B$3:$B$50,'Policy Responses'!$T$13),"") -> 0
B35: =Labels!F126 -> Non-Tax Revenue | D35: =NA() ->  | E35: =NA() ->  | F35: =IFERROR(F36+F37+F38,"") -> 0 | G35: 0 | H35: 0 | I35: 0 | J35: 0 | K35: 0 | L35: 0 | M35: 0 | N35: 0 | O35: =IFERROR(O36+O37+O38,"") -> 0 | P35: =IFERROR(P36+P37+P38,"") -> 0 | Q35: 0 | R35: 0
B36: =Labels!F127 -> o/w non-commodity based | D36: =NA() ->  | E36: =NA() ->  | O36: =IFERROR(IF($D60=$B$77,O60*VLOOKUP($C60,$B$66:$R$71,COLUMN()-1,FALSE),IF($D60=$B$78,((O60*((VLOOKUP($C60,$B$66:$R$71,COLUMN()-1,FALSE)/VLOOKUP($C60,$B$66:$R$71,COLUMN()-2,FALSE)-1))+1)*N36)))+SUMIFS('Policy Responses'!O$3:O$50,'Policy Responses'!$B$3:$B$50,'Policy Responses'!$T$14),"") -> 0 | P36: =IFERROR(IF($D60=$B$77,P60*VLOOKUP($C60,$B$66:$R$71,COLUMN()-1,FALSE),IF($D60=$B$78,((P60*((VLOOKUP($C60,$B$66:$R$71,COLUMN()-1,FALSE)/VLOOKUP($C60,$B$66:$R$71,COLUMN()-2,FALSE)-1))+1)*O36)))+SUMIFS('Policy Responses'!P$3:P$50,'Policy Responses'!$B$3:$B$50,'Policy Responses'!$T$14),"") -> 0 | Q36: =IFERROR(IF($D60=$B$77,Q60*VLOOKUP($C60,$B$66:$R$71,COLUMN()-1,FALSE),IF($D60=$B$78,((Q60*((VLOOKUP($C60,$B$66:$R$71,COLUMN()-1,FALSE)/VLOOKUP($C60,$B$66:$R$71,COLUMN()-2,FALSE)-1))+1)*P36)))+SUMIFS('Policy Responses'!Q$3:Q$50,'Policy Responses'!$B$3:$B$50,'Policy Responses'!$T$14),"") -> 0 | R36: =IFERROR(IF($D60=$B$77,R60*VLOOKUP($C60,$B$66:$R$71,COLUMN()-1,FALSE),IF($D60=$B$78,((R60*((VLOOKUP($C60,$B$66:$R$71,COLUMN()-1,FALSE)/VLOOKUP($C60,$B$66:$R$71,COLUMN()-2,FALSE)-1))+1)*Q36)))+SUMIFS('Policy Responses'!R$3:R$50,'Policy Responses'!$B$3:$B$50,'Policy Responses'!$T$14),"") -> 0
B37: =Labels!F128 -> o/w commodity based | D37: =NA() ->  | E37: =NA() ->  | O37: =IFERROR(IF($D61=$B$77,O61*VLOOKUP($C61,$B$66:$R$71,COLUMN()-1,FALSE),IF($D61=$B$78,((O61*((VLOOKUP($C61,$B$66:$R$71,COLUMN()-1,FALSE)/VLOOKUP($C61,$B$66:$R$71,COLUMN()-2,FALSE)-1))+1)*N37)))+SUMIFS('Policy Responses'!O$3:O$50,'Policy Responses'!$B$3:$B$50,'Policy Responses'!$T$15),"") -> 0 | P37: =IFERROR(IF($D61=$B$77,P61*VLOOKUP($C61,$B$66:$R$71,COLUMN()-1,FALSE),IF($D61=$B$78,((P61*((VLOOKUP($C61,$B$66:$R$71,COLUMN()-1,FALSE)/VLOOKUP($C61,$B$66:$R$71,COLUMN()-2,FALSE)-1))+1)*O37)))+SUMIFS('Policy Responses'!P$3:P$50,'Policy Responses'!$B$3:$B$50,'Policy Responses'!$T$15),"") -> 0 | Q37: =IFERROR(IF($D61=$B$77,Q61*VLOOKUP($C61,$B$66:$R$71,COLUMN()-1,FALSE),IF($D61=$B$78,((Q61*((VLOOKUP($C61,$B$66:$R$71,COLUMN()-1,FALSE)/VLOOKUP($C61,$B$66:$R$71,COLUMN()-2,FALSE)-1))+1)*P37)))+SUMIFS('Policy Responses'!Q$3:Q$50,'Policy Responses'!$B$3:$B$50,'Policy Responses'!$T$15),"") -> 0 | R37: =IFERROR(IF($D61=$B$77,R61*VLOOKUP($C61,$B$66:$R$71,COLUMN()-1,FALSE),IF($D61=$B$78,((R61*((VLOOKUP($C61,$B$66:$R$71,COLUMN()-1,FALSE)/VLOOKUP($C61,$B$66:$R$71,COLUMN()-2,FALSE)-1))+1)*Q37)))+SUMIFS('Policy Responses'!R$3:R$50,'Policy Responses'!$B$3:$B$50,'Policy Responses'!$T$15),"") -> 0
B38: =Labels!F129 -> o/w Other revenues (special) | D38: =NA() ->  | E38: =NA() ->  | O38: =IFERROR(IF($D62=$B$77,O62*VLOOKUP($C62,$B$66:$R$71,COLUMN()-1,FALSE),IF($D62=$B$78,((O62*((VLOOKUP($C62,$B$66:$R$71,COLUMN()-1,FALSE)/VLOOKUP($C62,$B$66:$R$71,COLUMN()-2,FALSE)-1))+1)*N38)))+SUMIFS('Policy Responses'!O$3:O$50,'Policy Responses'!$B$3:$B$50,'Policy Responses'!$T$16),"") -> 0 | P38: =IFERROR(IF($D62=$B$77,P62*VLOOKUP($C62,$B$66:$R$71,COLUMN()-1,FALSE),IF($D62=$B$78,((P62*((VLOOKUP($C62,$B$66:$R$71,COLUMN()-1,FALSE)/VLOOKUP($C62,$B$66:$R$71,COLUMN()-2,FALSE)-1))+1)*O38)))+SUMIFS('Policy Responses'!P$3:P$50,'Policy Responses'!$B$3:$B$50,'Policy Responses'!$T$16),"") -> 0 | Q38: =IFERROR(IF($D62=$B$77,Q62*VLOOKUP($C62,$B$66:$R$71,COLUMN()-1,FALSE),IF($D62=$B$78,((Q62*((VLOOKUP($C62,$B$66:$R$71,COLUMN()-1,FALSE)/VLOOKUP($C62,$B$66:$R$71,COLUMN()-2,FALSE)-1))+1)*P38)))+SUMIFS('Policy Responses'!Q$3:Q$50,'Policy Responses'!$B$3:$B$50,'Policy Responses'!$T$16),"") -> 0 | R38: =IFERROR(IF($D62=$B$77,R62*VLOOKUP($C62,$B$66:$R$71,COLUMN()-1,FALSE),IF($D62=$B$78,((R62*((VLOOKUP($C62,$B$66:$R$71,COLUMN()-1,FALSE)/VLOOKUP($C62,$B$66:$R$71,COLUMN()-2,FALSE)-1))+1)*Q38)))+SUMIFS('Policy Responses'!R$3:R$50,'Policy Responses'!$B$3:$B$50,'Policy Responses'!$T$16),"") -> 0
A39: 0 | B39: =Labels!F130 -> Grants | D39: =NA() ->  | E39: =NA() -> 
B40: =Labels!F131 -> Total revenue excl. grants | F40: =IFERROR(F35+F21,"") -> 0 | G40: 0 | H40: 0 | I40: 0 | J40: 0 | K40: 0 | L40: 0 | M40: 0 | N40: 0 | O40: =IFERROR(O35+O21,"") -> 
B41: =Labels!F132 -> Total revenue incl. grants | E41: =IFERROR(E40+E39,"") ->  | F41: 0 | G41: 0 | H41: 0 | I41: 0 | J41: 0 | K41: 0 | L41: 0 | M41: 0 | N41: 0 | O41: =IFERROR(O40+O39,"") ->  | P41: =IFERROR(P40+P39,"") ->  | Q41: =IFERROR(Q40+Q39,"") ->  | R41: =IFERROR(R40+R39,"") -> 
B45: EFFECTIVE TAX RATES OR BUOYANCIES
B46: =B22 -> a.Income Tax
B47: =B23 -> Company tax
B48: =B24 -> o/w commodity based | C48: GDP at current prices | D48: ETR | E48: =IFERROR(IF(ISNA(IF($D48=$B$77,(E24/VLOOKUP($C48,$B$66:$R$71,COLUMN()-1)),IF($D48=$B$78,(E24/D24)/(VLOOKUP($C48,$B$66:E$71,COLUMN()-1,FALSE)/VLOOKUP($C48,$B$66:E$71,COLUMN()-2,FALSE))))),"",IF($D48=$B$77,(E24/VLOOKUP($C48,$B$66:$R$71,COLUMN()-1)),IF($D48=$B$78,(E24/D24)/(VLOOKUP($C48,$B$66:E$71,COLUMN()-1,FALSE)/VLOOKUP($C48,$B$66:E$71,COLUMN()-2,FALSE))))),"") ->  | F48: =IFERROR(IF(ISNA(IF($D48=$B$77,(F24/VLOOKUP($C48,$B$66:$R$71,COLUMN()-1)),IF($D48=$B$78,(F24/E24)/(VLOOKUP($C48,$B$66:F$71,COLUMN()-1,FALSE)/VLOOKUP($C48,$B$66:F$71,COLUMN()-2,FALSE))))),"",IF($D48=$B$77,(F24/VLOOKUP($C48,$B$66:$R$71,COLUMN()-1)),IF($D48=$B$78,(F24/E24)/(VLOOKUP($C48,$B$66:F$71,COLUMN()-1,FALSE)/VLOOKUP($C48,$B$66:F$71,COLUMN()-2,FALSE))))),"") ->  | G48: =IFERROR(IF(ISNA(IF($D48=$B$77,(G24/VLOOKUP($C48,$B$66:$R$71,COLUMN()-1)),IF($D48=$B$78,(G24/F24)/(VLOOKUP($C48,$B$66:G$71,COLUMN()-1,FALSE)/VLOOKUP($C48,$B$66:G$71,COLUMN()-2,FALSE))))),"",IF($D48=$B$77,(G24/VLOOKUP($C48,$B$66:$R$71,COLUMN()-1)),IF($D48=$B$78,(G24/F24)/(VLOOKUP($C48,$B$66:G$71,COLUMN()-1,FALSE)/VLOOKUP($C48,$B$66:G$71,COLUMN()-2,FALSE))))),"") ->  | H48: =IFERROR(IF(ISNA(IF($D48=$B$77,(H24/VLOOKUP($C48,$B$66:$R$71,COLUMN()-1)),IF($D48=$B$78,(H24/G24)/(VLOOKUP($C48,$B$66:H$71,COLUMN()-1,FALSE)/VLOOKUP($C48,$B$66:H$71,COLUMN()-2,FALSE))))),"",IF($D48=$B$77,(H24/VLOOKUP($C48,$B$66:$R$71,COLUMN()-1)),IF($D48=$B$78,(H24/G24)/(VLOOKUP($C48,$B$66:H$71,COLUMN()-1,FALSE)/VLOOKUP($C48,$B$66:H$71,COLUMN()-2,FALSE))))),"") ->  | I48: =IFERROR(IF(ISNA(IF($D48=$B$77,(I24/VLOOKUP($C48,$B$66:$R$71,COLUMN()-1)),IF($D48=$B$78,(I24/H24)/(VLOOKUP($C48,$B$66:I$71,COLUMN()-1,FALSE)/VLOOKUP($C48,$B$66:I$71,COLUMN()-2,FALSE))))),"",IF($D48=$B$77,(I24/VLOOKUP($C48,$B$66:$R$71,COLUMN()-1)),IF($D48=$B$78,(I24/H24)/(VLOOKUP($C48,$B$66:I$71,COLUMN()-1,FALSE)/VLOOKUP($C48,$B$66:I$71,COLUMN()-2,FALSE))))),"") ->  | J48: =IFERROR(IF(ISNA(IF($D48=$B$77,(J24/VLOOKUP($C48,$B$66:$R$71,COLUMN()-1)),IF($D48=$B$78,(J24/I24)/(VLOOKUP($C48,$B$66:J$71,COLUMN()-1,FALSE)/VLOOKUP($C48,$B$66:J$71,COLUMN()-2,FALSE))))),"",IF($D48=$B$77,(J24/VLOOKUP($C48,$B$66:$R$71,COLUMN()-1)),IF($D48=$B$78,(J24/I24)/(VLOOKUP($C48,$B$66:J$71,COLUMN()-1,FALSE)/VLOOKUP($C48,$B$66:J$71,COLUMN()-2,FALSE))))),"") ->  | K48: =IFERROR(IF(ISNA(IF($D48=$B$77,(K24/VLOOKUP($C48,$B$66:$R$71,COLUMN()-1)),IF($D48=$B$78,(K24/J24)/(VLOOKUP($C48,$B$66:K$71,COLUMN()-1,FALSE)/VLOOKUP($C48,$B$66:K$71,COLUMN()-2,FALSE))))),"",IF($D48=$B$77,(K24/VLOOKUP($C48,$B$66:$R$71,COLUMN()-1)),IF($D48=$B$78,(K24/J24)/(VLOOKUP($C48,$B$66:K$71,COLUMN()-1,FALSE)/VLOOKUP($C48,$B$66:K$71,COLUMN()-2,FALSE))))),"") ->  | L48: =IFERROR(IF(ISNA(IF($D48=$B$77,(L24/VLOOKUP($C48,$B$66:$R$71,COLUMN()-1)),IF($D48=$B$78,(L24/K24)/(VLOOKUP($C48,$B$66:L$71,COLUMN()-1,FALSE)/VLOOKUP($C48,$B$66:L$71,COLUMN()-2,FALSE))))),"",IF($D48=$B$77,(L24/VLOOKUP($C48,$B$66:$R$71,COLUMN()-1,FALSE)),IF($D48=$B$78,(L24/K24)/(VLOOKUP($C48,$B$66:L$71,COLUMN()-1,FALSE)/VLOOKUP($C48,$B$66:L$71,COLUMN()-2,FALSE))))),"") ->  | M48: =IFERROR(IF(ISNA(IF($D48=$B$77,(M24/VLOOKUP($C48,$B$66:$R$71,COLUMN()-1)),IF($D48=$B$78,(M24/L24)/(VLOOKUP($C48,$B$66:M$71,COLUMN()-1,FALSE)/VLOOKUP($C48,$B$66:M$71,COLUMN()-2,FALSE))))),"",IF($D48=$B$77,(M24/VLOOKUP($C48,$B$66:$R$71,COLUMN()-1,FALSE)),IF($D48=$B$78,(M24/L24)/(VLOOKUP($C48,$B$66:M$71,COLUMN()-1,FALSE)/VLOOKUP($C48,$B$66:M$71,COLUMN()-2,FALSE))))),"") ->  | N48: =IFERROR(IF(ISNA(IF($D48=$B$77,(N24/VLOOKUP($C48,$B$66:$R$71,COLUMN()-1)),IF($D48=$B$78,(N24/M24)/(VLOOKUP($C48,$B$66:N$71,COLUMN()-1,FALSE)/VLOOKUP($C48,$B$66:N$71,COLUMN()-2,FALSE))))),"",IF($D48=$B$77,(N24/VLOOKUP($C48,$B$66:$R$71,COLUMN()-1,FALSE)),IF($D48=$B$78,(N24/M24)/(VLOOKUP($C48,$B$66:N$71,COLUMN()-1,FALSE)/VLOOKUP($C48,$B$66:N$71,COLUMN()-2,FALSE))))),"") ->  | O48: =IF(N48="",0,IFERROR(AVERAGE(M48:N48),"")) -> 0 | P48: =IFERROR(O48,0) -> 0 | Q48: =P48 -> 0 | R48: 0
B49: o/w non commodity based | C49: GDP at current prices | D49: ETR | E49: =IFERROR(IF(ISNA(IF($D49=$B$77,(E25/VLOOKUP($C49,$B$66:$R$71,COLUMN()-1)),IF($D49=$B$78,(E25/D25)/(VLOOKUP($C49,$B$66:E$71,COLUMN()-1,FALSE)/VLOOKUP($C49,$B$66:E$71,COLUMN()-2,FALSE))))),"",IF($D49=$B$77,(E25/VLOOKUP($C49,$B$66:$R$71,COLUMN()-1)),IF($D49=$B$78,(E25/D25)/(VLOOKUP($C49,$B$66:E$71,COLUMN()-1,FALSE)/VLOOKUP($C49,$B$66:E$71,COLUMN()-2,FALSE))))),"") ->  | F49: =IFERROR(IF(ISNA(IF($D49=$B$77,(F25/VLOOKUP($C49,$B$66:$R$71,COLUMN()-1)),IF($D49=$B$78,(F25/E25)/(VLOOKUP($C49,$B$66:F$71,COLUMN()-1,FALSE)/VLOOKUP($C49,$B$66:F$71,COLUMN()-2,FALSE))))),"",IF($D49=$B$77,(F25/VLOOKUP($C49,$B$66:$R$71,COLUMN()-1)),IF($D49=$B$78,(F25/E25)/(VLOOKUP($C49,$B$66:F$71,COLUMN()-1,FALSE)/VLOOKUP($C49,$B$66:F$71,COLUMN()-2,FALSE))))),"") ->  | G49: =IFERROR(IF(ISNA(IF($D49=$B$77,(G25/VLOOKUP($C49,$B$66:$R$71,COLUMN()-1)),IF($D49=$B$78,(G25/F25)/(VLOOKUP($C49,$B$66:G$71,COLUMN()-1,FALSE)/VLOOKUP($C49,$B$66:G$71,COLUMN()-2,FALSE))))),"",IF($D49=$B$77,(G25/VLOOKUP($C49,$B$66:$R$71,COLUMN()-1)),IF($D49=$B$78,(G25/F25)/(VLOOKUP($C49,$B$66:G$71,COLUMN()-1,FALSE)/VLOOKUP($C49,$B$66:G$71,COLUMN()-2,FALSE))))),"") ->  | H49: =IFERROR(IF(ISNA(IF($D49=$B$77,(H25/VLOOKUP($C49,$B$66:$R$71,COLUMN()-1)),IF($D49=$B$78,(H25/G25)/(VLOOKUP($C49,$B$66:H$71,COLUMN()-1,FALSE)/VLOOKUP($C49,$B$66:H$71,COLUMN()-2,FALSE))))),"",IF($D49=$B$77,(H25/VLOOKUP($C49,$B$66:$R$71,COLUMN()-1)),IF($D49=$B$78,(H25/G25)/(VLOOKUP($C49,$B$66:H$71,COLUMN()-1,FALSE)/VLOOKUP($C49,$B$66:H$71,COLUMN()-2,FALSE))))),"") ->  | I49: =IFERROR(IF(ISNA(IF($D49=$B$77,(I25/VLOOKUP($C49,$B$66:$R$71,COLUMN()-1)),IF($D49=$B$78,(I25/H25)/(VLOOKUP($C49,$B$66:I$71,COLUMN()-1,FALSE)/VLOOKUP($C49,$B$66:I$71,COLUMN()-2,FALSE))))),"",IF($D49=$B$77,(I25/VLOOKUP($C49,$B$66:$R$71,COLUMN()-1)),IF($D49=$B$78,(I25/H25)/(VLOOKUP($C49,$B$66:I$71,COLUMN()-1,FALSE)/VLOOKUP($C49,$B$66:I$71,COLUMN()-2,FALSE))))),"") ->  | J49: =IFERROR(IF(ISNA(IF($D49=$B$77,(J25/VLOOKUP($C49,$B$66:$R$71,COLUMN()-1)),IF($D49=$B$78,(J25/I25)/(VLOOKUP($C49,$B$66:J$71,COLUMN()-1,FALSE)/VLOOKUP($C49,$B$66:J$71,COLUMN()-2,FALSE))))),"",IF($D49=$B$77,(J25/VLOOKUP($C49,$B$66:$R$71,COLUMN()-1)),IF($D49=$B$78,(J25/I25)/(VLOOKUP($C49,$B$66:J$71,COLUMN()-1,FALSE)/VLOOKUP($C49,$B$66:J$71,COLUMN()-2,FALSE))))),"") ->  | K49: =IFERROR(IF(ISNA(IF($D49=$B$77,(K25/VLOOKUP($C49,$B$66:$R$71,COLUMN()-1)),IF($D49=$B$78,(K25/J25)/(VLOOKUP($C49,$B$66:K$71,COLUMN()-1,FALSE)/VLOOKUP($C49,$B$66:K$71,COLUMN()-2,FALSE))))),"",IF($D49=$B$77,(K25/VLOOKUP($C49,$B$66:$R$71,COLUMN()-1)),IF($D49=$B$78,(K25/J25)/(VLOOKUP($C49,$B$66:K$71,COLUMN()-1,FALSE)/VLOOKUP($C49,$B$66:K$71,COLUMN()-2,FALSE))))),"") ->  | L49: =IFERROR(IF(ISNA(IF($D49=$B$77,(L25/VLOOKUP($C49,$B$66:$R$71,COLUMN()-1)),IF($D49=$B$78,(L25/K25)/(VLOOKUP($C49,$B$66:L$71,COLUMN()-1,FALSE)/VLOOKUP($C49,$B$66:L$71,COLUMN()-2,FALSE))))),"",IF($D49=$B$77,(L25/VLOOKUP($C49,$B$66:$R$71,COLUMN()-1,FALSE)),IF($D49=$B$78,(L25/K25)/(VLOOKUP($C49,$B$66:L$71,COLUMN()-1,FALSE)/VLOOKUP($C49,$B$66:L$71,COLUMN()-2,FALSE))))),"") ->  | M49: =IFERROR(IF(ISNA(IF($D49=$B$77,(M25/VLOOKUP($C49,$B$66:$R$71,COLUMN()-1)),IF($D49=$B$78,(M25/L25)/(VLOOKUP($C49,$B$66:M$71,COLUMN()-1,FALSE)/VLOOKUP($C49,$B$66:M$71,COLUMN()-2,FALSE))))),"",IF($D49=$B$77,(M25/VLOOKUP($C49,$B$66:$R$71,COLUMN()-1,FALSE)),IF($D49=$B$78,(M25/L25)/(VLOOKUP($C49,$B$66:M$71,COLUMN()-1,FALSE)/VLOOKUP($C49,$B$66:M$71,COLUMN()-2,FALSE))))),"") ->  | N49: =IFERROR(IF(ISNA(IF($D49=$B$77,(N25/VLOOKUP($C49,$B$66:$R$71,COLUMN()-1)),IF($D49=$B$78,(N25/M25)/(VLOOKUP($C49,$B$66:N$71,COLUMN()-1,FALSE)/VLOOKUP($C49,$B$66:N$71,COLUMN()-2,FALSE))))),"",IF($D49=$B$77,(N25/VLOOKUP($C49,$B$66:$R$71,COLUMN()-1,FALSE)),IF($D49=$B$78,(N25/M25)/(VLOOKUP($C49,$B$66:N$71,COLUMN()-1,FALSE)/VLOOKUP($C49,$B$66:N$71,COLUMN()-2,FALSE))))),"") ->  | O49: =IF(N49="",0,IFERROR(AVERAGE(M49:N49),"")) -> 0 | P49: =IFERROR(O49,0) -> 0 | Q49: 0 | R49: 0
B50: Individuals | C50: GDP at current prices | D50: Buoyancy | E50: =IFERROR(IF(ISNA(IF($D50=$B$77,(E26/VLOOKUP($C50,$B$66:$R$71,COLUMN()-1)),IF($D50=$B$78,(E26/D26)/(VLOOKUP($C50,$B$66:E$71,COLUMN()-1,FALSE)/VLOOKUP($C50,$B$66:E$71,COLUMN()-2,FALSE))))),"",IF($D50=$B$77,(E26/VLOOKUP($C50,$B$66:$R$71,COLUMN()-1)),IF($D50=$B$78,(E26/D26)/(VLOOKUP($C50,$B$66:E$71,COLUMN()-1,FALSE)/VLOOKUP($C50,$B$66:E$71,COLUMN()-2,FALSE))))),"") ->  | F50: =IFERROR(IF(ISNA(IF($D50=$B$77,(F26/VLOOKUP($C50,$B$66:$R$71,COLUMN()-1)),IF($D50=$B$78,(F26/E26)/(VLOOKUP($C50,$B$66:F$71,COLUMN()-1,FALSE)/VLOOKUP($C50,$B$66:F$71,COLUMN()-2,FALSE))))),"",IF($D50=$B$77,(F26/VLOOKUP($C50,$B$66:$R$71,COLUMN()-1)),IF($D50=$B$78,(F26/E26)/(VLOOKUP($C50,$B$66:F$71,COLUMN()-1,FALSE)/VLOOKUP($C50,$B$66:F$71,COLUMN()-2,FALSE))))),"") ->  | G50: =IFERROR(IF(ISNA(IF($D50=$B$77,(G26/VLOOKUP($C50,$B$66:$R$71,COLUMN()-1)),IF($D50=$B$78,(G26/F26)/(VLOOKUP($C50,$B$66:G$71,COLUMN()-1,FALSE)/VLOOKUP($C50,$B$66:G$71,COLUMN()-2,FALSE))))),"",IF($D50=$B$77,(G26/VLOOKUP($C50,$B$66:$R$71,COLUMN()-1)),IF($D50=$B$78,(G26/F26)/(VLOOKUP($C50,$B$66:G$71,COLUMN()-1,FALSE)/VLOOKUP($C50,$B$66:G$71,COLUMN()-2,FALSE))))),"") ->  | H50: =IFERROR(IF(ISNA(IF($D50=$B$77,(H26/VLOOKUP($C50,$B$66:$R$71,COLUMN()-1)),IF($D50=$B$78,(H26/G26)/(VLOOKUP($C50,$B$66:H$71,COLUMN()-1,FALSE)/VLOOKUP($C50,$B$66:H$71,COLUMN()-2,FALSE))))),"",IF($D50=$B$77,(H26/VLOOKUP($C50,$B$66:$R$71,COLUMN()-1)),IF($D50=$B$78,(H26/G26)/(VLOOKUP($C50,$B$66:H$71,COLUMN()-1,FALSE)/VLOOKUP($C50,$B$66:H$71,COLUMN()-2,FALSE))))),"") ->  | I50: =IFERROR(IF(ISNA(IF($D50=$B$77,(I26/VLOOKUP($C50,$B$66:$R$71,COLUMN()-1)),IF($D50=$B$78,(I26/H26)/(VLOOKUP($C50,$B$66:I$71,COLUMN()-1,FALSE)/VLOOKUP($C50,$B$66:I$71,COLUMN()-2,FALSE))))),"",IF($D50=$B$77,(I26/VLOOKUP($C50,$B$66:$R$71,COLUMN()-1)),IF($D50=$B$78,(I26/H26)/(VLOOKUP($C50,$B$66:I$71,COLUMN()-1,FALSE)/VLOOKUP($C50,$B$66:I$71,COLUMN()-2,FALSE))))),"") ->  | J50: =IFERROR(IF(ISNA(IF($D50=$B$77,(J26/VLOOKUP($C50,$B$66:$R$71,COLUMN()-1)),IF($D50=$B$78,(J26/I26)/(VLOOKUP($C50,$B$66:J$71,COLUMN()-1,FALSE)/VLOOKUP($C50,$B$66:J$71,COLUMN()-2,FALSE))))),"",IF($D50=$B$77,(J26/VLOOKUP($C50,$B$66:$R$71,COLUMN()-1)),IF($D50=$B$78,(J26/I26)/(VLOOKUP($C50,$B$66:J$71,COLUMN()-1,FALSE)/VLOOKUP($C50,$B$66:J$71,COLUMN()-2,FALSE))))),"") ->  | K50: =IFERROR(IF(ISNA(IF($D50=$B$77,(K26/VLOOKUP($C50,$B$66:$R$71,COLUMN()-1)),IF($D50=$B$78,(K26/J26)/(VLOOKUP($C50,$B$66:K$71,COLUMN()-1,FALSE)/VLOOKUP($C50,$B$66:K$71,COLUMN()-2,FALSE))))),"",IF($D50=$B$77,(K26/VLOOKUP($C50,$B$66:$R$71,COLUMN()-1)),IF($D50=$B$78,(K26/J26)/(VLOOKUP($C50,$B$66:K$71,COLUMN()-1,FALSE)/VLOOKUP($C50,$B$66:K$71,COLUMN()-2,FALSE))))),"") ->  | L50: =IFERROR(IF(ISNA(IF($D50=$B$77,(L26/VLOOKUP($C50,$B$66:$R$71,COLUMN()-1)),IF($D50=$B$78,(L26/K26)/(VLOOKUP($C50,$B$66:L$71,COLUMN()-1,FALSE)/VLOOKUP($C50,$B$66:L$71,COLUMN()-2,FALSE))))),"",IF($D50=$B$77,(L26/VLOOKUP($C50,$B$66:$R$71,COLUMN()-1,FALSE)),IF($D50=$B$78,(L26/K26)/(VLOOKUP($C50,$B$66:L$71,COLUMN()-1,FALSE)/VLOOKUP($C50,$B$66:L$71,COLUMN()-2,FALSE))))),"") ->  | M50: =IFERROR(IF(ISNA(IF($D50=$B$77,(M26/VLOOKUP($C50,$B$66:$R$71,COLUMN()-1)),IF($D50=$B$78,(M26/L26)/(VLOOKUP($C50,$B$66:M$71,COLUMN()-1,FALSE)/VLOOKUP($C50,$B$66:M$71,COLUMN()-2,FALSE))))),"",IF($D50=$B$77,(M26/VLOOKUP($C50,$B$66:$R$71,COLUMN()-1,FALSE)),IF($D50=$B$78,(M26/L26)/(VLOOKUP($C50,$B$66:M$71,COLUMN()-1,FALSE)/VLOOKUP($C50,$B$66:M$71,COLUMN()-2,FALSE))))),"") ->  | N50: =IFERROR(IF(ISNA(IF($D50=$B$77,(N26/VLOOKUP($C50,$B$66:$R$71,COLUMN()-1)),IF($D50=$B$78,(N26/M26)/(VLOOKUP($C50,$B$66:N$71,COLUMN()-1,FALSE)/VLOOKUP($C50,$B$66:N$71,COLUMN()-2,FALSE))))),"",IF($D50=$B$77,(N26/VLOOKUP($C50,$B$66:$R$71,COLUMN()-1,FALSE)),IF($D50=$B$78,(N26/M26)/(VLOOKUP($C50,$B$66:N$71,COLUMN()-1,FALSE)/VLOOKUP($C50,$B$66:N$71,COLUMN()-2,FALSE))))),"") ->  | O50: 0 | P50: =IFERROR(O50,0) -> 0 | Q50: 0 | R50: 0
B51: Other income tax | C51: GDP at current prices | D51: ETR | E51: =IFERROR(IF(ISNA(IF($D51=$B$77,(E27/VLOOKUP($C51,$B$66:$R$71,COLUMN()-1)),IF($D51=$B$78,(E27/D27)/(VLOOKUP($C51,$B$66:E$71,COLUMN()-1,FALSE)/VLOOKUP($C51,$B$66:E$71,COLUMN()-2,FALSE))))),"",IF($D51=$B$77,(E27/VLOOKUP($C51,$B$66:$R$71,COLUMN()-1)),IF($D51=$B$78,(E27/D27)/(VLOOKUP($C51,$B$66:E$71,COLUMN()-1,FALSE)/VLOOKUP($C51,$B$66:E$71,COLUMN()-2,FALSE))))),"") ->  | F51: =IFERROR(IF(ISNA(IF($D51=$B$77,(F27/VLOOKUP($C51,$B$66:$R$71,COLUMN()-1)),IF($D51=$B$78,(F27/E27)/(VLOOKUP($C51,$B$66:F$71,COLUMN()-1,FALSE)/VLOOKUP($C51,$B$66:F$71,COLUMN()-2,FALSE))))),"",IF($D51=$B$77,(F27/VLOOKUP($C51,$B$66:$R$71,COLUMN()-1)),IF($D51=$B$78,(F27/E27)/(VLOOKUP($C51,$B$66:F$71,COLUMN()-1,FALSE)/VLOOKUP($C51,$B$66:F$71,COLUMN()-2,FALSE))))),"") ->  | G51: =IFERROR(IF(ISNA(IF($D51=$B$77,(G27/VLOOKUP($C51,$B$66:$R$71,COLUMN()-1)),IF($D51=$B$78,(G27/F27)/(VLOOKUP($C51,$B$66:G$71,COLUMN()-1,FALSE)/VLOOKUP($C51,$B$66:G$71,COLUMN()-2,FALSE))))),"",IF($D51=$B$77,(G27/VLOOKUP($C51,$B$66:$R$71,COLUMN()-1)),IF($D51=$B$78,(G27/F27)/(VLOOKUP($C51,$B$66:G$71,COLUMN()-1,FALSE)/VLOOKUP($C51,$B$66:G$71,COLUMN()-2,FALSE))))),"") ->  | H51: =IFERROR(IF(ISNA(IF($D51=$B$77,(H27/VLOOKUP($C51,$B$66:$R$71,COLUMN()-1)),IF($D51=$B$78,(H27/G27)/(VLOOKUP($C51,$B$66:H$71,COLUMN()-1,FALSE)/VLOOKUP($C51,$B$66:H$71,COLUMN()-2,FALSE))))),"",IF($D51=$B$77,(H27/VLOOKUP($C51,$B$66:$R$71,COLUMN()-1)),IF($D51=$B$78,(H27/G27)/(VLOOKUP($C51,$B$66:H$71,COLUMN()-1,FALSE)/VLOOKUP($C51,$B$66:H$71,COLUMN()-2,FALSE))))),"") ->  | I51: =IFERROR(IF(ISNA(IF($D51=$B$77,(I27/VLOOKUP($C51,$B$66:$R$71,COLUMN()-1)),IF($D51=$B$78,(I27/H27)/(VLOOKUP($C51,$B$66:I$71,COLUMN()-1,FALSE)/VLOOKUP($C51,$B$66:I$71,COLUMN()-2,FALSE))))),"",IF($D51=$B$77,(I27/VLOOKUP($C51,$B$66:$R$71,COLUMN()-1)),IF($D51=$B$78,(I27/H27)/(VLOOKUP($C51,$B$66:I$71,COLUMN()-1,FALSE)/VLOOKUP($C51,$B$66:I$71,COLUMN()-2,FALSE))))),"") ->  | J51: =IFERROR(IF(ISNA(IF($D51=$B$77,(J27/VLOOKUP($C51,$B$66:$R$71,COLUMN()-1)),IF($D51=$B$78,(J27/I27)/(VLOOKUP($C51,$B$66:J$71,COLUMN()-1,FALSE)/VLOOKUP($C51,$B$66:J$71,COLUMN()-2,FALSE))))),"",IF($D51=$B$77,(J27/VLOOKUP($C51,$B$66:$R$71,COLUMN()-1)),IF($D51=$B$78,(J27/I27)/(VLOOKUP($C51,$B$66:J$71,COLUMN()-1,FALSE)/VLOOKUP($C51,$B$66:J$71,COLUMN()-2,FALSE))))),"") ->  | K51: =IFERROR(IF(ISNA(IF($D51=$B$77,(K27/VLOOKUP($C51,$B$66:$R$71,COLUMN()-1)),IF($D51=$B$78,(K27/J27)/(VLOOKUP($C51,$B$66:K$71,COLUMN()-1,FALSE)/VLOOKUP($C51,$B$66:K$71,COLUMN()-2,FALSE))))),"",IF($D51=$B$77,(K27/VLOOKUP($C51,$B$66:$R$71,COLUMN()-1)),IF($D51=$B$78,(K27/J27)/(VLOOKUP($C51,$B$66:K$71,COLUMN()-1,FALSE)/VLOOKUP($C51,$B$66:K$71,COLUMN()-2,FALSE))))),"") ->  | L51: =IFERROR(IF(ISNA(IF($D51=$B$77,(L27/VLOOKUP($C51,$B$66:$R$71,COLUMN()-1)),IF($D51=$B$78,(L27/K27)/(VLOOKUP($C51,$B$66:L$71,COLUMN()-1,FALSE)/VLOOKUP($C51,$B$66:L$71,COLUMN()-2,FALSE))))),"",IF($D51=$B$77,(L27/VLOOKUP($C51,$B$66:$R$71,COLUMN()-1,FALSE)),IF($D51=$B$78,(L27/K27)/(VLOOKUP($C51,$B$66:L$71,COLUMN()-1,FALSE)/VLOOKUP($C51,$B$66:L$71,COLUMN()-2,FALSE))))),"") ->  | M51: =IFERROR(IF(ISNA(IF($D51=$B$77,(M27/VLOOKUP($C51,$B$66:$R$71,COLUMN()-1)),IF($D51=$B$78,(M27/L27)/(VLOOKUP($C51,$B$66:M$71,COLUMN()-1,FALSE)/VLOOKUP($C51,$B$66:M$71,COLUMN()-2,FALSE))))),"",IF($D51=$B$77,(M27/VLOOKUP($C51,$B$66:$R$71,COLUMN()-1,FALSE)),IF($D51=$B$78,(M27/L27)/(VLOOKUP($C51,$B$66:M$71,COLUMN()-1,FALSE)/VLOOKUP($C51,$B$66:M$71,COLUMN()-2,FALSE))))),"") ->  | N51: =IFERROR(IF(ISNA(IF($D51=$B$77,(N27/VLOOKUP($C51,$B$66:$R$71,COLUMN()-1)),IF($D51=$B$78,(N27/M27)/(VLOOKUP($C51,$B$66:N$71,COLUMN()-1,FALSE)/VLOOKUP($C51,$B$66:N$71,COLUMN()-2,FALSE))))),"",IF($D51=$B$77,(N27/VLOOKUP($C51,$B$66:$R$71,COLUMN()-1,FALSE)),IF($D51=$B$78,(N27/M27)/(VLOOKUP($C51,$B$66:N$71,COLUMN()-1,FALSE)/VLOOKUP($C51,$B$66:N$71,COLUMN()-2,FALSE))))),"") ->  | O51: 0 | P51: =IFERROR(O51,0) -> 0 | Q51: =P51 -> 0 | R51: 0
B52: =B28 -> b.Value Added Tax
B53: o/w Domestic | C53: GDP at current prices | D53: Buoyancy | E53: =IFERROR(IF(ISNA(IF($D53=$B$77,(E29/VLOOKUP($C53,$B$66:$R$71,COLUMN()-1)),IF($D53=$B$78,(E29/D29)/(VLOOKUP($C53,$B$66:E$71,COLUMN()-1,FALSE)/VLOOKUP($C53,$B$66:E$71,COLUMN()-2,FALSE))))),"",IF($D53=$B$77,(E29/VLOOKUP($C53,$B$66:$R$71,COLUMN()-1)),IF($D53=$B$78,(E29/D29)/(VLOOKUP($C53,$B$66:E$71,COLUMN()-1,FALSE)/VLOOKUP($C53,$B$66:E$71,COLUMN()-2,FALSE))))),"") ->  | F53: =IFERROR(IF(ISNA(IF($D53=$B$77,(F29/VLOOKUP($C53,$B$66:$R$71,COLUMN()-1)),IF($D53=$B$78,(F29/E29)/(VLOOKUP($C53,$B$66:F$71,COLUMN()-1,FALSE)/VLOOKUP($C53,$B$66:F$71,COLUMN()-2,FALSE))))),"",IF($D53=$B$77,(F29/VLOOKUP($C53,$B$66:$R$71,COLUMN()-1)),IF($D53=$B$78,(F29/E29)/(VLOOKUP($C53,$B$66:F$71,COLUMN()-1,FALSE)/VLOOKUP($C53,$B$66:F$71,COLUMN()-2,FALSE))))),"") ->  | G53: =IFERROR(IF(ISNA(IF($D53=$B$77,(G29/VLOOKUP($C53,$B$66:$R$71,COLUMN()-1)),IF($D53=$B$78,(G29/F29)/(VLOOKUP($C53,$B$66:G$71,COLUMN()-1,FALSE)/VLOOKUP($C53,$B$66:G$71,COLUMN()-2,FALSE))))),"",IF($D53=$B$77,(G29/VLOOKUP($C53,$B$66:$R$71,COLUMN()-1)),IF($D53=$B$78,(G29/F29)/(VLOOKUP($C53,$B$66:G$71,COLUMN()-1,FALSE)/VLOOKUP($C53,$B$66:G$71,COLUMN()-2,FALSE))))),"") ->  | H53: =IFERROR(IF(ISNA(IF($D53=$B$77,(H29/VLOOKUP($C53,$B$66:$R$71,COLUMN()-1)),IF($D53=$B$78,(H29/G29)/(VLOOKUP($C53,$B$66:H$71,COLUMN()-1,FALSE)/VLOOKUP($C53,$B$66:H$71,COLUMN()-2,FALSE))))),"",IF($D53=$B$77,(H29/VLOOKUP($C53,$B$66:$R$71,COLUMN()-1)),IF($D53=$B$78,(H29/G29)/(VLOOKUP($C53,$B$66:H$71,COLUMN()-1,FALSE)/VLOOKUP($C53,$B$66:H$71,COLUMN()-2,FALSE))))),"") ->  | I53: =IFERROR(IF(ISNA(IF($D53=$B$77,(I29/VLOOKUP($C53,$B$66:$R$71,COLUMN()-1)),IF($D53=$B$78,(I29/H29)/(VLOOKUP($C53,$B$66:I$71,COLUMN()-1,FALSE)/VLOOKUP($C53,$B$66:I$71,COLUMN()-2,FALSE))))),"",IF($D53=$B$77,(I29/VLOOKUP($C53,$B$66:$R$71,COLUMN()-1)),IF($D53=$B$78,(I29/H29)/(VLOOKUP($C53,$B$66:I$71,COLUMN()-1,FALSE)/VLOOKUP($C53,$B$66:I$71,COLUMN()-2,FALSE))))),"") ->  | J53: =IFERROR(IF(ISNA(IF($D53=$B$77,(J29/VLOOKUP($C53,$B$66:$R$71,COLUMN()-1)),IF($D53=$B$78,(J29/I29)/(VLOOKUP($C53,$B$66:J$71,COLUMN()-1,FALSE)/VLOOKUP($C53,$B$66:J$71,COLUMN()-2,FALSE))))),"",IF($D53=$B$77,(J29/VLOOKUP($C53,$B$66:$R$71,COLUMN()-1)),IF($D53=$B$78,(J29/I29)/(VLOOKUP($C53,$B$66:J$71,COLUMN()-1,FALSE)/VLOOKUP($C53,$B$66:J$71,COLUMN()-2,FALSE))))),"") ->  | K53: =IFERROR(IF(ISNA(IF($D53=$B$77,(K29/VLOOKUP($C53,$B$66:$R$71,COLUMN()-1)),IF($D53=$B$78,(K29/J29)/(VLOOKUP($C53,$B$66:K$71,COLUMN()-1,FALSE)/VLOOKUP($C53,$B$66:K$71,COLUMN()-2,FALSE))))),"",IF($D53=$B$77,(K29/VLOOKUP($C53,$B$66:$R$71,COLUMN()-1)),IF($D53=$B$78,(K29/J29)/(VLOOKUP($C53,$B$66:K$71,COLUMN()-1,FALSE)/VLOOKUP($C53,$B$66:K$71,COLUMN()-2,FALSE))))),"") ->  | L53: =IFERROR(IF(ISNA(IF($D53=$B$77,(L29/VLOOKUP($C53,$B$66:$R$71,COLUMN()-1)),IF($D53=$B$78,(L29/K29)/(VLOOKUP($C53,$B$66:L$71,COLUMN()-1,FALSE)/VLOOKUP($C53,$B$66:L$71,COLUMN()-2,FALSE))))),"",IF($D53=$B$77,(L29/VLOOKUP($C53,$B$66:$R$71,COLUMN()-1,FALSE)),IF($D53=$B$78,(L29/K29)/(VLOOKUP($C53,$B$66:L$71,COLUMN()-1,FALSE)/VLOOKUP($C53,$B$66:L$71,COLUMN()-2,FALSE))))),"") ->  | M53: =IFERROR(IF(ISNA(IF($D53=$B$77,(M29/VLOOKUP($C53,$B$66:$R$71,COLUMN()-1)),IF($D53=$B$78,(M29/L29)/(VLOOKUP($C53,$B$66:M$71,COLUMN()-1,FALSE)/VLOOKUP($C53,$B$66:M$71,COLUMN()-2,FALSE))))),"",IF($D53=$B$77,(M29/VLOOKUP($C53,$B$66:$R$71,COLUMN()-1,FALSE)),IF($D53=$B$78,(M29/L29)/(VLOOKUP($C53,$B$66:M$71,COLUMN()-1,FALSE)/VLOOKUP($C53,$B$66:M$71,COLUMN()-2,FALSE))))),"") ->  | N53: =IFERROR(IF(ISNA(IF($D53=$B$77,(N29/VLOOKUP($C53,$B$66:$R$71,COLUMN()-1)),IF($D53=$B$78,(N29/M29)/(VLOOKUP($C53,$B$66:N$71,COLUMN()-1,FALSE)/VLOOKUP($C53,$B$66:N$71,COLUMN()-2,FALSE))))),"",IF($D53=$B$77,(N29/VLOOKUP($C53,$B$66:$R$71,COLUMN()-1,FALSE)),IF($D53=$B$78,(N29/M29)/(VLOOKUP($C53,$B$66:N$71,COLUMN()-1,FALSE)/VLOOKUP($C53,$B$66:N$71,COLUMN()-2,FALSE))))),"") ->  | O53: 0 | P53: =IFERROR(O53,0) -> 0 | Q53: 0 | R53: 0
B54: o/w Import-based | C54: GDP at current prices | D54: ETR | E54: =IFERROR(IF(ISNA(IF($D54=$B$77,(E30/VLOOKUP($C54,$B$66:$R$71,COLUMN()-1)),IF($D54=$B$78,(E30/D30)/(VLOOKUP($C54,$B$66:E$71,COLUMN()-1,FALSE)/VLOOKUP($C54,$B$66:E$71,COLUMN()-2,FALSE))))),"",IF($D54=$B$77,(E30/VLOOKUP($C54,$B$66:$R$71,COLUMN()-1)),IF($D54=$B$78,(E30/D30)/(VLOOKUP($C54,$B$66:E$71,COLUMN()-1,FALSE)/VLOOKUP($C54,$B$66:E$71,COLUMN()-2,FALSE))))),"") ->  | F54: =IFERROR(IF(ISNA(IF($D54=$B$77,(F30/VLOOKUP($C54,$B$66:$R$71,COLUMN()-1)),IF($D54=$B$78,(F30/E30)/(VLOOKUP($C54,$B$66:F$71,COLUMN()-1,FALSE)/VLOOKUP($C54,$B$66:F$71,COLUMN()-2,FALSE))))),"",IF($D54=$B$77,(F30/VLOOKUP($C54,$B$66:$R$71,COLUMN()-1)),IF($D54=$B$78,(F30/E30)/(VLOOKUP($C54,$B$66:F$71,COLUMN()-1,FALSE)/VLOOKUP($C54,$B$66:F$71,COLUMN()-2,FALSE))))),"") ->  | G54: =IFERROR(IF(ISNA(IF($D54=$B$77,(G30/VLOOKUP($C54,$B$66:$R$71,COLUMN()-1)),IF($D54=$B$78,(G30/F30)/(VLOOKUP($C54,$B$66:G$71,COLUMN()-1,FALSE)/VLOOKUP($C54,$B$66:G$71,COLUMN()-2,FALSE))))),"",IF($D54=$B$77,(G30/VLOOKUP($C54,$B$66:$R$71,COLUMN()-1)),IF($D54=$B$78,(G30/F30)/(VLOOKUP($C54,$B$66:G$71,COLUMN()-1,FALSE)/VLOOKUP($C54,$B$66:G$71,COLUMN()-2,FALSE))))),"") ->  | H54: =IFERROR(IF(ISNA(IF($D54=$B$77,(H30/VLOOKUP($C54,$B$66:$R$71,COLUMN()-1)),IF($D54=$B$78,(H30/G30)/(VLOOKUP($C54,$B$66:H$71,COLUMN()-1,FALSE)/VLOOKUP($C54,$B$66:H$71,COLUMN()-2,FALSE))))),"",IF($D54=$B$77,(H30/VLOOKUP($C54,$B$66:$R$71,COLUMN()-1)),IF($D54=$B$78,(H30/G30)/(VLOOKUP($C54,$B$66:H$71,COLUMN()-1,FALSE)/VLOOKUP($C54,$B$66:H$71,COLUMN()-2,FALSE))))),"") ->  | I54: =IFERROR(IF(ISNA(IF($D54=$B$77,(I30/VLOOKUP($C54,$B$66:$R$71,COLUMN()-1)),IF($D54=$B$78,(I30/H30)/(VLOOKUP($C54,$B$66:I$71,COLUMN()-1,FALSE)/VLOOKUP($C54,$B$66:I$71,COLUMN()-2,FALSE))))),"",IF($D54=$B$77,(I30/VLOOKUP($C54,$B$66:$R$71,COLUMN()-1)),IF($D54=$B$78,(I30/H30)/(VLOOKUP($C54,$B$66:I$71,COLUMN()-1,FALSE)/VLOOKUP($C54,$B$66:I$71,COLUMN()-2,FALSE))))),"") ->  | J54: =IFERROR(IF(ISNA(IF($D54=$B$77,(J30/VLOOKUP($C54,$B$66:$R$71,COLUMN()-1)),IF($D54=$B$78,(J30/I30)/(VLOOKUP($C54,$B$66:J$71,COLUMN()-1,FALSE)/VLOOKUP($C54,$B$66:J$71,COLUMN()-2,FALSE))))),"",IF($D54=$B$77,(J30/VLOOKUP($C54,$B$66:$R$71,COLUMN()-1)),IF($D54=$B$78,(J30/I30)/(VLOOKUP($C54,$B$66:J$71,COLUMN()-1,FALSE)/VLOOKUP($C54,$B$66:J$71,COLUMN()-2,FALSE))))),"") ->  | K54: =IFERROR(IF(ISNA(IF($D54=$B$77,(K30/VLOOKUP($C54,$B$66:$R$71,COLUMN()-1)),IF($D54=$B$78,(K30/J30)/(VLOOKUP($C54,$B$66:K$71,COLUMN()-1,FALSE)/VLOOKUP($C54,$B$66:K$71,COLUMN()-2,FALSE))))),"",IF($D54=$B$77,(K30/VLOOKUP($C54,$B$66:$R$71,COLUMN()-1)),IF($D54=$B$78,(K30/J30)/(VLOOKUP($C54,$B$66:K$71,COLUMN()-1,FALSE)/VLOOKUP($C54,$B$66:K$71,COLUMN()-2,FALSE))))),"") ->  | L54: =IFERROR(IF(ISNA(IF($D54=$B$77,(L30/VLOOKUP($C54,$B$66:$R$71,COLUMN()-1)),IF($D54=$B$78,(L30/K30)/(VLOOKUP($C54,$B$66:L$71,COLUMN()-1,FALSE)/VLOOKUP($C54,$B$66:L$71,COLUMN()-2,FALSE))))),"",IF($D54=$B$77,(L30/VLOOKUP($C54,$B$66:$R$71,COLUMN()-1,FALSE)),IF($D54=$B$78,(L30/K30)/(VLOOKUP($C54,$B$66:L$71,COLUMN()-1,FALSE)/VLOOKUP($C54,$B$66:L$71,COLUMN()-2,FALSE))))),"") ->  | M54: =IFERROR(IF(ISNA(IF($D54=$B$77,(M30/VLOOKUP($C54,$B$66:$R$71,COLUMN()-1)),IF($D54=$B$78,(M30/L30)/(VLOOKUP($C54,$B$66:M$71,COLUMN()-1,FALSE)/VLOOKUP($C54,$B$66:M$71,COLUMN()-2,FALSE))))),"",IF($D54=$B$77,(M30/VLOOKUP($C54,$B$66:$R$71,COLUMN()-1,FALSE)),IF($D54=$B$78,(M30/L30)/(VLOOKUP($C54,$B$66:M$71,COLUMN()-1,FALSE)/VLOOKUP($C54,$B$66:M$71,COLUMN()-2,FALSE))))),"") ->  | N54: =IFERROR(IF(ISNA(IF($D54=$B$77,(N30/VLOOKUP($C54,$B$66:$R$71,COLUMN()-1)),IF($D54=$B$78,(N30/M30)/(VLOOKUP($C54,$B$66:N$71,COLUMN()-1,FALSE)/VLOOKUP($C54,$B$66:N$71,COLUMN()-2,FALSE))))),"",IF($D54=$B$77,(N30/VLOOKUP($C54,$B$66:$R$71,COLUMN()-1,FALSE)),IF($D54=$B$78,(N30/M30)/(VLOOKUP($C54,$B$66:N$71,COLUMN()-1,FALSE)/VLOOKUP($C54,$B$66:N$71,COLUMN()-2,FALSE))))),"") ->  | O54: 0 | P54: =IFERROR(O54,0) -> 0 | Q54: 0 | R54: 0
B55: c. Customs and Excise duty
B56: o/w Customs duty | C56: GDP at current prices | D56: ETR | E56: =IFERROR(IF(ISNA(IF($D56=$B$77,(E32/VLOOKUP($C56,$B$66:$R$71,COLUMN()-1)),IF($D56=$B$78,(E32/D32)/(VLOOKUP($C56,$B$66:E$71,COLUMN()-1,FALSE)/VLOOKUP($C56,$B$66:E$71,COLUMN()-2,FALSE))))),"",IF($D56=$B$77,(E32/VLOOKUP($C56,$B$66:$R$71,COLUMN()-1)),IF($D56=$B$78,(E32/D32)/(VLOOKUP($C56,$B$66:E$71,COLUMN()-1,FALSE)/VLOOKUP($C56,$B$66:E$71,COLUMN()-2,FALSE))))),"") ->  | F56: =IFERROR(IF(ISNA(IF($D56=$B$77,(F32/VLOOKUP($C56,$B$66:$R$71,COLUMN()-1)),IF($D56=$B$78,(F32/E32)/(VLOOKUP($C56,$B$66:F$71,COLUMN()-1,FALSE)/VLOOKUP($C56,$B$66:F$71,COLUMN()-2,FALSE))))),"",IF($D56=$B$77,(F32/VLOOKUP($C56,$B$66:$R$71,COLUMN()-1)),IF($D56=$B$78,(F32/E32)/(VLOOKUP($C56,$B$66:F$71,COLUMN()-1,FALSE)/VLOOKUP($C56,$B$66:F$71,COLUMN()-2,FALSE))))),"") ->  | G56: =IFERROR(IF(ISNA(IF($D56=$B$77,(G32/VLOOKUP($C56,$B$66:$R$71,COLUMN()-1)),IF($D56=$B$78,(G32/F32)/(VLOOKUP($C56,$B$66:G$71,COLUMN()-1,FALSE)/VLOOKUP($C56,$B$66:G$71,COLUMN()-2,FALSE))))),"",IF($D56=$B$77,(G32/VLOOKUP($C56,$B$66:$R$71,COLUMN()-1)),IF($D56=$B$78,(G32/F32)/(VLOOKUP($C56,$B$66:G$71,COLUMN()-1,FALSE)/VLOOKUP($C56,$B$66:G$71,COLUMN()-2,FALSE))))),"") ->  | H56: =IFERROR(IF(ISNA(IF($D56=$B$77,(H32/VLOOKUP($C56,$B$66:$R$71,COLUMN()-1)),IF($D56=$B$78,(H32/G32)/(VLOOKUP($C56,$B$66:H$71,COLUMN()-1,FALSE)/VLOOKUP($C56,$B$66:H$71,COLUMN()-2,FALSE))))),"",IF($D56=$B$77,(H32/VLOOKUP($C56,$B$66:$R$71,COLUMN()-1)),IF($D56=$B$78,(H32/G32)/(VLOOKUP($C56,$B$66:H$71,COLUMN()-1,FALSE)/VLOOKUP($C56,$B$66:H$71,COLUMN()-2,FALSE))))),"") ->  | I56: =IFERROR(IF(ISNA(IF($D56=$B$77,(I32/VLOOKUP($C56,$B$66:$R$71,COLUMN()-1)),IF($D56=$B$78,(I32/H32)/(VLOOKUP($C56,$B$66:I$71,COLUMN()-1,FALSE)/VLOOKUP($C56,$B$66:I$71,COLUMN()-2,FALSE))))),"",IF($D56=$B$77,(I32/VLOOKUP($C56,$B$66:$R$71,COLUMN()-1)),IF($D56=$B$78,(I32/H32)/(VLOOKUP($C56,$B$66:I$71,COLUMN()-1,FALSE)/VLOOKUP($C56,$B$66:I$71,COLUMN()-2,FALSE))))),"") ->  | J56: =IFERROR(IF(ISNA(IF($D56=$B$77,(J32/VLOOKUP($C56,$B$66:$R$71,COLUMN()-1)),IF($D56=$B$78,(J32/I32)/(VLOOKUP($C56,$B$66:J$71,COLUMN()-1,FALSE)/VLOOKUP($C56,$B$66:J$71,COLUMN()-2,FALSE))))),"",IF($D56=$B$77,(J32/VLOOKUP($C56,$B$66:$R$71,COLUMN()-1)),IF($D56=$B$78,(J32/I32)/(VLOOKUP($C56,$B$66:J$71,COLUMN()-1,FALSE)/VLOOKUP($C56,$B$66:J$71,COLUMN()-2,FALSE))))),"") ->  | K56: =IFERROR(IF(ISNA(IF($D56=$B$77,(K32/VLOOKUP($C56,$B$66:$R$71,COLUMN()-1)),IF($D56=$B$78,(K32/J32)/(VLOOKUP($C56,$B$66:K$71,COLUMN()-1,FALSE)/VLOOKUP($C56,$B$66:K$71,COLUMN()-2,FALSE))))),"",IF($D56=$B$77,(K32/VLOOKUP($C56,$B$66:$R$71,COLUMN()-1)),IF($D56=$B$78,(K32/J32)/(VLOOKUP($C56,$B$66:K$71,COLUMN()-1,FALSE)/VLOOKUP($C56,$B$66:K$71,COLUMN()-2,FALSE))))),"") ->  | L56: =IFERROR(IF(ISNA(IF($D56=$B$77,(L32/VLOOKUP($C56,$B$66:$R$71,COLUMN()-1)),IF($D56=$B$78,(L32/K32)/(VLOOKUP($C56,$B$66:L$71,COLUMN()-1,FALSE)/VLOOKUP($C56,$B$66:L$71,COLUMN()-2,FALSE))))),"",IF($D56=$B$77,(L32/VLOOKUP($C56,$B$66:$R$71,COLUMN()-1,FALSE)),IF($D56=$B$78,(L32/K32)/(VLOOKUP($C56,$B$66:L$71,COLUMN()-1,FALSE)/VLOOKUP($C56,$B$66:L$71,COLUMN()-2,FALSE))))),"") ->  | M56: =IFERROR(IF(ISNA(IF($D56=$B$77,(M32/VLOOKUP($C56,$B$66:$R$71,COLUMN()-1)),IF($D56=$B$78,(M32/L32)/(VLOOKUP($C56,$B$66:M$71,COLUMN()-1,FALSE)/VLOOKUP($C56,$B$66:M$71,COLUMN()-2,FALSE))))),"",IF($D56=$B$77,(M32/VLOOKUP($C56,$B$66:$R$71,COLUMN()-1,FALSE)),IF($D56=$B$78,(M32/L32)/(VLOOKUP($C56,$B$66:M$71,COLUMN()-1,FALSE)/VLOOKUP($C56,$B$66:M$71,COLUMN()-2,FALSE))))),"") ->  | N56: =IFERROR(IF(ISNA(IF($D56=$B$77,(N32/VLOOKUP($C56,$B$66:$R$71,COLUMN()-1)),IF($D56=$B$78,(N32/M32)/(VLOOKUP($C56,$B$66:N$71,COLUMN()-1,FALSE)/VLOOKUP($C56,$B$66:N$71,COLUMN()-2,FALSE))))),"",IF($D56=$B$77,(N32/VLOOKUP($C56,$B$66:$R$71,COLUMN()-1,FALSE)),IF($D56=$B$78,(N32/M32)/(VLOOKUP($C56,$B$66:N$71,COLUMN()-1,FALSE)/VLOOKUP($C56,$B$66:N$71,COLUMN()-2,FALSE))))),"") ->  | O56: 0 | P56: =IFERROR(O56,0) -> 0 | Q56: 0 | R56: 0
B57: o/w Excise duty | C57: GDP at constant prices | D57: ETR | E57: =IFERROR(IF(ISNA(IF($D57=$B$77,(E33/VLOOKUP($C57,$B$66:$R$71,COLUMN()-1)),IF($D57=$B$78,(E33/D33)/(VLOOKUP($C57,$B$66:E$71,COLUMN()-1,FALSE)/VLOOKUP($C57,$B$66:E$71,COLUMN()-2,FALSE))))),"",IF($D57=$B$77,(E33/VLOOKUP($C57,$B$66:$R$71,COLUMN()-1)),IF($D57=$B$78,(E33/D33)/(VLOOKUP($C57,$B$66:E$71,COLUMN()-1,FALSE)/VLOOKUP($C57,$B$66:E$71,COLUMN()-2,FALSE))))),"") ->  | F57: =IFERROR(IF(ISNA(IF($D57=$B$77,(F33/VLOOKUP($C57,$B$66:$R$71,COLUMN()-1)),IF($D57=$B$78,(F33/E33)/(VLOOKUP($C57,$B$66:F$71,COLUMN()-1,FALSE)/VLOOKUP($C57,$B$66:F$71,COLUMN()-2,FALSE))))),"",IF($D57=$B$77,(F33/VLOOKUP($C57,$B$66:$R$71,COLUMN()-1)),IF($D57=$B$78,(F33/E33)/(VLOOKUP($C57,$B$66:F$71,COLUMN()-1,FALSE)/VLOOKUP($C57,$B$66:F$71,COLUMN()-2,FALSE))))),"") ->  | G57: =IFERROR(IF(ISNA(IF($D57=$B$77,(G33/VLOOKUP($C57,$B$66:$R$71,COLUMN()-1)),IF($D57=$B$78,(G33/F33)/(VLOOKUP($C57,$B$66:G$71,COLUMN()-1,FALSE)/VLOOKUP($C57,$B$66:G$71,COLUMN()-2,FALSE))))),"",IF($D57=$B$77,(G33/VLOOKUP($C57,$B$66:$R$71,COLUMN()-1)),IF($D57=$B$78,(G33/F33)/(VLOOKUP($C57,$B$66:G$71,COLUMN()-1,FALSE)/VLOOKUP($C57,$B$66:G$71,COLUMN()-2,FALSE))))),"") ->  | H57: =IFERROR(IF(ISNA(IF($D57=$B$77,(H33/VLOOKUP($C57,$B$66:$R$71,COLUMN()-1)),IF($D57=$B$78,(H33/G33)/(VLOOKUP($C57,$B$66:H$71,COLUMN()-1,FALSE)/VLOOKUP($C57,$B$66:H$71,COLUMN()-2,FALSE))))),"",IF($D57=$B$77,(H33/VLOOKUP($C57,$B$66:$R$71,COLUMN()-1)),IF($D57=$B$78,(H33/G33)/(VLOOKUP($C57,$B$66:H$71,COLUMN()-1,FALSE)/VLOOKUP($C57,$B$66:H$71,COLUMN()-2,FALSE))))),"") ->  | I57: =IFERROR(IF(ISNA(IF($D57=$B$77,(I33/VLOOKUP($C57,$B$66:$R$71,COLUMN()-1)),IF($D57=$B$78,(I33/H33)/(VLOOKUP($C57,$B$66:I$71,COLUMN()-1,FALSE)/VLOOKUP($C57,$B$66:I$71,COLUMN()-2,FALSE))))),"",IF($D57=$B$77,(I33/VLOOKUP($C57,$B$66:$R$71,COLUMN()-1)),IF($D57=$B$78,(I33/H33)/(VLOOKUP($C57,$B$66:I$71,COLUMN()-1,FALSE)/VLOOKUP($C57,$B$66:I$71,COLUMN()-2,FALSE))))),"") ->  | J57: =IFERROR(IF(ISNA(IF($D57=$B$77,(J33/VLOOKUP($C57,$B$66:$R$71,COLUMN()-1)),IF($D57=$B$78,(J33/I33)/(VLOOKUP($C57,$B$66:J$71,COLUMN()-1,FALSE)/VLOOKUP($C57,$B$66:J$71,COLUMN()-2,FALSE))))),"",IF($D57=$B$77,(J33/VLOOKUP($C57,$B$66:$R$71,COLUMN()-1)),IF($D57=$B$78,(J33/I33)/(VLOOKUP($C57,$B$66:J$71,COLUMN()-1,FALSE)/VLOOKUP($C57,$B$66:J$71,COLUMN()-2,FALSE))))),"") ->  | K57: =IFERROR(IF(ISNA(IF($D57=$B$77,(K33/VLOOKUP($C57,$B$66:$R$71,COLUMN()-1)),IF($D57=$B$78,(K33/J33)/(VLOOKUP($C57,$B$66:K$71,COLUMN()-1,FALSE)/VLOOKUP($C57,$B$66:K$71,COLUMN()-2,FALSE))))),"",IF($D57=$B$77,(K33/VLOOKUP($C57,$B$66:$R$71,COLUMN()-1)),IF($D57=$B$78,(K33/J33)/(VLOOKUP($C57,$B$66:K$71,COLUMN()-1,FALSE)/VLOOKUP($C57,$B$66:K$71,COLUMN()-2,FALSE))))),"") ->  | L57: =IFERROR(IF(ISNA(IF($D57=$B$77,(L33/VLOOKUP($C57,$B$66:$R$71,COLUMN()-1)),IF($D57=$B$78,(L33/K33)/(VLOOKUP($C57,$B$66:L$71,COLUMN()-1,FALSE)/VLOOKUP($C57,$B$66:L$71,COLUMN()-2,FALSE))))),"",IF($D57=$B$77,(L33/VLOOKUP($C57,$B$66:$R$71,COLUMN()-1,FALSE)),IF($D57=$B$78,(L33/K33)/(VLOOKUP($C57,$B$66:L$71,COLUMN()-1,FALSE)/VLOOKUP($C57,$B$66:L$71,COLUMN()-2,FALSE))))),"") ->  | M57: =IFERROR(IF(ISNA(IF($D57=$B$77,(M33/VLOOKUP($C57,$B$66:$R$71,COLUMN()-1)),IF($D57=$B$78,(M33/L33)/(VLOOKUP($C57,$B$66:M$71,COLUMN()-1,FALSE)/VLOOKUP($C57,$B$66:M$71,COLUMN()-2,FALSE))))),"",IF($D57=$B$77,(M33/VLOOKUP($C57,$B$66:$R$71,COLUMN()-1,FALSE)),IF($D57=$B$78,(M33/L33)/(VLOOKUP($C57,$B$66:M$71,COLUMN()-1,FALSE)/VLOOKUP($C57,$B$66:M$71,COLUMN()-2,FALSE))))),"") ->  | N57: =IFERROR(IF(ISNA(IF($D57=$B$77,(N33/VLOOKUP($C57,$B$66:$R$71,COLUMN()-1)),IF($D57=$B$78,(N33/M33)/(VLOOKUP($C57,$B$66:N$71,COLUMN()-1,FALSE)/VLOOKUP($C57,$B$66:N$71,COLUMN()-2,FALSE))))),"",IF($D57=$B$77,(N33/VLOOKUP($C57,$B$66:$R$71,COLUMN()-1,FALSE)),IF($D57=$B$78,(N33/M33)/(VLOOKUP($C57,$B$66:N$71,COLUMN()-1,FALSE)/VLOOKUP($C57,$B$66:N$71,COLUMN()-2,FALSE))))),"") ->  | O57: 0 | P57: =IFERROR(O57,0) -> 0 | Q57: 0 | R57: 0
B58: d. Other Taxes | C58: GDP at current prices | D58: ETR | E58: =IFERROR(IF(ISNA(IF($D58=$B$77,(E34/VLOOKUP($C58,$B$66:$R$71,COLUMN()-1)),IF($D58=$B$78,(E34/D34)/(VLOOKUP($C58,$B$66:E$71,COLUMN()-1,FALSE)/VLOOKUP($C58,$B$66:E$71,COLUMN()-2,FALSE))))),"",IF($D58=$B$77,(E34/VLOOKUP($C58,$B$66:$R$71,COLUMN()-1)),IF($D58=$B$78,(E34/D34)/(VLOOKUP($C58,$B$66:E$71,COLUMN()-1,FALSE)/VLOOKUP($C58,$B$66:E$71,COLUMN()-2,FALSE))))),"") ->  | F58: =IFERROR(IF(ISNA(IF($D58=$B$77,(F34/VLOOKUP($C58,$B$66:$R$71,COLUMN()-1)),IF($D58=$B$78,(F34/E34)/(VLOOKUP($C58,$B$66:F$71,COLUMN()-1,FALSE)/VLOOKUP($C58,$B$66:F$71,COLUMN()-2,FALSE))))),"",IF($D58=$B$77,(F34/VLOOKUP($C58,$B$66:$R$71,COLUMN()-1)),IF($D58=$B$78,(F34/E34)/(VLOOKUP($C58,$B$66:F$71,COLUMN()-1,FALSE)/VLOOKUP($C58,$B$66:F$71,COLUMN()-2,FALSE))))),"") ->  | G58: =IFERROR(IF(ISNA(IF($D58=$B$77,(G34/VLOOKUP($C58,$B$66:$R$71,COLUMN()-1)),IF($D58=$B$78,(G34/F34)/(VLOOKUP($C58,$B$66:G$71,COLUMN()-1,FALSE)/VLOOKUP($C58,$B$66:G$71,COLUMN()-2,FALSE))))),"",IF($D58=$B$77,(G34/VLOOKUP($C58,$B$66:$R$71,COLUMN()-1)),IF($D58=$B$78,(G34/F34)/(VLOOKUP($C58,$B$66:G$71,COLUMN()-1,FALSE)/VLOOKUP($C58,$B$66:G$71,COLUMN()-2,FALSE))))),"") ->  | H58: =IFERROR(IF(ISNA(IF($D58=$B$77,(H34/VLOOKUP($C58,$B$66:$R$71,COLUMN()-1)),IF($D58=$B$78,(H34/G34)/(VLOOKUP($C58,$B$66:H$71,COLUMN()-1,FALSE)/VLOOKUP($C58,$B$66:H$71,COLUMN()-2,FALSE))))),"",IF($D58=$B$77,(H34/VLOOKUP($C58,$B$66:$R$71,COLUMN()-1)),IF($D58=$B$78,(H34/G34)/(VLOOKUP($C58,$B$66:H$71,COLUMN()-1,FALSE)/VLOOKUP($C58,$B$66:H$71,COLUMN()-2,FALSE))))),"") ->  | I58: =IFERROR(IF(ISNA(IF($D58=$B$77,(I34/VLOOKUP($C58,$B$66:$R$71,COLUMN()-1)),IF($D58=$B$78,(I34/H34)/(VLOOKUP($C58,$B$66:I$71,COLUMN()-1,FALSE)/VLOOKUP($C58,$B$66:I$71,COLUMN()-2,FALSE))))),"",IF($D58=$B$77,(I34/VLOOKUP($C58,$B$66:$R$71,COLUMN()-1)),IF($D58=$B$78,(I34/H34)/(VLOOKUP($C58,$B$66:I$71,COLUMN()-1,FALSE)/VLOOKUP($C58,$B$66:I$71,COLUMN()-2,FALSE))))),"") ->  | J58: =IFERROR(IF(ISNA(IF($D58=$B$77,(J34/VLOOKUP($C58,$B$66:$R$71,COLUMN()-1)),IF($D58=$B$78,(J34/I34)/(VLOOKUP($C58,$B$66:J$71,COLUMN()-1,FALSE)/VLOOKUP($C58,$B$66:J$71,COLUMN()-2,FALSE))))),"",IF($D58=$B$77,(J34/VLOOKUP($C58,$B$66:$R$71,COLUMN()-1)),IF($D58=$B$78,(J34/I34)/(VLOOKUP($C58,$B$66:J$71,COLUMN()-1,FALSE)/VLOOKUP($C58,$B$66:J$71,COLUMN()-2,FALSE))))),"") ->  | K58: =IFERROR(IF(ISNA(IF($D58=$B$77,(K34/VLOOKUP($C58,$B$66:$R$71,COLUMN()-1)),IF($D58=$B$78,(K34/J34)/(VLOOKUP($C58,$B$66:K$71,COLUMN()-1,FALSE)/VLOOKUP($C58,$B$66:K$71,COLUMN()-2,FALSE))))),"",IF($D58=$B$77,(K34/VLOOKUP($C58,$B$66:$R$71,COLUMN()-1)),IF($D58=$B$78,(K34/J34)/(VLOOKUP($C58,$B$66:K$71,COLUMN()-1,FALSE)/VLOOKUP($C58,$B$66:K$71,COLUMN()-2,FALSE))))),"") ->  | L58: =IFERROR(IF(ISNA(IF($D58=$B$77,(L34/VLOOKUP($C58,$B$66:$R$71,COLUMN()-1)),IF($D58=$B$78,(L34/K34)/(VLOOKUP($C58,$B$66:L$71,COLUMN()-1,FALSE)/VLOOKUP($C58,$B$66:L$71,COLUMN()-2,FALSE))))),"",IF($D58=$B$77,(L34/VLOOKUP($C58,$B$66:$R$71,COLUMN()-1,FALSE)),IF($D58=$B$78,(L34/K34)/(VLOOKUP($C58,$B$66:L$71,COLUMN()-1,FALSE)/VLOOKUP($C58,$B$66:L$71,COLUMN()-2,FALSE))))),"") ->  | M58: =IFERROR(IF(ISNA(IF($D58=$B$77,(M34/VLOOKUP($C58,$B$66:$R$71,COLUMN()-1)),IF($D58=$B$78,(M34/L34)/(VLOOKUP($C58,$B$66:M$71,COLUMN()-1,FALSE)/VLOOKUP($C58,$B$66:M$71,COLUMN()-2,FALSE))))),"",IF($D58=$B$77,(M34/VLOOKUP($C58,$B$66:$R$71,COLUMN()-1,FALSE)),IF($D58=$B$78,(M34/L34)/(VLOOKUP($C58,$B$66:M$71,COLUMN()-1,FALSE)/VLOOKUP($C58,$B$66:M$71,COLUMN()-2,FALSE))))),"") ->  | N58: =IFERROR(IF(ISNA(IF($D58=$B$77,(N34/VLOOKUP($C58,$B$66:$R$71,COLUMN()-1)),IF($D58=$B$78,(N34/M34)/(VLOOKUP($C58,$B$66:N$71,COLUMN()-1,FALSE)/VLOOKUP($C58,$B$66:N$71,COLUMN()-2,FALSE))))),"",IF($D58=$B$77,(N34/VLOOKUP($C58,$B$66:$R$71,COLUMN()-1,FALSE)),IF($D58=$B$78,(N34/M34)/(VLOOKUP($C58,$B$66:N$71,COLUMN()-1,FALSE)/VLOOKUP($C58,$B$66:N$71,COLUMN()-2,FALSE))))),"") ->  | O58: 0 | P58: =IFERROR(O58,0) -> 0 | Q58: =P58 -> 0 | R58: =Q58 -> 0
B59: Non-Tax Revenue
B60: o/w non-commodity based | C60: GDP at current prices | D60: ETR | E60: =IFERROR(IF(ISNA(IF($D60=$B$77,(E36/VLOOKUP($C60,$B$66:$R$71,COLUMN()-1)),IF($D60=$B$78,(E36/D36)/(VLOOKUP($C60,$B$66:E$71,COLUMN()-1,FALSE)/VLOOKUP($C60,$B$66:E$71,COLUMN()-2,FALSE))))),"",IF($D60=$B$77,(E36/VLOOKUP($C60,$B$66:$R$71,COLUMN()-1)),IF($D60=$B$78,(E36/D36)/(VLOOKUP($C60,$B$66:E$71,COLUMN()-1,FALSE)/VLOOKUP($C60,$B$66:E$71,COLUMN()-2,FALSE))))),"") ->  | F60: =IFERROR(IF(ISNA(IF($D60=$B$77,(F36/VLOOKUP($C60,$B$66:$R$71,COLUMN()-1)),IF($D60=$B$78,(F36/E36)/(VLOOKUP($C60,$B$66:F$71,COLUMN()-1,FALSE)/VLOOKUP($C60,$B$66:F$71,COLUMN()-2,FALSE))))),"",IF($D60=$B$77,(F36/VLOOKUP($C60,$B$66:$R$71,COLUMN()-1)),IF($D60=$B$78,(F36/E36)/(VLOOKUP($C60,$B$66:F$71,COLUMN()-1,FALSE)/VLOOKUP($C60,$B$66:F$71,COLUMN()-2,FALSE))))),"") ->  | G60: =IFERROR(IF(ISNA(IF($D60=$B$77,(G36/VLOOKUP($C60,$B$66:$R$71,COLUMN()-1)),IF($D60=$B$78,(G36/F36)/(VLOOKUP($C60,$B$66:G$71,COLUMN()-1,FALSE)/VLOOKUP($C60,$B$66:G$71,COLUMN()-2,FALSE))))),"",IF($D60=$B$77,(G36/VLOOKUP($C60,$B$66:$R$71,COLUMN()-1)),IF($D60=$B$78,(G36/F36)/(VLOOKUP($C60,$B$66:G$71,COLUMN()-1,FALSE)/VLOOKUP($C60,$B$66:G$71,COLUMN()-2,FALSE))))),"") ->  | H60: =IFERROR(IF(ISNA(IF($D60=$B$77,(H36/VLOOKUP($C60,$B$66:$R$71,COLUMN()-1)),IF($D60=$B$78,(H36/G36)/(VLOOKUP($C60,$B$66:H$71,COLUMN()-1,FALSE)/VLOOKUP($C60,$B$66:H$71,COLUMN()-2,FALSE))))),"",IF($D60=$B$77,(H36/VLOOKUP($C60,$B$66:$R$71,COLUMN()-1)),IF($D60=$B$78,(H36/G36)/(VLOOKUP($C60,$B$66:H$71,COLUMN()-1,FALSE)/VLOOKUP($C60,$B$66:H$71,COLUMN()-2,FALSE))))),"") ->  | I60: =IFERROR(IF(ISNA(IF($D60=$B$77,(I36/VLOOKUP($C60,$B$66:$R$71,COLUMN()-1)),IF($D60=$B$78,(I36/H36)/(VLOOKUP($C60,$B$66:I$71,COLUMN()-1,FALSE)/VLOOKUP($C60,$B$66:I$71,COLUMN()-2,FALSE))))),"",IF($D60=$B$77,(I36/VLOOKUP($C60,$B$66:$R$71,COLUMN()-1)),IF($D60=$B$78,(I36/H36)/(VLOOKUP($C60,$B$66:I$71,COLUMN()-1,FALSE)/VLOOKUP($C60,$B$66:I$71,COLUMN()-2,FALSE))))),"") ->  | J60: =IFERROR(IF(ISNA(IF($D60=$B$77,(J36/VLOOKUP($C60,$B$66:$R$71,COLUMN()-1)),IF($D60=$B$78,(J36/I36)/(VLOOKUP($C60,$B$66:J$71,COLUMN()-1,FALSE)/VLOOKUP($C60,$B$66:J$71,COLUMN()-2,FALSE))))),"",IF($D60=$B$77,(J36/VLOOKUP($C60,$B$66:$R$71,COLUMN()-1)),IF($D60=$B$78,(J36/I36)/(VLOOKUP($C60,$B$66:J$71,COLUMN()-1,FALSE)/VLOOKUP($C60,$B$66:J$71,COLUMN()-2,FALSE))))),"") ->  | K60: =IFERROR(IF(ISNA(IF($D60=$B$77,(K36/VLOOKUP($C60,$B$66:$R$71,COLUMN()-1)),IF($D60=$B$78,(K36/J36)/(VLOOKUP($C60,$B$66:K$71,COLUMN()-1,FALSE)/VLOOKUP($C60,$B$66:K$71,COLUMN()-2,FALSE))))),"",IF($D60=$B$77,(K36/VLOOKUP($C60,$B$66:$R$71,COLUMN()-1)),IF($D60=$B$78,(K36/J36)/(VLOOKUP($C60,$B$66:K$71,COLUMN()-1,FALSE)/VLOOKUP($C60,$B$66:K$71,COLUMN()-2,FALSE))))),"") ->  | L60: =IFERROR(IF(ISNA(IF($D60=$B$77,(L36/VLOOKUP($C60,$B$66:$R$71,COLUMN()-1)),IF($D60=$B$78,(L36/K36)/(VLOOKUP($C60,$B$66:L$71,COLUMN()-1,FALSE)/VLOOKUP($C60,$B$66:L$71,COLUMN()-2,FALSE))))),"",IF($D60=$B$77,(L36/VLOOKUP($C60,$B$66:$R$71,COLUMN()-1,FALSE)),IF($D60=$B$78,(L36/K36)/(VLOOKUP($C60,$B$66:L$71,COLUMN()-1,FALSE)/VLOOKUP($C60,$B$66:L$71,COLUMN()-2,FALSE))))),"") ->  | M60: =IFERROR(IF(ISNA(IF($D60=$B$77,(M36/VLOOKUP($C60,$B$66:$R$71,COLUMN()-1)),IF($D60=$B$78,(M36/L36)/(VLOOKUP($C60,$B$66:M$71,COLUMN()-1,FALSE)/VLOOKUP($C60,$B$66:M$71,COLUMN()-2,FALSE))))),"",IF($D60=$B$77,(M36/VLOOKUP($C60,$B$66:$R$71,COLUMN()-1,FALSE)),IF($D60=$B$78,(M36/L36)/(VLOOKUP($C60,$B$66:M$71,COLUMN()-1,FALSE)/VLOOKUP($C60,$B$66:M$71,COLUMN()-2,FALSE))))),"") ->  | N60: =IFERROR(IF(ISNA(IF($D60=$B$77,(N36/VLOOKUP($C60,$B$66:$R$71,COLUMN()-1)),IF($D60=$B$78,(N36/M36)/(VLOOKUP($C60,$B$66:N$71,COLUMN()-1,FALSE)/VLOOKUP($C60,$B$66:N$71,COLUMN()-2,FALSE))))),"",IF($D60=$B$77,(N36/VLOOKUP($C60,$B$66:$R$71,COLUMN()-1,FALSE)),IF($D60=$B$78,(N36/M36)/(VLOOKUP($C60,$B$66:N$71,COLUMN()-1,FALSE)/VLOOKUP($C60,$B$66:N$71,COLUMN()-2,FALSE))))),"") ->  | O60: 0 | P60: =IFERROR(O60,0) -> 0 | Q60: =P60 -> 0 | R60: 0
B61: =B37 -> o/w commodity based | C61: GDP at current prices | D61: ETR | E61: =IFERROR(IF(ISNA(IF($D61=$B$77,(E37/VLOOKUP($C61,$B$66:$R$71,COLUMN()-1)),IF($D61=$B$78,(E37/D37)/(VLOOKUP($C61,$B$66:E$71,COLUMN()-1,FALSE)/VLOOKUP($C61,$B$66:E$71,COLUMN()-2,FALSE))))),"",IF($D61=$B$77,(E37/VLOOKUP($C61,$B$66:$R$71,COLUMN()-1)),IF($D61=$B$78,(E37/D37)/(VLOOKUP($C61,$B$66:E$71,COLUMN()-1,FALSE)/VLOOKUP($C61,$B$66:E$71,COLUMN()-2,FALSE))))),"") ->  | F61: =IFERROR(IF(ISNA(IF($D61=$B$77,(F37/VLOOKUP($C61,$B$66:$R$71,COLUMN()-1)),IF($D61=$B$78,(F37/E37)/(VLOOKUP($C61,$B$66:F$71,COLUMN()-1,FALSE)/VLOOKUP($C61,$B$66:F$71,COLUMN()-2,FALSE))))),"",IF($D61=$B$77,(F37/VLOOKUP($C61,$B$66:$R$71,COLUMN()-1)),IF($D61=$B$78,(F37/E37)/(VLOOKUP($C61,$B$66:F$71,COLUMN()-1,FALSE)/VLOOKUP($C61,$B$66:F$71,COLUMN()-2,FALSE))))),"") ->  | G61: =IFERROR(IF(ISNA(IF($D61=$B$77,(G37/VLOOKUP($C61,$B$66:$R$71,COLUMN()-1)),IF($D61=$B$78,(G37/F37)/(VLOOKUP($C61,$B$66:G$71,COLUMN()-1,FALSE)/VLOOKUP($C61,$B$66:G$71,COLUMN()-2,FALSE))))),"",IF($D61=$B$77,(G37/VLOOKUP($C61,$B$66:$R$71,COLUMN()-1)),IF($D61=$B$78,(G37/F37)/(VLOOKUP($C61,$B$66:G$71,COLUMN()-1,FALSE)/VLOOKUP($C61,$B$66:G$71,COLUMN()-2,FALSE))))),"") ->  | H61: =IFERROR(IF(ISNA(IF($D61=$B$77,(H37/VLOOKUP($C61,$B$66:$R$71,COLUMN()-1)),IF($D61=$B$78,(H37/G37)/(VLOOKUP($C61,$B$66:H$71,COLUMN()-1,FALSE)/VLOOKUP($C61,$B$66:H$71,COLUMN()-2,FALSE))))),"",IF($D61=$B$77,(H37/VLOOKUP($C61,$B$66:$R$71,COLUMN()-1)),IF($D61=$B$78,(H37/G37)/(VLOOKUP($C61,$B$66:H$71,COLUMN()-1,FALSE)/VLOOKUP($C61,$B$66:H$71,COLUMN()-2,FALSE))))),"") ->  | I61: =IFERROR(IF(ISNA(IF($D61=$B$77,(I37/VLOOKUP($C61,$B$66:$R$71,COLUMN()-1)),IF($D61=$B$78,(I37/H37)/(VLOOKUP($C61,$B$66:I$71,COLUMN()-1,FALSE)/VLOOKUP($C61,$B$66:I$71,COLUMN()-2,FALSE))))),"",IF($D61=$B$77,(I37/VLOOKUP($C61,$B$66:$R$71,COLUMN()-1)),IF($D61=$B$78,(I37/H37)/(VLOOKUP($C61,$B$66:I$71,COLUMN()-1,FALSE)/VLOOKUP($C61,$B$66:I$71,COLUMN()-2,FALSE))))),"") ->  | J61: =IFERROR(IF(ISNA(IF($D61=$B$77,(J37/VLOOKUP($C61,$B$66:$R$71,COLUMN()-1)),IF($D61=$B$78,(J37/I37)/(VLOOKUP($C61,$B$66:J$71,COLUMN()-1,FALSE)/VLOOKUP($C61,$B$66:J$71,COLUMN()-2,FALSE))))),"",IF($D61=$B$77,(J37/VLOOKUP($C61,$B$66:$R$71,COLUMN()-1)),IF($D61=$B$78,(J37/I37)/(VLOOKUP($C61,$B$66:J$71,COLUMN()-1,FALSE)/VLOOKUP($C61,$B$66:J$71,COLUMN()-2,FALSE))))),"") ->  | K61: =IFERROR(IF(ISNA(IF($D61=$B$77,(K37/VLOOKUP($C61,$B$66:$R$71,COLUMN()-1)),IF($D61=$B$78,(K37/J37)/(VLOOKUP($C61,$B$66:K$71,COLUMN()-1,FALSE)/VLOOKUP($C61,$B$66:K$71,COLUMN()-2,FALSE))))),"",IF($D61=$B$77,(K37/VLOOKUP($C61,$B$66:$R$71,COLUMN()-1)),IF($D61=$B$78,(K37/J37)/(VLOOKUP($C61,$B$66:K$71,COLUMN()-1,FALSE)/VLOOKUP($C61,$B$66:K$71,COLUMN()-2,FALSE))))),"") ->  | L61: =IFERROR(IF(ISNA(IF($D61=$B$77,(L37/VLOOKUP($C61,$B$66:$R$71,COLUMN()-1)),IF($D61=$B$78,(L37/K37)/(VLOOKUP($C61,$B$66:L$71,COLUMN()-1,FALSE)/VLOOKUP($C61,$B$66:L$71,COLUMN()-2,FALSE))))),"",IF($D61=$B$77,(L37/VLOOKUP($C61,$B$66:$R$71,COLUMN()-1,FALSE)),IF($D61=$B$78,(L37/K37)/(VLOOKUP($C61,$B$66:L$71,COLUMN()-1,FALSE)/VLOOKUP($C61,$B$66:L$71,COLUMN()-2,FALSE))))),"") ->  | M61: =IFERROR(IF(ISNA(IF($D61=$B$77,(M37/VLOOKUP($C61,$B$66:$R$71,COLUMN()-1)),IF($D61=$B$78,(M37/L37)/(VLOOKUP($C61,$B$66:M$71,COLUMN()-1,FALSE)/VLOOKUP($C61,$B$66:M$71,COLUMN()-2,FALSE))))),"",IF($D61=$B$77,(M37/VLOOKUP($C61,$B$66:$R$71,COLUMN()-1,FALSE)),IF($D61=$B$78,(M37/L37)/(VLOOKUP($C61,$B$66:M$71,COLUMN()-1,FALSE)/VLOOKUP($C61,$B$66:M$71,COLUMN()-2,FALSE))))),"") ->  | N61: =IFERROR(IF(ISNA(IF($D61=$B$77,(N37/VLOOKUP($C61,$B$66:$R$71,COLUMN()-1)),IF($D61=$B$78,(N37/M37)/(VLOOKUP($C61,$B$66:N$71,COLUMN()-1,FALSE)/VLOOKUP($C61,$B$66:N$71,COLUMN()-2,FALSE))))),"",IF($D61=$B$77,(N37/VLOOKUP($C61,$B$66:$R$71,COLUMN()-1,FALSE)),IF($D61=$B$78,(N37/M37)/(VLOOKUP($C61,$B$66:N$71,COLUMN()-1,FALSE)/VLOOKUP($C61,$B$66:N$71,COLUMN()-2,FALSE))))),"") ->  | O61: 0 | P61: =IFERROR(O61,0) -> 0 | Q61: 0 | R61: 0
B62: o/w Other revenues (special) | C62: GDP at current prices | D62: ETR | E62: =IFERROR(IF(ISNA(IF($D62=$B$77,(E38/VLOOKUP($C62,$B$66:$R$71,COLUMN()-1)),IF($D62=$B$78,(E38/D38)/(VLOOKUP($C62,$B$66:E$71,COLUMN()-1,FALSE)/VLOOKUP($C62,$B$66:E$71,COLUMN()-2,FALSE))))),"",IF($D62=$B$77,(E38/VLOOKUP($C62,$B$66:$R$71,COLUMN()-1)),IF($D62=$B$78,(E38/D38)/(VLOOKUP($C62,$B$66:E$71,COLUMN()-1,FALSE)/VLOOKUP($C62,$B$66:E$71,COLUMN()-2,FALSE))))),"") ->  | F62: =IFERROR(IF(ISNA(IF($D62=$B$77,(F38/VLOOKUP($C62,$B$66:$R$71,COLUMN()-1)),IF($D62=$B$78,(F38/E38)/(VLOOKUP($C62,$B$66:F$71,COLUMN()-1,FALSE)/VLOOKUP($C62,$B$66:F$71,COLUMN()-2,FALSE))))),"",IF($D62=$B$77,(F38/VLOOKUP($C62,$B$66:$R$71,COLUMN()-1)),IF($D62=$B$78,(F38/E38)/(VLOOKUP($C62,$B$66:F$71,COLUMN()-1,FALSE)/VLOOKUP($C62,$B$66:F$71,COLUMN()-2,FALSE))))),"") ->  | G62: =IFERROR(IF(ISNA(IF($D62=$B$77,(G38/VLOOKUP($C62,$B$66:$R$71,COLUMN()-1)),IF($D62=$B$78,(G38/F38)/(VLOOKUP($C62,$B$66:G$71,COLUMN()-1,FALSE)/VLOOKUP($C62,$B$66:G$71,COLUMN()-2,FALSE))))),"",IF($D62=$B$77,(G38/VLOOKUP($C62,$B$66:$R$71,COLUMN()-1)),IF($D62=$B$78,(G38/F38)/(VLOOKUP($C62,$B$66:G$71,COLUMN()-1,FALSE)/VLOOKUP($C62,$B$66:G$71,COLUMN()-2,FALSE))))),"") ->  | H62: =IFERROR(IF(ISNA(IF($D62=$B$77,(H38/VLOOKUP($C62,$B$66:$R$71,COLUMN()-1)),IF($D62=$B$78,(H38/G38)/(VLOOKUP($C62,$B$66:H$71,COLUMN()-1,FALSE)/VLOOKUP($C62,$B$66:H$71,COLUMN()-2,FALSE))))),"",IF($D62=$B$77,(H38/VLOOKUP($C62,$B$66:$R$71,COLUMN()-1)),IF($D62=$B$78,(H38/G38)/(VLOOKUP($C62,$B$66:H$71,COLUMN()-1,FALSE)/VLOOKUP($C62,$B$66:H$71,COLUMN()-2,FALSE))))),"") ->  | I62: =IFERROR(IF(ISNA(IF($D62=$B$77,(I38/VLOOKUP($C62,$B$66:$R$71,COLUMN()-1)),IF($D62=$B$78,(I38/H38)/(VLOOKUP($C62,$B$66:I$71,COLUMN()-1,FALSE)/VLOOKUP($C62,$B$66:I$71,COLUMN()-2,FALSE))))),"",IF($D62=$B$77,(I38/VLOOKUP($C62,$B$66:$R$71,COLUMN()-1)),IF($D62=$B$78,(I38/H38)/(VLOOKUP($C62,$B$66:I$71,COLUMN()-1,FALSE)/VLOOKUP($C62,$B$66:I$71,COLUMN()-2,FALSE))))),"") ->  | J62: =IFERROR(IF(ISNA(IF($D62=$B$77,(J38/VLOOKUP($C62,$B$66:$R$71,COLUMN()-1)),IF($D62=$B$78,(J38/I38)/(VLOOKUP($C62,$B$66:J$71,COLUMN()-1,FALSE)/VLOOKUP($C62,$B$66:J$71,COLUMN()-2,FALSE))))),"",IF($D62=$B$77,(J38/VLOOKUP($C62,$B$66:$R$71,COLUMN()-1)),IF($D62=$B$78,(J38/I38)/(VLOOKUP($C62,$B$66:J$71,COLUMN()-1,FALSE)/VLOOKUP($C62,$B$66:J$71,COLUMN()-2,FALSE))))),"") ->  | K62: =IFERROR(IF(ISNA(IF($D62=$B$77,(K38/VLOOKUP($C62,$B$66:$R$71,COLUMN()-1)),IF($D62=$B$78,(K38/J38)/(VLOOKUP($C62,$B$66:K$71,COLUMN()-1,FALSE)/VLOOKUP($C62,$B$66:K$71,COLUMN()-2,FALSE))))),"",IF($D62=$B$77,(K38/VLOOKUP($C62,$B$66:$R$71,COLUMN()-1)),IF($D62=$B$78,(K38/J38)/(VLOOKUP($C62,$B$66:K$71,COLUMN()-1,FALSE)/VLOOKUP($C62,$B$66:K$71,COLUMN()-2,FALSE))))),"") ->  | L62: =IFERROR(IF(ISNA(IF($D62=$B$77,(L38/VLOOKUP($C62,$B$66:$R$71,COLUMN()-1)),IF($D62=$B$78,(L38/K38)/(VLOOKUP($C62,$B$66:L$71,COLUMN()-1,FALSE)/VLOOKUP($C62,$B$66:L$71,COLUMN()-2,FALSE))))),"",IF($D62=$B$77,(L38/VLOOKUP($C62,$B$66:$R$71,COLUMN()-1,FALSE)),IF($D62=$B$78,(L38/K38)/(VLOOKUP($C62,$B$66:L$71,COLUMN()-1,FALSE)/VLOOKUP($C62,$B$66:L$71,COLUMN()-2,FALSE))))),"") ->  | M62: =IFERROR(IF(ISNA(IF($D62=$B$77,(M38/VLOOKUP($C62,$B$66:$R$71,COLUMN()-1)),IF($D62=$B$78,(M38/L38)/(VLOOKUP($C62,$B$66:M$71,COLUMN()-1,FALSE)/VLOOKUP($C62,$B$66:M$71,COLUMN()-2,FALSE))))),"",IF($D62=$B$77,(M38/VLOOKUP($C62,$B$66:$R$71,COLUMN()-1,FALSE)),IF($D62=$B$78,(M38/L38)/(VLOOKUP($C62,$B$66:M$71,COLUMN()-1,FALSE)/VLOOKUP($C62,$B$66:M$71,COLUMN()-2,FALSE))))),"") ->  | N62: =IFERROR(IF(ISNA(IF($D62=$B$77,(N38/VLOOKUP($C62,$B$66:$R$71,COLUMN()-1)),IF($D62=$B$78,(N38/M38)/(VLOOKUP($C62,$B$66:N$71,COLUMN()-1,FALSE)/VLOOKUP($C62,$B$66:N$71,COLUMN()-2,FALSE))))),"",IF($D62=$B$77,(N38/VLOOKUP($C62,$B$66:$R$71,COLUMN()-1,FALSE)),IF($D62=$B$78,(N38/M38)/(VLOOKUP($C62,$B$66:N$71,COLUMN()-1,FALSE)/VLOOKUP($C62,$B$66:N$71,COLUMN()-2,FALSE))))),"") ->  | O62: 0 | P62: =IFERROR(O62,0) -> 0 | Q62: 0 | R62: 0
B65: =Labels!F135 -> Parameters
B66: =Labels!F136 -> Consumption | E66: =IF('GDP (E)'!E5<>"",'GDP (E)'!E5,"") ->  | F66: =IF('GDP (E)'!F5<>"",'GDP (E)'!F5,"") ->  | G66: =IF('GDP (E)'!G5<>"",'GDP (E)'!G5,"") ->  | H66: =IF('GDP (E)'!H5<>"",'GDP (E)'!H5,"") ->  | I66: =IF('GDP (E)'!I5<>"",'GDP (E)'!I5,"") ->  | J66: =IF('GDP (E)'!J5<>"",'GDP (E)'!J5,"") ->  | K66: =IF('GDP (E)'!K5<>"",'GDP (E)'!K5,"") ->  | L66: =IF('GDP (E)'!L5<>"",'GDP (E)'!L5,"") ->  | M66: =IF('GDP (E)'!M5<>"",'GDP (E)'!M5,"") ->  | N66: =IF('GDP (E)'!N5<>"",'GDP (E)'!N5,"") ->  | O66: =IF('GDP (E)'!O5<>"",'GDP (E)'!O5,"") ->  | P66: =IF('GDP (E)'!P5<>"",'GDP (E)'!P5,"") ->  | Q66: =IF('GDP (E)'!Q5<>"",'GDP (E)'!Q5,"") ->  | R66: =IF('GDP (E)'!R5<>"",'GDP (E)'!R5,"") -> 
B67: =Labels!F137 -> Investment | E67: =IF('GDP (E)'!E9<>"",'GDP (E)'!E9,"") ->  | F67: =IF('GDP (E)'!F9<>"",'GDP (E)'!F9,"") ->  | G67: =IF('GDP (E)'!G9<>"",'GDP (E)'!G9,"") ->  | H67: =IF('GDP (E)'!H9<>"",'GDP (E)'!H9,"") ->  | I67: =IF('GDP (E)'!I9<>"",'GDP (E)'!I9,"") ->  | J67: =IF('GDP (E)'!J9<>"",'GDP (E)'!J9,"") ->  | K67: =IF('GDP (E)'!K9<>"",'GDP (E)'!K9,"") ->  | L67: =IF('GDP (E)'!L9<>"",'GDP (E)'!L9,"") ->  | M67: =IF('GDP (E)'!M9<>"",'GDP (E)'!M9,"") ->  | N67: =IF('GDP (E)'!N9<>"",'GDP (E)'!N9,"") ->  | O67: =IF('GDP (E)'!O9<>"",'GDP (E)'!O9,"") ->  | P67: =IF('GDP (E)'!P9<>"",'GDP (E)'!P9,"") ->  | Q67: =IF('GDP (E)'!Q9<>"",'GDP (E)'!Q9,"") ->  | R67: =IF('GDP (E)'!R9<>"",'GDP (E)'!R9,"") -> 
B68: ='GDP (P)'!B130 -> Mining & quarrying | F68: ='GDP (P)'!F130 -> 0 | G68: ='GDP (P)'!G130 -> 0 | H68: ='GDP (P)'!H130 -> 0 | I68: ='GDP (P)'!I130 -> 0 | J68: ='GDP (P)'!J130 -> 0 | K68: ='GDP (P)'!K130 -> 0 | L68: ='GDP (P)'!L130 -> 0 | M68: ='GDP (P)'!M130 -> 0 | N68: ='GDP (P)'!N130 -> 0 | O68: ='GDP (P)'!O130 ->  | P68: ='GDP (P)'!P130 ->  | Q68: ='GDP (P)'!Q130 ->  | R68: ='GDP (P)'!R130 -> 
B69: =Labels!F139 -> Imports | E69: =IF('GDP (E)'!E13<>"",'GDP (E)'!E13,"") ->  | F69: =IF('GDP (E)'!F13<>"",'GDP (E)'!F13,"") ->  | G69: =IF('GDP (E)'!G13<>"",'GDP (E)'!G13,"") ->  | H69: =IF('GDP (E)'!H13<>"",'GDP (E)'!H13,"") ->  | I69: =IF('GDP (E)'!I13<>"",'GDP (E)'!I13,"") ->  | J69: =IF('GDP (E)'!J13<>"",'GDP (E)'!J13,"") ->  | K69: =IF('GDP (E)'!K13<>"",'GDP (E)'!K13,"") ->  | L69: =IF('GDP (E)'!L13<>"",'GDP (E)'!L13,"") ->  | M69: =IF('GDP (E)'!M13<>"",'GDP (E)'!M13,"") ->  | N69: =IF('GDP (E)'!N13<>"",'GDP (E)'!N13,"") ->  | O69: =IF('GDP (E)'!O13<>"",'GDP (E)'!O13,"") ->  | P69: =IF('GDP (E)'!P13<>"",'GDP (E)'!P13,"") ->  | Q69: =IF('GDP (E)'!Q13<>"",'GDP (E)'!Q13,"") ->  | R69: =IF('GDP (E)'!R13<>"",'GDP (E)'!R13,"") -> 
B70: =Labels!F52 -> GDP at current prices | E70: =IF('GDP (P)'!E2<>"",'GDP (P)'!E2,"") -> 0 | F70: =IF('GDP (P)'!F2<>"",'GDP (P)'!F2,"") -> 0 | G70: =IF('GDP (P)'!G2<>"",'GDP (P)'!G2,"") -> 0 | H70: =IF('GDP (P)'!H2<>"",'GDP (P)'!H2,"") -> 0 | I70: =IF('GDP (P)'!I2<>"",'GDP (P)'!I2,"") -> 0 | J70: =IF('GDP (P)'!J2<>"",'GDP (P)'!J2,"") -> 0 | K70: =IF('GDP (P)'!K2<>"",'GDP (P)'!K2,"") -> 0 | L70: =IF('GDP (P)'!L2<>"",'GDP (P)'!L2,"") -> 0 | M70: =IF('GDP (P)'!M2<>"",'GDP (P)'!M2,"") -> 0 | N70: =IF('GDP (P)'!N2<>"",'GDP (P)'!N2,"") -> 0 | O70: =IFERROR(IF('GDP (P)'!O2<>"",'GDP (P)'!O2,""),"") -> 0 | P70: =IFERROR(IF('GDP (P)'!P2<>"",'GDP (P)'!P2,""),"") -> 0 | Q70: =IFERROR(IF('GDP (P)'!Q2<>"",'GDP (P)'!Q2,""),"") -> 0 | R70: =IFERROR(IF('GDP (P)'!R2<>"",'GDP (P)'!R2,""),"") -> 0
B71: =Labels!F53 -> GDP at constant prices | E71: =IF('GDP (P)'!E3<>"",'GDP (P)'!E3,"") -> 0 | F71: =IF('GDP (P)'!F3<>"",'GDP (P)'!F3,"") -> 0 | G71: =IF('GDP (P)'!G3<>"",'GDP (P)'!G3,"") -> 0 | H71: =IF('GDP (P)'!H3<>"",'GDP (P)'!H3,"") -> 0 | I71: =IF('GDP (P)'!I3<>"",'GDP (P)'!I3,"") -> 0 | J71: =IF('GDP (P)'!J3<>"",'GDP (P)'!J3,"") -> 0 | K71: =IF('GDP (P)'!K3<>"",'GDP (P)'!K3,"") -> 0 | L71: =IF('GDP (P)'!L3<>"",'GDP (P)'!L3,"") -> 0 | M71: =IF('GDP (P)'!M3<>"",'GDP (P)'!M3,"") -> 0 | N71: =IF('GDP (P)'!N3<>"",'GDP (P)'!N3,"") -> 0 | O71: =IF('GDP (P)'!O3<>"",'GDP (P)'!O3,"") -> 0 | P71: =IF('GDP (P)'!P3<>"",'GDP (P)'!P3,"") -> 0 | Q71: =IF('GDP (P)'!Q3<>"",'GDP (P)'!Q3,"") -> 0 | R71: =IF('GDP (P)'!R3<>"",'GDP (P)'!R3,"") -> 0
B72: =Labels!F54 -> GDP at current prices (growth) | D72: =IF(C70<>"",D70/C70*100-100,"") ->  | E72: =IFERROR(IF(D70<>"",E70/D70*100-100,""),"") ->  | L72: =IFERROR(IF(K70<>"",L70/K70*100-100,""),"") ->  | R72: =IFERROR(IF(Q70<>"",R70/Q70*100-100,""),"") -> 
B73: =Labels!F55 -> GDP at constant prices (growth) | D73: =IF(C71<>"",D71/C71*100-100,"") ->  | E73: =IFERROR(IF(D71<>"",E71/D71*100-100,""),"") ->  | F73: =IFERROR(IF(E71<>"",F71/E71*100-100,""),"") -> 
B76: Options
B77: =Labels!F133 -> ETR
B78: =Labels!F134 -> Buoyancy

Sheet EXPENDITURE
E1: ='GDP (P)'!E1 -> 2012 | F1: ='GDP (P)'!F1 -> 2013 | G1: ='GDP (P)'!G1 -> 2014 | H1: ='GDP (P)'!H1 -> 2015 | I1: ='GDP (P)'!I1 -> 2016 | J1: ='GDP (P)'!J1 -> 2017 | K1: ='GDP (P)'!K1 -> 2018 | L1: ='GDP (P)'!L1 -> 2019 | M1: ='GDP (P)'!M1 -> 2020 | N1: ='GDP (P)'!N1 -> 2021 | O1: ='GDP (P)'!O1 -> 2022 | P1: ='GDP (P)'!P1 -> 2023 | Q1: ='GDP (P)'!Q1 -> 2024 | R1: ='GDP (P)'!R1 -> 2025
B2: =Labels!F51 -> Shock Scenario
B3: =Labels!F140 -> Expenditure | E3: =E7+E21 -> 0 | F3: 0 | G3: 0 | H3: 0 | I3: 0 | J3: 0 | K3: 0 | L3: =L7+L21 -> 0 | M3: =M7+M21 -> 0 | N3: =N7+N21 -> 0 | O3: =IFERROR(O4+O5,"") -> 0 | P3: =IFERROR(P4+P5,"") -> 0 | Q3: =IFERROR(Q4+Q5,"") -> 0 | R3: =IFERROR(R4+R5,"") -> 0
B4: =Labels!F141 -> Expenses | E4: =E7 -> 0 | F4: 0 | G4: 0 | H4: 0 | I4: 0 | J4: 0 | K4: 0 | L4: =L7 -> 0 | M4: =M7 -> 0 | N4: =N7 -> 0 | O4: =IFERROR(O7,"") -> 0 | P4: =IFERROR(P7,"") -> 0 | Q4: =IFERROR(Q7,"") -> 0 | R4: =IFERROR(R7,"") -> 0
B5: =Labels!F142 -> Acquisition of Nonfinancial Assets | E5: =E21 -> 0 | F5: 0 | G5: 0 | H5: 0 | I5: 0 | J5: 0 | K5: 0 | L5: =L21 -> 0 | M5: 0 | N5: 0 | O5: 0 | P5: 0 | Q5: 0 | R5: 0
B7: =B4 -> Expenses | E7: =E8+E11+E14+E17+E18+E19 -> 0 | F7: 0 | G7: 0 | H7: 0 | I7: 0 | J7: 0 | K7: 0 | L7: =L8+L11+L14+L17+L18+L19 -> 0 | M7: =M8+M11+M14+M17+M18+M19 -> 0 | N7: =N8+N11+N14+N17+N18+N19 -> 0 | O7: =IFERROR(O8+O11+O14+O17+O18+O19,"") -> 0 | P7: =IFERROR(P8+P11+P14+P17+P18+P19,"") -> 0 | Q7: =IFERROR(Q8+Q11+Q14+Q17+Q18+Q19,"") -> 0 | R7: =IFERROR(R8+R11+R14+R17+R18+R19,"") -> 0
B8: =Labels!F143 -> a. Wages and salaries | E8: =E31 -> 0 | F8: 0 | G8: 0 | H8: 0 | I8: 0 | J8: 0 | K8: 0 | L8: =L31 -> 0 | M8: =M31 -> 0 | N8: =N31 -> 0 | O8: =IFERROR(SUM(O9:O10),"") -> 0 | P8: =IFERROR(SUM(P9:P10),"") -> 0 | Q8: =IFERROR(SUM(Q9:Q10),"") -> 0 | R8: =IFERROR(SUM(R9:R10),"") -> 0
B9: =Labels!F144 -> o/w Health | E9: =E32 -> 0 | F9: 0 | G9: 0 | H9: 0 | I9: 0 | J9: 0 | K9: 0 | L9: =L32 -> 0 | M9: 0 | N9: 0 | O9: =IFERROR(N9*(1+O52/100),"") ->  | P9: =IFERROR(O9*(1+P52/100),"") ->  | Q9: =IFERROR(P9*(1+Q52/100),"") ->  | R9: =IFERROR(Q9*(1+R52/100),"") -> 
B10: =Labels!F145 -> other | E10: =E33 -> 0 | F10: 0 | G10: 0 | H10: 0 | I10: 0 | J10: 0 | K10: 0 | L10: 0 | M10: 0 | N10: 0 | O10: =IFERROR(O33+SUMIFS('Policy Responses'!O$3:O$50,'Policy Responses'!$B$3:$B$50,'Policy Responses'!$T$20),"") -> 0 | P10: =IFERROR(P33+SUMIFS('Policy Responses'!P$3:P$50,'Policy Responses'!$B$3:$B$50,'Policy Responses'!$T$20),"") -> 0 | Q10: =IFERROR(Q33+SUMIFS('Policy Responses'!Q$3:Q$50,'Policy Responses'!$B$3:$B$50,'Policy Responses'!$T$20),"") -> 0 | R10: =IFERROR(R33+SUMIFS('Policy Responses'!R$3:R$50,'Policy Responses'!$B$3:$B$50,'Policy Responses'!$T$20),"") -> 0
B11: =Labels!F146 -> b. Use of Good and Services | E11: =E34 -> 0 | F11: 0 | G11: 0 | H11: 0 | I11: 0 | J11: 0 | K11: 0 | L11: 0 | M11: 0 | N11: 0 | O11: =IFERROR(SUM(O12:O13),"") -> 0 | P11: =IFERROR(SUM(P12:P13),"") -> 0 | Q11: =IFERROR(SUM(Q12:Q13),"") -> 0 | R11: =IFERROR(SUM(R12:R13),"") -> 0
B12: =B9 -> o/w Health | E12: =E35 -> 0 | F12: 0 | G12: 0 | H12: 0 | I12: 0 | J12: 0 | K12: 0 | L12: 0 | M12: 0 | N12: 0 | O12: =IFERROR(N12*(1+O52/100),"") ->  | P12: =IFERROR(O12*(1+P52/100),"") ->  | Q12: =IFERROR(P12*(1+Q52/100),"") ->  | R12: =IFERROR(Q12*(1+R52/100),"") -> 
B13: =B10 -> other | E13: =E36 -> 0 | F13: 0 | G13: 0 | H13: 0 | I13: 0 | J13: 0 | K13: 0 | L13: 0 | M13: 0 | N13: 0 | O13: =IFERROR(O36+SUMIFS('Policy Responses'!O$3:O$50,'Policy Responses'!$B$3:$B$50,'Policy Responses'!$T$21),"") -> 0 | P13: =IFERROR(P36+SUMIFS('Policy Responses'!P$3:P$50,'Policy Responses'!$B$3:$B$50,'Policy Responses'!$T$21),"") -> 0 | Q13: =IFERROR(Q36+SUMIFS('Policy Responses'!Q$3:Q$50,'Policy Responses'!$B$3:$B$50,'Policy Responses'!$T$21),"") -> 0 | R13: =IFERROR(R36+SUMIFS('Policy Responses'!R$3:R$50,'Policy Responses'!$B$3:$B$50,'Policy Responses'!$T$21),"") -> 0
B14: =Labels!F147 -> c. Interest payments | E14: =E37 -> 0 | F14: 0 | G14: 0 | H14: 0 | I14: 0 | J14: 0 | K14: 0 | L14: 0 | M14: 0 | N14: 0 | O14: =O15+O16 -> 0 | P14: =P15+P16 -> 0 | Q14: =Q15+Q16 -> 0 | R14: =R15+R16 -> 0
B15: =Labels!F148 -> Domestic | E15: =E38 -> 0 | F15: 0 | G15: 0 | H15: 0 | I15: 0 | J15: 0 | K15: 0 | L15: 0 | M15: 0 | N15: 0 | O15: 0 | P15: 0 | Q15: 0 | R15: 0
B16: =Labels!F149 -> External | E16: =E39 -> 0 | F16: 0 | G16: 0 | H16: 0 | I16: 0 | J16: 0 | K16: 0 | L16: 0 | M16: 0 | N16: 0 | O16: 0 | P16: 0 | Q16: 0 | R16: 0
B17: =Labels!F150 -> d. Grants and other payments | E17: =E40 -> 0 | F17: 0 | G17: 0 | H17: 0 | I17: 0 | J17: 0 | K17: 0 | L17: 0 | M17: 0 | N17: 0 | O17: =O40+SUMIFS('Policy Responses'!O$3:O$50,'Policy Responses'!$B$3:$B$50,'Policy Responses'!$T$22) -> 0 | P17: =P40+SUMIFS('Policy Responses'!P$3:P$50,'Policy Responses'!$B$3:$B$50,'Policy Responses'!$T$22) -> 0 | Q17: =Q40+SUMIFS('Policy Responses'!Q$3:Q$50,'Policy Responses'!$B$3:$B$50,'Policy Responses'!$T$22) -> 0 | R17: =R40+SUMIFS('Policy Responses'!R$3:R$50,'Policy Responses'!$B$3:$B$50,'Policy Responses'!$T$22) -> 0
B18: =Labels!F151 -> e. Social Benefits | E18: =E41 -> 0 | F18: 0 | G18: 0 | H18: 0 | I18: 0 | J18: 0 | K18: 0 | L18: 0 | M18: 0 | N18: 0 | O18: =O41+SUMIFS('Policy Responses'!O$3:O$50,'Policy Responses'!$B$3:$B$50,'Policy Responses'!$T$23) -> 0 | P18: =P41+SUMIFS('Policy Responses'!P$3:P$50,'Policy Responses'!$B$3:$B$50,'Policy Responses'!$T$23) -> 0 | Q18: =Q41+SUMIFS('Policy Responses'!Q$3:Q$50,'Policy Responses'!$B$3:$B$50,'Policy Responses'!$T$23) -> 0 | R18: =R41+SUMIFS('Policy Responses'!R$3:R$50,'Policy Responses'!$B$3:$B$50,'Policy Responses'!$T$23) -> 0
B19: =Labels!F152 -> f. Other Expenses | E19: =E42 -> 0 | F19: 0 | G19: 0 | H19: 0 | I19: 0 | J19: 0 | K19: 0 | L19: 0 | M19: 0 | N19: 0 | O19: =O42+SUMIFS('Policy Responses'!O$3:O$50,'Policy Responses'!$B$3:$B$50,'Policy Responses'!$T$24) -> 0 | P19: =P42+SUMIFS('Policy Responses'!P$3:P$50,'Policy Responses'!$B$3:$B$50,'Policy Responses'!$T$24) -> 0 | Q19: =Q42+SUMIFS('Policy Responses'!Q$3:Q$50,'Policy Responses'!$B$3:$B$50,'Policy Responses'!$T$24) -> 0 | R19: =R42+SUMIFS('Policy Responses'!R$3:R$50,'Policy Responses'!$B$3:$B$50,'Policy Responses'!$T$24) -> 0
B21: =B5 -> Acquisition of Nonfinancial Assets | E21: =E44 -> 0 | F21: 0 | G21: 0 | H21: 0 | I21: 0 | J21: 0 | K21: 0 | L21: 0 | M21: 0 | N21: =N44 -> 0 | O21: =O44+SUMIFS('Policy Responses'!O$3:O$50,'Policy Responses'!$B$3:$B$50,'Policy Responses'!$T$25) -> 0 | P21: =P44+SUMIFS('Policy Responses'!P$3:P$50,'Policy Responses'!$B$3:$B$50,'Policy Responses'!$T$25) -> 0 | Q21: =Q44+SUMIFS('Policy Responses'!Q$3:Q$50,'Policy Responses'!$B$3:$B$50,'Policy Responses'!$T$25) -> 0 | R21: =R44+SUMIFS('Policy Responses'!R$3:R$50,'Policy Responses'!$B$3:$B$50,'Policy Responses'!$T$25) -> 0
B25: =Labels!F178 -> Baseline
B26: =B3 -> Expenditure | E26: =E3 -> 0 | F26: 0 | G26: 0 | H26: 0 | I26: 0 | J26: 0 | K26: 0 | L26: =L3 -> 0 | M26: 0 | N26: 0 | O26: =O27+O28 -> 0 | P26: =P27+P28 -> 0 | Q26: =Q27+Q28 -> 0 | R26: =R27+R28 -> 0
B27: =B4 -> Expenses | E27: =E4 -> 0 | F27: 0 | G27: 0 | H27: 0 | I27: 0 | J27: 0 | K27: 0 | L27: 0 | M27: 0 | N27: 0 | O27: =O30 -> 0 | P27: =P30 -> 0 | Q27: =Q30 -> 0 | R27: =R30 -> 0
B28: =B5 -> Acquisition of Nonfinancial Assets | E28: =E5 -> 0 | F28: 0 | G28: 0 | H28: 0 | I28: 0 | J28: 0 | K28: 0 | L28: 0 | M28: 0 | N28: 0 | O28: =O44 -> 0 | P28: =P44 -> 0 | Q28: =Q44 -> 0 | R28: =R44 -> 0
B30: =B7 -> Expenses | E30: =E31+E34+E37+E40+E41+E42 -> 0 | F30: 0 | G30: 0 | H30: 0 | I30: 0 | J30: 0 | K30: 0 | L30: =L31+L34+L37+L40+L41+L42 -> 0 | M30: 0 | N30: 0 | O30: 0 | P30: 0 | Q30: 0 | R30: 0
B31: =B8 -> a. Wages and salaries
B32: o/w Health
B33: other
B34: b. Use of Good and Services
B35: o/w Health
B36: other
B37: c. Interest payments
B38: Domestic
B39: External
B40: d. Grants and other payments
B41: e. Social Benefits
B42: f. Other Expenses
B44: =B28 -> Acquisition of Nonfinancial Assets
B48: =Labels!F153 -> Health parameters
B49: =Labels!F154 -> % of Wages and Salaries | E49: =IFERROR(E32/E31*100,"") ->  | R49: =IFERROR(R32/R31*100,"") -> 
B50: =Labels!F155 -> % of Goods and Services | E50: =IFERROR(E35/E34*100,"") ->  | R50: =IFERROR(R35/R34*100,"") -> 
B51: =Labels!F156 -> % of Budget | E51: =IFERROR((E32+E35)/E26*100,"") ->  | R51: =IFERROR((R32+R35)/R26*100,"") -> 
B52: =Labels!F157 -> Health growth (from GDP(P) parameters) | E52: =IFERROR('GDP (P)'!E146/'GDP (P)'!D146 *100 -100,"LINK") -> LINK | F52: =IFERROR('GDP (P)'!F146/'GDP (P)'!E146 *100 -100,"LINK") -> LINK | G52: =IFERROR('GDP (P)'!G146/'GDP (P)'!F146 *100 -100,"LINK") -> LINK | H52: =IFERROR('GDP (P)'!H146/'GDP (P)'!G146 *100 -100,"LINK") -> LINK | I52: =IFERROR('GDP (P)'!I146/'GDP (P)'!H146 *100 -100,"LINK") -> LINK | J52: =IFERROR('GDP (P)'!J146/'GDP (P)'!I146 *100 -100,"LINK") -> LINK | K52: =IFERROR('GDP (P)'!K146/'GDP (P)'!J146 *100 -100,"LINK") -> LINK | L52: =IFERROR('GDP (P)'!L146/'GDP (P)'!K146 *100 -100,"LINK") -> LINK | M52: =IFERROR('GDP (P)'!M146/'GDP (P)'!L146 *100 -100,"LINK") -> LINK | N52: =IFERROR('GDP (P)'!N146/'GDP (P)'!M146 *100 -100,"LINK") -> LINK | O52: =IFERROR('GDP (P)'!O146/'GDP (P)'!N146 *100 -100,"LINK") -> LINK | P52: =IFERROR('GDP (P)'!P146/'GDP (P)'!O146 *100 -100,"LINK") -> LINK | Q52: =IFERROR('GDP (P)'!Q146/'GDP (P)'!P146 *100 -100,"LINK") -> LINK | R52: =IFERROR('GDP (P)'!R146/'GDP (P)'!Q146 *100 -100,"LINK") -> LINK

Sheet DEBT
E1: ='GDP (P)'!E1 -> 2012 | F1: ='GDP (P)'!F1 -> 2013 | G1: ='GDP (P)'!G1 -> 2014 | H1: ='GDP (P)'!H1 -> 2015 | I1: ='GDP (P)'!I1 -> 2016 | J1: ='GDP (P)'!J1 -> 2017 | K1: ='GDP (P)'!K1 -> 2018 | L1: ='GDP (P)'!L1 -> 2019 | M1: ='GDP (P)'!M1 -> 2020 | N1: ='GDP (P)'!N1 -> 2021 | O1: ='GDP (P)'!O1 -> 2022 | P1: ='GDP (P)'!P1 -> 2023 | Q1: ='GDP (P)'!Q1 -> 2024 | R1: ='GDP (P)'!R1 -> 2025
B2: =Labels!F158 -> Interest on domestic debt | E2: =EXPENDITURE!E38 -> 0 | F2: =EXPENDITURE!F38 -> 0 | G2: =EXPENDITURE!G38 -> 0 | H2: =EXPENDITURE!H38 -> 0 | I2: =EXPENDITURE!I38 -> 0 | J2: =EXPENDITURE!J38 -> 0 | K2: =EXPENDITURE!K38 -> 0 | L2: =EXPENDITURE!L38 -> 0 | M2: =EXPENDITURE!M38 -> 0 | N2: =EXPENDITURE!N38 -> 0 | O2: =IFERROR(O21/100*O7,"") ->  | P2: =IFERROR(P21/100*P7,"") ->  | Q2: =IFERROR(Q21/100*Q7,"") ->  | R2: =IFERROR(R21/100*R7,"") -> 
B3: =Labels!F159 -> Interest on foreign debt | E3: =EXPENDITURE!E39 -> 0 | F3: =EXPENDITURE!F39 -> 0 | G3: =EXPENDITURE!G39 -> 0 | H3: =EXPENDITURE!H39 -> 0 | I3: =EXPENDITURE!I39 -> 0 | J3: =EXPENDITURE!J39 -> 0 | K3: =EXPENDITURE!K39 -> 0 | L3: =EXPENDITURE!L39 -> 0 | M3: =EXPENDITURE!M39 -> 0 | N3: =EXPENDITURE!N39 -> 0 | O3: =IFERROR(O22*O9/100*O23,"") ->  | P3: =IFERROR(P22*P9/100*P23,"") ->  | Q3: =IFERROR(Q22*Q9/100*Q23,"") ->  | R3: =IFERROR(R22*R9/100*R23,"") -> 
B4: =Labels!F160 -> Total interest | E4: =E3+E2 -> 0 | F4: 0 | G4: 0 | H4: 0 | I4: 0 | J4: 0 | K4: 0 | L4: =L3+L2 -> 0 | M4: =M3+M2 -> 0 | N4: =N3+N2 -> 0 | O4: =IFERROR(O3+O2,"") ->  | P4: =IFERROR(P3+P2,"") ->  | Q4: =IFERROR(Q3+Q2,"") ->  | R4: =IFERROR(R3+R2,"") -> 
B7: =Labels!F161 -> Domestic debt | O7: =IFERROR(O12*O14/100+N7,"") ->  | P7: =IFERROR(P12*P14/100+O7,"") ->  | Q7: =IFERROR(Q12*Q14/100+P7,"") ->  | R7: =IFERROR(R12*R14/100+Q7,"") -> 
B8: =Labels!F162 -> Foreign debt | O8: =IFERROR(O9*O23,"") ->  | P8: =IFERROR(P9*P23,"") ->  | Q8: =IFERROR(Q9*Q23,"") ->  | R8: =IFERROR(R9*R23,"") -> 
B9: =Labels!F163 -> Foreign debt (USD) | E9: =IFERROR(E8/E23,"") ->  | F9: =IFERROR(F8/F23,"") ->  | O9: =IFERROR((O12*O15/100)/O23+N9,"") ->  | P9: =IFERROR((P12*P15/100)/P23+O9,"") ->  | Q9: =IFERROR((Q12*Q15/100)/Q23+P9,"") ->  | R9: =IFERROR((R12*R15/100)/R23+Q9,"") -> 
B10: =Labels!F164 -> Total debt stock | E10: =E7+E8 -> 0 | F10: 0 | G10: 0 | H10: 0 | I10: 0 | J10: 0 | K10: 0 | L10: =L7+L8 -> 0 | M10: =M7+M8 -> 0 | N10: =N7+N8 -> 0 | O10: =IFERROR(O8+O7,"") ->  | P10: =IFERROR(P8+P7,"") ->  | Q10: =IFERROR(Q8+Q7,"") ->  | R10: =IFERROR(R8+R7,"") -> 
B12: =Labels!F165 -> New borrowing | O12: =IFERROR(-FISCAL!O14,"") ->  | P12: =IFERROR(-FISCAL!P14,"") ->  | Q12: =IFERROR(-FISCAL!Q14,"") ->  | R12: =IFERROR(-FISCAL!R14,"") -> 
B14: =Labels!F166 -> Domestic share of total | E14: =IFERROR(E7/E10*100,"") ->  | F14: =IFERROR(F7/F10*100,"") -> 
B15: =Labels!F167 -> Foreign share of total | E15: =IFERROR(E8/E10*100,"") ->  | F15: =IFERROR(F8/F10*100,"") -> 
B18: =Labels!F168 -> Interest on foreign debt (USD) | E18: =IFERROR(E3/E23,"") ->  | F18: =IFERROR(F3/F23,"") ->  | O18: =IFERROR(O3/O23,"") ->  | P18: =IFERROR(P3/P23,"") ->  | Q18: =IFERROR(Q3/Q23,"") ->  | R18: =IFERROR(R3/R23,"") -> 
B19: =Labels!F169 -> External debt (USD) | E19: =IFERROR(E8/E23,"") ->  | F19: =IFERROR(F8/F23,"") ->  | O19: =O9 ->  | P19: =P9 ->  | Q19: =Q9 ->  | R19: =R9 -> 
B21: =Labels!F170 -> Implied interest on domestic debt | E21: =IFERROR(E2/E7*100,"") ->  | F21: =IFERROR(F2/F7*100,"") ->  | P21: =O21 -> 0 | Q21: =AVERAGE(O21:P21) -> 0 | R21: =AVERAGE(P21:Q21) -> 0
B22: =Labels!F171 -> Implied interest on international debt | E22: =IFERROR(E3/E8*100,"") ->  | F22: =IFERROR(F3/F8*100,"") ->  | P22: =O22 -> 0 | Q22: =AVERAGE(O22:P22) -> 0 | R22: =AVERAGE(P22:Q22) -> 0
B23: =Labels!F172 -> Exchange rate | E23: ='Other Macro'!E4 -> 0 | F23: ='Other Macro'!F4 -> 0 | G23: ='Other Macro'!G4 -> 0 | H23: ='Other Macro'!H4 -> 0 | I23: ='Other Macro'!I4 -> 0 | J23: ='Other Macro'!J4 -> 0 | K23: ='Other Macro'!K4 -> 0 | L23: ='Other Macro'!L4 -> 0 | M23: ='Other Macro'!M4 -> 0 | N23: ='Other Macro'!N4 -> 0 | O23: ='Other Macro'!O4 -> 0 | P23: ='Other Macro'!P4 ->  | Q23: ='Other Macro'!Q4 ->  | R23: ='Other Macro'!R4 -> 
B25: =Labels!F173 -> Shock ratios
B26: =Labels!F174 -> Interest / Revenue | E26: =IFERROR(E4/FISCAL!E3*100,"") ->  | F26: =IFERROR(F4/FISCAL!F3*100,"") ->  | G26: =IFERROR(G4/FISCAL!G3*100,"") ->  | H26: =IFERROR(H4/FISCAL!H3*100,"") ->  | I26: =IFERROR(I4/FISCAL!I3*100,"") ->  | J26: =IFERROR(J4/FISCAL!J3*100,"") ->  | K26: =IFERROR(K4/FISCAL!K3*100,"") ->  | L26: =IFERROR(L4/FISCAL!L3*100,"") ->  | M26: =IFERROR(M4/FISCAL!M3*100,"") ->  | N26: =IFERROR(N4/FISCAL!N3*100,"") ->  | O26: =IFERROR(O4/FISCAL!O3*100,"") ->  | P26: =IFERROR(P4/FISCAL!P3*100,"") ->  | Q26: =IFERROR(Q4/FISCAL!Q3*100,"") ->  | R26: =IFERROR(R4/FISCAL!R3*100,"") -> 
B27: =Labels!F175 -> Interest / Non-grants revenue | E27: =IFERROR(E4/FISCAL!E4*100,"") ->  | F27: =IFERROR(F4/FISCAL!F4*100,"") ->  | G27: =IFERROR(G4/FISCAL!G4*100,"") ->  | H27: =IFERROR(H4/FISCAL!H4*100,"") ->  | I27: =IFERROR(I4/FISCAL!I4*100,"") ->  | J27: =IFERROR(J4/FISCAL!J4*100,"") ->  | K27: =IFERROR(K4/FISCAL!K4*100,"") ->  | L27: =IFERROR(L4/FISCAL!L4*100,"") ->  | M27: =IFERROR(M4/FISCAL!M4*100,"") ->  | N27: =IFERROR(N4/FISCAL!N4*100,"") ->  | O27: =IFERROR(O4/FISCAL!O4*100,"") ->  | P27: =IFERROR(P4/FISCAL!P4*100,"") ->  | Q27: =IFERROR(Q4/FISCAL!Q4*100,"") ->  | R27: =IFERROR(R4/FISCAL!R4*100,"") -> 
B28: =Labels!F176 -> Foreign Interest / Exports | E28: =IFERROR(E3/'GDP (E)'!E12*100,"") ->  | F28: =IFERROR(F3/'GDP (E)'!F12*100,"") ->  | G28: =IFERROR(G3/'GDP (E)'!G12*100,"") ->  | H28: =IFERROR(H3/'GDP (E)'!H12*100,"") ->  | I28: =IFERROR(I3/'GDP (E)'!I12*100,"") ->  | J28: =IFERROR(J3/'GDP (E)'!J12*100,"") ->  | K28: =IFERROR(K3/'GDP (E)'!K12*100,"") ->  | L28: =IFERROR(L3/'GDP (E)'!L12*100,"") ->  | M28: =IFERROR(M3/'GDP (E)'!M12*100,"") ->  | N28: =IFERROR(N3/'GDP (E)'!N12*100,"") ->  | O28: =IFERROR(O3/'GDP (E)'!O12*100,"") ->  | P28: =IFERROR(P3/'GDP (E)'!P12*100,"") ->  | Q28: =IFERROR(Q3/'GDP (E)'!Q12*100,"") ->  | R28: =IFERROR(R3/'GDP (E)'!R12*100,"") -> 
B30: =Labels!F177 -> Baseline ratios
B31: =B26 -> Interest / Revenue | E31: =IFERROR(FISCAL!E28/FISCAL!E20*100,"") ->  | F31: =IFERROR(FISCAL!F28/FISCAL!F20*100,"") ->  | G31: =IFERROR(FISCAL!G28/FISCAL!G20*100,"") ->  | H31: =IFERROR(FISCAL!H28/FISCAL!H20*100,"") ->  | I31: =IFERROR(FISCAL!I28/FISCAL!I20*100,"") ->  | J31: =IFERROR(FISCAL!J28/FISCAL!J20*100,"") ->  | K31: =IFERROR(FISCAL!K28/FISCAL!K20*100,"") ->  | L31: =IFERROR(FISCAL!L28/FISCAL!L20*100,"") ->  | M31: =IFERROR(FISCAL!M28/FISCAL!M20*100,"") ->  | N31: =IFERROR(FISCAL!N28/FISCAL!N20*100,"") ->  | O31: =IFERROR(FISCAL!O28/FISCAL!O20*100,"") ->  | P31: =IFERROR(FISCAL!P28/FISCAL!P20*100,"") ->  | Q31: =IFERROR(FISCAL!Q28/FISCAL!Q20*100,"") ->  | R31: =IFERROR(FISCAL!R28/FISCAL!R20*100,"") -> 
B32: =B27 -> Interest / Non-grants revenue | E32: =IFERROR(FISCAL!E28/FISCAL!E21*100,"") ->  | F32: =IFERROR(FISCAL!F28/FISCAL!F21*100,"") ->  | G32: =IFERROR(FISCAL!G28/FISCAL!G21*100,"") ->  | H32: =IFERROR(FISCAL!H28/FISCAL!H21*100,"") ->  | I32: =IFERROR(FISCAL!I28/FISCAL!I21*100,"") ->  | J32: =IFERROR(FISCAL!J28/FISCAL!J21*100,"") ->  | K32: =IFERROR(FISCAL!K28/FISCAL!K21*100,"") ->  | L32: =IFERROR(FISCAL!L28/FISCAL!L21*100,"") ->  | M32: =IFERROR(FISCAL!M28/FISCAL!M21*100,"") ->  | N32: =IFERROR(FISCAL!N28/FISCAL!N21*100,"") ->  | O32: =IFERROR(FISCAL!O28/FISCAL!O21*100,"") ->  | P32: =IFERROR(FISCAL!P28/FISCAL!P21*100,"") ->  | Q32: =IFERROR(FISCAL!Q28/FISCAL!Q21*100,"") ->  | R32: =IFERROR(FISCAL!R28/FISCAL!R21*100,"") -> 
B33: Foreign Interest / Exports
B39: =Labels!F179 -> Interest iteration calculation | E39: =SUM(E2:E3)-SUM(EXPENDITURE!E15:E16) -> 0 | F39: =SUM(F2:F3)-SUM(EXPENDITURE!F15:F16) -> 0 | G39: =SUM(G2:G3)-SUM(EXPENDITURE!G15:G16) -> 0 | H39: =SUM(H2:H3)-SUM(EXPENDITURE!H15:H16) -> 0 | I39: =SUM(I2:I3)-SUM(EXPENDITURE!I15:I16) -> 0 | J39: =SUM(J2:J3)-SUM(EXPENDITURE!J15:J16) -> 0 | K39: =SUM(K2:K3)-SUM(EXPENDITURE!K15:K16) -> 0 | L39: =SUM(L2:L3)-SUM(EXPENDITURE!L15:L16) -> 0 | M39: =SUM(M2:M3)-SUM(EXPENDITURE!M15:M16) -> 0 | N39: =SUM(N2:N3)-SUM(EXPENDITURE!N15:N16) -> 0 | O39: =SUM(O2:O3)-SUM(EXPENDITURE!O15:O16) -> 0 | P39: =SUM(P2:P3)-SUM(EXPENDITURE!P15:P16) -> 0 | Q39: =SUM(Q2:Q3)-SUM(EXPENDITURE!Q15:Q16) -> 0 | R39: =SUM(R2:R3)-SUM(EXPENDITURE!R15:R16) -> 0 | S39: =SUM(L39:R39) -> 0

Sheet FISCAL
E1: ='GDP (P)'!E1 -> 2012 | F1: ='GDP (P)'!F1 -> 2013 | G1: ='GDP (P)'!G1 -> 2014 | H1: ='GDP (P)'!H1 -> 2015 | I1: ='GDP (P)'!I1 -> 2016 | J1: ='GDP (P)'!J1 -> 2017 | K1: ='GDP (P)'!K1 -> 2018 | L1: ='GDP (P)'!L1 -> 2019 | M1: ='GDP (P)'!M1 -> 2020 | N1: ='GDP (P)'!N1 -> 2021 | O1: ='GDP (P)'!O1 -> 2022 | P1: ='GDP (P)'!P1 -> 2023 | Q1: ='GDP (P)'!Q1 -> 2024 | R1: ='GDP (P)'!R1 -> 2025
B2: =EXPENDITURE!B2 -> Shock Scenario
B3: =REVENUE!B9 -> Total Revenue | E3: =IF(REVENUE!E9<>"",REVENUE!E9,"") ->  | F3: =IF(REVENUE!F9<>"",REVENUE!F9,"") -> 0 | G3: =IF(REVENUE!G9<>"",REVENUE!G9,"") -> 0 | H3: =IF(REVENUE!H9<>"",REVENUE!H9,"") -> 0 | I3: =IF(REVENUE!I9<>"",REVENUE!I9,"") -> 0 | J3: =IF(REVENUE!J9<>"",REVENUE!J9,"") -> 0 | K3: =IF(REVENUE!K9<>"",REVENUE!K9,"") -> 0 | L3: =IF(REVENUE!L9<>"",REVENUE!L9,"") -> 0 | M3: =IF(REVENUE!M9<>"",REVENUE!M9,"") -> 0 | N3: =IF(REVENUE!N9<>"",REVENUE!N9,"") -> 0 | O3: =IF(REVENUE!O9<>"",REVENUE!O9,"") ->  | P3: =IF(REVENUE!P9<>"",REVENUE!P9,"") ->  | Q3: =IF(REVENUE!Q9<>"",REVENUE!Q9,"") ->  | R3: =IF(REVENUE!R9<>"",REVENUE!R9,"") -> 
B4: =REVENUE!B8 -> Total Revenue excl. Grants | E4: =IF(REVENUE!E8<>"",REVENUE!E8,"") ->  | F4: =IF(REVENUE!F8<>"",REVENUE!F8,"") -> 0 | G4: =IF(REVENUE!G8<>"",REVENUE!G8,"") -> 0 | H4: =IF(REVENUE!H8<>"",REVENUE!H8,"") -> 0 | I4: =IF(REVENUE!I8<>"",REVENUE!I8,"") -> 0 | J4: =IF(REVENUE!J8<>"",REVENUE!J8,"") -> 0 | K4: =IF(REVENUE!K8<>"",REVENUE!K8,"") -> 0 | L4: =IF(REVENUE!L8<>"",REVENUE!L8,"") -> 0 | M4: =IF(REVENUE!M8<>"",REVENUE!M8,"") -> 0 | N4: =IF(REVENUE!N8<>"",REVENUE!N8,"") -> 0 | O4: =IF(REVENUE!O8<>"",REVENUE!O8,"") ->  | P4: =IF(REVENUE!P8<>"",REVENUE!P8,"") ->  | Q4: =IF(REVENUE!Q8<>"",REVENUE!Q8,"") ->  | R4: =IF(REVENUE!R8<>"",REVENUE!R8,"") -> 
B5: =REVENUE!B5 -> Tax Revenue | E5: =IF(REVENUE!E5<>"",REVENUE!E5,"") ->  | F5: =IF(REVENUE!F5<>"",REVENUE!F5,"") -> 0 | G5: =IF(REVENUE!G5<>"",REVENUE!G5,"") -> 0 | H5: =IF(REVENUE!H5<>"",REVENUE!H5,"") -> 0 | I5: =IF(REVENUE!I5<>"",REVENUE!I5,"") -> 0 | J5: =IF(REVENUE!J5<>"",REVENUE!J5,"") -> 0 | K5: =IF(REVENUE!K5<>"",REVENUE!K5,"") -> 0 | L5: =IF(REVENUE!L5<>"",REVENUE!L5,"") -> 0 | M5: =IF(REVENUE!M5<>"",REVENUE!M5,"") -> 0 | N5: =IF(REVENUE!N5<>"",REVENUE!N5,"") -> 0 | O5: =IF(REVENUE!O5<>"",REVENUE!O5,"") ->  | P5: =IF(REVENUE!P5<>"",REVENUE!P5,"") ->  | Q5: =IF(REVENUE!Q5<>"",REVENUE!Q5,"") ->  | R5: =IF(REVENUE!R5<>"",REVENUE!R5,"") -> 
B6: =REVENUE!B6 -> Non-Tax Revenue | E6: =IF(REVENUE!E6<>"",REVENUE!E6,"") ->  | F6: =IF(REVENUE!F6<>"",REVENUE!F6,"") -> 0 | G6: =IF(REVENUE!G6<>"",REVENUE!G6,"") -> 0 | H6: =IF(REVENUE!H6<>"",REVENUE!H6,"") -> 0 | I6: =IF(REVENUE!I6<>"",REVENUE!I6,"") -> 0 | J6: =IF(REVENUE!J6<>"",REVENUE!J6,"") -> 0 | K6: =IF(REVENUE!K6<>"",REVENUE!K6,"") -> 0 | L6: =IF(REVENUE!L6<>"",REVENUE!L6,"") -> 0 | M6: =IF(REVENUE!M6<>"",REVENUE!M6,"") -> 0 | N6: =IF(REVENUE!N6<>"",REVENUE!N6,"") -> 0 | O6: =IF(REVENUE!O6<>"",REVENUE!O6,"") -> 0 | P6: =IF(REVENUE!P6<>"",REVENUE!P6,"") -> 0 | Q6: =IF(REVENUE!Q6<>"",REVENUE!Q6,"") -> 0 | R6: =IF(REVENUE!R6<>"",REVENUE!R6,"") -> 0
